Workbook

Sheet START

Sheet Instructions
D2: 2020
X4: Yes
X5: No
W7: Type of Entities Range:
X8: Parent Municipality
X9: Consolidated Information
F14: START
F15: Instructions
F16: Template names
F17: Lookup and lists | W17: MTREF Range: | X17: 2013
F18: Org structure | X18: 2014
F19: Contacts | X19: 2015
F20: A1-Sum | X20: 2016
F21: A2-FinPerf SC | X21: 2017
F22: A2A | X22: 2018
F23: A3-FinPerf V | X23: 2019
F24: A3A | X24: 2020
F25: A4-FinPerf RE | X25: 2021
F26: A5-Capex | X26: 2022
F27: A5A | X27: 2023
F28: A6-FinPos | X28: 2024
F29: A7-CFlow | X29: 2025
F30: A8-ResRecon | X30: 2026
F31: A9-Asset | X31: 2027
F32: A10-SerDel
F33: SA1 | W33: MTREF Linked: | X33: 11
F34: SA2 | W34: MTREF: | X34: =INDEX(X17:X31,X33,1) -> 2023
F35: SA3
F36: SA4 | W36: Fin Year: | X36: =MTREF&"/"&RIGHT(MTREF,2)+1 -> 2023/24
F37: SA5
F38: SA6
F39: SA7
F40: SA8
F41: SA9
F42: SA10
F43: SA11
F44: SA12a
F45: SA12b
F46: SA13a
F47: SA13b
F48: SA14
F49: SA15
F50: SA16
F51: SA17
F52: SA18
F53: SA19
F54: SA20
F55: SA21
F56: SA22
F57: SA23
F58: SA24
F59: SA25
F60: SA26
F61: SA27
F62: SA28
F63: SA29
F64: SA30
F65: SA31
F66: SA32
F67: SA33
F68: SA34a
F69: SA34b
F70: SA34c
F71: SA34d
F72: SA34e
F73: SA35
F74: SA36
F75: SA37
F76: SA38
F77: LGDB_EXPORT

Sheet Template names (hidden)
A1: Common sheet headings
A2: Head1 | B2: =HLOOKUP(MTREF,Headings,2) -> 2021/22 | C2: Prior year -1
A3: Head1A | B3: =HLOOKUP(MTREF,Headings,3) -> 2020/21 | C3: Prior year -2
A4: Head1B | B4: =HLOOKUP(MTREF,Headings,4) -> 2019/20 | C4: Prior year -3
A5: Head2 | B5: =HLOOKUP(MTREF,Headings,5) -> Current Year 2022/23 | C5: Year in which budget is being prepared
A6: Head2A | B6: =HLOOKUP(MTREF,Headings,6) -> 2022/23 | C6: Year in which budget is being prepared
A7: Head3 | B7: =HLOOKUP(MTREF,Headings,7) -> 2023/24 Medium Term Revenue & Expenditure Framework | C7: MTREF name
A8: Head4 | B8: LTFS | C8: Long term financial strategy
A9: Head5 | B9: Audited Outcome
A10: Head5A | B10: Outcome
A11: Head5B | B11: Pre-audit outcome
A12: Head6 | B12: Original Budget
A13: Head7 | B13: Adjusted Budget
A14: Head8 | B14: Full Year Forecast
A15: Head9 | B15: =HLOOKUP(MTREF,Headings,8) -> Budget Year 2023/24 | C15: 1st year of MTREF | D15: Year1
A16: Head10 | B16: =HLOOKUP(MTREF,Headings,9) -> Budget Year +1 2024/25 | C16: 2nd year of MTREF | D16: Year2
A17: Head11 | B17: =HLOOKUP(MTREF,Headings,10) -> Budget Year +2 2025/26 | C17: 3rd year of MTREF | D17: Year3
A18: Head12 | B18: =HLOOKUP(MTREF,Headings,11) -> Forecast 2026/27 | C18: 1st yr of long term forecast | D18: Year4
A19: Head13 | B19: =HLOOKUP(MTREF,Headings,12) -> Forecast 2027/28 | C19: Next yr of long term forecast | D19: Year5
A20: Head14 | B20: =HLOOKUP(MTREF,Headings,13) -> Forecast 2028/29 | C20: Next yr of long term forecast | D20: Year6
A21: Head15 | B21: =HLOOKUP(MTREF,Headings,14) -> Forecast 2029/30 | C21: Next yr of long term forecast | D21: Year7
A22: Head16 | B22: =HLOOKUP(MTREF,Headings,15) -> Forecast 2030/31 | C22: Next yr of long term forecast | D22: Year8
A23: Head17 | B23: =HLOOKUP(MTREF,Headings,16) -> Forecast 2031/32 | C23: Next yr of long term forecast | D23: Year9
A24: Head18 | B24: =HLOOKUP(MTREF,Headings,17) -> Forecast 2032/33 | C24: Next yr of long term forecast | D24: Year10
A25: Head19 | B25: =HLOOKUP(MTREF,Headings,18) -> Forecast 2033/34 | C25: Next yr of long term forecast | D25: Year11
A26: Head20 | B26: =HLOOKUP(MTREF,Headings,19) -> Forecast 2034/35 | C26: Next yr of long term forecast | D26: Year12
A27: Head21 | B27: =HLOOKUP(MTREF,Headings,20) -> Forecast 2035/36 | C27: Next yr of long term forecast | D27: Year13
A28: Head22 | B28: =HLOOKUP(MTREF,Headings,21) -> Forecast 2036/37 | C28: Next yr of long term forecast | D28: Year14
A29: Head23 | B29: =HLOOKUP(MTREF,Headings,22) -> Forecast 2037/38 | C29: Next yr of long term forecast | D29: Year15
A30: Head24 | B30: Description
A31: Head25
A32: Head26 | B32: Vote Description
A33: Head27 | B33: Ref
A34: Head27a | B34: References
A35: Head28 | B35: Surplus/(Deficit) for the year | D35: Result
A36: Head29 | B36: =HLOOKUP(MTREF,Headings,23) -> Annual target 2023/24
A37: Head30 | B37: =HLOOKUP(MTREF,Headings,24) -> Revised target 2023/24
A38: Head31 | B38: Quarter ended 30 September
A39: Head32 | B39: Quarter ended 31 December
A40: Head33 | B40: Quarter ended 31 March
A41: Head34 | B41: Quarter ended 30 June
A42: Head35 | B42: Variance explanation
A43: Head36 | B43: YTD Actual 31 Dec
A44: Head37 | B44: YTD Budget 31 Dec
A45: Head38 | B45: Monthly actual
A46: Head39 | B46: YTD actual
A47: Head40 | B47: YTD budget
A48: Head41 | B48: YTD variance
A49: Head42 | B49: Surplus/ (Deficit) for the yr/period
A50: Head43 | B50: =Head3&" Summary" -> 2023/24 Medium Term Revenue & Expenditure Framework Summary
A51: Head44 | B51: 2001 Census
A52: Head45 | B52: 2011 Census
A53: Head46 | B53: - Adjustments Budget - January 2007
A54: Head47 | B54: Previous target year to complete
A55: Head48 | B55: Present value
A56: Head49
A57: Head50 | B57: Other Adjusts.
A58: Head51 | B58: Accum. Funds
A59: Head52 | B59: Multi-year capital
A60: Head53 | B60: Unfore. Unavoid.
A61: Head54 | B61: Prior Adjusted
A62: Head55 | B62: Nat. or Prov. Govt
A63: Head56 | B63: Total Adjusts.
A64: SFPerf1 | B64: Budgeted Financial Performance
A65: SFPerf2 | B65: Forecast Financial Performance
A66: SFPos1 | B66: Budgeted Financial Position
A67: SFPos2 | B67: Forecast Financial Position
A68: Cash1 | B68: Budget Cash Flow
A69: Cash2 | B69: Forecast Cash Flow
A70: RandM | B70: Expenditure includes repairs & maintenance of R'000
A71: Depart1 | B71: Department 1 - | D71: DEP1
A72: Depart2 | B72: Department 2 - | D72: DEP2
A73: Depart3 | B73: Department 3 - | D73: DEP3
A74: Depart4 | B74: Department 4 - | D74: DEP4
A75: Depart5 | B75: Department 5 - | D75: DEP5
A76: Depart6 | B76: Department 6 - | D76: DEP6
A77: Depart7 | B77: Department 7 - | D77: DEP7
A78: Depart8 | B78: Department 8 - | D78: DEP8
A79: Depart9 | B79: Department 9 - | D79: DEP9
A80: Depart10 | B80: Department 10 - | D80: DEP10
A81: Depart11 | B81: Department 11 - | D81: DEP11
A82: Depart12 | B82: Department 12 - | D82: DEP12
A83: Depart13 | B83: Department 13 - | D83: DEP13
A84: Depart14 | B84: Department 14 - | D84: DEP14
A87: Base year of forecast column selection names
A88: Choose | B88: ACT
B89: APP
B90: ADJ
A92: Standard nomenclature
A93: Muni | B93: ='Lookup and lists'!B28 -> LIM353 Molemole
A94: Municipal Entities | B94: 2 | C94: Type of report: | D94: 1
A95: =IF((MuniEntities=1)*(MuniType=2),"YES","NO") -> NO | B95: Does this municipality have entities (consolidated budget and entity budgets required)? YES/NO
A96: Entity 1 | B96: (Pty) Ltd Example 1 - Municipal entity - | D96: Ent1
A97: Entity 2 | B97: (Pty) Ltd Example 2 - Municipal entity - | D97: Ent2
A98: Entity 3 | B98: Municipal Entity Example 3 | D98: Ent3
A99: Budget approval tables | C99: Chart x-ref | D99: Sch/Tab/Ch | E99: Alternative for municipalities without entities | F99: Alternative for municipalities without entities
B100: =IF(Consolques="YES",E100,F100) -> Table A1 Budget Summary | D100: Table A1 | E100: =D100&"Consolidated Budget Summary" -> Table A1 Consolidated Budget Summary | F100: =D100&"Budget Summary" -> Table A1 Budget Summary
B101: Table A2 Budgeted Financial Performance (revenue and expenditure by functional classification) | C101: Charts 5, 6 | D101: Table A2 | E101: =D101&"Consolidated Budgeted Financial Performance (revenue and expenditure by functional classification)" -> Table A2 Consolidated Budgeted Financial Performance (revenue and expenditure by functional classification) | F101: =D101&"Budgeted Financial Performance (revenue and expenditure by functional classification)" -> Table A2 Budgeted Financial Performance (revenue and expenditure by functional classification)
B102: Table A3 Budgeted Financial Performance (revenue and expenditure by municipal vote) | D102: Table A3 | E102: =D102&"Consolidated Budgeted Financial Performance (revenue and expenditure by municipal vote)" -> Table A3 Consolidated Budgeted Financial Performance (revenue and expenditure by municipal vote) | F102: =D102&"Budgeted Financial Performance (revenue and expenditure by municipal vote)" -> Table A3 Budgeted Financial Performance (revenue and expenditure by municipal vote)
B103: Table A4 Budgeted Financial Performance (revenue and expenditure) | C103: Charts 1, 2, 3, 4 | D103: Table A4 | E103: =D103&"Consolidated Budgeted Financial Performance (revenue and expenditure)" -> Table A4 Consolidated Budgeted Financial Performance (revenue and expenditure) | F103: =D103&"Budgeted Financial Performance (revenue and expenditure)" -> Table A4 Budgeted Financial Performance (revenue and expenditure)
B104: Table A5 Budgeted Capital Expenditure by vote, functional classification and funding | C104: Charts 7, 8, 9, 10, 20 | D104: Table A5 | E104: =D104&"Consolidated Budgeted Capital Expenditure by vote, functional classification and funding" -> Table A5 Consolidated Budgeted Capital Expenditure by vote, functional classification and funding | F104: =D104&"Budgeted Capital Expenditure by vote, functional classification and funding" -> Table A5 Budgeted Capital Expenditure by vote, functional classification and funding
B105: Table A6 Budgeted Financial Position | D105: Table A6 | E105: =D105&"Consolidated Budgeted Financial Position" -> Table A6 Consolidated Budgeted Financial Position | F105: =D105&"Budgeted Financial Position" -> Table A6 Budgeted Financial Position
B106: Table A7 Budgeted Cash Flows | D106: Table A7 | E106: =D106&"Consolidated Budgeted Cash Flows" -> Table A7 Consolidated Budgeted Cash Flows | F106: =D106&"Budgeted Cash Flows" -> Table A7 Budgeted Cash Flows
B107: Table A8 Cash backed reserves/accumulated surplus reconciliation | D107: Table A8 | E107: =D107&"Consolidated Cash backed reserves/accumulated surplus reconciliation" -> Table A8 Consolidated Cash backed reserves/accumulated surplus reconciliation | F107: =D107&"Cash backed reserves/accumulated surplus reconciliation" -> Table A8 Cash backed reserves/accumulated surplus reconciliation
B108: Table A9 Asset Management | D108: Table A9 | E108: =D108&"Consolidated Asset Management" -> Table A9 Consolidated Asset Management | F108: =D108&"Asset Management" -> Table A9 Asset Management
B109: Table A10 Basic service delivery measurement | D109: Table A10 | E109: =D109&"Consolidated basic service delivery measurement" -> Table A10 Consolidated basic service delivery measurement | F109: =D109&"Basic service delivery measurement" -> Table A10 Basic service delivery measurement
A110: Supportinging Tables to the Budget Approval Tables | C110: =$C$99 -> Chart x-ref | D110: =$D$99 -> Sch/Tab/Ch
A111: Supporting Table SA1 | B111: =A111&" Supportinging detail to 'Budgeted Financial Performance'" -> Supporting Table SA1 Supportinging detail to 'Budgeted Financial Performance'
A112: Supporting Table SA2 | B112: =IF(Consolques="YES",E112,F112) -> Supporting Table SA2 Matrix Financial Performance Budget (revenue source/expenditure type and dept.) | E112: =A112&"Consolidated Matrix Financial Performance Budget (revenue source/expenditure type & dept.)" -> Supporting Table SA2 Consolidated Matrix Financial Performance Budget (revenue source/expenditure type & dept.) | F112: =A112&"Matrix Financial Performance Budget (revenue source/expenditure type and dept.)" -> Supporting Table SA2 Matrix Financial Performance Budget (revenue source/expenditure type and dept.)
A113: Supporting Table SA3 | B113: =A113&"Supportinging detail to 'Budgeted Financial Position'" -> Supporting Table SA3 Supportinging detail to 'Budgeted Financial Position'
A114: Supporting Table SA4 | B114: =A114&"Reconciliation of IDP strategic objectives and budget (revenue)" -> Supporting Table SA4 Reconciliation of IDP strategic objectives and budget (revenue) | C114: Chart 11
A115: Supporting Table SA5 | B115: =A115&"Reconciliation of IDP strategic objectives and budget (operating expenditure)" -> Supporting Table SA5 Reconciliation of IDP strategic objectives and budget (operating expenditure) | C115: Chart 12
A116: Supporting Table SA6 | B116: =A116&"Reconciliation of IDP strategic objectives and budget (capital expenditure)" -> Supporting Table SA6 Reconciliation of IDP strategic objectives and budget (capital expenditure) | C116: Chart 13
A117: Supporting Table SA7 | B117: =A117&" Measureable performance objectives" -> Supporting Table SA7 Measureable performance objectives
A118: Supporting Table SA8 | B118: =A118&" Performance indicators and benchmarks" -> Supporting Table SA8 Performance indicators and benchmarks | C118: Chts 15-19
A119: Supporting Table SA9 | B119: =A119&" Social, economic and demographic statistics and assumptions" -> Supporting Table SA9 Social, economic and demographic statistics and assumptions
A120: Supporting Table SA10 | B120: =A120&" Funding measurement" -> Supporting Table SA10 Funding measurement | C120: Chart 14
A121: Supporting Table SA11 | B121: =A121&" Property rates summary" -> Supporting Table SA11 Property rates summary
A122: Supporting Table SA12a | B122: =A122&" Property rates by category (current year)" -> Supporting Table SA12a Property rates by category (current year)
A123: Supporting Table SA12b | B123: =A123&" Property rates by category (budget year)" -> Supporting Table SA12b Property rates by category (budget year)
A124: Supporting Table SA13a | B124: =A124&" Service Tariffs by category" -> Supporting Table SA13a Service Tariffs by category
A125: Supporting Table SA13b | B125: =A125&" Service Tariffs by category - explanatory" -> Supporting Table SA13b Service Tariffs by category - explanatory
A126: Supporting Table SA14 | B126: =A126&" Household bills" -> Supporting Table SA14 Household bills
A127: Supporting Table SA15 | B127: =A127&" Investment particulars by type" -> Supporting Table SA15 Investment particulars by type
A128: Supporting Table SA16 | B128: =A128&" Investment particulars by maturity" -> Supporting Table SA16 Investment particulars by maturity
A129: Supporting Table SA17 | B129: =A129&" Borrowing" -> Supporting Table SA17 Borrowing
A130: Supporting Table SA18 | B130: =A130&" Transfers and grant receipts" -> Supporting Table SA18 Transfers and grant receipts
A131: Supporting Table SA19 | B131: =A131&" Expenditure on transfers and grant programme" -> Supporting Table SA19 Expenditure on transfers and grant programme
A132: Supporting Table SA20 | B132: =A132&" Reconciliation of transfers, grant receipts and unspent funds" -> Supporting Table SA20 Reconciliation of transfers, grant receipts and unspent funds
A133: Supporting Table SA21 | B133: =A133&" Transfers and grants made by the municipality" -> Supporting Table SA21 Transfers and grants made by the municipality
A134: Supporting Table SA22 | B134: =A134&" Summary councillor and staff benefits" -> Supporting Table SA22 Summary councillor and staff benefits
A135: Supporting Table SA23 | B135: =A135&" Salaries, allowances & benefits (political office bearers/councillors/senior managers)" -> Supporting Table SA23 Salaries, allowances & benefits (political office bearers/councillors/senior managers)
A136: Supporting Table SA24 | B136: =A136&" Summary of personnel numbers" -> Supporting Table SA24 Summary of personnel numbers
A137: Supporting Table SA25 | B137: =IF(Consolques="YES",E137,F137) -> Supporting Table SA25 Budgeted monthly revenue and expenditure | E137: =A137&" Consolidated budgeted monthly revenue and expenditure" -> Supporting Table SA25 Consolidated budgeted monthly revenue and expenditure | F137: =A137&" Budgeted monthly revenue and expenditure" -> Supporting Table SA25 Budgeted monthly revenue and expenditure
A138: Supporting Table SA26 | B138: Supporting Table SA26 Budgeted monthly revenue and expenditure (municipal vote) | E138: =A138&" Consolidated budgeted monthly revenue and expenditure (municipal vote)" -> Supporting Table SA26 Consolidated budgeted monthly revenue and expenditure (municipal vote) | F138: =A138&" Budgeted monthly revenue and expenditure (municipal vote)" -> Supporting Table SA26 Budgeted monthly revenue and expenditure (municipal vote)
A139: Supporting Table SA27 | B139: Supporting Table SA27 Budgeted monthly revenue and expenditure (functional classification) | E139: =A139&" Consolidated budgeted monthly revenue and expenditure (functional classification)" -> Supporting Table SA27 Consolidated budgeted monthly revenue and expenditure (functional classification) | F139: =A139&" Budgeted monthly revenue and expenditure (functional classification)" -> Supporting Table SA27 Budgeted monthly revenue and expenditure (functional classification)
A140: Supporting Table SA28 | B140: Supporting Table SA28 Budgeted monthly capital expenditure (municipal vote) | E140: =A140&" Consolidated budgeted monthly capital expenditure (municipal vote)" -> Supporting Table SA28 Consolidated budgeted monthly capital expenditure (municipal vote) | F140: =A140&" Budgeted monthly capital expenditure (municipal vote)" -> Supporting Table SA28 Budgeted monthly capital expenditure (municipal vote)
A141: Supporting Table SA29 | B141: Supporting Table SA29 Budgeted monthly capital expenditure (functional classification) | E141: =A141&" Consolidated budgeted monthly capital expenditure (functional classification)" -> Supporting Table SA29 Consolidated budgeted monthly capital expenditure (functional classification) | F141: =A141&" Budgeted monthly capital expenditure (functional classification)" -> Supporting Table SA29 Budgeted monthly capital expenditure (functional classification)
A142: Supporting Table SA30 | B142: Supporting Table SA30 Budgeted monthly cash flow | E142: =A142&" Consolidated budgeted monthly cash flow" -> Supporting Table SA30 Consolidated budgeted monthly cash flow | F142: =A142&" Budgeted monthly cash flow" -> Supporting Table SA30 Budgeted monthly cash flow
A143: Supporting Table SA31 | B143: NOT REQUIRED - municipality does not have entities | E143: =A143&" Aggregated entity budget" -> Supporting Table SA31 Aggregated entity budget | F143: NOT REQUIRED - municipality does not have entities
A144: Supporting Table SA32 | B144: =A144&" List of external mechanisms" -> Supporting Table SA32 List of external mechanisms
A145: Supporting Table SA33 | B145: =A145&" Contracts having future budgetary implications" -> Supporting Table SA33 Contracts having future budgetary implications
A146: Supporting Table SA34a | B146: =IF(Consolques="YES",E146,F146) -> Supporting Table SA34a Capital expenditure on new assets by asset class | E146: =A146&" Consolidated capital expenditure on new assets by asset class" -> Supporting Table SA34a Consolidated capital expenditure on new assets by asset class | F146: =A146&" Capital expenditure on new assets by asset class" -> Supporting Table SA34a Capital expenditure on new assets by asset class
A147: Supporting Table SA34b | B147: Supporting Table SA34b Capital expenditure on the renewal of existing assets by asset class | E147: =A147&" Consolidated capital expenditure on the renewal of existing assets by asset class" -> Supporting Table SA34b Consolidated capital expenditure on the renewal of existing assets by asset class | F147: =A147&" Capital expenditure on the renewal of existing assets by asset class" -> Supporting Table SA34b Capital expenditure on the renewal of existing assets by asset class
A148: Supporting Table SA34c | B148: Supporting Table SA34c Repairs and maintenance expenditure by asset class | E148: =A148&" Consolidated repairs and maintenance by asset class" -> Supporting Table SA34c Consolidated repairs and maintenance by asset class | F148: =A148&" Repairs and maintenance expenditure by asset class" -> Supporting Table SA34c Repairs and maintenance expenditure by asset class
A149: Supporting Table SA34d | B149: =IF(Consolques="YES",E149,F149) -> Supporting Table SA34d Depreciation by asset class | E149: =A149&" Consolidated Depreciation by asset class" -> Supporting Table SA34d Consolidated Depreciation by asset class | F149: =A149&" Depreciation by asset class" -> Supporting Table SA34d Depreciation by asset class
A150: Supporting Table SA34e | B150: =IF(Consolques="YES",E150,F150) -> Supporting Table SA34e Capital expenditure on the upgrading of existing assets by asset class | E150: =A150&" Consolidated capital expenditure on the upgrading of existing assets by asset class" -> Supporting Table SA34e Consolidated capital expenditure on the upgrading of existing assets by asset class | F150: =A150&" Capital expenditure on the upgrading of existing assets by asset class" -> Supporting Table SA34e Capital expenditure on the upgrading of existing assets by asset class
A151: Supporting Table SA35 | B151: Supporting Table SA35 Future financial implications of the capital budget | E151: =A151&" Consolidated future financial implications of the capital budget" -> Supporting Table SA35 Consolidated future financial implications of the capital budget | F151: =A151& " Future financial implications of the capital budget" -> Supporting Table SA35 Future financial implications of the capital budget
A152: Supporting Table SA36 | B152: Supporting Table SA36 Detailed capital budget | E152: =A152&" Consolidated detailed capital budget" -> Supporting Table SA36 Consolidated detailed capital budget | F152: =A152& " Detailed capital budget" -> Supporting Table SA36 Detailed capital budget
A153: Supporting Table SA37 | B153: Supporting Table SA37 Projects delayed from previous financial year/s | E153: =A153&" Consolidated projects delayed from previous financial year/s" -> Supporting Table SA37 Consolidated projects delayed from previous financial year/s | F153: =A153& " Projects delayed from previous financial year/s" -> Supporting Table SA37 Projects delayed from previous financial year/s
A154: Supporting Table SA38 | B154: =IF(Consolques="YES",E154,F154) -> Supporting Table SA38 Detailed operational projects | E154: =A154&" Consolidated detailed operational projects" -> Supporting Table SA38 Consolidated detailed operational projects | F154: =A154& " Detailed operational projects" -> Supporting Table SA38 Detailed operational projects
A156: Budget Charts | B156: Charts | C156: Cross reference
A157: Chart A1 | B157: =A157&"Revenue by Municipal Vote" -> Chart A1 Revenue by Municipal Vote
A158: Chart A2 | B158: =A158&"Expenditure by Municipal Vote" -> Chart A2 Expenditure by Municipal Vote
A159: Chart A3 | B159: =A159&"Revenue by Standard Classification" -> Chart A3 Revenue by Standard Classification | C159: A2
A160: Chart A4 | B160: =A160&"Expenditure by Standard Classification" -> Chart A4 Expenditure by Standard Classification | C160: A2
A161: Chart A5 | B161: =A161&"Revenue by Major Source (refer 'Minor' source for 'Other Revenue' allocation" -> Chart A5 Revenue by Major Source (refer 'Minor' source for 'Other Revenue' allocation | C161: A3
A162: Chart A6 | B162: =A162&"Revenue by Minor Source (Other)" -> Chart A6 Revenue by Minor Source (Other) | C162: A3
A163: Chart A7 | B163: =A163&"Expenditure by Major Type" -> Chart A7 Expenditure by Major Type | C163: A3
A164: Chart A8 | B164: =A164&"Expenditure by Minor Type (Other)" -> Chart A8 Expenditure by Minor Type (Other) | C164: A3
A165: Chart A9 | B165: =A165&"Capital Expenditure by Municipal Vote/Appropriation (Major)" -> Chart A9 Capital Expenditure by Municipal Vote/Appropriation (Major) | C165: A5
A166: Chart A10 | B166: =A166&"Capital Expenditure by Municipal Vote/Appropriation (Minor)" -> Chart A10 Capital Expenditure by Municipal Vote/Appropriation (Minor) | C166: A5
A167: Chart A11 | B167: =A166&"Capital Expenditure by Standard Classification" -> Chart A10 Capital Expenditure by Standard Classification | C167: A5
A168: Chart A12 | B168: =A168&"Capital expenditure performance trend" -> Chart A12 Capital expenditure performance trend | C168: A5
A169: Chart A13 | B169: =A169&"Capital funding by Source" -> Chart A13 Capital funding by Source | C169: A5
A170: Chart A14 | B170: =A170&"Cash flow trend" -> Chart A14 Cash flow trend | C170: A7
A171: Chart A15 | B171: =A171&"IDP Strategic Objective - Revenue" -> Chart A15 IDP Strategic Objective - Revenue | C171: Table A4
A172: Chart A16 | B172: =A172&"IDP Strategic Objective - Expenditure" -> Chart A16 IDP Strategic Objective - Expenditure | C172: Table A5
A173: Chart A17 | B173: =A173&"IDP Strategic Objective - Capital Expenditure" -> Chart A17 IDP Strategic Objective - Capital Expenditure | C173: Table A6
A174: Chart A18 | B174: =A174&"Debt (borrowing to Total Revenue)" -> Chart A18 Debt (borrowing to Total Revenue) | C174: Table A8
A175: Chart A19 | B175: =A175&"Debtors' trend analysis" -> Chart A19 Debtors' trend analysis | C175: Table A8
A176: Chart A20 | B176: =A176&"Distribution losses" -> Chart A20 Distribution losses | C176: Table A8
A177: Chart A21 | B177: =A177&"Borrowed funding of capital expenditure" -> Chart A21 Borrowed funding of capital expenditure | C177: Table A8
A178: Chart A22 | B178: =A178&"Expenditure analysis (% of Revenue)" -> Chart A22 Expenditure analysis (% of Revenue) | C178: Table A8
A179: Chart A23 | B179: =A179&"Increases in service charges" -> Chart A23 Increases in service charges | C179: Table A10

Sheet Lookup and lists (hidden)
A1: Description | B1: 2013 | C1: 2014 | D1: 2015 | E1: 2016 | F1: 2017 | G1: 2018 | H1: 2019 | I1: 2020 | J1: 2021 | K1: 2022 | L1: 2023 | M1: 2024 | N1: 2025 | O1: 2026 | Q1: Lists | Y1: Grants: | Z1: National - opex | AA1: Provincial - opex | AB1: National - capex | AC1: Provincial - capex
A2: ='Template names'!C2 -> Prior year -1 | B2: =B1-2&"/"&RIGHT(B1,2)-1 -> 2011/12 | C2: 2012/13 | D2: 2013/14 | E2: 2014/15 | F2: 2015/16 | G2: 2016/17 | H2: 2017/18 | I2: 2018/19 | J2: =J1-2&"/"&RIGHT(J1,2)-1 -> 2019/20 | K2: 2020/21 | L2: 2021/22 | M2: 2022/23 | N2: 2023/24 | O2: 2024/25 | Q2: Yes | R2: <1 | S2: <4 | T2: Market | U2: Land & impr. | V2: Yes | W2: Uniform | X2: Yrs | Z2: Local Government Equitable Share | AA2: Health subsidy | AB2: Municipal Infrastructure Grant (MIG) | AC2: Agriculture
A3: ='Template names'!C3 -> Prior year -2 | B3: =B1-3&"/"&RIGHT(B1,2)-2 -> 2010/11 | C3: 2011/12 | D3: 2012/13 | E3: 2013/14 | F3: 2014/15 | G3: 2015/16 | H3: 2016/17 | I3: 2017/18 | J3: =J1-3&"/"&RIGHT(J1,2)-2 -> 2018/19 | K3: 2019/20 | L3: 2020/21 | M3: 2021/22 | N3: 2022/23 | O3: 2023/24 | Q3: No | R3: 1 | S3: 4 | T3: Dep.Replace | U3: Land only | V3: No | W3: Variable | X3: Mths | Z3: RSC Levy Replacement | AA3: Ambulance subsidy | AB3: Public Transport and Systems | AC3: Education
A4: ='Template names'!C4 -> Prior year -3 | B4: =B1-4&"/"&RIGHT(B1,2)-3 -> 2009/10 | C4: 2010/11 | D4: 2011/12 | E4: 2012/13 | F4: 2013/14 | G4: 2014/15 | H4: 2015/16 | I4: 2016/17 | J4: =J1-4&"/"&RIGHT(J1,2)-3 -> 2017/18 | K4: 2018/19 | L4: 2019/20 | M4: 2020/21 | N4: 2021/22 | O4: 2022/23 | R4: 2 | S4: 5 | T4: Other | U4: Other | Z4: Finance Management | AA4: Housing | AB4: Rural Transport Services and Infrastructure | AC4: Health
A5: ='Template names'!C5 -> Year in which budget is being prepared | B5: ="Current Year "& B1-1&"/"&RIGHT(B1,2) -> Current Year 2012/13 | C5: Current Year 2013/14 | D5: Current Year 2014/15 | E5: Current Year 2015/16 | F5: Current Year 2016/17 | G5: Current Year 2017/18 | H5: Current Year 2018/19 | I5: Current Year 2019/20 | J5: ="Current Year "& J1-1&"/"&RIGHT(J1,2) -> Current Year 2020/21 | K5: Current Year 2021/22 | L5: Current Year 2022/23 | M5: Current Year 2023/24 | N5: Current Year 2024/25 | O5: Current Year 2025/26 | R5: 3 | S5: 6 | Z5: Municipal Systems Improvement | AA5: Sport and Recreation | AB5: Regional Bulk Infrastructure | AC5: Housing and Local Government
A6: ='Template names'!C6 -> Year in which budget is being prepared | B6: =B1-1&"/"&RIGHT(B1,2) -> 2012/13 | C6: 2013/14 | D6: 2014/15 | E6: 2015/16 | F6: 2016/17 | G6: 2017/18 | H6: 2018/19 | I6: 2019/20 | J6: =J1-1&"/"&RIGHT(J1,2) -> 2020/21 | K6: 2021/22 | L6: 2022/23 | M6: 2023/24 | N6: 2024/25 | O6: 2025/26 | R6: 4 | S6: 6-10 | Z6: Water Services Operating Subsidy | AB6: Rural Households Infrastructure | AC6: Other Departments
A7: ='Template names'!C7 -> MTREF name | B7: =B1&"/"&RIGHT(B1,2)+1&" Medium Term Revenue & Expenditure Framework" -> 2013/14 Medium Term Revenue & Expenditure Framework | C7: 2014/15 Medium Term Revenue & Expenditure Framework | D7: 2015/16 Medium Term Revenue & Expenditure Framework | E7: 2016/17 Medium Term Revenue & Expenditure Framework | F7: 2017/18 Medium Term Revenue & Expenditure Framework | G7: 2018/19 Medium Term Revenue & Expenditure Framework | H7: 2019/20 Medium Term Revenue & Expenditure Framework | I7: 2020/21 Medium Term Revenue & Expenditure Framework | J7: =J1&"/"&RIGHT(J1,2)+1&" Medium Term Revenue & Expenditure Framework" -> 2021/22 Medium Term Revenue & Expenditure Framework | K7: 2022/23 Medium Term Revenue & Expenditure Framework | L7: 2023/24 Medium Term Revenue & Expenditure Framework | M7: 2024/25 Medium Term Revenue & Expenditure Framework | N7: 2025/26 Medium Term Revenue & Expenditure Framework | O7: 2026/27 Medium Term Revenue & Expenditure Framework | R7: 5 | S7: >10 | Z7: Energy Efficiency and Demand Management | AB7: Neighbourhood Development Partnership | AC7: Public Works, Roads, Transport
A8: ='Template names'!C15 -> 1st year of MTREF | B8: ="Budget Year "&B1&"/"&RIGHT(B1,2)+1 -> Budget Year 2013/14 | C8: Budget Year 2014/15 | D8: Budget Year 2015/16 | E8: Budget Year 2016/17 | F8: Budget Year 2017/18 | G8: Budget Year 2018/19 | H8: Budget Year 2019/20 | I8: Budget Year 2020/21 | J8: ="Budget Year "&J1&"/"&RIGHT(J1,2)+1 -> Budget Year 2021/22 | K8: Budget Year 2022/23 | L8: Budget Year 2023/24 | M8: Budget Year 2024/25 | N8: Budget Year 2025/26 | O8: Budget Year 2026/27 | R8: >5 | Z8: Integrated National Electrification Programme | AB8: 2010 FIFA World Cup Stadiums Development | AC8: Sport and Recreation
A9: ='Template names'!C16 -> 2nd year of MTREF | B9: ="Budget Year +1 "&B1+1&"/"&RIGHT(B1,2)+2 -> Budget Year +1 2014/15 | C9: Budget Year +1 2015/16 | D9: Budget Year +1 2016/17 | E9: Budget Year +1 2017/18 | F9: Budget Year +1 2018/19 | G9: Budget Year +1 2019/20 | H9: Budget Year +1 2020/21 | I9: Budget Year +1 2021/22 | J9: ="Budget Year +1 "&J1+1&"/"&RIGHT(J1,2)+2 -> Budget Year +1 2022/23 | K9: Budget Year +1 2023/24 | L9: Budget Year +1 2024/25 | M9: Budget Year +1 2025/26 | N9: Budget Year +1 2026/27 | O9: Budget Year +1 2027/28 | Z9: Municipal Drought Relief
A10: ='Template names'!C17 -> 3rd year of MTREF | B10: ="Budget Year +2 "&B1+2&"/"&RIGHT(B1,2)+3 -> Budget Year +2 2015/16 | C10: Budget Year +2 2016/17 | D10: Budget Year +2 2017/18 | E10: Budget Year +2 2018/19 | F10: Budget Year +2 2019/20 | G10: Budget Year +2 2020/21 | H10: Budget Year +2 2021/22 | I10: Budget Year +2 2022/23 | J10: ="Budget Year +2 "&J1+2&"/"&RIGHT(J1,2)+3 -> Budget Year +2 2023/24 | K10: Budget Year +2 2024/25 | L10: Budget Year +2 2025/26 | M10: Budget Year +2 2026/27 | N10: Budget Year +2 2027/28 | O10: Budget Year +2 2028/29 | Z10: 2010 FIFA World Cup Operating
A11: ='Template names'!C18 -> 1st yr of long term forecast | B11: ="Forecast "&B1+3&"/"&RIGHT(B1,2)+4 -> Forecast 2016/17 | C11: Forecast 2017/18 | D11: Forecast 2018/19 | E11: Forecast 2019/20 | F11: Forecast 2020/21 | G11: Forecast 2021/22 | H11: Forecast 2022/23 | I11: Forecast 2023/24 | J11: ="Forecast "&J1+3&"/"&RIGHT(J1,2)+4 -> Forecast 2024/25 | K11: Forecast 2025/26 | L11: Forecast 2026/27 | M11: Forecast 2027/28 | N11: Forecast 2028/29 | O11: Forecast 2029/30 | Z11: Electricity Demand Side Management
A12: ='Template names'!C19 -> Next yr of long term forecast | B12: ="Forecast "&B1+4&"/"&RIGHT(B1,2)+5 -> Forecast 2017/18 | C12: Forecast 2018/19 | D12: Forecast 2019/20 | E12: Forecast 2020/21 | F12: Forecast 2021/22 | G12: Forecast 2022/23 | H12: Forecast 2023/24 | I12: Forecast 2024/25 | J12: ="Forecast "&J1+4&"/"&RIGHT(J1,2)+5 -> Forecast 2025/26 | K12: Forecast 2026/27 | L12: Forecast 2027/28 | M12: Forecast 2028/29 | N12: Forecast 2029/30 | O12: Forecast 2030/31 | Z12: EPWP Incentive
A13: ='Template names'!C20 -> Next yr of long term forecast | B13: ="Forecast "&B1+5&"/"&RIGHT(B1,2)+6 -> Forecast 2018/19 | C13: Forecast 2019/20 | D13: Forecast 2020/21 | E13: Forecast 2021/22 | F13: Forecast 2022/23 | G13: Forecast 2023/24 | H13: Forecast 2024/25 | I13: Forecast 2025/26 | J13: ="Forecast "&J1+5&"/"&RIGHT(J1,2)+6 -> Forecast 2026/27 | K13: Forecast 2027/28 | L13: Forecast 2028/29 | M13: Forecast 2029/30 | N13: Forecast 2030/31 | O13: Forecast 2031/32
A14: ='Template names'!C21 -> Next yr of long term forecast | B14: ="Forecast "&B1+6&"/"&RIGHT(B1,2)+7 -> Forecast 2019/20 | C14: Forecast 2020/21 | D14: Forecast 2021/22 | E14: Forecast 2022/23 | F14: Forecast 2023/24 | G14: Forecast 2024/25 | H14: Forecast 2025/26 | I14: Forecast 2026/27 | J14: ="Forecast "&J1+6&"/"&RIGHT(J1,2)+7 -> Forecast 2027/28 | K14: Forecast 2028/29 | L14: Forecast 2029/30 | M14: Forecast 2030/31 | N14: Forecast 2031/32 | O14: Forecast 2032/33 | Z14: Asset Class | AA14: Asset sub-class old | AB14: Asset sub-class | AC14: IUDF | AD14: MTSF
A15: ='Template names'!C22 -> Next yr of long term forecast | B15: ="Forecast "&B1+7&"/"&RIGHT(B1,2)+8 -> Forecast 2020/21 | C15: Forecast 2021/22 | D15: Forecast 2022/23 | E15: Forecast 2023/24 | F15: Forecast 2024/25 | G15: Forecast 2025/26 | H15: Forecast 2026/27 | I15: Forecast 2027/28 | J15: ="Forecast "&J1+7&"/"&RIGHT(J1,2)+8 -> Forecast 2028/29 | K15: Forecast 2029/30 | L15: Forecast 2030/31 | M15: Forecast 2031/32 | N15: Forecast 2032/33 | O15: Forecast 2033/34
A16: ='Template names'!C23 -> Next yr of long term forecast | B16: ="Forecast "&B1+8&"/"&RIGHT(B1,2)+9 -> Forecast 2021/22 | C16: Forecast 2022/23 | D16: Forecast 2023/24 | E16: Forecast 2024/25 | F16: Forecast 2025/26 | G16: Forecast 2026/27 | H16: Forecast 2027/28 | I16: Forecast 2028/29 | J16: ="Forecast "&J1+8&"/"&RIGHT(J1,2)+9 -> Forecast 2029/30 | K16: Forecast 2030/31 | L16: Forecast 2031/32 | M16: Forecast 2032/33 | N16: Forecast 2033/34 | O16: Forecast 2034/35 | Z16: Roads Infrastructure | AA16: Roads, Pavements & Bridges | AB16: Roads | AC16: Spatial integration | AD16: Quality basic education
A17: ='Template names'!C24 -> Next yr of long term forecast | B17: ="Forecast "&B1+9&"/"&RIGHT(B1,2)+10 -> Forecast 2022/23 | C17: Forecast 2023/24 | D17: Forecast 2024/25 | E17: Forecast 2025/26 | F17: Forecast 2026/27 | G17: Forecast 2027/28 | H17: Forecast 2028/29 | I17: Forecast 2029/30 | J17: ="Forecast "&J1+9&"/"&RIGHT(J1,2)+10 -> Forecast 2030/31 | K17: Forecast 2031/32 | L17: Forecast 2032/33 | M17: Forecast 2033/34 | N17: Forecast 2034/35 | O17: Forecast 2035/36 | Z17: Storm water Infrastructure | AA17: Storm water | AB17: Road Structures | AC17: Inclusion and access | AD17: A long and healthy life for all South Africans
A18: ='Template names'!C25 -> Next yr of long term forecast | B18: ="Forecast "&B1+10&"/"&RIGHT(B1,2)+11 -> Forecast 2023/24 | C18: Forecast 2024/25 | D18: Forecast 2025/26 | E18: Forecast 2026/27 | F18: Forecast 2027/28 | G18: Forecast 2028/29 | H18: Forecast 2029/30 | I18: Forecast 2030/31 | J18: ="Forecast "&J1+10&"/"&RIGHT(J1,2)+11 -> Forecast 2031/32 | K18: Forecast 2032/33 | L18: Forecast 2033/34 | M18: Forecast 2034/35 | N18: Forecast 2035/36 | O18: Forecast 2036/37 | Z18: Electrical Infrastructure | AA18: Generation | AB18: Road Furniture | AC18: Growth | AD18: All people in South Africa are and feel safe
A19: ='Template names'!C26 -> Next yr of long term forecast | B19: ="Forecast "&B1+11&"/"&RIGHT(B1,2)+12 -> Forecast 2024/25 | C19: Forecast 2025/26 | D19: Forecast 2026/27 | E19: Forecast 2027/28 | F19: Forecast 2028/29 | G19: Forecast 2029/30 | H19: Forecast 2030/31 | I19: Forecast 2031/32 | J19: ="Forecast "&J1+11&"/"&RIGHT(J1,2)+12 -> Forecast 2032/33 | K19: Forecast 2033/34 | L19: Forecast 2034/35 | M19: Forecast 2035/36 | N19: Forecast 2036/37 | O19: Forecast 2037/38 | Z19: Water Supply Infrastructure | AA19: Transmission & Reticulation | AB19: Capital Spares | AC19: Governance | AD19: Decent employment through inclusive growth
A20: ='Template names'!C27 -> Next yr of long term forecast | B20: ="Forecast "&B1+12&"/"&RIGHT(B1,2)+13 -> Forecast 2025/26 | C20: Forecast 2026/27 | D20: Forecast 2027/28 | E20: Forecast 2028/29 | F20: Forecast 2029/30 | G20: Forecast 2030/31 | H20: Forecast 2031/32 | I20: Forecast 2032/33 | J20: ="Forecast "&J1+12&"/"&RIGHT(J1,2)+13 -> Forecast 2033/34 | K20: Forecast 2034/35 | L20: Forecast 2035/36 | M20: Forecast 2036/37 | N20: Forecast 2037/38 | O20: Forecast 2038/39 | Z20: Sanitation Infrastructure | AA20: Street Lighting | AB20: Drainage Collection | AD20: A skilled and capable workforce to support an inclusive growth path
A21: ='Template names'!C28 -> Next yr of long term forecast | B21: ="Forecast "&B1+13&"/"&RIGHT(B1,2)+14 -> Forecast 2026/27 | C21: Forecast 2027/28 | D21: Forecast 2028/29 | E21: Forecast 2029/30 | F21: Forecast 2030/31 | G21: Forecast 2031/32 | H21: Forecast 2032/33 | I21: Forecast 2033/34 | J21: ="Forecast "&J1+13&"/"&RIGHT(J1,2)+14 -> Forecast 2034/35 | K21: Forecast 2035/36 | L21: Forecast 2036/37 | M21: Forecast 2037/38 | N21: Forecast 2038/39 | O21: Forecast 2039/40 | Z21: Solid Waste Infrastructure | AA21: Dams & Reservoirs | AB21: Storm water Conveyance | AD21: An efficient, competitive and responsive economic infrastructure network
A22: ='Template names'!C29 -> Next yr of long term forecast | B22: ="Forecast "&B1+14&"/"&RIGHT(B1,2)+15 -> Forecast 2027/28 | C22: Forecast 2028/29 | D22: Forecast 2029/30 | E22: Forecast 2030/31 | F22: Forecast 2031/32 | G22: Forecast 2032/33 | H22: Forecast 2033/34 | I22: Forecast 2034/35 | J22: ="Forecast "&J1+14&"/"&RIGHT(J1,2)+15 -> Forecast 2035/36 | K22: Forecast 2036/37 | L22: Forecast 2037/38 | M22: Forecast 2038/39 | N22: Forecast 2039/40 | O22: Forecast 2040/41 | Z22: Rail Infrastructure | AA22: Water purification | AB22: Attenuation | AD22: Vibrant, equitable, sustainable rural communities contributing towards food security for all
A23: Adjustments Budget | B23: ="Annual target " & B1&"/"&RIGHT(B1,2)+1 -> Annual target 2013/14 | C23: Annual target 2014/15 | D23: Annual target 2015/16 | E23: Annual target 2016/17 | F23: Annual target 2017/18 | G23: Annual target 2018/19 | H23: Annual target 2019/20 | I23: Annual target 2020/21 | J23: ="Annual target " & J1&"/"&RIGHT(J1,2)+1 -> Annual target 2021/22 | K23: Annual target 2022/23 | L23: Annual target 2023/24 | M23: Annual target 2024/25 | N23: Annual target 2025/26 | O23: Annual target 2026/27 | Z23: Coastal Infrastructure | AA23: Reticulation | AB23: Power Plants | AD23: Sustainable human settlements and improved quality of household life
A24: =A23 -> Adjustments Budget | B24: ="Revised target "& B1&"/"&RIGHT(B1,2)+1 -> Revised target 2013/14 | C24: Revised target 2014/15 | D24: Revised target 2015/16 | E24: Revised target 2016/17 | F24: Revised target 2017/18 | G24: Revised target 2018/19 | H24: Revised target 2019/20 | I24: Revised target 2020/21 | J24: ="Revised target "& J1&"/"&RIGHT(J1,2)+1 -> Revised target 2021/22 | K24: Revised target 2022/23 | L24: Revised target 2023/24 | M24: Revised target 2024/25 | N24: Revised target 2025/26 | O24: Revised target 2026/27 | Z24: Information and Communication Infrastructure | AA24: Sewerage purification | AB24: HV Substations | AD24: Responsive, accountable, effective and efficient local government
A25: NOTE: This sheet should not be directly amended - select headings from sheet 'S' | Z25: Community Facilities | AA25: Waste Management | AB25: HV Switching Station | AD25: Protect and enhance our environmental assets and natural resources
Z26: Sport and Recreation Facilities | AA26: Transportation | AB26: HV Transmission Conductors | AD26: Create a better South Africa and contribute to a better Africa and a better world
A27: Name link | B27: 141 | Z27: Heritage assets | AA27: Gas | AB27: MV Substations | AD27: An efficient, effective and development-oriented public service
A28: Name of Muni | B28: =INDEX(B29:B307,B27,1) -> LIM353 Molemole | Z28: Revenue Generating | AA28: Parks & gardens | AB28: MV Switching Stations | AD28: A comprehensive, responsive and sustainable social protection system
B29: Choose name from list | C29: Set name on 'Instructions' sheet | Z29: Non-revenue Generating | AA29: Sportsfields & stadia | AB29: MV Networks | AD29: A diverse, socially cohesive society with a common national identity
B30: BUF Buffalo City | C30: EC EASTERN CAPE | Z30: Operational Buildings | AA30: Swimming pools | AB30: LV Networks
B31: NMA Nelson Mandela Bay | C31: EC EASTERN CAPE | Z31: Housing | AA31: Community halls | AB31: Capital Spares
B32: EC101 Dr Beyers Naude | C32: EC EASTERN CAPE | Z32: Biological or Cultivated Assets | AA32: Libraries | AB32: Dams and Weirs
B33: EC102 Blue Crane Route | C33: EC EASTERN CAPE | Z33: Servitudes | AA33: Recreational facilities | AB33: Boreholes
B34: EC104 Makana | C34: EC EASTERN CAPE | Z34: Licences and Rights | AA34: Fire, safety & emergency | AB34: Reservoirs
B35: EC105 Ndlambe | C35: EC EASTERN CAPE | Z35: Computer Equipment | AA35: Security and policing | AB35: Pump Stations
B36: EC106 Sundays River Valley | C36: EC EASTERN CAPE | Z36: Furniture and Office Equipment | AA36: Buses | AB36: Water Treatment Works
B37: EC108 Kouga | C37: EC EASTERN CAPE | Z37: Machinery and Equipment | AA37: Clinics | AB37: Bulk Mains
B38: EC109 Kou-Kamma | C38: EC EASTERN CAPE | Z38: Transport Assets | AA38: Museums & Art Galleries | AB38: Distribution
B39: DC10 Sarah Baartman | C39: EC EASTERN CAPE | Z39: Land | AA39: Cemeteries | AB39: Distribution Points
B40: EC121 Mbhashe | C40: EC EASTERN CAPE | Z40: Zoo's, Marine and Non-biological Animals | AA40: Social rental housing | AB40: PRV Stations
B41: EC122 Mnquma | C41: EC EASTERN CAPE | AA41: Buildings | AB41: Capital Spares
B42: EC123 Great Kei | C42: EC EASTERN CAPE | AA42: Housing development | AB42: Pump Station
B43: EC124 Amahlathi | C43: EC EASTERN CAPE | AA43: General vehicles | AB43: Reticulation
B44: EC126 Ngqushwa | C44: EC EASTERN CAPE | AA44: Specialised vehicles - Refuse | AB44: Waste Water Treatment Works
B45: EC129 Raymond Mhlaba | C45: EC EASTERN CAPE | AA45: Specialised vehicles - Fire | AB45: Outfall Sewers
B46: DC12 Amathole | C46: EC EASTERN CAPE | AA46: Specialised vehicles - Conservancy | AB46: Toilet Facilities
B47: EC131 Inxuba Yethemba | C47: EC EASTERN CAPE | AA47: Specialised vehicles - Ambulances | AB47: Capital Spares
B48: EC135 Intsika Yethu | C48: EC EASTERN CAPE | AA48: Plant & equipment | AB48: Landfill Sites
B49: EC136 Emalahleni (Ec) | C49: EC EASTERN CAPE | AA49: Computers - hardware/equipment | AB49: Waste Transfer Stations
B50: EC137 Engcobo | C50: EC EASTERN CAPE | AA50: Furniture and other office equipment | AB50: Waste Processing Facilities
B51: EC138 Sakhisizwe | C51: EC EASTERN CAPE | AA51: Abattoirs | AB51: Waste Drop-off Points
B52: EC139 Enoch Mgijima | C52: EC EASTERN CAPE | AA52: Markets | AB52: Waste Separation Facilities
B53: DC13 Chris Hani | C53: EC EASTERN CAPE | AA53: Civic Land and Buildings | AB53: Electricity Generation Facilities
B54: EC141 Elundini | C54: EC EASTERN CAPE | AA54: Other Buildings | AB54: Capital Spares
B55: EC142 Senqu | C55: EC EASTERN CAPE | AA55: Other Land | AB55: Rail Lines
B56: EC145 Walter Sisulu | C56: EC EASTERN CAPE | AA56: Surplus Assets - (Investment or Inventory) | AB56: Rail Structures
B57: DC14 Joe Gqabi | C57: EC EASTERN CAPE | AA57: Computers - software & programming | AB57: Rail Furniture
B58: EC153 Ngquza Hills | C58: EC EASTERN CAPE | AA58: Other | AB58: Drainage Collection
B59: EC154 Port St Johns | C59: EC EASTERN CAPE | AB59: Storm water Conveyance
B60: EC155 Nyandeni | C60: EC EASTERN CAPE | Z60: SA16 - Investments | AB60: Attenuation
B61: EC156 Mhlontlo | C61: EC EASTERN CAPE | Z61: Security | AA61: Interest rate | AB61: MV Substations
B62: EC157 King Sabata Dalindyebo | C62: EC EASTERN CAPE | Z62: Yes | AA62: Fixed | AB62: LV Networks
B63: DC15 O .R. Tambo | C63: EC EASTERN CAPE | Z63: No | AA63: Variable | AB63: Capital Spares
B64: EC441 Matatiele | C64: EC EASTERN CAPE | AB64: Sand Pumps
B65: EC442 Umzimvubu | C65: EC EASTERN CAPE | AB65: Piers
B66: EC443 Winnie Madikizela Mandela | C66: EC EASTERN CAPE | Z66: SA36, SA37 - Capital projects | AB66: Revetments
B67: EC444 Ntabankulu | C67: EC EASTERN CAPE | Z67: Yes | AB67: Promenades
B68: DC44 Alfred Nzo | C68: EC EASTERN CAPE | Z68: No | AB68: Capital Spares
B69: MAN Mangaung | C69: FS FREE STATE | AB69: Data Centres
B70: FS161 Letsemeng | C70: FS FREE STATE | AB70: Core Layers
B71: FS162 Kopanong | C71: FS FREE STATE | AB71: Distribution Layers
B72: FS163 Mohokare | C72: FS FREE STATE | AB72: Capital Spares
B73: DC16 Xhariep | C73: FS FREE STATE | AB73: Halls
B74: FS181 Masilonyana | C74: FS FREE STATE | AB74: Centres
B75: FS182 Tokologo | C75: FS FREE STATE | AB75: Crèches
B76: FS183 Tswelopele | C76: FS FREE STATE | AB76: Clinics/Care Centres
B77: FS184 Matjhabeng | C77: FS FREE STATE | AB77: Fire/Ambulance Stations
B78: FS185 Nala | C78: FS FREE STATE | AB78: Testing Stations
B79: DC18 Lejweleputswa | C79: FS FREE STATE | AB79: Museums
B80: FS191 Setsoto | C80: FS FREE STATE | AB80: Galleries
B81: FS192 Dihlabeng | C81: FS FREE STATE | AB81: Theatres
B82: FS193 Nketoana | C82: FS FREE STATE | AB82: Libraries
B83: FS194 Maluti-a-Phofung | C83: FS FREE STATE | AB83: Cemeteries/Crematoria
B84: FS195 Phumelela | C84: FS FREE STATE | AB84: Police
B85: FS196 Mantsopa | C85: FS FREE STATE | AB85: Purls
B86: DC19 Thabo Mofutsanyana | C86: FS FREE STATE | AB86: Public Open Space
B87: FS201 Moqhaka | C87: FS FREE STATE | AB87: Nature Reserves
B88: FS203 Ngwathe | C88: FS FREE STATE | AB88: Public Ablution Facilities
B89: FS204 Metsimaholo | C89: FS FREE STATE | AB89: Markets
B90: FS205 Mafube | C90: FS FREE STATE | AB90: Stalls
B91: DC20 Fezile Dabi | C91: FS FREE STATE | AB91: Abattoirs
B92: EKU City of Ekurhuleni | C92: GT GAUTENG | AB92: Airports
B93: JHB City Of Johannesburg | C93: GT GAUTENG | AB93: Taxi Ranks/Bus Terminals
B94: TSH City Of Tshwane | C94: GT GAUTENG | AB94: Capital Spares
B95: GT421 Emfuleni | C95: GT GAUTENG | AB95: Indoor Facilities
B96: GT422 Midvaal | C96: GT GAUTENG | AB96: Outdoor Facilities
B97: GT423 Lesedi | C97: GT GAUTENG | AB97: Capital Spares
B98: DC42 Sedibeng | C98: GT GAUTENG | AB98: Monuments
B99: GT481 Mogale City | C99: GT GAUTENG | AB99: Historic Buildings
B100: GT484 Merafong City | C100: GT GAUTENG | AB100: Works of Art
B101: GT485 Rand West City | C101: GT GAUTENG | AB101: Conservation Areas
B102: DC48 West Rand | C102: GT GAUTENG | AB102: Other Heritage
B103: ETH eThekwini | C103: KZN KWAZULU-NATAL | AB103: Improved Property
B104: KZN212 Umdoni | C104: KZN KWAZULU-NATAL | AB104: Unimproved Property
B105: KZN213 Umzumbe | C105: KZN KWAZULU-NATAL | AB105: Municipal Offices
B106: KZN214 uMuziwabantu | C106: KZN KWAZULU-NATAL | AB106: Pay/Enquiry Points
B107: KZN216 Ray Nkonyeni | C107: KZN KWAZULU-NATAL | AB107: Building Plan Offices
B108: DC21 Ugu | C108: KZN KWAZULU-NATAL | AB108: Workshops
B109: KZN221 uMshwathi | C109: KZN KWAZULU-NATAL | AB109: Yards
B110: KZN222 uMngeni | C110: KZN KWAZULU-NATAL | AB110: Stores
B111: KZN223 Mpofana | C111: KZN KWAZULU-NATAL | AB111: Laboratories
B112: KZN224 Impendle | C112: KZN KWAZULU-NATAL | AB112: Training Centres
B113: KZN225 Msunduzi | C113: KZN KWAZULU-NATAL | AB113: Manufacturing Plant
B114: KZN226 Mkhambathini | C114: KZN KWAZULU-NATAL | AB114: Depots
B115: KZN227 Richmond | C115: KZN KWAZULU-NATAL | AB115: Capital Spares
B116: DC22 uMgungundlovu | C116: KZN KWAZULU-NATAL | AB116: Staff Housing
B117: KZN235 Okhahlamba | C117: KZN KWAZULU-NATAL | AB117: Social Housing
B118: KZN237 Inkosi Langalibalele | C118: KZN KWAZULU-NATAL | AB118: Capital Spares
B119: KZN238 Alfred Duma | C119: KZN KWAZULU-NATAL | AB119: Water Rights
B120: DC23 Uthukela | C120: KZN KWAZULU-NATAL | AB120: Effluent Licenses
B121: KZN241 Endumeni | C121: KZN KWAZULU-NATAL | AB121: Solid Waste Licenses
B122: KZN242 Nquthu | C122: KZN KWAZULU-NATAL | AB122: Computer Software and Applications
B123: KZN244 Msinga | C123: KZN KWAZULU-NATAL | AB123: Load Settlement Software Applications
B124: KZN245 Umvoti | C124: KZN KWAZULU-NATAL | AB124: Unspecified
B125: DC24 Umzinyathi | C125: KZN KWAZULU-NATAL
B126: KZN252 Newcastle | C126: KZN KWAZULU-NATAL
B127: KZN253 Emadlangeni | C127: KZN KWAZULU-NATAL
B128: KZN254 Dannhauser | C128: KZN KWAZULU-NATAL
B129: DC25 Amajuba | C129: KZN KWAZULU-NATAL
B130: KZN261 eDumbe | C130: KZN KWAZULU-NATAL
B131: KZN262 uPhongolo | C131: KZN KWAZULU-NATAL
B132: KZN263 Abaqulusi | C132: KZN KWAZULU-NATAL
B133: KZN265 Nongoma | C133: KZN KWAZULU-NATAL
B134: KZN266 Ulundi | C134: KZN KWAZULU-NATAL
B135: DC26 Zululand | C135: KZN KWAZULU-NATAL
B136: KZN271 Umhlabuyalingana | C136: KZN KWAZULU-NATAL
B137: KZN272 Jozini | C137: KZN KWAZULU-NATAL
B138: KZN275 Mtubatuba | C138: KZN KWAZULU-NATAL
B139: KZN276 Hlabisa Big Five | C139: KZN KWAZULU-NATAL
B140: DC27 Umkhanyakude | C140: KZN KWAZULU-NATAL
B141: KZN281 Mfolozi | C141: KZN KWAZULU-NATAL
B142: KZN282 uMhlathuze | C142: KZN KWAZULU-NATAL
B143: KZN284 uMlalazi | C143: KZN KWAZULU-NATAL
B144: KZN285 Mthonjaneni | C144: KZN KWAZULU-NATAL
B145: KZN286 Nkandla | C145: KZN KWAZULU-NATAL
B146: DC28 King Cetshwayo | C146: KZN KWAZULU-NATAL
B147: KZN291 Mandeni | C147: KZN KWAZULU-NATAL
B148: KZN292 KwaDukuza | C148: KZN KWAZULU-NATAL
B149: KZN293 Ndwedwe | C149: KZN KWAZULU-NATAL
B150: KZN294 Maphumulo | C150: KZN KWAZULU-NATAL
B151: DC29 iLembe | C151: KZN KWAZULU-NATAL
B152: KZN433 Greater Kokstad | C152: KZN KWAZULU-NATAL
B153: KZN434 Ubuhlebezwe | C153: KZN KWAZULU-NATAL
B154: KZN435 Umzimkhulu | C154: KZN KWAZULU-NATAL
B155: KZN436 Dr Nkosazana Dlamini Zuma | C155: KZN KWAZULU-NATAL
B156: DC43 Harry Gwala | C156: KZN KWAZULU-NATAL
B157: LIM331 Greater Giyani | C157: LIM LIMPOPO
B158: LIM332 Greater Letaba | C158: LIM LIMPOPO
B159: LIM333 Greater Tzaneen | C159: LIM LIMPOPO
B160: LIM334 Ba-Phalaborwa | C160: LIM LIMPOPO
B161: LIM335 Maruleng | C161: LIM LIMPOPO
B162: DC33 Mopani | C162: LIM LIMPOPO
B163: LIM341 Musina | C163: LIM LIMPOPO
B164: LIM343 Thulamela | C164: LIM LIMPOPO
B165: LIM344 Makhado | C165: LIM LIMPOPO
B166: LIM345 Collins Chabane | C166: LIM LIMPOPO
B167: DC34 Vhembe | C167: LIM LIMPOPO
B168: LIM351 Blouberg | C168: LIM LIMPOPO
B169: LIM353 Molemole | C169: LIM LIMPOPO
B170: LIM354 Polokwane | C170: LIM LIMPOPO
B171: LIM355 Lepelle-Nkumpi | C171: LIM LIMPOPO
B172: DC35 Capricorn | C172: LIM LIMPOPO
B173: LIM361 Thabazimbi | C173: LIM LIMPOPO
B174: LIM362 Lephalale | C174: LIM LIMPOPO
B175: LIM366 Bela Bela | C175: LIM LIMPOPO
B176: LIM367 Mogalakwena | C176: LIM LIMPOPO
B177: LIM368 Modimolle-Mookgopong | C177: LIM LIMPOPO
B178: DC36 Waterberg | C178: LIM LIMPOPO
B179: LIM471 Ephraim Mogale | C179: LIM LIMPOPO
B180: LIM472 Elias Motsoaledi | C180: LIM LIMPOPO
B181: LIM473 Makhuduthamaga | C181: LIM LIMPOPO
B182: LIM476 Tubatse Fetakgomo | C182: LIM LIMPOPO
B183: DC47 Sekhukhune | C183: LIM LIMPOPO
B184: MP301 Albert Luthuli | C184: MP MPUMALANGA
B185: MP302 Msukaligwa | C185: MP MPUMALANGA
B186: MP303 Mkhondo | C186: MP MPUMALANGA
B187: MP304 Pixley Ka Seme (MP) | C187: MP MPUMALANGA
B188: MP305 Lekwa | C188: MP MPUMALANGA
B189: MP306 Dipaleseng | C189: MP MPUMALANGA
B190: MP307 Govan Mbeki | C190: MP MPUMALANGA
B191: DC30 Gert Sibande | C191: MP MPUMALANGA
B192: MP311 Victor Khanye | C192: MP MPUMALANGA
B193: MP312 Emalahleni (Mp) | C193: MP MPUMALANGA
B194: MP313 Steve Tshwete | C194: MP MPUMALANGA
B195: MP314 Emakhazeni | C195: MP MPUMALANGA
B196: MP315 Thembisile Hani | C196: MP MPUMALANGA
B197: MP316 Dr J.S. Moroka | C197: MP MPUMALANGA
B198: DC31 Nkangala | C198: MP MPUMALANGA
B199: MP321 Thaba Chweu | C199: MP MPUMALANGA
B200: MP324 Nkomazi | C200: MP MPUMALANGA
... 87 more rows

Sheet Org structure
A1: Organisational Structure Votes | C1: Organisational Structure Sub-Votes | E1: Display Sub-Votes
A2: =B2&" - "&C2 -> Vote 01 - Corporate Services | B2: Vote 01 | C2: Corporate Services
A3: =B11&" - "&C11 -> Vote 02 - Municipal Manager | B3: 01.1 | C3: Corporate Services Admin | D3: =CONCATENATE(B3, " - ", C3) -> 01.1 - Corporate Services Admin | E3: 01.1 - Corporate Services Admin
A4: =B17&" - "&C17 -> Vote 03 - Mayors Office | B4: 01.2 | C4: Human Resources | D4: 01.2 - Human Resources | E4: 01.2 - Human Resources
A5: =B23&" - "&C23 -> Vote 04 - Budget And Treasury | B5: 01.3 | C5: Information Technology Services | D5: 01.3 - Information Technology Services | E5: 01.3 - Information Technology Services
A6: =B31&" - "&C31 -> Vote 05 - Community Services | B6: 01.4 | C6: Council Support | D6: 01.4 - Council Support | E6: 01.4 - Council Support
A7: =B39&" - "&C39 -> Vote 06 - Technical Services | B7: 01.5 | C7: Local Economic Development | D7: 01.5 - Local Economic Development | E7: 01.5 - Local Economic Development
A8: =B48&" - "&C48 -> Vote 07 - | B8: 01.6 | C8: Municipal Planning Idp | D8: 01.6 - Municipal Planning Idp | E8: 01.6 - Municipal Planning Idp
A9: Vote 08 - | B9: 01.7 | C9: Town & Regional Planning | D9: 01.7 - Town & Regional Planning | E9: 01.7 - Town & Regional Planning
A10: Vote 09 - | B10: 01.8 | C10: Led Administration | D10: 01.8 - Led Administration | E10: 01.8 - Led Administration
A11: Vote 10 - | B11: Vote 02 | C11: Municipal Manager
A12: Vote 11 - | B12: 02.1 | C12: Municipal Manager Admin | D12: =CONCATENATE(B12, " - ", C12) -> 02.1 - Municipal Manager Admin | E12: 02.1 - Municipal Manager Admin
A13: Vote 12 - | B13: 02.2 | C13: Legal Services | D13: =CONCATENATE(B13, " - ", C13) -> 02.2 - Legal Services | E13: 02.2 - Legal Services
A14: Vote 13 - | B14: 02.3 | C14: Political Office Beares | D14: =CONCATENATE(B14, " - ", C14) -> 02.3 - Political Office Beares | E14: 02.3 - Political Office Beares
A15: Vote 14 - | B15: 02.4 | C15: Pms | D15: =CONCATENATE(B15, " - ", C15) -> 02.4 - Pms | E15: 02.4 - Pms
A16: Vote 15 - Other | B16: 02.5 | C16: Internal Audit | D16: =CONCATENATE(B16, " - ", C16) -> 02.5 - Internal Audit | E16: 02.5 - Internal Audit
B17: Vote 03 | C17: Mayors Office
B18: 03.1 | C18: Mayors Office Admin | D18: =CONCATENATE(B18, " - ", C18) -> 03.1 - Mayors Office Admin | E18: 03.1 - Mayors Office Admin
B19: 03.2 | C19: Office Of The Speaker | D19: =CONCATENATE(B19, " - ", C19) -> 03.2 - Office Of The Speaker | E19: 03.2 - Office Of The Speaker
B20: 03.3 | C20: Office Of The Chief Whip | D20: =CONCATENATE(B20, " - ", C20) -> 03.3 - Office Of The Chief Whip | E20: 03.3 - Office Of The Chief Whip
B21: 03.4 | C21: Exco Members | D21: =CONCATENATE(B21, " - ", C21) -> 03.4 - Exco Members | E21: 03.4 - Exco Members
B22: 03.5 | C22: Council General Administration | D22: =CONCATENATE(B22, " - ", C22) -> 03.5 - Council General Administration | E22: 03.5 - Council General Administration
B23: Vote 04 | C23: Budget And Treasury
B24: 04.1 | C24: Budget And Treasury Admin | D24: =CONCATENATE(B24, " - ", C24) -> 04.1 - Budget And Treasury Admin | E24: 04.1 - Budget And Treasury Admin
B25: 04.2 | C25: Chief Financial Officer Admin | D25: 04.2 - Chief Financial Officer Admin | E25: 04.2 - Chief Financial Officer Admin
B26: 04.3 | C26: Budget & Reporting | D26: 04.3 - Budget & Reporting | E26: 04.3 - Budget & Reporting
B27: 04.4 | C27: Budget & Reporting | D27: 04.4 - Budget & Reporting | E27: 04.4 - Budget & Reporting
B28: 04.5 | C28: Revenue Management | D28: 04.5 - Revenue Management | E28: 04.5 - Revenue Management
B29: 04.6 | C29: Supply Chain Management | D29: 04.6 - Supply Chain Management | E29: 04.6 - Supply Chain Management
B30: 04.7 | C30: Expenditure | D30: 04.7 - Expenditure | E30: 04.7 - Expenditure
B31: Vote 05 | C31: Community Services
B32: 05.1 | C32: Community Services Admin | D32: =CONCATENATE(B32, " - ", C32) -> 05.1 - Community Services Admin | E32: 05.1 - Community Services Admin
B33: 05.2 | C33: Libraries | D33: 05.2 - Libraries | E33: 05.2 - Libraries
B34: 05.3 | C34: Sports Recreation & Social Amenitie | D34: 05.3 - Sports Recreation & Social Amenitie | E34: 05.3 - Sports Recreation & Social Amenitie
B35: 05.4 | C35: Traffic Service | D35: 05.4 - Traffic Service | E35: 05.4 - Traffic Service
B36: 05.5 | C36: Traffic Service | D36: 05.5 - Traffic Service | E36: 05.5 - Traffic Service
B37: 05.6 | C37: Parks; Cemeteries | D37: 05.6 - Parks; Cemeteries | E37: 05.6 - Parks; Cemeteries
B38: 05.7 | C38: Refuse | D38: 05.7 - Refuse | E38: 05.7 - Refuse
B39: Vote 06 | C39: Technical Services
B40: 06.1 | C40: Mpac | D40: =CONCATENATE(B40, " - ", C40) -> 06.1 - Mpac | E40: 06.1 - Mpac
B41: 06.2 | C41: Technical Services Admin | D41: 06.2 - Technical Services Admin | E41: 06.2 - Technical Services Admin
B42: 06.3 | C42: Techn Serv-Roads: Admin | D42: 06.3 - Techn Serv-Roads: Admin | E42: 06.3 - Techn Serv-Roads: Admin
B43: 06.4 | C43: Techn Serv-Stormwater: Admin | D43: 06.4 - Techn Serv-Stormwater: Admin | E43: 06.4 - Techn Serv-Stormwater: Admin
B44: 06.5 | C44: Project Management Unit | D44: 06.5 - Project Management Unit | E44: 06.5 - Project Management Unit
B45: 06.6 | C45: Electrical & Machinery | D45: 06.6 - Electrical & Machinery | E45: 06.6 - Electrical & Machinery
B46: 06.7 | C46: Water | D46: 06.7 - Water | E46: 06.7 - Water
B47: 06.8 | C47: Sanitation | D47: 06.8 - Sanitation | E47: 06.8 - Sanitation
B48: Vote 07
B49: Vote 08
B50: Vote 09
B51: Vote 10
B52: Vote 11
B53: Vote 12
B54: Vote 13
B55: Vote 14
B56: Vote 15 | C56: Other

Sheet Contacts
A1: =muni&" - "&" Contact Information" -> LIM353 Molemole - Contact Information
A3: A. GENERAL INFORMATION
A4: Municipality | B4: =muni -> LIM353 Molemole | C4: =IF(B4="Choose name from List","Set name on 'Instructions' sheet", "") -> 
A6: Grade | C6: 1 Grade in terms of the Remuneration of Public Office Bearers Act.
A8: Province | B8: =IF(B4>" ",VLOOKUP(B4,'Lookup and lists'!B29:C307,2, FALSE)," ") -> LIM LIMPOPO
A10: Web Address
A12: e-mail Address
A14: B. CONTACT INFORMATION
A15: Postal address:
A16: P.O. Box
A17: City / Town
A18: Postal Code
A20: Street address
A21: Building
A22: Street No. & Name
A23: City / Town
A24: Postal Code
A26: General Contacts
A27: Telephone number
A28: Fax number
A30: C. POLITICAL LEADERSHIP
A31: Speaker: | C31: Secretary/PA to the Speaker:
A32: ID Number | B32: 810311 0466 087 | C32: ID Number | D32: 820119 0609 087
A33: Title | B33: Mrs | C33: Title | D33: Ms
A34: Name | B34: MATLOU DIKELEDI | C34: Name | D34: MACHAKA SEBOLLA
A35: Telephone number | B35: 015 501 0243 | C35: Telephone number | D35: 015 501 0243
A36: Cell number | B36: 060 876 1553 | C36: Cell number | D36: 079 728 8360
A37: Fax number | B37: 015 501 0419 | C37: Fax number | D37: 015 501 0419
A38: E-mail address | B38: dikeledipakgadi@gmail.com | C38: E-mail address | D38: machakas@molemole.gov.za
A40: Mayor/Executive Mayor: | C40: Secretary/PA to the Mayor/Executive Mayor:
A41: ID Number | B41: 660312 5428 081 | C41: ID Number | D41: 850930 1072 080
A42: Title | B42: Mr | C42: Title | D42: Ms
A43: Name | B43: PAYA E | C43: Name | D43: RATHETE MAKETA
A44: Telephone number | B44: 015 501 0243 | C44: Telephone number | D44: 015 501 0243
A45: Cell number | B45: 082 474 2858 | C45: Cell number | D45: 072 958 1970
A46: Fax number | B46: 086 515 8809 | C46: Fax number | D46: 015 501 0419
A47: E-mail address | B47: payae@molemole.gov.za | C47: E-mail address | D47: rathetem@molemole.go.za
A49: Deputy Mayor/Executive Mayor: | C49: Secretary/PA to the Deputy Mayor/Executive Mayor:
A50: ID Number | C50: ID Number
A51: Title | C51: Title
A52: Name | C52: Name
A53: Telephone number | C53: Telephone number
A54: Cell number | C54: Cell number
A55: Fax number | C55: Fax number
A56: E-mail address | C56: E-mail address
A58: D. MANAGEMENT LEADERSHIP
A59: Municipal Manager: | C59: Secretary/PA to the Municipal Manager:
A60: ID Number | B60: 741022 5373 087 | C60: ID Number | D60: 720712 0880 087
A61: Title | B61: Mr | C61: Title | D61: Mrs
A62: Name | B62: MAKGATO KGABO EMMANUEL | C62: Name | D62: SEABELA SUSAN
A63: Telephone number | B63: 015 501 0243 | C63: Telephone number | D63: 015 501 0243
A64: Cell number | B64: 082 619 5734 | C64: Cell number | D64: 079 217 3250
A65: Fax number | B65: 015 501 0419 | C65: Fax number | D65: 015 501 0419
A66: E-mail address | B66: MakgatoKE@molemole.gov.za | C66: E-mail address | D66: lebepes@molemole.gov.za
A68: Chief Financial Officer | C68: Secretary/PA to the Chief Financial Officer
A69: ID Number | B69: 840716 0427 083 | C69: ID Number | D69: 900906 1348 084
A70: Title | B70: Miss | C70: Title | D70: Miss
A71: Name | B71: ZULU KCW | C71: Name | D71: MAROPENG PHOSA
A72: Telephone number | B72: 015 501 0243 | C72: Telephone number | D72: 015 501 0243
A73: Cell number | B73: 063 878 8894 | C73: Cell number | D73: 073 916 3639
A74: Fax number | B74: 015 501 0419 | C74: Fax number | D74: 015 501 0419
A75: E-mail address | B75: zuluk@molemole.gov.za | C75: E-mail address | D75: phosam@molemole.gov.za
A77: Official responsible for submitting financial information | C77: Official responsible for submitting financial information
A78: ID Number | B78: 820214 0303 086 | C78: ID Number
A79: Title | B79: Mrs | C79: Title
A80: Name | B80: WISO PORTIA | C80: Name
A81: Telephone number | B81: 015 501 0243 | C81: Telephone number
A82: Cell number | B82: 082 488 3823 | C82: Cell number
A83: Fax number | B83: 015 501 0419 | C83: Fax number
A84: E-mail address | B84: mamabolomp@molemole.gov.za | C84: E-mail address
A85: Official responsible for submitting financial information | C85: Official responsible for submitting financial information
A86: ID Number | C86: ID Number
A87: Title | C87: Title
A88: Name | C88: Name
A89: Telephone number | C89: Telephone number
A90: Cell number | C90: Cell number
A91: Fax number | C91: Fax number
A92: E-mail address | C92: E-mail address
A93: Official responsible for submitting financial information | C93: Official responsible for submitting financial information
A94: ID Number | C94: ID Number
A95: Title | C95: Title
A96: Name | C96: Name
A97: Telephone number | C97: Telephone number
A98: Cell number | C98: Cell number
A99: Fax number | C99: Fax number
A100: E-mail address | C100: E-mail address
A101: Official responsible for submitting financial information | C101: Official responsible for submitting financial information
A102: ID Number | C102: ID Number
A103: Title | C103: Title
A104: Name | C104: Name
A105: Telephone number | C105: Telephone number
A106: Cell number | C106: Cell number
A107: Fax number | C107: Fax number
A108: E-mail address | C108: E-mail address
A109: Official responsible for submitting financial information | C109: Official responsible for submitting financial information
A110: ID Number | C110: ID Number
A111: Title | C111: Title
A112: Name | C112: Name
A113: Telephone number | C113: Telephone number
A114: Cell number | C114: Cell number
A115: Fax number | C115: Fax number
A116: E-mail address | C116: E-mail address
A117: Official responsible for submitting financial information | C117: Official responsible for submitting financial information
A118: ID Number | C118: ID Number
A119: Title | C119: Title
A120: Name | C120: Name
A121: Telephone number | C121: Telephone number
A122: Cell number | C122: Cell number
A123: Fax number | C123: Fax number
A124: E-mail address | C124: E-mail address
A125: Official responsible for submitting financial information | C125: Official responsible for submitting financial information
A126: ID Number | C126: ID Number
A127: Title | C127: Title
A128: Name | C128: Name
A129: Telephone number | C129: Telephone number
A130: Cell number | C130: Cell number
A131: Fax number | C131: Fax number
A132: E-mail address | C132: E-mail address
A133: Official responsible for submitting financial information
A134: ID Number
A135: Title
A136: Name
A137: Telephone number
A138: Cell number
A139: Fax number
A140: E-mail address

Sheet A1-Sum
A1: =muni&" - "&Approve1 -> LIM353 Molemole - Table A1 Budget Summary
A2: =desc -> Description | B2: =head1b -> 2019/20 | C2: =head1A -> 2020/21 | D2: =Head1 -> 2021/22 | E2: =Head2 -> Current Year 2022/23 | I2: =Head3 -> 2023/24 Medium Term Revenue & Expenditure Framework
A3: R thousands | B3: =Head5 -> Audited Outcome | C3: =Head5 -> Audited Outcome | D3: =Head5 -> Audited Outcome | E3: =Head6 -> Original Budget | F3: =Head7 -> Adjusted Budget | G3: =Head8 -> Full Year Forecast | H3: =Head5b -> Pre-audit outcome | I3: =Head9 -> Budget Year 2023/24 | J3: =Head10 -> Budget Year +1 2024/25 | K3: =Head11 -> Budget Year +2 2025/26
A4: Financial Performance
A5: Property rates | B5: ='A4-FinPerf RE'!C21 -> 20010885.63 | C5: ='A4-FinPerf RE'!D21 -> 49558002.71 | D5: ='A4-FinPerf RE'!E21 -> 30599233.83 | E5: ='A4-FinPerf RE'!F21 -> 49396847 | F5: ='A4-FinPerf RE'!G21 -> 41085652 | G5: ='A4-FinPerf RE'!H21 -> 41085652 | H5: ='A4-FinPerf RE'!I21 -> 30012189.3 | I5: ='A4-FinPerf RE'!J21 -> 46063444 | J5: ='A4-FinPerf RE'!K21 -> 48366617 | K5: ='A4-FinPerf RE'!L21 -> 50784948
A6: Service charges | B6: =SUM('A4-FinPerf RE'!C6:C9) -> 10503008.53 | C6: =SUM('A4-FinPerf RE'!D6:D9) -> 11061887.67 | D6: =SUM('A4-FinPerf RE'!E6:E9) -> 10948365.55 | E6: =SUM('A4-FinPerf RE'!F6:F9) -> 25590177 | F6: =SUM('A4-FinPerf RE'!G6:G9) -> 25590177 | G6: =SUM('A4-FinPerf RE'!H6:H9) -> 25590177 | H6: =SUM('A4-FinPerf RE'!I6:I9) -> 10188691.41 | I6: =SUM('A4-FinPerf RE'!J6:J9) -> 15880356 | J6: =SUM('A4-FinPerf RE'!K6:K9) -> 16674375 | K6: =SUM('A4-FinPerf RE'!L6:L9) -> 17508094
A7: Investment revenue | B7: ='A4-FinPerf RE'!C14 -> 0 | C7: ='A4-FinPerf RE'!D14 -> 0 | D7: ='A4-FinPerf RE'!E14 -> 0 | E7: ='A4-FinPerf RE'!F14 -> 0 | F7: ='A4-FinPerf RE'!G14 -> 0 | G7: ='A4-FinPerf RE'!H14 -> 0 | H7: ='A4-FinPerf RE'!I14 -> 0 | I7: ='A4-FinPerf RE'!J14 -> 0 | J7: ='A4-FinPerf RE'!K14 -> 0 | K7: ='A4-FinPerf RE'!L14 -> 0
A8: Transfer and subsidies - Operational | B8: ='A4-FinPerf RE'!C25 -> 148235565 | C8: ='A4-FinPerf RE'!D25 -> 185288433.8 | D8: ='A4-FinPerf RE'!E25 -> 160910740.4 | E8: ='A4-FinPerf RE'!F25 -> 174457600 | F8: ='A4-FinPerf RE'!G25 -> 175097600 | G8: ='A4-FinPerf RE'!H25 -> 175097600 | H8: ='A4-FinPerf RE'!I25 -> 171635354.4 | I8: ='A4-FinPerf RE'!J25 -> 183700650 | J8: ='A4-FinPerf RE'!K25 -> 192509050 | K8: ='A4-FinPerf RE'!L25 -> 185454150
A9: Other own revenue | B9: ='A4-FinPerf RE'!C32-SUM(B5:B8) -> 7817054.51 | C9: ='A4-FinPerf RE'!D32-SUM(C5:C8) -> 10369563.77 | D9: ='A4-FinPerf RE'!E32-SUM(D5:D8) -> 13291494.54 | E9: ='A4-FinPerf RE'!F32-SUM(E5:E8) -> 15481232 | F9: ='A4-FinPerf RE'!G32-SUM(F5:F8) -> 20863265 | G9: ='A4-FinPerf RE'!H32-SUM(G5:G8) -> 20863265 | H9: ='A4-FinPerf RE'!I32-SUM(H5:H8) -> 21642878.04 | I9: ='A4-FinPerf RE'!J32-SUM(I5:I8) -> 29132354 | J9: ='A4-FinPerf RE'!K32-SUM(J5:J8) -> 28079059 | K9: ='A4-FinPerf RE'!L32-SUM(K5:K8) -> 29456713
A10: ='A4-FinPerf RE'!A32 -> Total Revenue (excluding capital transfers and contributions) | B10: =SUM(B5:B9) -> 186566513.7 | C10: =SUM(C5:C9) -> 256277888 | D10: 215749834.3 | E10: 264925856 | F10: 262636694 | G10: 262636694 | H10: 233479113.1 | I10: 274776804 | J10: 285629101 | K10: 283203905
A11: Employee costs | B11: ='A4-FinPerf RE'!C34 -> 84279697.15 | C11: ='A4-FinPerf RE'!D34 -> 91655492.25 | D11: ='A4-FinPerf RE'!E34 -> 96155662.32 | E11: ='A4-FinPerf RE'!F34 -> 104547620 | F11: ='A4-FinPerf RE'!G34 -> 103532048 | G11: ='A4-FinPerf RE'!H34 -> 103532048 | H11: ='A4-FinPerf RE'!I34 -> 91158238.28 | I11: ='A4-FinPerf RE'!J34 -> 107286637 | J11: ='A4-FinPerf RE'!K34 -> 117566966 | K11: ='A4-FinPerf RE'!L34 -> 123422326
A12: Remuneration of councillors | B12: ='A4-FinPerf RE'!C35 -> 12879611.9 | C12: ='A4-FinPerf RE'!D35 -> 12930254.27 | D12: ='A4-FinPerf RE'!E35 -> 12948003.32 | E12: ='A4-FinPerf RE'!F35 -> 13973932 | F12: ='A4-FinPerf RE'!G35 -> 14477932 | G12: ='A4-FinPerf RE'!H35 -> 14477932 | H12: ='A4-FinPerf RE'!I35 -> 12274756.33 | I12: ='A4-FinPerf RE'!J35 -> 19640387 | J12: ='A4-FinPerf RE'!K35 -> 20620415 | K12: ='A4-FinPerf RE'!L35 -> 21649434
A13: Depreciation and amortisation | B13: ='A4-FinPerf RE'!C39 -> 15880078.4 | C13: ='A4-FinPerf RE'!D39 -> 12114558.47 | D13: ='A4-FinPerf RE'!E39 -> 19095027.42 | E13: ='A4-FinPerf RE'!F39 -> 19813041 | F13: ='A4-FinPerf RE'!G39 -> 19813041 | G13: ='A4-FinPerf RE'!H39 -> 19813041 | H13: ='A4-FinPerf RE'!I39 -> 32069754.44 | I13: ='A4-FinPerf RE'!J39 -> 22082155 | J13: ='A4-FinPerf RE'!K39 -> 23186308 | K13: ='A4-FinPerf RE'!L39 -> 24345623
A14: Interest | B14: ='A4-FinPerf RE'!C40 -> 421586.14 | C14: ='A4-FinPerf RE'!D40 -> 183629.4 | D14: ='A4-FinPerf RE'!E40 -> 13535.74 | E14: ='A4-FinPerf RE'!F40 -> 116842 | F14: ='A4-FinPerf RE'!G40 -> 126442 | G14: ='A4-FinPerf RE'!H40 -> 126442 | H14: ='A4-FinPerf RE'!I40 -> 21567.45 | I14: ='A4-FinPerf RE'!J40 -> 132765 | J14: ='A4-FinPerf RE'!K40 -> 139404 | K14: ='A4-FinPerf RE'!L40 -> 146375
A15: Inventory consumed and bulk purchases | B15: ='A4-FinPerf RE'!C36+'A4-FinPerf RE'!C37 -> 11163929.93 | C15: ='A4-FinPerf RE'!D36+'A4-FinPerf RE'!D37 -> 11837037.12 | D15: ='A4-FinPerf RE'!E36+'A4-FinPerf RE'!E37 -> 14436538.84 | E15: ='A4-FinPerf RE'!F36+'A4-FinPerf RE'!F37 -> 19730791 | F15: ='A4-FinPerf RE'!G36+'A4-FinPerf RE'!G37 -> 20286302 | G15: ='A4-FinPerf RE'!H36+'A4-FinPerf RE'!H37 -> 20286302 | H15: ='A4-FinPerf RE'!I36+'A4-FinPerf RE'!I37 -> 9079972.21 | I15: ='A4-FinPerf RE'!J36+'A4-FinPerf RE'!J37 -> 22029095 | J15: ='A4-FinPerf RE'!K36+'A4-FinPerf RE'!K37 -> 22735916 | K15: ='A4-FinPerf RE'!L36+'A4-FinPerf RE'!L37 -> 23872712
A16: Transfers and subsidies | B16: ='A4-FinPerf RE'!C42 -> 0 | C16: ='A4-FinPerf RE'!D42 -> 0 | D16: ='A4-FinPerf RE'!E42 -> 0 | E16: ='A4-FinPerf RE'!F42 -> 0 | F16: ='A4-FinPerf RE'!G42 -> 0 | G16: ='A4-FinPerf RE'!H42 -> 0 | H16: ='A4-FinPerf RE'!I42 -> 0 | I16: ='A4-FinPerf RE'!J42 -> 0 | J16: ='A4-FinPerf RE'!K42 -> 0 | K16: ='A4-FinPerf RE'!L42 -> 0
A17: Other expenditure | B17: ='A4-FinPerf RE'!C47-SUM(B11:B16) -> 62968391.47 | C17: ='A4-FinPerf RE'!D47-SUM(C11:C16) -> 89243144.38 | D17: ='A4-FinPerf RE'!E47-SUM(D11:D16) -> 79349394.32 | E17: ='A4-FinPerf RE'!F47-SUM(E11:E16) -> 86523951 | F17: ='A4-FinPerf RE'!G47-SUM(F11:F16) -> 87102836 | G17: ='A4-FinPerf RE'!H47-SUM(G11:G16) -> 87102836 | H17: ='A4-FinPerf RE'!I47-SUM(H11:H16) -> 69300057.1 | I17: ='A4-FinPerf RE'!J47-SUM(I11:I16) -> 89773772 | J17: ='A4-FinPerf RE'!K47-SUM(J11:J16) -> 87319330 | K17: ='A4-FinPerf RE'!L47-SUM(K11:K16) -> 90214701
A18: ='A4-FinPerf RE'!A47 -> Total Expenditure | B18: =SUM(B11:B17) -> 187593295 | C18: =SUM(C11:C17) -> 217964115.9 | D18: 221998162 | E18: 244706177 | F18: 245338601 | G18: 245338601 | H18: 213904345.8 | I18: 260944811 | J18: 271568339 | K18: 283651171
A19: ='A4-FinPerf RE'!A48 -> Surplus/(Deficit) | B19: =B10-B18 -> -1026781.28 | C19: =C10-C18 -> 38313772.11 | D19: -6248327.62 | E19: 20219679 | F19: 17298093 | G19: 17298093 | H19: 19574767.32 | I19: 13831993 | J19: 14060762 | K19: -447266
A20: ='A4-FinPerf RE'!A49 -> Transfers and subsidies - capital (monetary allocations) | B20: ='A4-FinPerf RE'!C49 -> 33909773.81 | C20: ='A4-FinPerf RE'!D49 -> 45027638.97 | D20: ='A4-FinPerf RE'!E49 -> 43524577.83 | E20: ='A4-FinPerf RE'!F49 -> 37802400 | F20: ='A4-FinPerf RE'!G49 -> 40418843 | G20: ='A4-FinPerf RE'!H49 -> 40418843 | H20: ='A4-FinPerf RE'!I49 -> 25657222.22 | I20: ='A4-FinPerf RE'!J49 -> 58548350 | J20: ='A4-FinPerf RE'!K49 -> 51508950 | K20: ='A4-FinPerf RE'!L49 -> 53726850
A21: ='A4-FinPerf RE'!A50 -> Transfers and subsidies - capital (in-kind) | B21: ='A4-FinPerf RE'!C50 -> 0 | C21: ='A4-FinPerf RE'!D50 -> 1234955.28 | D21: ='A4-FinPerf RE'!E50 -> 0 | E21: ='A4-FinPerf RE'!F50 -> 0 | F21: ='A4-FinPerf RE'!G50 -> 0 | G21: ='A4-FinPerf RE'!H50 -> 0 | H21: ='A4-FinPerf RE'!I50 -> 0 | I21: ='A4-FinPerf RE'!J50 -> 0 | J21: ='A4-FinPerf RE'!K50 -> 0 | K21: ='A4-FinPerf RE'!L50 -> 0
A22: ='A4-FinPerf RE'!A51 -> Surplus/(Deficit) after capital transfers & contributions | B22: =B19+SUM(B20:B21) -> 32882992.53 | C22: =C19+SUM(C20:C21) -> 84576366.36 | D22: 37276250.21 | E22: 58022079 | F22: 57716936 | G22: 57716936 | H22: 45231989.54 | I22: 72380343 | J22: 65569712 | K22: 53279584
A23: ='A4-FinPerf RE'!A57 -> Share of Surplus/Deficit attributable to Associate | B23: ='A4-FinPerf RE'!C57 -> 0 | C23: ='A4-FinPerf RE'!D57 -> 0 | D23: ='A4-FinPerf RE'!E57 -> 0 | E23: ='A4-FinPerf RE'!F57 -> 0 | F23: ='A4-FinPerf RE'!G57 -> 0 | G23: ='A4-FinPerf RE'!H57 -> 0 | H23: ='A4-FinPerf RE'!I57 -> 0 | I23: ='A4-FinPerf RE'!J57 -> 0 | J23: ='A4-FinPerf RE'!K57 -> 0 | K23: ='A4-FinPerf RE'!L57 -> 0
A24: ='A4-FinPerf RE'!A59 -> Surplus/(Deficit) for the year | B24: =B22+B23 -> 32882992.53 | C24: =C22+C23 -> 84576366.36 | D24: 37276250.21 | E24: 58022079 | F24: 57716936 | G24: 57716936 | H24: 45231989.54 | I24: 72380343 | J24: 65569712 | K24: 53279584
A25: Capital expenditure & funds sources
A26: Capital expenditure | B26: ='A5-Capex'!C63 -> 38284503.29 | C26: ='A5-Capex'!D63 -> 50056507.07 | D26: ='A5-Capex'!E63 -> 48687235.94 | E26: ='A5-Capex'!F63 -> 58022400 | F26: ='A5-Capex'!G63 -> 58830625 | G26: ='A5-Capex'!H63 -> 58830625 | H26: ='A5-Capex'!I63 -> 42581396.51 | I26: ='A5-Capex'!J63 -> 72380350 | J26: ='A5-Capex'!K63 -> 65569950 | K26: ='A5-Capex'!L63 -> 53279850
A27: Transfers recognised - capital | B27: ='A5-Capex'!C70 -> 29015957.46 | C27: ='A5-Capex'!D70 -> 40289895.24 | D27: ='A5-Capex'!E70 -> 38039956.39 | E27: ='A5-Capex'!F70 -> 38502400 | F27: ='A5-Capex'!G70 -> 40863692 | G27: ='A5-Capex'!H70 -> 40863692 | H27: ='A5-Capex'!I70 -> 30321196.86 | I27: ='A5-Capex'!J70 -> 58548350 | J27: ='A5-Capex'!K70 -> 51508950 | K27: ='A5-Capex'!L70 -> 53139252
A29: ='A5-Capex'!A72 -> Borrowing | B29: ='A5-Capex'!C72 -> 0 | C29: ='A5-Capex'!D72 -> 0 | D29: ='A5-Capex'!E72 -> 0 | E29: ='A5-Capex'!F72 -> 0 | F29: ='A5-Capex'!G72 -> 0 | G29: ='A5-Capex'!H72 -> 0 | H29: ='A5-Capex'!I72 -> 0 | I29: ='A5-Capex'!J72 -> 0 | J29: ='A5-Capex'!K72 -> 0 | K29: ='A5-Capex'!L72 -> 0
A30: ='A5-Capex'!A73 -> Internally generated funds | B30: ='A5-Capex'!C73 -> 9268545.83 | C30: ='A5-Capex'!D73 -> 9766611.83 | D30: ='A5-Capex'!E73 -> 10647279.55 | E30: ='A5-Capex'!F73 -> 19520000 | F30: ='A5-Capex'!G73 -> 17966933 | G30: ='A5-Capex'!H73 -> 17966933 | H30: ='A5-Capex'!I73 -> 12260199.65 | I30: ='A5-Capex'!J73 -> 13832000 | J30: ='A5-Capex'!K73 -> 14061000 | K30: ='A5-Capex'!L73 -> 140598
A31: Total sources of capital funds | B31: =+B27+B29+B30 -> 38284503.29 | C31: =+C27+C29+C30 -> 50056507.07 | D31: 48687235.94 | E31: 58022400 | F31: 58830625 | G31: 58830625 | H31: 42581396.51 | I31: 72380350 | J31: 65569950 | K31: 53279850
A32: Financial position
A33: ='A6-FinPos'!A13 -> Total current assets | B33: ='A6-FinPos'!C13 -> 114835906.9 | C33: ='A6-FinPos'!D13 -> 163531331.7 | D33: ='A6-FinPos'!E13 -> 172225479.3 | E33: ='A6-FinPos'!F13 -> 235049941.2 | F33: ='A6-FinPos'!G13 -> 218764680.2 | G33: ='A6-FinPos'!H13 -> 218764680.2 | H33: ='A6-FinPos'!I13 -> 212755412.1 | I33: ='A6-FinPos'!J13 -> 247514704.2 | J33: ='A6-FinPos'!K13 -> 251372580.2 | K33: ='A6-FinPos'!L13 -> 273515189.2
A34: ='A6-FinPos'!A25 -> Total non current assets | B34: ='A6-FinPos'!C25 -> 272780971.3 | C34: ='A6-FinPos'!D25 -> 305416197.8 | D34: ='A6-FinPos'!E25 -> 337114335.8 | E34: ='A6-FinPos'!F25 -> 345582025 | F34: ='A6-FinPos'!G25 -> 345330250 | G34: ='A6-FinPos'!H25 -> 345330250 | H34: ='A6-FinPos'!I25 -> 348563188.2 | I34: ='A6-FinPos'!J25 -> 404669350 | J34: ='A6-FinPos'!K25 -> 413036683 | K34: ='A6-FinPos'!L25 -> 417189533
A35: ='A6-FinPos'!A37 -> Total current liabilities | B35: ='A6-FinPos'!C37 -> 41848255.66 | C35: ='A6-FinPos'!D37 -> 35967512.33 | D35: ='A6-FinPos'!E37 -> 26839574.09 | E35: ='A6-FinPos'!F37 -> 42791686 | F35: ='A6-FinPos'!G37 -> 47860894 | G35: ='A6-FinPos'!H37 -> 47860894 | H35: ='A6-FinPos'!I37 -> 37203703.79 | I35: ='A6-FinPos'!J37 -> 51649801 | J35: ='A6-FinPos'!K37 -> 54562287 | K35: ='A6-FinPos'!L37 -> 57628400
A36: ='A6-FinPos'!A43 -> Total non current liabilities | B36: ='A6-FinPos'!C43 -> 22965829.8 | C36: ='A6-FinPos'!D43 -> 26098177.59 | D36: ='A6-FinPos'!E43 -> 27271261.98 | E36: ='A6-FinPos'!F43 -> 30007362 | F36: ='A6-FinPos'!G43 -> 30007362 | G36: ='A6-FinPos'!H43 -> 30007362 | H36: ='A6-FinPos'!I43 -> 27271261.98 | I36: ='A6-FinPos'!J43 -> 29998391 | J36: ='A6-FinPos'!K43 -> 32998229 | K36: ='A6-FinPos'!L43 -> 36298051
A37: Community wealth/Equity | B37: ='A6-FinPos'!C50 -> 328689160.9 | C37: ='A6-FinPos'!D50 -> 415930525.6 | D37: ='A6-FinPos'!E50 -> 459894635.3 | E37: ='A6-FinPos'!F50 -> 508229686 | F37: ='A6-FinPos'!G50 -> 486255124 | G37: ='A6-FinPos'!H50 -> 486255124 | H37: ='A6-FinPos'!I50 -> 502401968.7 | I37: ='A6-FinPos'!J50 -> 570535862 | J37: ='A6-FinPos'!K50 -> 576848747 | K37: ='A6-FinPos'!L50 -> 596778270
A38: Cash flows
A39: Net cash from (used) operating | B39: ='A7-CFlow'!C17 -> 0 | C39: ='A7-CFlow'!D17 -> 61331116.85 | D39: ='A7-CFlow'!E17 -> 437635528.6 | E39: ='A7-CFlow'!F17 -> 75024910 | F39: ='A7-CFlow'!G17 -> 79599379 | G39: ='A7-CFlow'!H17 -> 79599379 | H39: ='A7-CFlow'!I17 -> 232481817.8 | I39: ='A7-CFlow'!J17 -> 88816778 | J39: ='A7-CFlow'!K17 -> 82829338 | K39: ='A7-CFlow'!L17 -> 71405794
A40: Net cash from (used) investing | B40: ='A7-CFlow'!C26 -> 0 | C40: ='A7-CFlow'!D26 -> -28732617.37 | D40: ='A7-CFlow'!E26 -> -48687235.94 | E40: ='A7-CFlow'!F26 -> -58022400 | F40: ='A7-CFlow'!G26 -> -58830625 | G40: ='A7-CFlow'!H26 -> -58830625 | H40: ='A7-CFlow'!I26 -> -35337285.17 | I40: ='A7-CFlow'!J26 -> -72380350 | J40: ='A7-CFlow'!K26 -> -65569950 | K40: ='A7-CFlow'!L26 -> -53279850
A41: Net cash from (used) financing | B41: ='A7-CFlow'!C35 -> 0 | C41: ='A7-CFlow'!D35 -> 0 | D41: ='A7-CFlow'!E35 -> 0 | E41: ='A7-CFlow'!F35 -> 0 | F41: ='A7-CFlow'!G35 -> 0 | G41: ='A7-CFlow'!H35 -> 0 | H41: ='A7-CFlow'!I35 -> 0 | I41: ='A7-CFlow'!J35 -> 0 | J41: ='A7-CFlow'!K35 -> 0 | K41: ='A7-CFlow'!L35 -> 0
A42: =LEFT('A7-CFlow'!A39,37) -> Cash/cash equivalents at the year end | B42: ='A7-CFlow'!C39 -> 19363525.35 | C42: ='A7-CFlow'!D39 -> 55609464.63 | D42: ='A7-CFlow'!E39 -> 478494011.8 | E42: ='A7-CFlow'!F39 -> 106551652 | F42: ='A7-CFlow'!G39 -> 126036498 | G42: ='A7-CFlow'!H39 -> 126036498 | H42: ='A7-CFlow'!I39 -> 197144532.7 | I42: ='A7-CFlow'!J39 -> 135308430 | J42: ='A7-CFlow'!K39 -> 152567818 | K42: ='A7-CFlow'!L39 -> 170693762
A44: Cash backing/surplus reconciliation
A45: ='A8-ResRecon'!A4 -> Cash and investments available | B45: ='A8-ResRecon'!C8 -> 23010965.15 | C45: ='A8-ResRecon'!D8 -> 90535179.78 | D45: ='A8-ResRecon'!E8 -> 105267742.6 | E45: ='A8-ResRecon'!F8 -> 106551365 | F45: ='A8-ResRecon'!G8 -> 118877103 | G45: ='A8-ResRecon'!H8 -> 118877103 | H45: ='A8-ResRecon'!I8 -> 135756554.6 | I45: ='A8-ResRecon'!J8 -> 135175666 | J45: ='A8-ResRecon'!K8 -> 133200946 | K45: ='A8-ResRecon'!L8 -> 149211758
A46: ='A8-ResRecon'!A10 -> Application of cash and investments | B46: ='A8-ResRecon'!C18 -> 39734931.66 | C46: ='A8-ResRecon'!D18 -> 6889362.79 | D46: ='A8-ResRecon'!E18 -> -104015626.6 | E46: ='A8-ResRecon'!F18 -> -29479154 | F46: ='A8-ResRecon'!G18 -> -11444154 | G46: ='A8-ResRecon'!H18 -> -11444154 | H46: ='A8-ResRecon'!I18 -> -57153780.79 | I46: ='A8-ResRecon'!J18 -> 28373596 | J46: ='A8-ResRecon'!K18 -> 30042620 | K46: ='A8-ResRecon'!L18 -> 31794550
A47: Balance - surplus (shortfall) | B47: =B45-B46 -> -16723966.51 | C47: =C45-C46 -> 83645816.99 | D47: 209283369.1 | E47: 136030519 | F47: 130321257 | G47: 130321257 | H47: 192910335.4 | I47: 106802070 | J47: 103158326 | K47: 117417208
A48: Asset management
A49: Asset register summary (WDV) | B49: ='A9-Asset'!C180 -> 237053425.8 | C49: ='A9-Asset'!D180 -> 299792338.4 | D49: ='A9-Asset'!E180 -> 320142149.6 | E49: ='A9-Asset'!F180 -> 339958165 | F49: ='A9-Asset'!G180 -> 339706390 | G49: ='A9-Asset'!H180 -> 339706390 | H49: ='A9-Asset'!I180 -> 386848553 | I49: ='A9-Asset'!J180 -> 394324847 | J49: ='A9-Asset'!K180 -> 397542105 | K49: ='A9-Asset'!L180 -> 0
A50: ='A9-Asset'!A183 -> Depreciation | B50: ='A9-Asset'!C183 -> 15880078.4 | C50: ='A9-Asset'!D183 -> 12114558.47 | D50: ='A9-Asset'!E183 -> 19095027.42 | E50: ='A9-Asset'!F183 -> 19813041 | F50: ='A9-Asset'!G183 -> 19813041 | G50: ='A9-Asset'!H183 -> 19813041 | H50: ='A9-Asset'!I183 -> 22082155 | I50: ='A9-Asset'!J183 -> 23186308 | J50: ='A9-Asset'!K183 -> 24345623 | K50: ='A9-Asset'!L183 -> 0
A51: Renewal and Upgrading of Existing Assets | B51: ='A9-Asset'!C40+'A9-Asset'!C75 -> 3523130.65 | C51: ='A9-Asset'!D40+'A9-Asset'!D75 -> 6868592.78 | D51: ='A9-Asset'!E40+'A9-Asset'!E75 -> 1364439.61 | E51: ='A9-Asset'!F40+'A9-Asset'!F75 -> 12014381 | F51: ='A9-Asset'!G40+'A9-Asset'!G75 -> 12014381 | G51: ='A9-Asset'!H40+'A9-Asset'!H75 -> 12014381 | H51: ='A9-Asset'!I40+'A9-Asset'!I75 -> 15685619 | I51: ='A9-Asset'!J40+'A9-Asset'!J75 -> 14835790 | J51: ='A9-Asset'!K40+'A9-Asset'!K75 -> 21404925 | K51: ='A9-Asset'!L40+'A9-Asset'!L75 -> 0
A52: Repairs and Maintenance | B52: ='A9-Asset'!C184 -> 6280208.17 | C52: ='A9-Asset'!D184 -> 18199300.71 | D52: ='A9-Asset'!E184 -> 15760044.82 | E52: ='A9-Asset'!F184 -> 15144089 | F52: ='A9-Asset'!G184 -> 14572812 | G52: ='A9-Asset'!H184 -> 14572812 | H52: ='A9-Asset'!I184 -> 15630000 | I52: ='A9-Asset'!J184 -> 16361500 | J52: ='A9-Asset'!K184 -> 17129575 | K52: ='A9-Asset'!L184 -> 0
A54: Free services
A55: Cost of Free Basic Services provided | B55: ='A10-SerDel'!C60 -> -5930933.57 | C55: ='A10-SerDel'!D60 -> -6496579.78 | D55: ='A10-SerDel'!E60 -> -7890792.94 | E55: ='A10-SerDel'!F60 -> -4400576 | F55: ='A10-SerDel'!G60 -> -9900576 | G55: ='A10-SerDel'!H60 -> -9900576 | H55: ='A10-SerDel'!I60 -> 4371840 | I55: ='A10-SerDel'!J60 -> 4590432 | J55: ='A10-SerDel'!K60 -> 4819954 | K55: ='A10-SerDel'!L60 -> 0
A56: Revenue cost of free services provided | B56: ='A10-SerDel'!C79 -> 5894776.07 | C56: ='A10-SerDel'!D79 -> 6093885.48 | D56: ='A10-SerDel'!E79 -> 1054621.35 | E56: ='A10-SerDel'!F79 -> -1942860 | F56: ='A10-SerDel'!G79 -> 0 | G56: ='A10-SerDel'!H79 -> 0 | H56: ='A10-SerDel'!I79 -> 8145033 | I56: ='A10-SerDel'!J79 -> 8552286 | J56: ='A10-SerDel'!K79 -> 8979901 | K56: ='A10-SerDel'!L79 -> 0
A57: Households below minimum service level
A58: ='A10-SerDel'!A5 -> Water: | B58: ='A10-SerDel'!C14 -> 0 | C58: ='A10-SerDel'!D14 -> 0 | D58: ='A10-SerDel'!E14 -> 0 | E58: ='A10-SerDel'!F14 -> 0 | F58: ='A10-SerDel'!G14 -> 0 | G58: ='A10-SerDel'!H14 -> 0 | H58: ='A10-SerDel'!I14 -> 0 | I58: ='A10-SerDel'!J14 -> 0 | J58: ='A10-SerDel'!K14 -> 0 | K58: ='A10-SerDel'!L14 -> 0
A59: ='A10-SerDel'!A16 -> Sanitation/sewerage: | B59: ='A10-SerDel'!C26 -> 0 | C59: ='A10-SerDel'!D26 -> 0 | D59: ='A10-SerDel'!E26 -> 0 | E59: ='A10-SerDel'!F26 -> 0 | F59: ='A10-SerDel'!G26 -> 0 | G59: ='A10-SerDel'!H26 -> 0 | H59: ='A10-SerDel'!I26 -> 0 | I59: ='A10-SerDel'!J26 -> 0 | J59: ='A10-SerDel'!K26 -> 0 | K59: ='A10-SerDel'!L26 -> 0
A60: ='A10-SerDel'!A28 -> Energy: | B60: ='A10-SerDel'!C35 -> 0 | C60: ='A10-SerDel'!D35 -> 0 | D60: ='A10-SerDel'!E35 -> 0 | E60: ='A10-SerDel'!F35 -> 0 | F60: ='A10-SerDel'!G35 -> 0 | G60: ='A10-SerDel'!H35 -> 0 | H60: ='A10-SerDel'!I35 -> 0 | I60: ='A10-SerDel'!J35 -> 0 | J60: ='A10-SerDel'!K35 -> 0 | K60: ='A10-SerDel'!L35 -> 0
A61: ='A10-SerDel'!A37 -> Refuse: | B61: ='A10-SerDel'!C45 -> 0 | C61: ='A10-SerDel'!D45 -> 0 | D61: ='A10-SerDel'!E45 -> 0 | E61: ='A10-SerDel'!F45 -> 0 | F61: ='A10-SerDel'!G45 -> 0 | G61: ='A10-SerDel'!H45 -> 0 | H61: ='A10-SerDel'!I45 -> 0 | I61: ='A10-SerDel'!J45 -> 0 | J61: ='A10-SerDel'!K45 -> 0 | K61: ='A10-SerDel'!L45 -> 0

Sheet A2-FinPerf SC
A1: =muni&" - "&Approve3 -> LIM353 Molemole - Table A2 Budgeted Financial Performance (revenue and expenditure by functional classification)
A2: ="Functional Classification "&desc -> Functional Classification Description | B2: =head27 -> Ref | C2: =head1b -> 2019/20 | D2: =head1A -> 2020/21 | E2: =Head1 -> 2021/22 | F2: =Head2 -> Current Year 2022/23 | I2: =Head3 -> 2023/24 Medium Term Revenue & Expenditure Framework
A3: R thousand | B3: 1 | C3: =Head5 -> Audited Outcome | D3: =Head5 -> Audited Outcome | E3: =Head5 -> Audited Outcome | F3: =Head6 -> Original Budget | G3: =Head7 -> Adjusted Budget | H3: =Head8 -> Full Year Forecast | I3: =Head9 -> Budget Year 2023/24 | J3: =Head10 -> Budget Year +1 2024/25 | K3: =Head11 -> Budget Year +2 2025/26
A4: Revenue - Functional
A5: Governance and administration | C5: =SUM(C6:C8) -> 167736344.2 | D5: =SUM(D6:D8) -> 235257470.5 | E5: 194084103.3 | F5: 224444747 | G5: 222810672 | H5: 222810672 | I5: 238676209 | J5: 249018650 | K5: 244778883
A6: Executive and council | C6: =A2A!C6 -> 0 | D6: =A2A!D6 -> 12150 | E6: =A2A!E6 -> 12550 | F6: =A2A!F6 -> 0 | G6: =A2A!G6 -> 0 | H6: =A2A!H6 -> 0 | I6: =A2A!I6 -> 0 | J6: =A2A!J6 -> 0 | K6: =A2A!K6 -> 0
A7: Finance and administration | C7: =A2A!C9 -> 167736344.2 | D7: =A2A!D9 -> 235245320.5 | E7: =A2A!E9 -> 194071553.3 | F7: =A2A!F9 -> 224444747 | G7: =A2A!G9 -> 222810672 | H7: =A2A!H9 -> 222810672 | I7: =A2A!I9 -> 238676209 | J7: =A2A!J9 -> 249018650 | K7: =A2A!K9 -> 244778883
A8: Internal audit | C8: =A2A!C23 -> 0 | D8: =A2A!D23 -> 0 | E8: =A2A!E23 -> 0 | F8: =A2A!F23 -> 0 | G8: =A2A!G23 -> 0 | H8: =A2A!H23 -> 0 | I8: =A2A!I23 -> 0 | J8: =A2A!J23 -> 0 | K8: =A2A!K23 -> 0
A9: Community and public safety | C9: =SUM(C10:C14) -> 5412608.88 | D9: =SUM(D10:D14) -> 8107750.62 | E9: 7492994.27 | F9: 11114485 | G9: 10444742 | H9: 10444742 | I9: 15207405 | J9: 14687829 | K9: 15422220
A10: Community and social services | C10: =A2A!C26 -> 1174268.89 | D10: =A2A!D26 -> 2515686.28 | E10: =A2A!E26 -> 1425769.56 | F10: =A2A!F26 -> 1421299 | G10: =A2A!G26 -> 1435598 | H10: =A2A!H26 -> 1435598 | I10: =A2A!I26 -> 1245612 | J10: =A2A!J26 -> 27943 | K10: =A2A!K26 -> 29340
A11: Sport and recreation | C11: =A2A!C48 -> 211716.96 | D11: =A2A!D48 -> 214680.5 | E11: =A2A!E48 -> 347184.71 | F11: =A2A!F48 -> 269991 | G11: =A2A!G48 -> 269991 | H11: =A2A!H48 -> 269991 | I11: =A2A!I48 -> 249544 | J11: =A2A!J48 -> 262023 | K11: =A2A!K48 -> 275124
A12: Public safety | C12: =A2A!C54 -> 4026623.03 | D12: =A2A!D54 -> 5377383.84 | E12: =A2A!E54 -> 5720040 | F12: =A2A!F54 -> 9423195 | G12: =A2A!G54 -> 8739153 | H12: =A2A!H54 -> 8739153 | I12: =A2A!I54 -> 13712249 | J12: =A2A!J54 -> 14397863 | K12: =A2A!K54 -> 15117756
A13: Housing | C13: =A2A!C63 -> 0 | D13: =A2A!D63 -> 0 | E13: =A2A!E63 -> 0 | F13: =A2A!F63 -> 0 | G13: =A2A!G63 -> 0 | H13: =A2A!H63 -> 0 | I13: =A2A!I63 -> 0 | J13: =A2A!J63 -> 0 | K13: =A2A!K63 -> 0
A14: Health | C14: =A2A!C66 -> 0 | D14: =A2A!D66 -> 0 | E14: =A2A!E66 -> 0 | F14: =A2A!F66 -> 0 | G14: =A2A!G66 -> 0 | H14: =A2A!H66 -> 0 | I14: =A2A!I66 -> 0 | J14: =A2A!J66 -> 0 | K14: =A2A!K66 -> 0
A15: Economic and environmental services | C15: =SUM(C16:C18) -> 35739049.46 | D15: =SUM(D16:D18) -> 35537755.33 | E15: 37074206.41 | F15: 39954954 | G15: 39969610 | H15: 39969610 | I15: 41607136 | J15: 43382845 | K15: 45232938
A16: Planning and development | C16: =A2A!C75 -> 35739049.46 | D16: =A2A!D75 -> 35537755.33 | E16: =A2A!E75 -> 37074206.41 | F16: =A2A!F75 -> 39954954 | G16: =A2A!G75 -> 39969610 | H16: =A2A!H75 -> 39969610 | I16: =A2A!I75 -> 41607136 | J16: =A2A!J75 -> 43382845 | K16: =A2A!K75 -> 45232938
A17: Road transport | C17: =A2A!C86 -> 0 | D17: =A2A!D86 -> 0 | E17: =A2A!E86 -> 0 | F17: =A2A!F86 -> 0 | G17: =A2A!G86 -> 0 | H17: =A2A!H86 -> 0 | I17: =A2A!I86 -> 0 | J17: =A2A!J86 -> 0 | K17: =A2A!K86 -> 0
A18: Environmental protection | C18: =A2A!C91 -> 0 | D18: =A2A!D91 -> 0 | E18: =A2A!E91 -> 0 | F18: =A2A!F91 -> 0 | G18: =A2A!G91 -> 0 | H18: =A2A!H91 -> 0 | I18: =A2A!I91 -> 0 | J18: =A2A!J91 -> 0 | K18: =A2A!K91 -> 0
A19: Trading services | C19: =SUM(C20:C23) -> 11588284.95 | D19: =SUM(D20:D23) -> 23637505.82 | E19: 20623108.23 | F19: 27214070 | G19: 29830513 | H19: 29830513 | I19: 37834404 | J19: =SUM(J20:J23) -> 30048727 | K19: 31496714
A20: Energy sources | C20: =A2A!C99 -> 8487575.06 | D20: =A2A!D99 -> 19907231.84 | E20: =A2A!E99 -> 15799012.95 | F20: =A2A!F99 -> 23603514 | G20: =A2A!G99 -> 26219957 | H20: =A2A!H99 -> 26219957 | I20: =A2A!I99 -> 32143638 | J20: =A2A!J99 -> 24073421 | K20: =A2A!K99 -> 25222643
A21: Water management | C21: =A2A!C103 -> 295708.09 | D21: =A2A!D103 -> 328420.18 | E21: =A2A!E103 -> 742790.11 | F21: =A2A!F103 -> 459174 | G21: =A2A!G103 -> 459174 | H21: =A2A!H103 -> 459174 | I21: =A2A!I103 -> 68588 | J21: =A2A!J103 -> 72018 | K21: =A2A!K103 -> 75619
A22: Waste water management | C22: =A2A!C107 -> 387682.44 | D22: =A2A!D107 -> 519063.53 | E22: =A2A!E107 -> 1000000.01 | F22: =A2A!F107 -> 297178 | G22: =A2A!G107 -> 297178 | H22: =A2A!H107 -> 297178 | I22: =A2A!I107 -> 1612360 | J22: =A2A!J107 -> 1692978 | K22: =A2A!K107 -> 1777627
A23: Waste management | C23: =A2A!C112 -> 2417319.36 | D23: =A2A!D112 -> 2882790.27 | E23: =A2A!E112 -> 3081305.16 | F23: =A2A!F112 -> 2854204 | G23: =A2A!G112 -> 2854204 | H23: =A2A!H112 -> 2854204 | I23: =A2A!I112 -> 4009818 | J23: =A2A!J112 -> 4210310 | K23: =A2A!K112 -> 4420825
A24: Other | B24: 4 | C24: =A2A!C117 -> 0 | D24: =A2A!D117 -> 0 | E24: =A2A!E117 -> 0 | F24: =A2A!F117 -> 0 | G24: =A2A!G117 -> 0 | H24: =A2A!H117 -> 0 | I24: =A2A!I117 -> 0 | J24: =A2A!J117 -> 0 | K24: =A2A!K117 -> 0
A25: ="Total "&A4 -> Total Revenue - Functional | B25: 2 | C25: =C5+C9+C15+C19+C24 -> 220476287.5 | D25: =D5+D9+D15+D19+D24 -> 302540482.2 | E25: =E5+E9+E15+E19+E24 -> 259274412.2 | F25: 302728256 | G25: 303055537 | H25: 303055537 | I25: =I5+I9+I15+I19+I24 -> 333325154 | J25: 337138051 | K25: 336930755
A27: Expenditure - Functional
A28: Governance and administration | C28: =SUM(C29:C31) -> 104833184.4 | D28: =SUM(D29:D31) -> 126683499.4 | E28: 113125216 | F28: 129892136 | G28: 128906399 | H28: 128906399 | I28: 137329569 | J28: 142044089 | K28: 147666964
A29: Executive and council | C29: =A2A!C128 -> 31093537.34 | D29: =A2A!D128 -> 36700574.25 | E29: =A2A!E128 -> 29927402.63 | F29: =A2A!F128 -> 34755552 | G29: =A2A!G128 -> 35398012 | H29: =A2A!H128 -> 35398012 | I29: =A2A!I128 -> 41558753 | J29: =A2A!J128 -> 43634283 | K29: =A2A!K128 -> 45813555
A30: Finance and administration | C30: =A2A!C131 -> 67122887.57 | D30: =A2A!D131 -> 82852283.6 | E30: =A2A!E131 -> 76210869.39 | F30: =A2A!F131 -> 84977454 | G30: =A2A!G131 -> 83616398 | H30: =A2A!H131 -> 83616398 | I30: =A2A!I131 -> 83370340 | J30: =A2A!J131 -> 86234298 | K30: =A2A!K131 -> 89074124
A31: Internal audit | C31: =A2A!C145 -> 6616759.45 | D31: =A2A!D145 -> 7130641.56 | E31: =A2A!E145 -> 6986944.01 | F31: =A2A!F145 -> 10159130 | G31: =A2A!G145 -> 9891989 | H31: =A2A!H145 -> 9891989 | I31: =A2A!I145 -> 12400476 | J31: =A2A!J145 -> 12175508 | K31: =A2A!K145 -> 12779285
A32: Community and public safety | C32: =SUM(C33:C37) -> 24511118.75 | D32: =SUM(D33:D37) -> 25382535.16 | E32: 26057915.9 | F32: 29643597 | G32: 29077004 | H32: 29077004 | I32: 27845709 | J32: 34837539 | K32: 36579314
A33: Community and social services | C33: =A2A!C148 -> 6220010.77 | D33: =A2A!D148 -> 5328179.42 | E33: =A2A!E148 -> 5776656.52 | F33: =A2A!F148 -> 9334269 | G33: =A2A!G148 -> 7997577 | H33: =A2A!H148 -> 7997577 | I33: =A2A!I148 -> 8902341 | J33: =A2A!J148 -> 9347382 | K33: =A2A!K148 -> 9814652
A34: Sport and recreation | C34: =A2A!C170 -> 3281417.92 | D34: =A2A!D170 -> 3853917.1 | E34: =A2A!E170 -> 3896970.45 | F34: =A2A!F170 -> 3232103 | G34: =A2A!G170 -> 3185366 | H34: =A2A!H170 -> 3185366 | I34: =A2A!I170 -> 3723138 | J34: =A2A!J170 -> 3909308 | K34: =A2A!K170 -> 4104770
A35: Public safety | C35: =A2A!C176 -> 15009690.06 | D35: =A2A!D176 -> 16200438.64 | E35: =A2A!E176 -> 16384288.93 | F35: =A2A!F176 -> 17077225 | G35: =A2A!G176 -> 17894061 | H35: =A2A!H176 -> 17894061 | I35: =A2A!I176 -> 15220230 | J35: =A2A!J176 -> 21580849 | K35: =A2A!K176 -> 22659892
A36: Housing | C36: =A2A!C185 -> 0 | D36: =A2A!D185 -> 0 | E36: =A2A!E185 -> 0 | F36: =A2A!F185 -> 0 | G36: =A2A!G185 -> 0 | H36: =A2A!H185 -> 0 | I36: =A2A!I185 -> 0 | J36: =A2A!J185 -> 0 | K36: =A2A!K185 -> 0
A37: Health | C37: =A2A!C188 -> 0 | D37: =A2A!D188 -> 0 | E37: =A2A!E188 -> 0 | F37: =A2A!F188 -> 0 | G37: =A2A!G188 -> 0 | H37: =A2A!H188 -> 0 | I37: =A2A!I188 -> 0 | J37: =A2A!J188 -> 0 | K37: =A2A!K188 -> 0
A38: Economic and environmental services | C38: =SUM(C39:C41) -> 12600212.85 | D38: =SUM(D39:D41) -> 11221967.77 | E38: 14615072.91 | F38: 18063511 | G38: 25621059 | H38: 25621059 | I38: 29517703 | J38: 26402201 | K38: 27706160
A39: Planning and development | C39: =A2A!C197 -> 9646016.62 | D39: =A2A!D197 -> 9050448.45 | E39: =A2A!E197 -> 11058570.49 | F39: =A2A!F197 -> 14088931 | G39: =A2A!G197 -> 14947475 | H39: =A2A!H197 -> 14947475 | I39: =A2A!I197 -> 17502876 | J39: =A2A!J197 -> 13786732 | K39: =A2A!K197 -> 14460016
A40: Road transport | C40: =A2A!C208 -> 2954196.23 | D40: =A2A!D208 -> 2171519.32 | E40: =A2A!E208 -> 3556502.42 | F40: =A2A!F208 -> 3974580 | G40: =A2A!G208 -> 10673584 | H40: =A2A!H208 -> 10673584 | I40: =A2A!I208 -> 12014827 | J40: =A2A!J208 -> 12615469 | K40: =A2A!K208 -> 13246144
A41: Environmental protection | C41: =A2A!C213 -> 0 | D41: =A2A!D213 -> 0 | E41: =A2A!E213 -> 0 | F41: =A2A!F213 -> 0 | G41: =A2A!G213 -> 0 | H41: =A2A!H213 -> 0 | I41: =A2A!I213 -> 0 | J41: =A2A!J213 -> 0 | K41: =A2A!K213 -> 0
A42: Trading services | C42: =SUM(C43:C46) -> 48462572.76 | D42: =SUM(D43:D46) -> 57785900.77 | E42: 72974227.69 | F42: =SUM(F43:F46) -> 67106933 | G42: 61734139 | H42: 61734139 | I42: 66251830 | J42: 68284510 | K42: =SUM(K43:K46) -> 71698733
A43: Energy sources | C43: =A2A!C221 -> 18851754.93 | D43: =A2A!D221 -> 21238477.21 | E43: =A2A!E221 -> 31159420.47 | F43: =A2A!F221 -> 24794358 | G43: =A2A!G221 -> 28972983 | H43: =A2A!H221 -> 28972983 | I43: =A2A!I221 -> 31287310 | J43: =A2A!J221 -> 32851686 | K43: =A2A!K221 -> 34494267
A44: Water management | C44: =A2A!C225 -> 6512012.04 | D44: =A2A!D225 -> 6312477.68 | E44: =A2A!E225 -> 7533050.54 | F44: =A2A!F225 -> 5959405 | G44: =A2A!G225 -> 5873884 | H44: =A2A!H225 -> 5873884 | I44: =A2A!I225 -> 5224628 | J44: =A2A!J225 -> 5485867 | K44: =A2A!K225 -> 5760160
A45: Waste water management | C45: =A2A!C229 -> 16752158.54 | D45: =A2A!D229 -> 23788074.01 | E45: =A2A!E229 -> 27554591.72 | F45: =A2A!F229 -> 26132460 | G45: =A2A!G229 -> 16959633 | H45: =A2A!H229 -> 16959633 | I45: =A2A!I229 -> 18974775 | J45: =A2A!J229 -> 19923528 | K45: =A2A!K229 -> 20919706
A46: Waste management | C46: =A2A!C234 -> 6346647.25 | D46: =A2A!D234 -> 6446871.87 | E46: =A2A!E234 -> 6727164.96 | F46: =A2A!F234 -> 10220710 | G46: =A2A!G234 -> 9927639 | H46: =A2A!H234 -> 9927639 | I46: =A2A!I234 -> 10765117 | J46: =A2A!J234 -> 10023429 | K46: =A2A!K234 -> 10524600
A47: Other | B47: 4 | C47: =A2A!C239 -> 0 | D47: =A2A!D239 -> 0 | E47: =A2A!E239 -> 0 | F47: =A2A!F239 -> 0 | G47: =A2A!G239 -> 0 | H47: =A2A!H239 -> 0 | I47: =A2A!I239 -> 0 | J47: =A2A!J239 -> 0 | K47: =A2A!K239 -> 0
A48: ="Total "&A27 -> Total Expenditure - Functional | B48: 3 | C48: =C28+C32+C38+C42+C47 -> 190407088.7 | D48: =D28+D32+D38+D42+D47 -> 221073903.1 | E48: =E28+E32+E38+E42+E47 -> 226772432.5 | F48: =F28+F32+F38+F42+F47 -> 244706177 | G48: 245338601 | H48: 245338601 | I48: 260944811 | J48: 271568339 | K48: 283651171
A49: =result -> Surplus/(Deficit) for the year | C49: =C25-C48 -> 30069198.8 | D49: =D25-D48 -> 81466579.14 | E49: 32501979.64 | F49: 58022079 | G49: 57716936 | H49: 57716936 | I49: 72380343 | J49: 65569712 | K49: 53279584
A50: =head27a -> References
A51: 1. Government Finance Statistics Functions and Sub-functions are standardised to assist the compilation of national and international accounts for comparison purposes
A52: 2. Total Revenue by functional classification must reconcile to Total Operating Revenue shown in Budgeted Financial Performance (revenue and expenditure)
A53: 3. Total Expenditure by Functional Classification must reconcile to Total Operating Expenditure shown in Budgeted Financial Performance (revenue and expenditure)
A54: 4. All amounts must be classified under a functional classification . The GFS function 'Other' is only for Abbatoirs, Air Transport, Forestry, Licensing and Regulation, Markets and Tourism - and if used must be supported by footnotes. Nothing else may be placed under 'Other'. Assign associate share to relevant classification.
A57: check oprev balance | C57: =C25-'A4-FinPerf RE'!C32 -> 33909773.81 | D57: =D25-'A4-FinPerf RE'!D32 -> 46262594.25 | E57: =E25-'A4-FinPerf RE'!E32 -> 43524577.83 | F57: =F25-'A4-FinPerf RE'!F32 -> 37802400 | G57: =G25-'A4-FinPerf RE'!G32 -> 40418843 | H57: =H25-'A4-FinPerf RE'!H32 -> 40418843 | I57: =I25-'A4-FinPerf RE'!I32 -> 99846040.87 | J57: =J25-'A4-FinPerf RE'!J32 -> 62361247 | K57: =K25-'A4-FinPerf RE'!K32 -> 51301654
A58: check opexp balance | C58: =C48-'A4-FinPerf RE'!C47 -> 2813793.73 | D58: =D48-'A4-FinPerf RE'!D47 -> 3109787.22 | E58: =E48-'A4-FinPerf RE'!E47 -> 4774270.57 | F58: =F48-'A4-FinPerf RE'!F47 -> 0 | G58: =G48-'A4-FinPerf RE'!G47 -> 0 | H58: =H48-'A4-FinPerf RE'!H47 -> 0 | I58: =I48-'A4-FinPerf RE'!J47 -> 0 | J58: =J48-'A4-FinPerf RE'!K47 -> 0 | K58: =K48-'A4-FinPerf RE'!L47 -> 0

Sheet A2A
A1: =muni&" - "&Approve3 -> LIM353 Molemole - Table A2 Budgeted Financial Performance (revenue and expenditure by functional classification)
A2: ="Functional Classification "&desc -> Functional Classification Description | B2: =head27 -> Ref | C2: =head1b -> 2019/20 | D2: =head1A -> 2020/21 | E2: =Head1 -> 2021/22 | F2: =Head2 -> Current Year 2022/23 | I2: =Head3 -> 2023/24 Medium Term Revenue & Expenditure Framework
A3: R thousand | B3: 1 | C3: =Head5 -> Audited Outcome | D3: =Head5 -> Audited Outcome | E3: =Head5 -> Audited Outcome | F3: =Head6 -> Original Budget | G3: =Head7 -> Adjusted Budget | H3: =Head8 -> Full Year Forecast | I3: =Head9 -> Budget Year 2023/24 | J3: =Head10 -> Budget Year +1 2024/25 | K3: =Head11 -> Budget Year +2 2025/26
A4: Revenue - Functional
A5: Municipal governance and administration | C5: =C6+C9+C23 -> 167736344.2 | D5: 235257470.5 | E5: 194084103.3 | F5: 224444747 | G5: 222810672 | H5: 222810672 | I5: 238676209 | J5: 249018650 | K5: 244778883
A6: Executive and council | C6: =SUM(C7:C8) -> 0 | D6: =SUM(D7:D8) -> 12150 | E6: 12550 | F6: 0 | G6: 0 | H6: 0 | I6: 0 | J6: 0 | K6: 0
A7: Mayor and Council | C7: 0 | D7: 12150 | E7: 12550 | F7: 0 | G7: 0 | H7: 0 | I7: 0 | J7: 0 | K7: 0
A8: Municipal Manager, Town Secretary and Chief Executive | C8: 0 | D8: 0 | E8: 0 | F8: 0 | G8: 0 | H8: 0 | I8: 0 | J8: 0 | K8: 0
A9: Finance and administration | C9: =SUM(C10:C22) -> 167736344.2 | D9: 235245320.5 | E9: 194071553.3 | F9: 224444747 | G9: 222810672 | H9: 222810672 | I9: 238676209 | J9: 249018650 | K9: 244778883
A10: Administrative and Corporate Support | C10: 165494796 | D10: 232590492.6 | E10: 189149214.8 | F10: 221179812 | G10: 213022652 | H10: 213022652 | I10: 227612006 | J10: 239910018 | K10: 235237533
A11: Asset Management
A12: Finance | C12: 1759035.19 | D12: 2574466.45 | E12: 4743707.16 | F12: 3032447 | G12: 8915532 | H12: 8915532 | I12: 10820090 | J12: 8852313 | K12: 9272215
A13: Fleet Management
A14: Human Resources | C14: 482513.02 | D14: 80361.4 | E14: 178631.25 | F14: 232488 | G14: 872488 | H14: 872488 | I14: 244113 | J14: 256319 | K14: 269135
A15: Information Technology | C15: 0 | D15: 0 | E15: 0 | F15: 0 | G15: 0 | H15: 0 | I15: 0 | J15: 0 | K15: 0
A16: Legal Services | C16: 0 | D16: 0 | E16: 0 | F16: 0 | G16: 0 | H16: 0 | I16: 0 | J16: 0 | K16: 0
A17: Marketing, Customer Relations, Publicity and Media Co-ordination
A18: Property Services
A19: Risk Management | C19: 0 | D19: 0 | E19: 0 | F19: 0 | G19: 0 | H19: 0 | I19: 0 | J19: 0 | K19: 0
A20: Security Services
A21: Supply Chain Management | C21: 0 | D21: 0 | E21: 0 | F21: 0 | G21: 0 | H21: 0 | I21: 0 | J21: 0 | K21: 0
A22: Valuation Service
A23: Internal audit | C23: =SUM(C24:C24) -> 0 | D23: 0 | E23: 0 | F23: 0 | G23: 0 | H23: 0 | I23: 0 | J23: 0 | K23: 0
A24: Governance Function | C24: 0 | D24: 0 | E24: 0 | F24: 0 | G24: 0 | H24: 0 | I24: 0 | J24: 0 | K24: 0
A25: Community and public safety | C25: =C26+C48+C54+C63+C66 -> 5412608.88 | D25: 8107750.62 | E25: 7492994.27 | F25: 11114485 | G25: 10444742 | H25: 10444742 | I25: 15207405 | J25: 14687829 | K25: 15422220
A26: Community and social services | C26: =SUM(C27:C47) -> 1174268.89 | D26: =SUM(D27:D47) -> 2515686.28 | E26: 1425769.56 | F26: 1421299 | G26: 1435598 | H26: 1435598 | I26: 1245612 | J26: 27943 | K26: 29340
A27: Aged Care
A28: Agricultural
A29: Animal Care and Diseases
A30: Cemeteries, Funeral Parlours and Crematoriums | C30: 7268.89 | D30: 18283.95 | E30: 5499.56 | F30: 14299 | G30: 28598 | H30: 28598 | I30: 26612 | J30: 27943 | K30: 29340
A31: Child Care Facilities
A32: Community Halls and Facilities | C32: 1167000 | D32: 2497402.33 | E32: 1420270 | F32: 1407000 | G32: 1407000 | H32: 1407000 | I32: 1219000 | J32: 0 | K32: 0
A33: Consumer Protection
A34: Cultural Matters
A35: Disaster Management
A36: Education
A37: Indigenous and Customary Law
A38: Industrial Promotion
A39: Language Policy
A40: Libraries and Archives | C40: 0 | D40: 0 | E40: 0 | F40: 0 | G40: 0 | H40: 0 | I40: 0 | J40: 0 | K40: 0
A41: Literacy Programmes
A42: Media Services
A43: Museums and Art Galleries
A44: Population Development
A45: Provincial Cultural Matters
A46: Theatres
A47: Zoo's
A48: Sport and recreation | C48: =SUM(C49:C53) -> 211716.96 | D48: =SUM(D49:D53) -> 214680.5 | E48: 347184.71 | F48: 269991 | G48: 269991 | H48: 269991 | I48: 249544 | J48: 262023 | K48: 275124
A49: Beaches and Jetties
A50: Casinos, Racing, Gambling, Wagering
A51: Community Parks (including Nurseries)
A52: Recreational Facilities | C52: 211716.96 | D52: 214680.5 | E52: 347184.71 | F52: 269991 | G52: 269991 | H52: 269991 | I52: 249544 | J52: 262023 | K52: 275124
A53: Sports Grounds and Stadiums
A54: Public safety | C54: =SUM(C55:C62) -> 4026623.03 | D54: 5377383.84 | E54: 5720040 | F54: 9423195 | G54: 8739153 | H54: 8739153 | I54: 13712249 | J54: 14397863 | K54: 15117756
A55: Civil Defence
A56: Cleansing
A57: Control of Public Nuisances
A58: Fencing and Fences
A59: Fire Fighting and Protection
A60: Licensing and Control of Animals
A61: Police Forces, Traffic and Street Parking Control | C61: 4026623.03 | D61: 5377383.84 | E61: 5720040 | F61: 9423195 | G61: 8739153 | H61: 8739153 | I61: 13712249 | J61: 14397863 | K61: 15117756
A62: Pounds
A63: Housing | C63: =SUM(C64:C65) -> 0 | D63: =SUM(D64:D65) -> 0 | E63: 0 | F63: 0 | G63: 0 | H63: 0 | I63: 0 | J63: 0 | K63: 0
A64: Housing
A65: Informal Settlements
A66: Health | C66: =SUM(C67:C73) -> 0 | D66: =SUM(D67:D73) -> 0 | E66: 0 | F66: 0 | G66: 0 | H66: 0 | I66: 0 | J66: 0 | K66: 0
A67: Ambulance
A68: Health Services
A69: Laboratory Services
A70: Food Control
A71: Health Surveillance and Prevention of Communicable Diseases including immunizations
A72: Vector Control
A73: Chemical Safety
A74: Economic and environmental services | C74: =C75+C86+C91 -> 35739049.46 | D74: 35537755.33 | E74: 37074206.41 | F74: 39954954 | G74: 39969610 | H74: 39969610 | I74: 41607136 | J74: 43382845 | K74: 45232938
A75: Planning and development | C75: =SUM(C76:C85) -> 35739049.46 | D75: =SUM(D76:D85) -> 35537755.33 | E75: 37074206.41 | F75: 39954954 | G75: 39969610 | H75: 39969610 | I75: 41607136 | J75: 43382845 | K75: 45232938
A76: Billboards
A77: Corporate Wide Strategic Planning (IDPs, LEDs) | C77: 43334.4 | D77: 40312.32 | E77: 40312.32 | F77: 38578 | G77: 43234 | H77: 43234 | I77: 58696 | J77: 61631 | K77: 64713
A78: Central City Improvement District
A79: Development Facilitation
A80: Economic Development/Planning | C80: 0 | D80: 0 | E80: 0 | F80: 0 | G80: 0 | H80: 0 | I80: 0 | J80: 0 | K80: 0
A81: Regional Planning and Development
A82: Town Planning, Building Regulations and Enforcement, and City Engineer | C82: 34271.21 | D82: 14725.45 | E82: 42873.78 | F82: 124376 | G82: 134376 | H82: 134376 | I82: 95440 | J82: 100214 | K82: 105225
A83: Project Management Unit | C83: 35661443.85 | D83: 35482717.56 | E83: 36991020.31 | F83: 39792000 | G83: 39792000 | H83: 39792000 | I83: 41453000 | J83: 43221000 | K83: 45063000
A84: Provincial Planning
A85: Support to Local Municipalities
A86: Road transport | C86: =SUM(C87:C90) -> 0 | D86: 0 | E86: 0 | F86: 0 | G86: 0 | H86: 0 | I86: 0 | J86: 0 | K86: 0
A87: Public Transport
A88: Road and Traffic Regulation
A89: Roads | C89: 0 | D89: 0 | E89: 0 | F89: 0 | G89: 0 | H89: 0 | I89: 0 | J89: 0 | K89: 0
A90: Taxi Ranks
A91: Environmental protection | C91: =SUM(C92:C97) -> 0 | D91: =SUM(D92:D97) -> 0 | E91: 0 | F91: 0 | G91: 0 | H91: 0 | I91: 0 | J91: 0 | K91: 0
A92: Biodiversity and Landscape
A93: Coastal Protection
A94: Indigenous Forests
A95: Nature Conservation
A96: Pollution Control
A97: Soil Conservation
A98: Trading services | C98: =C99+C103+C107+C112 -> 11588284.95 | D98: =D99+D103+D107+D112 -> 23637505.82 | E98: 20623108.23 | F98: 27214070 | G98: 29830513 | H98: 29830513 | I98: 37834404 | J98: 30048727 | K98: =K99+K103+K107+K112 -> 31496714
A99: Energy sources | C99: =SUM(C100:C102) -> 8487575.06 | D99: =SUM(D100:D102) -> 19907231.84 | E99: 15799012.95 | F99: 23603514 | G99: 26219957 | H99: 26219957 | I99: 32143638 | J99: 24073421 | K99: 25222643
A100: Electricity | C100: 8487575.06 | D100: 19907231.84 | E100: 15799012.95 | F100: 23603514 | G100: 26219957 | H100: 26219957 | I100: 32143638 | J100: 24073421 | K100: 25222643
A101: Street Lighting and Signal Systems
A102: Nonelectric Energy
A103: Water management | C103: =SUM(C104:C106) -> 295708.09 | D103: =SUM(D104:D106) -> 328420.18 | E103: 742790.11 | F103: 459174 | G103: 459174 | H103: 459174 | I103: 68588 | J103: 72018 | K103: 75619
A104: Water Treatment
A105: Water Distribution | C105: 295708.09 | D105: 328420.18 | E105: 742790.11 | F105: 459174 | G105: 459174 | H105: 459174 | I105: 68588 | J105: 72018 | K105: 75619
A106: Water Storage
A107: Waste water management | C107: =SUM(C108:C111) -> 387682.44 | D107: =SUM(D108:D111) -> 519063.53 | E107: 1000000.01 | F107: 297178 | G107: 297178 | H107: 297178 | I107: 1612360 | J107: 1692978 | K107: 1777627
A108: Public Toilets
A109: Sewerage | C109: 387682.44 | D109: 519063.53 | E109: 0 | F109: 297178 | G109: 297178 | H109: 297178 | I109: 1612360 | J109: 1692978 | K109: 1777627
A110: Storm Water Management | C110: 0 | D110: 0 | E110: 1000000.01 | F110: 0 | G110: 0 | H110: 0 | I110: 0 | J110: 0 | K110: 0
A111: Waste Water Treatment
A112: Waste management | C112: =SUM(C113:C116) -> 2417319.36 | D112: =SUM(D113:D116) -> 2882790.27 | E112: 3081305.16 | F112: 2854204 | G112: 2854204 | H112: 2854204 | I112: 4009818 | J112: 4210310 | K112: 4420825
A113: Recycling
A114: Solid Waste Disposal (Landfill Sites)
A115: Solid Waste Removal | C115: 2417319.36 | D115: 2882790.27 | E115: 3081305.16 | F115: 2854204 | G115: 2854204 | H115: 2854204 | I115: 4009818 | J115: 4210310 | K115: 4420825
A116: Street Cleaning
A117: Other | C117: =SUM(C118:C123) -> 0 | D117: =SUM(D118:D123) -> 0 | E117: 0 | F117: 0 | G117: 0 | H117: 0 | I117: 0 | J117: 0 | K117: 0
A118: Abattoirs
A119: Air Transport
A120: Forestry
A121: Licensing and Regulation
A122: Markets
A123: Tourism
A124: ="Total "&A4 -> Total Revenue - Functional | B124: 2 | C124: =C5+C25+C74+C98+C117 -> 220476287.5 | D124: 302540482.2 | E124: 259274412.2 | F124: 302728256 | G124: 303055537 | H124: 303055537 | I124: 333325154 | J124: 337138051 | K124: 336930755
A126: Expenditure - Functional
A127: =A5 -> Municipal governance and administration | C127: =C128+C131+C145 -> 104833184.4 | D127: 126683499.4 | E127: 113125216 | F127: 129892136 | G127: 128906399 | H127: 128906399 | I127: 137329569 | J127: 142044089 | K127: 147666964
A128: Executive and council | C128: =SUM(C129:C130) -> 31093537.34 | D128: 36700574.25 | E128: 29927402.63 | F128: 34755552 | G128: 35398012 | H128: 35398012 | I128: 41558753 | J128: 43634283 | K128: 45813555
A129: Mayor and Council | C129: 23048968.57 | D129: 23126708.41 | E129: 22385990.3 | F129: 25512337 | G129: 26325397 | H129: 26325397 | I129: 31052567 | J129: 32602922 | K129: 34230771
A130: Municipal Manager, Town Secretary and Chief Executive | C130: 8044568.77 | D130: 13573865.84 | E130: 7541412.33 | F130: 9243215 | G130: 9072615 | H130: 9072615 | I130: 10506186 | J130: 11031361 | K130: 11582784
A131: Finance and administration | C131: =SUM(C132:C144) -> 67122887.57 | D131: 82852283.6 | E131: 76210869.39 | F131: 84977454 | G131: 83616398 | H131: 83616398 | I131: 83370340 | J131: 86234298 | K131: 89074124
A132: Administrative and Corporate Support | C132: 30767792.45 | D132: 34829740.87 | E132: 33870798.4 | F132: 35917320 | G132: 34910110 | H132: 34910110 | I132: 38007392 | J132: 39306344 | K132: 41364421
A133: Asset Management
A134: Finance | C134: 16518927.02 | D134: 27178349.86 | E134: 20189906.5 | F134: 22999646 | G134: 23253553 | H134: 23253553 | I134: 19092094 | J134: 20031725 | K134: 21018313
A135: Fleet Management
A136: Human Resources | C136: 7234551.76 | D136: 6525399.55 | E136: 6821595.17 | F136: 8474691 | G136: 9262767 | H136: 9262767 | I136: 6935834 | J136: 6649427 | K136: 5487248
A137: Information Technology | C137: 5297843.64 | D137: 6373679 | E137: 5771633.16 | F137: 7974647 | G137: 7254529 | H137: 7254529 | I137: 8308547 | J137: 8673985 | K137: 9057684
A138: Legal Services | C138: 1783687.83 | D138: 2156226.17 | E138: 2586336.34 | F138: 2915227 | G138: 2665038 | H138: 2665038 | I138: 2841480 | J138: 2983561 | K138: 3132738
A139: Marketing, Customer Relations, Publicity and Media Co-ordination
A140: Property Services
A141: Risk Management | C141: 1814194.98 | D141: 1514114.78 | E141: 2133926.54 | F141: 2272356 | G141: 1806317 | H141: 1806317 | I141: 1999670 | J141: 2099660 | K141: 2204644
A142: Security Services
A143: Supply Chain Management | C143: 3705889.89 | D143: 4274773.37 | E143: 4836673.28 | F143: 4423567 | G143: 4464084 | H143: 4464084 | I143: 6185323 | J143: 6489596 | K143: 6809076
A144: Valuation Service
A145: Internal audit | C145: =SUM(C146:C146) -> 6616759.45 | D145: 7130641.56 | E145: 6986944.01 | F145: 10159130 | G145: 9891989 | H145: 9891989 | I145: 12400476 | J145: 12175508 | K145: 12779285
A146: Governance Function | C146: 6616759.45 | D146: 7130641.56 | E146: 6986944.01 | F146: 10159130 | G146: 9891989 | H146: 9891989 | I146: 12400476 | J146: 12175508 | K146: 12779285
A147: Community and public safety | C147: =C148+C170+C176+C185+C188 -> 24511118.75 | D147: 25382535.16 | E147: 26057915.9 | F147: 29643597 | G147: 29077004 | H147: 29077004 | I147: 27845709 | J147: 34837539 | K147: 36579314
A148: Community and social services | C148: =SUM(C149:C169) -> 6220010.77 | D148: =SUM(D149:D169) -> 5328179.42 | E148: 5776656.52 | F148: 9334269 | G148: 7997577 | H148: 7997577 | I148: 8902341 | J148: 9347382 | K148: 9814652
A149: Aged Care
A150: Agricultural
A151: Animal Care and Diseases
A152: Cemeteries, Funeral Parlours and Crematoriums | C152: 1197154.18 | D152: 1242347.81 | E152: 1445039.55 | F152: 2567541 | G152: 1664903 | H152: 1664903 | I152: 1668593 | J152: 1752028 | K152: 1839632
A153: Child Care Facilities
A154: Community Halls and Facilities | C154: 4355559.43 | D154: 3561387.56 | E154: 3691722.41 | F154: 5265352 | G154: 4814795 | H154: 4814795 | I154: 5507227 | J154: 5782500 | K154: 6071525
A155: Consumer Protection
A156: Cultural Matters
A157: Disaster Management
A158: Education
A159: =A37 -> Indigenous and Customary Law
A160: Industrial Promotion
A161: Language Policy
A162: Libraries and Archives | C162: 667297.16 | D162: 524444.05 | E162: 639894.56 | F162: 1501376 | G162: 1517879 | H162: 1517879 | I162: 1726521 | J162: 1812854 | K162: 1903495
A163: Literacy Programmes
A164: Media Services
A165: Museums and Art Galleries
A166: Population Development
A167: Provincial Cultural Matters
A168: Theatres
A169: Zoo's
A170: Sport and recreation | C170: =SUM(C171:C175) -> 3281417.92 | D170: 3853917.1 | E170: 3896970.45 | F170: 3232103 | G170: 3185366 | H170: 3185366 | I170: 3723138 | J170: 3909308 | K170: 4104770
A171: Beaches and Jetties
A172: Casinos, Racing, Gambling, Wagering
A173: Community Parks (including Nurseries)
A174: Recreational Facilities | C174: 3281417.92 | D174: 3853917.1 | E174: 3896970.45 | F174: 3232103 | G174: 3185366 | H174: 3185366 | I174: 3723138 | J174: 3909308 | K174: 4104770
A175: Sports Grounds and Stadiums
A176: Public safety | C176: =SUM(C177:C184) -> 15009690.06 | D176: 16200438.64 | E176: 16384288.93 | F176: 17077225 | G176: 17894061 | H176: 17894061 | I176: 15220230 | J176: 21580849 | K176: 22659892
A177: Civil Defence
A178: Cleansing
A179: =A57 -> Control of Public Nuisances
A180: Fencing and Fences
A181: Fire Fighting and Protection
A182: Licensing and Control of Animals
A183: Police Forces, Traffic and Street Parking Control | C183: 15009690.06 | D183: 16200438.64 | E183: 16384288.93 | F183: 17077225 | G183: 17894061 | H183: 17894061 | I183: 15220230 | J183: 21580849 | K183: 22659892
A184: Pounds
A185: =A63 -> Housing | C185: =SUM(C186:C187) -> 0 | D185: 0 | E185: 0 | F185: 0 | G185: 0 | H185: 0 | I185: 0 | J185: 0 | K185: 0
A186: Housing
A187: Informal Settlements
A188: Health | C188: =SUM(C189:C195) -> 0 | D188: =SUM(D189:D195) -> 0 | E188: 0 | F188: 0 | G188: 0 | H188: 0 | I188: 0 | J188: 0 | K188: 0
A189: Ambulance
A190: Health Services
A191: Laboratory Services
A192: Food Control
A193: Health Surveillance and Prevention of Communicable Diseases including immunizations
A194: Vector Control
A195: Chemical Safety
A196: Economic and environmental services | C196: =C197+C208+C213 -> 12600212.85 | D196: 11221967.77 | E196: 14615072.91 | F196: 18063511 | G196: 25621059 | H196: 25621059 | I196: 29517703 | J196: 26402201 | K196: 27706160
A197: Planning and development | C197: =SUM(C198:C207) -> 9646016.62 | D197: =SUM(D198:D207) -> 9050448.45 | E197: 11058570.49 | F197: 14088931 | G197: 14947475 | H197: 14947475 | I197: 17502876 | J197: 13786732 | K197: 14460016
A198: Billboards
A199: Corporate Wide Strategic Planning (IDPs, LEDs) | C199: 3029998.72 | D199: 3205750.49 | E199: 2614432.09 | F199: 3232936 | G199: 2020201 | H199: 2020201 | I199: 5820965 | J199: 1930669 | K199: 2027203
A200: Central City Improvement District
A201: Development Facilitation
... 53 more rows

Sheet A3-FinPerf V
A1: =muni&" - "&Approve2 -> LIM353 Molemole - Table A3 Budgeted Financial Performance (revenue and expenditure by municipal vote)
A2: =Vdesc -> Vote Description | B2: =head27 -> Ref | C2: =head1b -> 2019/20 | D2: =head1A -> 2020/21 | E2: =Head1 -> 2021/22 | F2: =Head2 -> Current Year 2022/23 | I2: =Head3 -> 2023/24 Medium Term Revenue & Expenditure Framework | L2: =Head4 -> LTFS
A3: R thousand | C3: =Head5 -> Audited Outcome | D3: =Head5 -> Audited Outcome | E3: =Head5 -> Audited Outcome | F3: =Head6 -> Original Budget | G3: =Head7 -> Adjusted Budget | H3: =Head8 -> Full Year Forecast | I3: =Head9 -> Budget Year 2023/24 | J3: =Head10 -> Budget Year +1 2024/25 | K3: =Head11 -> Budget Year +2 2025/26 | L3: =Head12 -> Forecast 2026/27 | M3: =Head13 -> Forecast 2027/28 | N3: =Head14 -> Forecast 2028/29 | O3: =Head15 -> Forecast 2029/30 | P3: =Head16 -> Forecast 2030/31 | Q3: =Head17 -> Forecast 2031/32 | R3: =Head18 -> Forecast 2032/33 | S3: =Head19 -> Forecast 2033/34 | T3: =Head20 -> Forecast 2034/35 | U3: =Head21 -> Forecast 2035/36 | V3: =Head22 -> Forecast 2036/37 | W3: =Head23 -> Forecast 2037/38
A4: Revenue by Vote | B4: 1
A5: =A3A!A5 -> Vote 01 - Corporate Services | C5: =A3A!C5 -> 577474.54 | D5: =A3A!D5 -> 147701.19 | E5: =A3A!E5 -> 274367.35 | F5: =A3A!F5 -> 395442 | G5: =A3A!G5 -> 1050098 | H5: =A3A!H5 -> 1050098 | I5: =A3A!I5 -> 398249 | J5: =A3A!J5 -> 418164 | K5: =A3A!K5 -> 439073
A6: =A3A!A14 -> Vote 02 - Municipal Manager | C6: =A3A!C14 -> 0 | D6: =A3A!D14 -> 0 | E6: =A3A!E14 -> 0 | F6: =A3A!F14 -> 0 | G6: =A3A!G14 -> 0 | H6: =A3A!H14 -> 0 | I6: =A3A!I14 -> 0 | J6: =A3A!J14 -> 0 | K6: =A3A!K14 -> 0
A7: =A3A!A20 -> Vote 03 - Mayors Office | C7: =A3A!C20 -> 0 | D7: =A3A!D20 -> 0 | E7: =A3A!E20 -> 0 | F7: =A3A!F20 -> 0 | G7: =A3A!G20 -> 0 | H7: =A3A!H20 -> 0 | I7: =A3A!I20 -> 0 | J7: =A3A!J20 -> 0 | K7: =A3A!K20 -> 0
A8: =A3A!A26 -> Vote 04 - Budget And Treasury | C8: =A3A!C26 -> 167236475.3 | D8: =A3A!D26 -> 235164807.1 | E8: =A3A!E26 -> 193892922 | F8: =A3A!F26 -> 224212259 | G8: =A3A!G26 -> 221938184 | H8: =A3A!H26 -> 221938184 | I8: =A3A!I26 -> 238432096 | J8: =A3A!J26 -> 248762331 | K8: =A3A!K26 -> 244509748
A9: =A3A!A34 -> Vote 05 - Community Services | C9: =A3A!C34 -> 7829928.24 | D9: =A3A!D34 -> 10990540.89 | E9: =A3A!E34 -> 10574299.43 | F9: =A3A!F34 -> 13968689 | G9: =A3A!G34 -> 13298946 | H9: =A3A!H34 -> 13298946 | I9: =A3A!I34 -> 19217223 | J9: =A3A!J34 -> 18898139 | K9: =A3A!K34 -> 19843045
A10: =A3A!A42 -> Vote 06 - Technical Services | C10: =A3A!C42 -> 44832409.44 | D10: =A3A!D42 -> 56237433.11 | E10: =A3A!E42 -> 54532823.38 | F10: =A3A!F42 -> 64151866 | G10: =A3A!G42 -> 66768309 | H10: =A3A!H42 -> 66768309 | I10: =A3A!I42 -> 75277586 | J10: =A3A!J42 -> 69059417 | K10: =A3A!K42 -> 72138889
A11: ='Org structure'!A8 -> Vote 07 - | C11: =A3A!C51 -> 0 | D11: =A3A!D51 -> 0 | E11: =A3A!E51 -> 0 | F11: =A3A!F51 -> 0 | G11: =A3A!G51 -> 0 | H11: =A3A!H51 -> 0 | I11: =A3A!I51 -> 0 | J11: =A3A!J51 -> 0 | K11: =A3A!K51 -> 0
A12: ='Org structure'!A9 -> Vote 08 - | C12: =A3A!C52 -> 0 | D12: =A3A!D52 -> 0 | E12: =A3A!E52 -> 0 | F12: =A3A!F52 -> 0 | G12: =A3A!G52 -> 0 | H12: =A3A!H52 -> 0 | I12: =A3A!I52 -> 0 | J12: =A3A!J52 -> 0 | K12: =A3A!K52 -> 0
A13: ='Org structure'!A10 -> Vote 09 - | C13: =A3A!C53 -> 0 | D13: =A3A!D53 -> 0 | E13: =A3A!E53 -> 0 | F13: =A3A!F53 -> 0 | G13: =A3A!G53 -> 0 | H13: =A3A!H53 -> 0 | I13: =A3A!I53 -> 0 | J13: =A3A!J53 -> 0 | K13: =A3A!K53 -> 0
A14: ='Org structure'!A11 -> Vote 10 - | C14: =A3A!C54 -> 0 | D14: =A3A!D54 -> 0 | E14: =A3A!E54 -> 0 | F14: =A3A!F54 -> 0 | G14: =A3A!G54 -> 0 | H14: =A3A!H54 -> 0 | I14: =A3A!I54 -> 0 | J14: =A3A!J54 -> 0 | K14: =A3A!K54 -> 0
A15: ='Org structure'!A12 -> Vote 11 - | C15: =A3A!C55 -> 0 | D15: =A3A!D55 -> 0 | E15: =A3A!E55 -> 0 | F15: =A3A!F55 -> 0 | G15: =A3A!G55 -> 0 | H15: =A3A!H55 -> 0 | I15: =A3A!I55 -> 0 | J15: =A3A!J55 -> 0 | K15: =A3A!K55 -> 0 | L15: =A5A!#REF! -> 
A16: ='Org structure'!A13 -> Vote 12 - | C16: =A3A!C56 -> 0 | D16: =A3A!D56 -> 0 | E16: =A3A!E56 -> 0 | F16: =A3A!F56 -> 0 | G16: =A3A!G56 -> 0 | H16: =A3A!H56 -> 0 | I16: =A3A!I56 -> 0 | J16: =A3A!J56 -> 0 | K16: =A3A!K56 -> 0 | L16: =A5A!#REF! -> 
A17: ='Org structure'!A14 -> Vote 13 - | C17: =A3A!C57 -> 0 | D17: =A3A!D57 -> 0 | E17: =A3A!E57 -> 0 | F17: =A3A!F57 -> 0 | G17: =A3A!G57 -> 0 | H17: =A3A!H57 -> 0 | I17: =A3A!I57 -> 0 | J17: =A3A!J57 -> 0 | K17: =A3A!K57 -> 0 | L17: =A5A!#REF! -> 
A18: ='Org structure'!A15 -> Vote 14 - | C18: =A3A!C58 -> 0 | D18: =A3A!D58 -> 0 | E18: =A3A!E58 -> 0 | F18: =A3A!F58 -> 0 | G18: =A3A!G58 -> 0 | H18: =A3A!H58 -> 0 | I18: =A3A!I58 -> 0 | J18: =A3A!J58 -> 0 | K18: =A3A!K58 -> 0 | L18: =A5A!#REF! -> 
A19: ='Org structure'!A16 -> Vote 15 - Other | C19: =A3A!C59 -> 0 | D19: =A3A!D59 -> 0 | E19: =A3A!E59 -> 0 | F19: =A3A!F59 -> 0 | G19: =A3A!G59 -> 0 | H19: =A3A!H59 -> 0 | I19: =A3A!I59 -> 0 | J19: =A3A!J59 -> 0 | K19: =A3A!K59 -> 0 | L19: =A5A!#REF! -> 
A20: Total Revenue by Vote | B20: 2 | C20: =SUM(C5:C19) -> 220476287.5 | D20: =SUM(D5:D19) -> 302540482.2 | E20: 259274412.2 | F20: 302728256 | G20: 303055537 | H20: 303055537 | I20: 333325154 | J20: 337138051 | K20: 336930755
A22: Expenditure by Vote to be appropriated | B22: 1
A23: =A3A!A63 -> Vote 01 - Corporate Services | C23: =A3A!C63 -> 49067395.36 | D23: =A3A!D63 -> 53987525.21 | E23: =A3A!E63 -> 52407943.39 | F23: =A3A!F63 -> 58766573 | G23: =A3A!G63 -> 57382132 | H23: =A3A!H63 -> 57382132 | I23: =A3A!I63 -> 60931854 | J23: =A3A!J63 -> 58416879 | K23: =A3A!K63 -> 59794877
A24: =A3A!A72 -> Vote 02 - Municipal Manager | C24: =A3A!C72 -> 18259211.03 | D24: =A3A!D72 -> 24374848.35 | E24: =A3A!E72 -> 19248619.22 | F24: =A3A!F72 -> 24589928 | G24: =A3A!G72 -> 23435959 | H24: =A3A!H72 -> 23435959 | I24: =A3A!I72 -> 27747812 | J24: =A3A!J72 -> 28290090 | K24: =A3A!K72 -> 29699451
A25: =A3A!A78 -> Vote 03 - Mayors Office | C25: =A3A!C78 -> 16741560.77 | D25: =A3A!D78 -> 16496856.64 | E25: =A3A!E78 -> 16246717.87 | F25: =A3A!F78 -> 17356785 | G25: =A3A!G78 -> 17098551 | H25: =A3A!H78 -> 17098551 | I25: =A3A!I78 -> 22398840 | J25: =A3A!J78 -> 23516502 | K25: =A3A!K78 -> 24690027
A26: =A3A!A84 -> Vote 04 - Budget And Treasury | C26: =A3A!C84 -> 27610389.72 | D26: =A3A!D84 -> 38992258.39 | E26: =A3A!E84 -> 34038726.72 | F26: =A3A!F84 -> 37390478 | G26: =A3A!G84 -> 37231132 | H26: =A3A!H84 -> 37231132 | I26: =A3A!I84 -> 36376878 | J26: =A3A!J84 -> 37876662 | K26: =A3A!K84 -> 39841353
A27: =A3A!A92 -> Vote 05 - Community Services | C27: =A3A!C92 -> 30861910.9 | D27: =A3A!D92 -> 31835099.23 | E27: =A3A!E92 -> 32791005.86 | F27: =A3A!F92 -> 39864307 | G27: =A3A!G92 -> 39004643 | H27: =A3A!H92 -> 39004643 | I27: =A3A!I92 -> 38610826 | J27: =A3A!J92 -> 44860968 | K27: =A3A!K92 -> 47103914
A28: =A3A!A100 -> Vote 06 - Technical Services | C28: =A3A!C100 -> 47866620.94 | D28: =A3A!D100 -> 55387315.29 | E28: =A3A!E100 -> 72039419.47 | F28: =A3A!F100 -> 66738106 | G28: =A3A!G100 -> 71186184 | H28: =A3A!H100 -> 71186184 | I28: =A3A!I100 -> 74878601 | J28: =A3A!J100 -> 78607238 | K28: =A3A!K100 -> 82521549
A29: ='Org structure'!A8 -> Vote 07 - | C29: =A3A!C109 -> 0 | D29: =A3A!D109 -> 0 | E29: =A3A!E109 -> 0 | F29: =A3A!F109 -> 0 | G29: =A3A!G109 -> 0 | H29: =A3A!H109 -> 0 | I29: =A3A!I109 -> 0 | J29: =A3A!J109 -> 0 | K29: =A3A!K109 -> 0
A30: ='Org structure'!A9 -> Vote 08 - | C30: =A3A!C110 -> 0 | D30: =A3A!D110 -> 0 | E30: =A3A!E110 -> 0 | F30: =A3A!F110 -> 0 | G30: =A3A!G110 -> 0 | H30: =A3A!H110 -> 0 | I30: =A3A!I110 -> 0 | J30: =A3A!J110 -> 0 | K30: =A3A!K110 -> 0
A31: ='Org structure'!A10 -> Vote 09 - | C31: =A3A!C111 -> 0 | D31: =A3A!D111 -> 0 | E31: =A3A!E111 -> 0 | F31: =A3A!F111 -> 0 | G31: =A3A!G111 -> 0 | H31: =A3A!H111 -> 0 | I31: =A3A!I111 -> 0 | J31: =A3A!J111 -> 0 | K31: =A3A!K111 -> 0
A32: ='Org structure'!A11 -> Vote 10 - | C32: =A3A!C112 -> 0 | D32: =A3A!D112 -> 0 | E32: =A3A!E112 -> 0 | F32: =A3A!F112 -> 0 | G32: =A3A!G112 -> 0 | H32: =A3A!H112 -> 0 | I32: =A3A!I112 -> 0 | J32: =A3A!J112 -> 0 | K32: =A3A!K112 -> 0
A33: ='Org structure'!A12 -> Vote 11 - | C33: =A3A!C113 -> 0 | D33: =A3A!D113 -> 0 | E33: =A3A!E113 -> 0 | F33: =A3A!F113 -> 0 | G33: =A3A!G113 -> 0 | H33: =A3A!H113 -> 0 | I33: =A3A!I113 -> 0 | J33: =A3A!J113 -> 0 | K33: =A3A!K113 -> 0 | L33: =A3A!#REF! -> 
A34: ='Org structure'!A13 -> Vote 12 - | C34: =A3A!C114 -> 0 | D34: =A3A!D114 -> 0 | E34: =A3A!E114 -> 0 | F34: =A3A!F114 -> 0 | G34: =A3A!G114 -> 0 | H34: =A3A!H114 -> 0 | I34: =A3A!I114 -> 0 | J34: =A3A!J114 -> 0 | K34: =A3A!K114 -> 0 | L34: =A3A!#REF! -> 
A35: ='Org structure'!A14 -> Vote 13 - | C35: =A3A!C115 -> 0 | D35: =A3A!D115 -> 0 | E35: =A3A!E115 -> 0 | F35: =A3A!F115 -> 0 | G35: =A3A!G115 -> 0 | H35: =A3A!H115 -> 0 | I35: =A3A!I115 -> 0 | J35: =A3A!J115 -> 0 | K35: =A3A!K115 -> 0 | L35: =A3A!#REF! -> 
A36: ='Org structure'!A15 -> Vote 14 - | C36: =A3A!C116 -> 0 | D36: =A3A!D116 -> 0 | E36: =A3A!E116 -> 0 | F36: =A3A!F116 -> 0 | G36: =A3A!G116 -> 0 | H36: =A3A!H116 -> 0 | I36: =A3A!I116 -> 0 | J36: =A3A!J116 -> 0 | K36: =A3A!K116 -> 0 | L36: =A3A!#REF! -> 
A37: ='Org structure'!A16 -> Vote 15 - Other | C37: =A3A!C117 -> 0 | D37: =A3A!D117 -> 0 | E37: =A3A!E117 -> 0 | F37: =A3A!F117 -> 0 | G37: =A3A!G117 -> 0 | H37: =A3A!H117 -> 0 | I37: =A3A!I117 -> 0 | J37: =A3A!J117 -> 0 | K37: =A3A!K117 -> 0 | L37: =A3A!#REF! -> 
A38: Total Expenditure by Vote | B38: 2 | C38: =SUM(C23:C37) -> 190407088.7 | D38: =SUM(D23:D37) -> 221073903.1 | E38: 226772432.5 | F38: 244706177 | G38: 245338601 | H38: 245338601 | I38: 260944811 | J38: 271568339 | K38: 283651171 | L38: =SUM(L23:L29) -> 0 | M38: 0 | N38: 0 | O38: 0 | P38: 0 | Q38: 0 | R38: 0 | S38: 0 | T38: 0 | U38: 0 | V38: 0 | W38: 0
A39: =result -> Surplus/(Deficit) for the year | B39: 2 | C39: =C20-C38 -> 30069198.8 | D39: 81466579.14 | E39: 32501979.64 | F39: 58022079 | G39: 57716936 | H39: 57716936 | I39: 72380343 | J39: 65569712 | K39: 53279584 | L39: 0 | M39: 0 | N39: 0 | O39: 0 | P39: 0 | Q39: 0 | R39: 0 | S39: 0 | T39: 0 | U39: 0 | V39: 0 | W39: 0
A40: =head27a -> References
A41: 1. Insert 'Vote'; e.g. department, if different to functional classification structure
A42: 2. Must reconcile to Budgeted Financial Performance (revenue and expenditure)
A43: 3. Assign share in 'associate' to relevant Vote
A45: ="check "&A39 -> check Surplus/(Deficit) for the year | C45: =C39-A3A!C120 -> 0 | D45: =D39-A3A!D120 -> 0 | E45: =E39-A3A!E120 -> 0 | F45: =F39-A3A!F120 -> 0 | G45: =G39-A3A!G120 -> 0 | H45: =H39-A3A!H120 -> 0 | I45: =I39-A3A!I120 -> 0 | J45: =J39-A3A!J120 -> 0 | K45: =K39-A3A!K120 -> 0

Sheet A3A
A1: =muni&" - "&Approve2&"A" -> LIM353 Molemole - Table A3 Budgeted Financial Performance (revenue and expenditure by municipal vote)A
A2: =Vdesc -> Vote Description | B2: =head27 -> Ref | C2: =head1b -> 2019/20 | D2: =head1A -> 2020/21 | E2: =Head1 -> 2021/22 | F2: =Head2 -> Current Year 2022/23 | I2: =Head3 -> 2023/24 Medium Term Revenue & Expenditure Framework | L2: =Head4 -> LTFS
A3: R thousand | C3: =Head5 -> Audited Outcome | D3: =Head5 -> Audited Outcome | E3: =Head5 -> Audited Outcome | F3: =Head6 -> Original Budget | G3: =Head7 -> Adjusted Budget | H3: =Head8 -> Full Year Forecast | I3: =Head9 -> Budget Year 2023/24 | J3: =Head10 -> Budget Year +1 2024/25 | K3: =Head11 -> Budget Year +2 2025/26 | L3: =Head12 -> Forecast 2026/27 | M3: =Head13 -> Forecast 2027/28 | N3: =Head14 -> Forecast 2028/29 | O3: =Head15 -> Forecast 2029/30 | P3: =Head16 -> Forecast 2030/31 | Q3: =Head17 -> Forecast 2031/32 | R3: =Head18 -> Forecast 2032/33 | S3: =Head19 -> Forecast 2033/34 | T3: =Head20 -> Forecast 2034/35 | U3: =Head21 -> Forecast 2035/36 | V3: =Head22 -> Forecast 2036/37 | W3: =Head23 -> Forecast 2037/38
A4: Revenue by Vote | B4: 1
A5: ='Org structure'!A2 -> Vote 01 - Corporate Services | C5: =SUM(C6:C13) -> 577474.54 | D5: 147701.19 | E5: 274367.35 | F5: 395442 | G5: 1050098 | H5: 1050098 | I5: 398249 | J5: 418164 | K5: 439073
A6: ='Org structure'!E3 -> 01.1 - Corporate Services Admin | C6: 17355.91 | D6: 152.02 | E6: 0 | F6: 0 | G6: 0 | H6: 0 | I6: 0 | J6: 0 | K6: 0
A7: ='Org structure'!E4 -> 01.2 - Human Resources | C7: 482513.02 | D7: 80361.4 | E7: 178631.25 | F7: 232488 | G7: 872488 | H7: 872488 | I7: 244113 | J7: 256319 | K7: 269135
A8: ='Org structure'!E5 -> 01.3 - Information Technology Services | C8: 0 | D8: 0 | E8: 0 | F8: 0 | G8: 0 | H8: 0 | I8: 0 | J8: 0 | K8: 0
A9: ='Org structure'!E6 -> 01.4 - Council Support | C9: 0 | D9: 12150 | E9: 12550 | F9: 0 | G9: 0 | H9: 0 | I9: 0 | J9: 0 | K9: 0
A10: ='Org structure'!E7 -> 01.5 - Local Economic Development | C10: 0 | D10: 0 | E10: 0 | F10: 0 | G10: 0 | H10: 0 | I10: 0 | J10: 0 | K10: 0
A11: ='Org structure'!E8 -> 01.6 - Municipal Planning Idp | C11: 43334.4 | D11: 40312.32 | E11: 40312.32 | F11: 38578 | G11: 43234 | H11: 43234 | I11: 58696 | J11: 61631 | K11: 64713
A12: ='Org structure'!E9 -> 01.7 - Town & Regional Planning | C12: 34271.21 | D12: 14725.45 | E12: 42873.78 | F12: 124376 | G12: 134376 | H12: 134376 | I12: 95440 | J12: 100214 | K12: 105225
A13: ='Org structure'!E10 -> 01.8 - Led Administration | C13: 0 | D13: 0 | E13: 0 | F13: 0 | G13: 0 | H13: 0 | I13: 0 | J13: 0 | K13: 0
A14: ='Org structure'!A3 -> Vote 02 - Municipal Manager | C14: =SUM(C15:C19) -> 0 | D14: 0 | E14: 0 | F14: 0 | G14: 0 | H14: 0 | I14: 0 | J14: 0 | K14: 0
A15: ='Org structure'!E12 -> 02.1 - Municipal Manager Admin | C15: 0 | D15: 0 | E15: 0 | F15: 0 | G15: 0 | H15: 0 | I15: 0 | J15: 0 | K15: 0
A16: ='Org structure'!E13 -> 02.2 - Legal Services | C16: 0 | D16: 0 | E16: 0 | F16: 0 | G16: 0 | H16: 0 | I16: 0 | J16: 0 | K16: 0
A17: ='Org structure'!E14 -> 02.3 - Political Office Beares | C17: 0 | D17: 0 | E17: 0 | F17: 0 | G17: 0 | H17: 0 | I17: 0 | J17: 0 | K17: 0
A18: ='Org structure'!E15 -> 02.4 - Pms | C18: 0 | D18: 0 | E18: 0 | F18: 0 | G18: 0 | H18: 0 | I18: 0 | J18: 0 | K18: 0
A19: ='Org structure'!E16 -> 02.5 - Internal Audit | C19: 0 | D19: 0 | E19: 0 | F19: 0 | G19: 0 | H19: 0 | I19: 0 | J19: 0 | K19: 0
A20: ='Org structure'!A4 -> Vote 03 - Mayors Office | C20: =SUM(C21:C25) -> 0 | D20: 0 | E20: 0 | F20: 0 | G20: 0 | H20: 0 | I20: 0 | J20: 0 | K20: 0
A21: ='Org structure'!E18 -> 03.1 - Mayors Office Admin | C21: 0 | D21: 0 | E21: 0 | F21: 0 | G21: 0 | H21: 0 | I21: 0 | J21: 0 | K21: 0
A22: ='Org structure'!E19 -> 03.2 - Office Of The Speaker | C22: 0 | D22: 0 | E22: 0 | F22: 0 | G22: 0 | H22: 0 | I22: 0 | J22: 0 | K22: 0
A23: ='Org structure'!E20 -> 03.3 - Office Of The Chief Whip | C23: 0 | D23: 0 | E23: 0 | F23: 0 | G23: 0 | H23: 0 | I23: 0 | J23: 0 | K23: 0
A24: ='Org structure'!E21 -> 03.4 - Exco Members | C24: 0 | D24: 0 | E24: 0 | F24: 0 | G24: 0 | H24: 0 | I24: 0 | J24: 0 | K24: 0
A25: ='Org structure'!E22 -> 03.5 - Council General Administration | C25: 0 | D25: 0 | E25: 0 | F25: 0 | G25: 0 | H25: 0 | I25: 0 | J25: 0 | K25: 0
A26: ='Org structure'!A5 -> Vote 04 - Budget And Treasury | C26: =SUM(C27:C33) -> 167236475.3 | D26: 235164807.1 | E26: 193892922 | F26: 224212259 | G26: 221938184 | H26: 221938184 | I26: 238432096 | J26: 248762331 | K26: 244509748
A27: ='Org structure'!E24 -> 04.1 - Budget And Treasury Admin | C27: 165477440.1 | D27: 232590340.6 | E27: 189149214.8 | F27: 221179812 | G27: 213022652 | H27: 213022652 | I27: 227612006 | J27: 239910018 | K27: 235237533
A28: ='Org structure'!E25 -> 04.2 - Chief Financial Officer Admin | C28: 0 | D28: 0 | E28: 0 | F28: 0 | G28: 0 | H28: 0 | I28: 0 | J28: 0 | K28: 0
A29: ='Org structure'!E26 -> 04.3 - Budget & Reporting | C29: 0 | D29: 0 | E29: 0 | F29: 0 | G29: 0 | H29: 0 | I29: 0 | J29: 0 | K29: 0
A30: ='Org structure'!E27 -> 04.4 - Budget & Reporting | C30: 1729419.11 | D30: 2543772.73 | E30: 4708768.13 | F30: 3000000 | G30: 7750000 | H30: 7750000 | I30: 9600000 | J30: 7571218 | K30: 7927065
A31: ='Org structure'!E28 -> 04.5 - Revenue Management | C31: 29616.08 | D31: 30693.72 | E31: 34939.03 | F31: 32447 | G31: 1165532 | H31: 1165532 | I31: 1220090 | J31: 1281095 | K31: 1345150
A32: ='Org structure'!E29 -> 04.6 - Supply Chain Management | C32: 0 | D32: 0 | E32: 0 | F32: 0 | G32: 0 | H32: 0 | I32: 0 | J32: 0 | K32: 0
A33: ='Org structure'!E30 -> 04.7 - Expenditure | C33: 0 | D33: 0 | E33: 0 | F33: 0 | G33: 0 | H33: 0 | I33: 0 | J33: 0 | K33: 0
A34: ='Org structure'!A6 -> Vote 05 - Community Services | C34: =SUM(C35:C41) -> 7829928.24 | D34: 10990540.89 | E34: 10574299.43 | F34: 13968689 | G34: 13298946 | H34: 13298946 | I34: 19217223 | J34: 18898139 | K34: 19843045
A35: ='Org structure'!E32 -> 05.1 - Community Services Admin | C35: 1167000 | D35: 2497402.33 | E35: 1420270 | F35: 1407000 | G35: 1407000 | H35: 1407000 | I35: 1219000 | J35: 0 | K35: 0
A36: ='Org structure'!E33 -> 05.2 - Libraries | C36: 0 | D36: 0 | E36: 0 | F36: 0 | G36: 0 | H36: 0 | I36: 0 | J36: 0 | K36: 0
A37: ='Org structure'!E34 -> 05.3 - Sports Recreation & Social Amenitie | C37: 211716.96 | D37: 214680.5 | E37: 347184.71 | F37: 269991 | G37: 269991 | H37: 269991 | I37: 249544 | J37: 262023 | K37: 275124
A38: ='Org structure'!E35 -> 05.4 - Traffic Service | C38: 0 | D38: 0 | E38: 0 | F38: 0 | G38: 0 | H38: 0 | I38: 0 | J38: 0 | K38: 0
A39: ='Org structure'!E36 -> 05.5 - Traffic Service | C39: 4026623.03 | D39: 5377383.84 | E39: 5720040 | F39: 9423195 | G39: 8739153 | H39: 8739153 | I39: 13712249 | J39: 14397863 | K39: 15117756
A40: ='Org structure'!E37 -> 05.6 - Parks; Cemeteries | C40: 7268.89 | D40: 18283.95 | E40: 5499.56 | F40: 14299 | G40: 28598 | H40: 28598 | I40: 26612 | J40: 27943 | K40: 29340
A41: ='Org structure'!E38 -> 05.7 - Refuse | C41: 2417319.36 | D41: 2882790.27 | E41: 3081305.16 | F41: 2854204 | G41: 2854204 | H41: 2854204 | I41: 4009818 | J41: 4210310 | K41: 4420825
A42: ='Org structure'!A7 -> Vote 06 - Technical Services | C42: =SUM(C43:C50) -> 44832409.44 | D42: 56237433.11 | E42: 54532823.38 | F42: 64151866 | G42: 66768309 | H42: 66768309 | I42: 75277586 | J42: 69059417 | K42: 72138889
A43: ='Org structure'!E40 -> 06.1 - Mpac | C43: 0 | D43: 0 | E43: 0 | F43: 0 | G43: 0 | H43: 0 | I43: 0 | J43: 0 | K43: 0
A44: ='Org structure'!E41 -> 06.2 - Technical Services Admin | C44: 0 | D44: 0 | E44: 0 | F44: 0 | G44: 0 | H44: 0 | I44: 0 | J44: 0 | K44: 0
A45: ='Org structure'!E42 -> 06.3 - Techn Serv-Roads: Admin | C45: 0 | D45: 0 | E45: 0 | F45: 0 | G45: 0 | H45: 0 | I45: 0 | J45: 0 | K45: 0
A46: ='Org structure'!E43 -> 06.4 - Techn Serv-Stormwater: Admin | C46: 0 | D46: 0 | E46: 1000000.01 | F46: 0 | G46: 0 | H46: 0 | I46: 0 | J46: 0 | K46: 0
A47: ='Org structure'!E44 -> 06.5 - Project Management Unit | C47: 35661443.85 | D47: 35482717.56 | E47: 36991020.31 | F47: 39792000 | G47: 39792000 | H47: 39792000 | I47: 41453000 | J47: 43221000 | K47: 45063000
A48: ='Org structure'!E45 -> 06.6 - Electrical & Machinery | C48: 8487575.06 | D48: 19907231.84 | E48: 15799012.95 | F48: 23603514 | G48: 26219957 | H48: 26219957 | I48: 32143638 | J48: 24073421 | K48: 25222643
A49: ='Org structure'!E46 -> 06.7 - Water | C49: 295708.09 | D49: 328420.18 | E49: 742790.11 | F49: 459174 | G49: 459174 | H49: 459174 | I49: 68588 | J49: 72018 | K49: 75619
A50: ='Org structure'!E47 -> 06.8 - Sanitation | C50: 387682.44 | D50: 519063.53 | E50: 0 | F50: 297178 | G50: 297178 | H50: 297178 | I50: 1612360 | J50: 1692978 | K50: 1777627
A51: ='Org structure'!A8 -> Vote 07 - | C51: 0 | D51: 0 | E51: 0 | F51: 0 | G51: 0 | H51: 0 | I51: 0 | J51: 0 | K51: 0
A52: ='Org structure'!A9 -> Vote 08 - | C52: 0 | D52: 0 | E52: 0 | F52: 0 | G52: 0 | H52: 0 | I52: 0 | J52: 0 | K52: 0
A53: ='Org structure'!A10 -> Vote 09 - | C53: 0 | D53: 0 | E53: 0 | F53: 0 | G53: 0 | H53: 0 | I53: 0 | J53: 0 | K53: 0
A54: ='Org structure'!A11 -> Vote 10 - | C54: 0 | D54: 0 | E54: 0 | F54: 0 | G54: 0 | H54: 0 | I54: 0 | J54: 0 | K54: 0
A55: ='Org structure'!A12 -> Vote 11 - | C55: 0 | D55: 0 | E55: 0 | F55: 0 | G55: 0 | H55: 0 | I55: 0 | J55: 0 | K55: 0
A56: ='Org structure'!A13 -> Vote 12 - | C56: 0 | D56: 0 | E56: 0 | F56: 0 | G56: 0 | H56: 0 | I56: 0 | J56: 0 | K56: 0
A57: ='Org structure'!A14 -> Vote 13 - | C57: 0 | D57: 0 | E57: 0 | F57: 0 | G57: 0 | H57: 0 | I57: 0 | J57: 0 | K57: 0
A58: ='Org structure'!A15 -> Vote 14 - | C58: 0 | D58: 0 | E58: 0 | F58: 0 | G58: 0 | H58: 0 | I58: 0 | J58: 0 | K58: 0
A59: ='Org structure'!A16 -> Vote 15 - Other | C59: 0 | D59: 0 | E59: 0 | F59: 0 | G59: 0 | H59: 0 | I59: 0 | J59: 0 | K59: 0
A60: Total Revenue by Vote | B60: 2 | C60: =C5+C14+C20+C26+C34+C42+C51+C52+C53+C54+C55+C56+C57+C58+C59 -> 220476287.5 | D60: 302540482.2 | E60: 259274412.2 | F60: 302728256 | G60: 303055537 | H60: 303055537 | I60: 333325154 | J60: 337138051 | K60: 336930755 | L60: =SUM(#REF!) ->  | M60: =SUM(#REF!) ->  | N60: =SUM(#REF!) ->  | O60: =SUM(#REF!) ->  | P60: =SUM(#REF!) ->  | Q60: =SUM(#REF!) ->  | R60: =SUM(#REF!) ->  | S60: =SUM(#REF!) ->  | T60: =SUM(#REF!) ->  | U60: =SUM(#REF!) ->  | V60: =SUM(#REF!) ->  | W60: =SUM(#REF!) -> 
A62: Expenditure by Vote | B62: 1
A63: ='Org structure'!A2 -> Vote 01 - Corporate Services | C63: =SUM(C64:C71) -> 49067395.36 | D63: 53987525.21 | E63: 52407943.39 | F63: 58766573 | G63: 57382132 | H63: 57382132 | I63: 60931854 | J63: 58416879 | K63: 59794877
A64: ='Org structure'!E3 -> 01.1 - Corporate Services Admin | C64: 23259536.4 | D64: 27111648.32 | E64: 24792522.32 | F64: 25950055 | G64: 25396615 | H64: 25396615 | I64: 26907931 | J64: 27951003 | K64: 29350457
A65: ='Org structure'!E4 -> 01.2 - Human Resources | C65: 7234551.76 | D65: 6525399.55 | E65: 6821595.17 | F65: 8474691 | G65: 9262767 | H65: 9262767 | I65: 6935834 | J65: 6649427 | K65: 5487248
A66: ='Org structure'!E5 -> 01.3 - Information Technology Services | C66: 5297843.64 | D66: 6373679 | E66: 5771633.16 | F66: 7974647 | G66: 7254529 | H66: 7254529 | I66: 8308547 | J66: 8673985 | K66: 9057684
A67: ='Org structure'!E6 -> 01.4 - Council Support | C67: 6307407.8 | D67: 6629851.77 | E67: 6139272.43 | F67: 6584152 | G67: 7340344 | H67: 7340344 | I67: 5758923 | J67: 6046875 | K67: 6349221
A68: ='Org structure'!E7 -> 01.5 - Local Economic Development | C68: 1985744.53 | D68: 2212283.26 | E68: 4252264.53 | F68: 4072438 | G68: 3558084 | H68: 3558084 | I68: 4426463 | J68: 4253062 | K68: 4465614
A69: ='Org structure'!E8 -> 01.6 - Municipal Planning Idp | C69: 3029486.41 | D69: 3205750.49 | E69: 2570073.85 | F69: 2861414 | G69: 1871408 | H69: 1871408 | I69: 5820965 | J69: 1930669 | K69: 2027203
A70: ='Org structure'!E9 -> 01.7 - Town & Regional Planning | C70: 1952312.51 | D70: 1928912.82 | E70: 2016223.69 | F70: 2477654 | G70: 2549592 | H70: 2549592 | I70: 2773191 | J70: 2911858 | K70: 3057450
A71: ='Org structure'!E10 -> 01.8 - Led Administration | C71: 512.31 | D71: 0 | E71: 44358.24 | F71: 371522 | G71: 148793 | H71: 148793 | I71: 0 | J71: 0 | K71: 0
A72: ='Org structure'!A3 -> Vote 02 - Municipal Manager | C72: =SUM(C73:C77) -> 18259211.03 | D72: 24374848.35 | E72: 19248619.22 | F72: 24589928 | G72: 23435959 | H72: 23435959 | I72: 27747812 | J72: 28290090 | K72: 29699451
A73: ='Org structure'!E12 -> 02.1 - Municipal Manager Admin | C73: 5473818.51 | D73: 11590845.54 | E73: 5384968.98 | F73: 6440500 | G73: 6213424 | H73: 6213424 | I73: 7263980 | J73: 7627039 | K73: 8008245
A74: ='Org structure'!E13 -> 02.2 - Legal Services | C74: 1783687.83 | D74: 2156226.17 | E74: 2586336.34 | F74: 2915227 | G74: 2665038 | H74: 2665038 | I74: 2841480 | J74: 2983561 | K74: 3132738
A75: ='Org structure'!E14 -> 02.3 - Political Office Beares | C75: 1814194.98 | D75: 1514114.78 | E75: 2133926.54 | F75: 2272356 | G75: 1806317 | H75: 1806317 | I75: 1999670 | J75: 2099660 | K75: 2204644
A76: ='Org structure'!E15 -> 02.4 - Pms | C76: 2570750.26 | D76: 1983020.3 | E76: 2156443.35 | F76: 2802715 | G76: 2859191 | H76: 2859191 | I76: 3242206 | J76: 3404322 | K76: 3574539
A77: ='Org structure'!E16 -> 02.5 - Internal Audit | C77: 6616759.45 | D77: 7130641.56 | E77: 6986944.01 | F77: 10159130 | G77: 9891989 | H77: 9891989 | I77: 12400476 | J77: 12175508 | K77: 12779285
A78: ='Org structure'!A4 -> Vote 03 - Mayors Office | C78: =SUM(C79:C83) -> 16741560.77 | D78: 16496856.64 | E78: 16246717.87 | F78: 17356785 | G78: 17098551 | H78: 17098551 | I78: 22398840 | J78: 23516502 | K78: 24690027
A79: ='Org structure'!E18 -> 03.1 - Mayors Office Admin | C79: 2796149.81 | D79: 2658816.82 | E79: 2817671.07 | F79: 3360290 | G79: 2887046 | H79: 2887046 | I79: 4009101 | J79: 4209463 | K79: 4419839
A80: ='Org structure'!E19 -> 03.2 - Office Of The Speaker | C80: 1046311.5 | D80: 856695.29 | E80: 385565.74 | F80: 1299854 | G80: 1347891 | H80: 1347891 | I80: 1676754 | J80: 1759998 | K80: 1847398
A81: ='Org structure'!E20 -> 03.3 - Office Of The Chief Whip | C81: 756623.64 | D81: 996374.36 | E81: 1284378.82 | F81: 610768 | G81: 534268 | H81: 534268 | I81: 1062867 | J81: 1115413 | K81: 1170582
A82: ='Org structure'!E21 -> 03.4 - Exco Members | C82: 3614576.41 | D82: 3167080.79 | E82: 3074341.16 | F82: 3716551 | G82: 3510671 | H82: 3510671 | I82: 5209078 | J82: 5469034 | K82: 5741985
A83: ='Org structure'!E22 -> 03.5 - Council General Administration | C83: 8527899.41 | D83: 8817889.38 | E83: 8684761.08 | F83: 8369322 | G83: 8818675 | H83: 8818675 | I83: 10441040 | J83: 10962594 | K83: 11510223
A84: ='Org structure'!A5 -> Vote 04 - Budget And Treasury | C84: =SUM(C85:C91) -> 27610389.72 | D84: 38992258.39 | E84: 34038726.72 | F84: 37390478 | G84: 37231132 | H84: 37231132 | I84: 36376878 | J84: 37876662 | K84: 39841353
A85: ='Org structure'!E24 -> 04.1 - Budget And Treasury Admin | C85: 7385572.81 | D85: 7539135.16 | E85: 9012146.94 | F85: 9967265 | G85: 9513495 | H85: 9513495 | I85: 11099461 | J85: 11355341 | K85: 12013964
A86: ='Org structure'!E25 -> 04.2 - Chief Financial Officer Admin | C86: -79842.62 | D86: 101700.14 | E86: -169407.05 | F86: 14373 | G86: 14373 | H86: 14373 | I86: 0 | J86: 0 | K86: 0
A87: ='Org structure'!E26 -> 04.3 - Budget & Reporting | C87: 0 | D87: 0 | E87: 0 | F87: 0 | G87: 0 | H87: 0 | I87: 0 | J87: 0 | K87: 0
A88: ='Org structure'!E27 -> 04.4 - Budget & Reporting | C88: 2519665.86 | D88: 1916674.29 | E88: 2681812.34 | F88: 3147029 | G88: 3353156 | H88: 3353156 | I88: 4339425 | J88: 4551407 | K88: 4773977
A89: ='Org structure'!E28 -> 04.5 - Revenue Management | C89: 10443985.99 | D89: 21376770.7 | E89: 13661932.96 | F89: 15201826 | G89: 15337028 | H89: 15337028 | I89: 9698256 | J89: 10178177 | K89: 10682086
A90: ='Org structure'!E29 -> 04.6 - Supply Chain Management | C90: 3705889.89 | D90: 4274773.37 | E90: 4836673.28 | F90: 4423567 | G90: 4464084 | H90: 4464084 | I90: 6185323 | J90: 6489596 | K90: 6809076
A91: ='Org structure'!E30 -> 04.7 - Expenditure | C91: 3635117.79 | D91: 3783204.73 | E91: 4015568.25 | F91: 4636418 | G91: 4548996 | H91: 4548996 | I91: 5054413 | J91: 5302141 | K91: 5562250
A92: ='Org structure'!A6 -> Vote 05 - Community Services | C92: =SUM(C93:C99) -> 30861910.9 | D92: 31835099.23 | E92: 32791005.86 | F92: 39864307 | G92: 39004643 | H92: 39004643 | I92: 38610826 | J92: 44860968 | K92: 47103914
A93: ='Org structure'!E32 -> 05.1 - Community Services Admin | C93: 4355559.43 | D93: 3561387.56 | E93: 3691722.41 | F93: 5265352 | G93: 4814795 | H93: 4814795 | I93: 5507227 | J93: 5782500 | K93: 6071525
A94: ='Org structure'!E33 -> 05.2 - Libraries | C94: 667297.16 | D94: 524444.05 | E94: 639894.56 | F94: 1501376 | G94: 1517879 | H94: 1517879 | I94: 1726521 | J94: 1812854 | K94: 1903495
A95: ='Org structure'!E34 -> 05.3 - Sports Recreation & Social Amenitie | C95: 3281417.92 | D95: 3853917.1 | E95: 3896970.45 | F95: 3232103 | G95: 3185366 | H95: 3185366 | I95: 3723138 | J95: 3909308 | K95: 4104770
A96: ='Org structure'!E35 -> 05.4 - Traffic Service | C96: 0 | D96: 0 | E96: 0 | F96: 0 | G96: 0 | H96: 0 | I96: 0 | J96: 0 | K96: 0
A97: ='Org structure'!E36 -> 05.5 - Traffic Service | C97: 15009690.06 | D97: 16200438.64 | E97: 16384288.93 | F97: 17077225 | G97: 17894061 | H97: 17894061 | I97: 15220230 | J97: 21580849 | K97: 22659892
A98: ='Org structure'!E37 -> 05.6 - Parks; Cemeteries | C98: 1197154.18 | D98: 1242347.81 | E98: 1445039.55 | F98: 2567541 | G98: 1664903 | H98: 1664903 | I98: 1668593 | J98: 1752028 | K98: 1839632
A99: ='Org structure'!E38 -> 05.7 - Refuse | C99: 6350792.15 | D99: 6452564.07 | E99: 6733089.96 | F99: 10220710 | G99: 9927639 | H99: 9927639 | I99: 10765117 | J99: 10023429 | K99: 10524600
A100: ='Org structure'!A7 -> Vote 06 - Technical Services | C100: =SUM(C101:C108) -> 47866620.94 | D100: 55387315.29 | E100: 72039419.47 | F100: 66738106 | G100: 71186184 | H100: 71186184 | I100: 74878601 | J100: 78607238 | K100: 82521549
A101: ='Org structure'!E40 -> 06.1 - Mpac | C101: 0 | D101: 0 | E101: 0 | F101: 1571400 | G101: 1886502 | H101: 1886502 | I101: 2894804 | J101: 3039545 | K101: 3191523
A102: ='Org structure'!E41 -> 06.2 - Technical Services Admin | C102: 162334.5 | D102: 155566.97 | E102: 72914.35 | F102: 150664 | G102: 150664 | H102: 150664 | I102: 0 | J102: 0 | K102: 0
A103: ='Org structure'!E42 -> 06.3 - Techn Serv-Roads: Admin | C103: 2954196.23 | D103: 2171519.32 | E103: 3556502.42 | F103: 3974580 | G103: 10673584 | H103: 10673584 | I103: 12014827 | J103: 12615469 | K103: 13246144
A104: ='Org structure'!E43 -> 06.4 - Techn Serv-Stormwater: Admin | C104: 14234546.57 | D104: 20886516.6 | E104: 24819275.3 | F104: 25044569 | G104: 16293271 | H104: 16293271 | I104: 18314786 | J104: 19230536 | K104: 20192064
A105: ='Org structure'!E44 -> 06.5 - Project Management Unit | C105: 2677960.86 | D105: 1703501.88 | E105: 2175650.18 | F105: 4305903 | G105: 6819598 | H105: 6819598 | I105: 4482257 | J105: 4691143 | K105: 4909749
A106: ='Org structure'!E45 -> 06.6 - Electrical & Machinery | C106: 18776762.49 | D106: 21189788.03 | E106: 31115300.36 | F106: 24643694 | G106: 28822319 | H106: 28822319 | I106: 31287310 | J106: 32851686 | K106: 34494267
A107: ='Org structure'!E46 -> 06.7 - Water | C107: 6543208.32 | D107: 6378865.08 | E107: 7564460.44 | F107: 5959405 | G107: 5873884 | H107: 5873884 | I107: 5224628 | J107: 5485867 | K107: 5760160
A108: ='Org structure'!E47 -> 06.8 - Sanitation | C108: 2517611.97 | D108: 2901557.41 | E108: 2735316.42 | F108: 1087891 | G108: 666362 | H108: 666362 | I108: 659989 | J108: 692992 | K108: 727642
A109: ='Org structure'!A8 -> Vote 07 - | C109: 0 | D109: 0 | E109: 0 | F109: 0 | G109: 0 | H109: 0 | I109: 0 | J109: 0 | K109: 0
A110: ='Org structure'!A9 -> Vote 08 - | C110: 0 | D110: 0 | E110: 0 | F110: 0 | G110: 0 | H110: 0 | I110: 0 | J110: 0 | K110: 0
A111: ='Org structure'!A10 -> Vote 09 - | C111: 0 | D111: 0 | E111: 0 | F111: 0 | G111: 0 | H111: 0 | I111: 0 | J111: 0 | K111: 0
A112: ='Org structure'!A11 -> Vote 10 - | C112: 0 | D112: 0 | E112: 0 | F112: 0 | G112: 0 | H112: 0 | I112: 0 | J112: 0 | K112: 0
A113: ='Org structure'!A12 -> Vote 11 - | C113: 0 | D113: 0 | E113: 0 | F113: 0 | G113: 0 | H113: 0 | I113: 0 | J113: 0 | K113: 0
A114: ='Org structure'!A13 -> Vote 12 - | C114: 0 | D114: 0 | E114: 0 | F114: 0 | G114: 0 | H114: 0 | I114: 0 | J114: 0 | K114: 0
A115: ='Org structure'!A14 -> Vote 13 - | C115: 0 | D115: 0 | E115: 0 | F115: 0 | G115: 0 | H115: 0 | I115: 0 | J115: 0 | K115: 0
A116: ='Org structure'!A15 -> Vote 14 - | C116: 0 | D116: 0 | E116: 0 | F116: 0 | G116: 0 | H116: 0 | I116: 0 | J116: 0 | K116: 0
A117: ='Org structure'!A16 -> Vote 15 - Other | C117: 0 | D117: 0 | E117: 0 | F117: 0 | G117: 0 | H117: 0 | I117: 0 | J117: 0 | K117: 0
A118: Total Expenditure by Vote | B118: 2 | C118: =C63+C72+C78+C84+C92+C100+C109+C110+C111+C112+C113+C114+C115+C116+C117 -> 190407088.7 | D118: 221073903.1 | E118: 226772432.5 | F118: 244706177 | G118: 245338601 | H118: 245338601 | I118: 260944811 | J118: 271568339 | K118: 283651171 | L118: =SUM(L63:L109) -> 0 | M118: 0 | N118: 0 | O118: 0 | P118: 0 | Q118: 0 | R118: 0 | S118: 0 | T118: 0 | U118: 0 | V118: 0 | W118: 0
A120: =result -> Surplus/(Deficit) for the year | B120: 2 | C120: =C60-C118 -> 30069198.8 | D120: 81466579.14 | E120: 32501979.64 | F120: 58022079 | G120: 57716936 | H120: 57716936 | I120: 72380343 | J120: 65569712 | K120: 53279584
A121: =head27a -> References
A122: 1. Insert 'Vote'; e.g. Department, if different to Functional structure
A123: 2. Must reconcile to Financial Performance ('Revenue and Expenditure by Functional Classification' and 'Revenue and Expenditure')
A124: 3. Assign share in 'associate' to relevant Vote
A126: check revenue | C126: =C60-'A4-FinPerf RE'!#REF! ->  | D126: =D60-'A4-FinPerf RE'!#REF! ->  | E126: =E60-'A4-FinPerf RE'!#REF! ->  | F126: =F60-'A4-FinPerf RE'!#REF! ->  | G126: =G60-'A4-FinPerf RE'!#REF! ->  | H126: =H60-'A4-FinPerf RE'!#REF! ->  | I126: =I60-'A4-FinPerf RE'!#REF! ->  | J126: =J60-'A4-FinPerf RE'!#REF! ->  | K126: =K60-'A4-FinPerf RE'!#REF! -> 
A127: check expenditure | C127: =C118-'A4-FinPerf RE'!C47 -> 2813793.73 | D127: =D118-'A4-FinPerf RE'!D47 -> 3109787.22 | E127: =E118-'A4-FinPerf RE'!E47 -> 4774270.57 | F127: =F118-'A4-FinPerf RE'!F47 -> 0 | G127: =G118-'A4-FinPerf RE'!G47 -> 0 | H127: =H118-'A4-FinPerf RE'!H47 -> 0 | I127: =I118-'A4-FinPerf RE'!J47 -> 0 | J127: =J118-'A4-FinPerf RE'!K47 -> 0 | K127: =K118-'A4-FinPerf RE'!L47 -> 0

Sheet A4-FinPerf RE
A1: =muni&" - "&Approve4 -> LIM353 Molemole - Table A4 Budgeted Financial Performance (revenue and expenditure)
A2: =desc -> Description | B2: =head27 -> Ref | C2: =head1b -> 2019/20 | D2: =head1A -> 2020/21 | E2: =Head1 -> 2021/22 | F2: =Head2 -> Current Year 2022/23 | J2: =Head3 -> 2023/24 Medium Term Revenue & Expenditure Framework | M2: =Head4 -> LTFS
A3: R thousand | B3: 1 | C3: =Head5 -> Audited Outcome | D3: =Head5 -> Audited Outcome | E3: =Head5 -> Audited Outcome | F3: =Head6 -> Original Budget | G3: =Head7 -> Adjusted Budget | H3: =Head8 -> Full Year Forecast | I3: =Head5b -> Pre-audit outcome | J3: =Head9 -> Budget Year 2023/24 | K3: =Head10 -> Budget Year +1 2024/25 | L3: =Head11 -> Budget Year +2 2025/26 | M3: =Head12 -> Forecast 2026/27 | N3: =Head13 -> Forecast 2027/28 | O3: =Head14 -> Forecast 2028/29 | P3: =Head15 -> Forecast 2029/30 | Q3: =Head16 -> Forecast 2030/31 | R3: =Head17 -> Forecast 2031/32 | S3: =Head18 -> Forecast 2032/33 | T3: =Head19 -> Forecast 2033/34 | U3: =Head20 -> Forecast 2034/35 | V3: =Head21 -> Forecast 2035/36 | W3: =Head22 -> Forecast 2036/37 | X3: =Head23 -> Forecast 2037/38
A4: Revenue
A5: Exchange Revenue
A6: Service charges - Electricity | B6: 2 | C6: ='SA1'!C17 -> 8284595.91 | D6: ='SA1'!D17 -> 8433035.23 | E6: ='SA1'!E17 -> 8206021.01 | F6: ='SA1'!F17 -> 22986341 | G6: ='SA1'!G17 -> 22986341 | H6: ='SA1'!H17 -> 22986341 | I6: ='SA1'!I17 -> 7894209.91 | J6: ='SA1'!J17 -> 12335647 | K6: ='SA1'!K17 -> 12952430 | L6: ='SA1'!L17 -> 13600052
A7: Service charges - Water | B7: 2 | C7: ='SA1'!C23 -> 0 | D7: ='SA1'!D23 -> 0 | E7: ='SA1'!E23 -> 0 | F7: ='SA1'!F23 -> 0 | G7: ='SA1'!G23 -> 0 | H7: ='SA1'!H23 -> 0 | I7: ='SA1'!I23 -> -17333.9 | J7: ='SA1'!J23 -> 0 | K7: ='SA1'!K23 -> 0 | L7: ='SA1'!L23 -> 0
A8: Service charges - Waste Water Management | B8: 2 | C8: ='SA1'!C29 -> 0 | D8: ='SA1'!D29 -> 0 | E8: ='SA1'!E29 -> 0 | F8: ='SA1'!F29 -> 0 | G8: ='SA1'!G29 -> 0 | H8: ='SA1'!H29 -> 0 | I8: ='SA1'!I29 -> -1745 | J8: ='SA1'!J29 -> 0 | K8: ='SA1'!K29 -> 0 | L8: ='SA1'!L29 -> 0
A9: Service charges - Waste Management | B9: 2 | C9: ='SA1'!C36 -> 2218412.62 | D9: ='SA1'!D36 -> 2628852.44 | E9: ='SA1'!E36 -> 2742344.54 | F9: ='SA1'!F36 -> 2603836 | G9: ='SA1'!G36 -> 2603836 | H9: ='SA1'!H36 -> 2603836 | I9: ='SA1'!I36 -> 2313560.4 | J9: ='SA1'!J36 -> 3544709 | K9: ='SA1'!K36 -> 3721945 | L9: ='SA1'!L36 -> 3908042
A10: Sale of Goods and Rendering of Services
A11: Agency services | C11: 681680.78 | D11: 919463.97 | E11: 742790.11 | F11: 756352 | G11: 756352 | H11: 756352 | I11: 2186557.7 | J11: 1680948 | K11: 1764996 | L11: 1853246
A12: Interest | C12: 1729419.11 | D12: 2543772.73 | E12: 4708768.13 | F12: 3000000 | G12: 7750000 | H12: 7750000 | I12: 7514554.07 | J12: 9600000 | K12: 7571218 | L12: 7927065
A13: Interest earned from Receivables
A14: Interest earned from Current and Non Current Assets
A15: Dividends | C15: 0 | D15: 0 | E15: 0 | F15: 0 | G15: 0 | H15: 0 | I15: 0 | J15: 0 | K15: 0 | L15: 0
A16: Rent on Land
A17: Rental from Fixed Assets | C17: 211370.88 | D17: 214680.5 | E17: 218130.57 | F17: 266190 | G17: 266190 | H17: 266190 | I17: 188146.43 | J17: 247951 | K17: 260349 | L17: 273366
A18: Licence and permits
A19: Operational Revenue | C19: 248651.09 | D19: -46995.76 | E19: 396341.48 | F19: 412599 | G19: 1554639 | H19: 1554639 | I19: 1722284.88 | J19: 1594184 | K19: 1673897 | L19: 1757593
A20: Non-Exchange Revenue
A21: Property rates | B21: 2 | C21: 20010885.63 | D21: 49558002.71 | E21: 30599233.83 | F21: 49396847 | G21: 41085652 | H21: 41085652 | I21: 30012189.3 | J21: 46063444 | K21: 48366617 | L21: 50784948
A22: Surcharges and Taxes
A23: Fines, penalties and forfeits | C23: 4539294.11 | D23: 493491.44 | E23: 628429.57 | F23: 1402949 | G23: 718907 | H23: 718907 | I23: 300842.46 | J23: 620795 | K23: 651836 | L23: 684428
A24: Licences or permits | C24: -506139.63 | D24: 4890683.84 | E24: 5091640 | F24: 8055111 | G24: 8055111 | H24: 8055111 | I24: 8529734.44 | J24: 13120041 | K24: 13776044 | L24: 14464846
A25: Transfer and subsidies - Operational | C25: 148235565 | D25: 185288433.8 | E25: 160910740.4 | F25: 174457600 | G25: 175097600 | H25: 175097600 | I25: 171635354.4 | J25: 183700650 | K25: 192509050 | L25: 185454150
A26: Interest | C26: 912778.17 | D26: 1342317.05 | E26: 1492844.68 | F26: 1588031 | G26: 1762066 | H26: 1762066 | I26: 1200758.06 | J26: 2268435 | K26: 2380719 | L26: 2496169
A27: Fuel Levy
A28: Operational Revenue
A29: Gains on disposal of Assets | C29: 0 | D29: 12150 | E29: 12550 | F29: 0 | G29: 0 | H29: 0 | I29: 0 | J29: 0 | K29: 0 | L29: 0
A30: Other Gains
A31: Discontinued Operations
A32: Total Revenue (excluding capital transfers and contributions) | C32: =SUM(C6:C19)+SUM(C21:C31) -> 186566513.7 | D32: =SUM(D6:D19)+SUM(D21:D31) -> 256277888 | E32: 215749834.3 | F32: 264925856 | G32: 262636694 | H32: 262636694 | I32: 233479113.1 | J32: 274776804 | K32: 285629101 | L32: 283203905
A33: Expenditure
A34: Employee related costs | B34: 2 | C34: ='SA1'!C71 -> 84279697.15 | D34: ='SA1'!D71 -> 91655492.25 | E34: ='SA1'!E71 -> 96155662.32 | F34: ='SA1'!F71 -> 104547620 | G34: ='SA1'!G71 -> 103532048 | H34: ='SA1'!H71 -> 103532048 | I34: ='SA1'!I71 -> 91158238.28 | J34: ='SA1'!J71 -> 107286637 | K34: ='SA1'!K71 -> 117566966 | L34: ='SA1'!L71 -> 123422326 | M34: ='SA1'!M71 -> 0 | N34: ='SA1'!N71 -> 0 | O34: ='SA1'!O71 -> 0 | P34: ='SA1'!P71 -> 0 | Q34: ='SA1'!Q71 -> 0 | R34: ='SA1'!R71 -> 0 | S34: ='SA1'!S71 -> 0 | T34: ='SA1'!T71 -> 0
A35: Remuneration of councillors | C35: 12879611.9 | D35: 12930254.27 | E35: 12948003.32 | F35: 13973932 | G35: 14477932 | H35: 14477932 | I35: 12274756.33 | J35: 19640387 | K35: 20620415 | L35: 21649434
A36: Bulk purchases - electricity | B36: 2 | C36: ='SA1'!C88 -> 10107195.66 | D36: ='SA1'!D88 -> 11026472.76 | E36: ='SA1'!E88 -> 12585145.7 | F36: ='SA1'!F88 -> 11926907 | G36: ='SA1'!G88 -> 13126907 | H36: ='SA1'!H88 -> 13126907 | I36: ='SA1'!I88 -> 9079972.21 | J36: ='SA1'!J88 -> 13783253 | K36: ='SA1'!K88 -> 14472416 | L36: ='SA1'!L88 -> 15196037
A37: Inventory consumed | B37: 8 | C37: ='SA1'!C169 -> 1056734.27 | D37: ='SA1'!D169 -> 810564.36 | E37: ='SA1'!E169 -> 1851393.14 | F37: ='SA1'!F169 -> 7803884 | G37: ='SA1'!G169 -> 7159395 | H37: ='SA1'!H169 -> 7159395 | I37: ='SA1'!I169 -> 0 | J37: ='SA1'!J169 -> 8245842 | K37: ='SA1'!K169 -> 8263500 | L37: ='SA1'!L169 -> 8676675
A38: Debt impairment | B38: 3 | C38: 5824884.71 | D38: 8871388.24 | E38: 3837623.55 | F38: 3497872 | G38: 3797872 | H38: 3797872 | I38: 473898.38 | J38: 3987768 | K38: 4187156 | L38: 4396514
A39: Depreciation and amortisation | C39: ='SA1'!C83 -> 15880078.4 | D39: ='SA1'!D83 -> 12114558.47 | E39: ='SA1'!E83 -> 19095027.42 | F39: ='SA1'!F83 -> 19813041 | G39: ='SA1'!G83 -> 19813041 | H39: ='SA1'!H83 -> 19813041 | I39: ='SA1'!I83 -> 32069754.44 | J39: ='SA1'!J83 -> 22082155 | K39: ='SA1'!K83 -> 23186308 | L39: ='SA1'!L83 -> 24345623
A40: Interest | C40: 421586.14 | D40: 183629.4 | E40: 13535.74 | F40: 116842 | G40: 126442 | H40: 126442 | I40: 21567.45 | J40: 132765 | K40: 139404 | L40: 146375
A41: Contracted services | C41: ='SA1'!C127 -> 26876466.16 | D41: ='SA1'!D127 -> 39119436.44 | E41: ='SA1'!E127 -> 36709368.43 | F41: ='SA1'!F127 -> 42102799 | G41: ='SA1'!G127 -> 40001343 | H41: ='SA1'!H127 -> 40001343 | I41: ='SA1'!I127 -> 34404390.98 | J41: ='SA1'!J127 -> 45768528 | K41: ='SA1'!K127 -> 42959702 | L41: ='SA1'!L127 -> 45072693
A42: Transfers and subsidies | C42: ='SA1'!C93 -> 0 | D42: ='SA1'!D93 -> 0 | E42: ='SA1'!E93 -> 0 | F42: ='SA1'!F93 -> 0 | G42: ='SA1'!G93 -> 0 | H42: ='SA1'!H93 -> 0 | I42: ='SA1'!I93 -> 0 | J42: ='SA1'!J93 -> 0 | K42: ='SA1'!K93 -> 0 | L42: ='SA1'!L93 -> 0
A43: Irrecoverable debts written off
A44: Operational costs | C44: ='SA1'!C157 -> 28870414.67 | D44: ='SA1'!D157 -> 34166105.41 | E44: ='SA1'!E157 -> 31734982.05 | F44: ='SA1'!F157 -> 40923280 | G44: ='SA1'!G157 -> 42202016 | H44: ='SA1'!H157 -> 42202016 | I44: ='SA1'!I157 -> 33320163.59 | J44: ='SA1'!J157 -> 40017476 | K44: ='SA1'!K157 -> 40172472 | L44: ='SA1'!L157 -> 40745494
A45: Losses on disposal of Assets | C45: 1396625.93 | D45: 7086214.29 | E45: 7067420.29 | F45: 0 | G45: 1101605 | H45: 1101605 | I45: 1101604.15 | J45: 0 | K45: 0 | L45: 0
A46: Other Losses
A47: Total Expenditure | C47: =SUM(C34:C46) -> 187593295 | D47: =SUM(D34:D46) -> 217964115.9 | E47: 221998162 | F47: 244706177 | G47: 245338601 | H47: 245338601 | I47: 213904345.8 | J47: 260944811 | K47: 271568339 | L47: 283651171 | M47: =SUM(M34:M46) -> 0 | N47: 0 | O47: 0 | P47: 0 | Q47: 0 | R47: 0 | S47: 0 | T47: 0 | U47: 0 | V47: 0 | W47: 0 | X47: 0
A48: Surplus/(Deficit) | C48: =C32-C47 -> -1026781.28 | D48: 38313772.11 | E48: -6248327.62 | F48: 20219679 | G48: 17298093 | H48: 17298093 | I48: 19574767.32 | J48: 13831993 | K48: 14060762 | L48: -447266 | M48: =M32+M47 -> 0 | N48: 0 | O48: 0 | P48: 0 | Q48: 0 | R48: 0 | S48: 0 | T48: 0 | U48: 0 | V48: 0 | W48: 0 | X48: 0
A49: Transfers and subsidies - capital (monetary allocations) | B49: 6 | C49: 33909773.81 | D49: 45027638.97 | E49: 43524577.83 | F49: 37802400 | G49: 40418843 | H49: 40418843 | I49: 25657222.22 | J49: 58548350 | K49: 51508950 | L49: 53726850
A50: Transfers and subsidies - capital (in-kind) | B50: 6 | C50: 0 | D50: 1234955.28 | E50: 0 | F50: 0 | G50: 0 | H50: 0 | I50: 0 | J50: 0 | K50: 0 | L50: 0
A51: Surplus/(Deficit) after capital transfers & contributions | C51: =SUM(C48:C50) -> 32882992.53 | D51: 84576366.36 | E51: 37276250.21 | F51: 58022079 | G51: 57716936 | H51: 57716936 | I51: 45231989.54 | J51: 72380343 | K51: 65569712 | L51: 53279584
A52: Income Tax
A53: Surplus/(Deficit) after income tax | C53: =+C51-C52 -> 32882992.53 | D53: =+D51-D52 -> 84576366.36 | E53: 37276250.21 | F53: 58022079 | G53: 57716936 | H53: 57716936 | I53: 45231989.54 | J53: 72380343 | K53: 65569712 | L53: 53279584 | M53: 0 | N53: 0 | O53: 0 | P53: 0 | Q53: 0
A54: Share of Surplus/Deficit attributable to Joint Venture
A55: Share of Surplus/Deficit attributable to Minorities
A56: Surplus/(Deficit) attributable to municipality | C56: =SUM(C53:C55) -> 32882992.53 | D56: =SUM(D53:D55) -> 84576366.36 | E56: 37276250.21 | F56: 58022079 | G56: 57716936 | H56: 57716936 | I56: 45231989.54 | J56: 72380343 | K56: 65569712 | L56: 53279584 | M56: 0 | N56: 0 | O56: 0 | P56: 0 | Q56: 0
A57: Share of Surplus/Deficit attributable to Associate | B57: 7
A58: Intercompany/Parent subsidiary transactions
A59: =result -> Surplus/(Deficit) for the year | B59: 1 | C59: =SUM(C56:C58) -> 32882992.53 | D59: =SUM(D56:D58) -> 84576366.36 | E59: 37276250.21 | F59: 58022079 | G59: 57716936 | H59: 57716936 | I59: 45231989.54 | J59: 72380343 | K59: 65569712 | L59: 53279584 | M59: 0 | N59: 0 | O59: 0 | P59: 0 | Q59: 0 | R59: =R35+R58 -> 0 | S59: 0 | T59: 0 | U59: 0 | V59: 0 | W59: 0 | X59: 0
A60: References
A61: 1. Classifications are revenue sources and expenditure type
A62: 2. Detail to be provided in Table SA1 | O62: =O59-'A4-FinPerf RE'!J59 -> -72380343 | P62: =P59-'A4-FinPerf RE'!K59 -> -65569712 | Q62: =Q59-'A4-FinPerf RE'!L59 -> -53279584
A63: 3. Debt impairment includes Impairment and Reversal of Impairment Losses
A64: 4. Expenditure type components previously shown under repairs and maintenance should be allocated back to the originating expenditure group/item; e.g. employee costs
A65: 5. Repairs & maintenance detailed in Table A9 and Table SA34c
A66: 6. Contributions are funds provided by external organisations to assist with infrastructure development; e.g. developer contributions (detail to be provided in Table SA1)
A67: 7. Equity method ( Includes Joint Ventures)
A68: 8. All materials consumed including water consumed and materials used in operations.

Sheet A5-Capex
A2: =Vdesc -> Vote Description | B2: =head27 -> Ref | C2: =head1b -> 2019/20 | D2: =head1A -> 2020/21 | E2: =Head1 -> 2021/22 | F2: =Head2 -> Current Year 2022/23 | J2: =Head3 -> 2023/24 Medium Term Revenue & Expenditure Framework
A3: R thousand | B3: 1 | C3: =Head5 -> Audited Outcome | D3: =Head5 -> Audited Outcome | E3: =Head5 -> Audited Outcome | F3: =Head6 -> Original Budget | G3: =Head7 -> Adjusted Budget | H3: =Head8 -> Full Year Forecast | I3: =Head5b -> Pre-audit outcome | J3: =Head9 -> Budget Year 2023/24 | K3: =Head10 -> Budget Year +1 2024/25 | L3: =Head11 -> Budget Year +2 2025/26
A4: Capital expenditure - Vote
A5: Multi-year expenditure to be appropriated | B5: 2
A6: =A5A!A6 -> Vote 01 - Corporate Services | C6: =A5A!C6 -> 1344645.21 | D6: =A5A!D6 -> 4660939.51 | E6: =A5A!E6 -> 2377501.27 | F6: =A5A!F6 -> 4770000 | G6: =A5A!G6 -> 1976300 | H6: =A5A!H6 -> 1976300 | I6: =A5A!I6 -> 1975205.13 | J6: =A5A!J6 -> 4032000 | K6: =A5A!K6 -> 4450000 | L6: =A5A!L6 -> 140598
A7: =A5A!A15 -> Vote 02 - Municipal Manager | C7: =A5A!C15 -> 111398 | D7: =A5A!D15 -> 136993.77 | E7: =A5A!E15 -> 75640 | F7: =A5A!F15 -> 0 | G7: =A5A!G15 -> 0 | H7: =A5A!H15 -> 0 | I7: =A5A!I15 -> 0 | J7: =A5A!J15 -> 100000 | K7: =A5A!K15 -> 0 | L7: =A5A!L15 -> 0
A8: =A5A!A21 -> Vote 03 - Mayors Office | C8: =A5A!C21 -> 0 | D8: =A5A!D21 -> 0 | E8: =A5A!E21 -> 0 | F8: =A5A!F21 -> 0 | G8: =A5A!G21 -> 0 | H8: =A5A!H21 -> 0 | I8: =A5A!I21 -> 0 | J8: =A5A!J21 -> 0 | K8: =A5A!K21 -> 0 | L8: =A5A!L21 -> 0
A9: =A5A!A27 -> Vote 04 - Budget And Treasury | C9: =A5A!C27 -> 58650 | D9: =A5A!D27 -> 0 | E9: =A5A!E27 -> 0 | F9: =A5A!F27 -> 500000 | G9: =A5A!G27 -> 0 | H9: =A5A!H27 -> 0 | I9: =A5A!I27 -> 0 | J9: =A5A!J27 -> 2100000 | K9: =A5A!K27 -> 0 | L9: =A5A!L27 -> 0
A10: =A5A!A35 -> Vote 05 - Community Services | C10: =A5A!C35 -> 714276 | D10: =A5A!D35 -> 1156205.28 | E10: =A5A!E35 -> 763043.48 | F10: =A5A!F35 -> 2300000 | G10: =A5A!G35 -> 2470000 | H10: =A5A!H35 -> 2470000 | I10: =A5A!I35 -> 2170000 | J10: =A5A!J35 -> 400000 | K10: =A5A!K35 -> 14835790 | L10: =A5A!L35 -> 21404925
A11: =A5A!A43 -> Vote 06 - Technical Services | C11: =A5A!C43 -> 36055534.08 | D11: =A5A!D43 -> 44102368.51 | E11: =A5A!E43 -> 43970102.42 | F11: =A5A!F43 -> 50452400 | G11: =A5A!G43 -> 54384325 | H11: =A5A!H43 -> 54384325 | I11: =A5A!I43 -> 38436191.38 | J11: =A5A!J43 -> 65748350 | K11: =A5A!K43 -> 41673160 | L11: =A5A!L43 -> 31734327
A12: ='Org structure'!A8 -> Vote 07 - | C12: =A5A!C52 -> 0 | D12: =A5A!D52 -> 0 | E12: =A5A!E52 -> 0 | F12: =A5A!F52 -> 0 | G12: =A5A!G52 -> 0 | H12: =A5A!H52 -> 0 | I12: =A5A!I52 -> 0 | J12: =A5A!J52 -> 0 | K12: =A5A!K52 -> 0 | L12: =A5A!L52 -> 0
A13: ='Org structure'!A9 -> Vote 08 - | C13: =A5A!C53 -> 0 | D13: =A5A!D53 -> 0 | E13: =A5A!E53 -> 0 | F13: =A5A!F53 -> 0 | G13: =A5A!G53 -> 0 | H13: =A5A!H53 -> 0 | I13: =A5A!I53 -> 0 | J13: =A5A!J53 -> 0 | K13: =A5A!K53 -> 0 | L13: =A5A!L53 -> 0
A14: ='Org structure'!A10 -> Vote 09 - | C14: =A5A!C54 -> 0 | D14: =A5A!D54 -> 0 | E14: =A5A!E54 -> 0 | F14: =A5A!F54 -> 0 | G14: =A5A!G54 -> 0 | H14: =A5A!H54 -> 0 | I14: =A5A!I54 -> 0 | J14: =A5A!J54 -> 0 | K14: =A5A!K54 -> 0 | L14: =A5A!L54 -> 0
A15: ='Org structure'!A11 -> Vote 10 - | C15: =A5A!C55 -> 0 | D15: =A5A!D55 -> 0 | E15: =A5A!E55 -> 0 | F15: =A5A!F55 -> 0 | G15: =A5A!G55 -> 0 | H15: =A5A!H55 -> 0 | I15: =A5A!I55 -> 0 | J15: =A5A!J55 -> 0 | K15: =A5A!K55 -> 0 | L15: =A5A!L55 -> 0
A16: ='Org structure'!A12 -> Vote 11 - | C16: =A5A!C56 -> 0 | D16: =A5A!D56 -> 0 | E16: =A5A!E56 -> 0 | F16: =A5A!F56 -> 0 | G16: =A5A!G56 -> 0 | H16: =A5A!H56 -> 0 | I16: =A5A!I56 -> 0 | J16: =A5A!J56 -> 0 | K16: =A5A!K56 -> 0 | L16: =A5A!L56 -> 0
A17: ='Org structure'!A13 -> Vote 12 - | C17: =A5A!C57 -> 0 | D17: =A5A!D57 -> 0 | E17: =A5A!E57 -> 0 | F17: =A5A!F57 -> 0 | G17: =A5A!G57 -> 0 | H17: =A5A!H57 -> 0 | I17: =A5A!I57 -> 0 | J17: =A5A!J57 -> 0 | K17: =A5A!K57 -> 0 | L17: =A5A!L57 -> 0
A18: ='Org structure'!A14 -> Vote 13 - | C18: =A5A!C58 -> 0 | D18: =A5A!D58 -> 0 | E18: =A5A!E58 -> 0 | F18: =A5A!F58 -> 0 | G18: =A5A!G58 -> 0 | H18: =A5A!H58 -> 0 | I18: =A5A!I58 -> 0 | J18: =A5A!J58 -> 0 | K18: =A5A!K58 -> 0 | L18: =A5A!L58 -> 0
A19: ='Org structure'!A15 -> Vote 14 - | C19: =A5A!C59 -> 0 | D19: =A5A!D59 -> 0 | E19: =A5A!E59 -> 0 | F19: =A5A!F59 -> 0 | G19: =A5A!G59 -> 0 | H19: =A5A!H59 -> 0 | I19: =A5A!I59 -> 0 | J19: =A5A!J59 -> 0 | K19: =A5A!K59 -> 0 | L19: =A5A!L59 -> 0
A20: ='Org structure'!A16 -> Vote 15 - Other | C20: =A5A!C60 -> 0 | D20: =A5A!D60 -> 0 | E20: =A5A!E60 -> 0 | F20: =A5A!F60 -> 0 | G20: =A5A!G60 -> 0 | H20: =A5A!H60 -> 0 | I20: =A5A!I60 -> 0 | J20: =A5A!J60 -> 0 | K20: =A5A!K60 -> 0 | L20: =A5A!L60 -> 0
A21: Capital multi-year expenditure sub-total | B21: 7 | C21: =SUM(C6:C20) -> 38284503.29 | D21: =SUM(D6:D20) -> 50056507.07 | E21: 47186287.17 | F21: 58022400 | G21: 58830625 | H21: =SUM(H6:H20) -> 58830625 | I21: 42581396.51 | J21: 72380350 | K21: 60958950 | L21: 53279850
A23: Single-year expenditure to be appropriated | B23: 2
A24: =A5A!A65 -> Vote 01 - Corporate Services | C24: =A5A!C65 -> 0 | D24: =A5A!D65 -> 0 | E24: =A5A!E65 -> 0 | F24: =A5A!F65 -> 0 | G24: =A5A!G65 -> 0 | H24: =A5A!H65 -> 0 | I24: =A5A!I65 -> 0 | J24: =A5A!J65 -> 0 | K24: =A5A!K65 -> 0 | L24: =A5A!L65 -> 0
A25: =A5A!A74 -> Vote 02 - Municipal Manager | C25: =A5A!C74 -> 0 | D25: =A5A!D74 -> 0 | E25: =A5A!E74 -> 0 | F25: =A5A!F74 -> 0 | G25: =A5A!G74 -> 0 | H25: =A5A!H74 -> 0 | I25: =A5A!I74 -> 0 | J25: =A5A!J74 -> 0 | K25: =A5A!K74 -> 0 | L25: =A5A!L74 -> 0
A26: =A5A!A80 -> Vote 03 - Mayors Office | C26: =A5A!C80 -> 0 | D26: =A5A!D80 -> 0 | E26: =A5A!E80 -> 0 | F26: =A5A!F80 -> 0 | G26: =A5A!G80 -> 0 | H26: =A5A!H80 -> 0 | I26: =A5A!I80 -> 0 | J26: =A5A!J80 -> 0 | K26: =A5A!K80 -> 0 | L26: =A5A!L80 -> 0
A27: =A5A!A86 -> Vote 04 - Budget And Treasury | C27: =A5A!C86 -> 0 | D27: =A5A!D86 -> 0 | E27: =A5A!E86 -> 0 | F27: =A5A!F86 -> 0 | G27: =A5A!G86 -> 0 | H27: =A5A!H86 -> 0 | I27: =A5A!I86 -> 0 | J27: =A5A!J86 -> 0 | K27: =A5A!K86 -> 0 | L27: =A5A!L86 -> 0
A28: =A5A!A94 -> Vote 05 - Community Services | C28: =A5A!C94 -> 0 | D28: =A5A!D94 -> 0 | E28: =A5A!E94 -> 0 | F28: =A5A!F94 -> 0 | G28: =A5A!G94 -> 0 | H28: =A5A!H94 -> 0 | I28: =A5A!I94 -> 0 | J28: =A5A!J94 -> 0 | K28: =A5A!K94 -> 0 | L28: =A5A!L94 -> 0
A29: =A5A!A102 -> Vote 06 - Technical Services | C29: =A5A!C102 -> 0 | D29: =A5A!D102 -> 0 | E29: =A5A!E102 -> 1500948.77 | F29: =A5A!F102 -> 0 | G29: =A5A!G102 -> 0 | H29: =A5A!H102 -> 0 | I29: =A5A!I102 -> 0 | J29: =A5A!J102 -> 0 | K29: =A5A!K102 -> 4611000 | L29: =A5A!L102 -> 0
A30: ='Org structure'!A8 -> Vote 07 - | C30: =A5A!C111 -> 0 | D30: =A5A!D111 -> 0 | E30: =A5A!E111 -> 0 | F30: =A5A!F111 -> 0 | G30: =A5A!G111 -> 0 | H30: =A5A!H111 -> 0 | I30: =A5A!I111 -> 0 | J30: =A5A!J111 -> 0 | K30: =A5A!K111 -> 0 | L30: =A5A!L111 -> 0
A31: ='Org structure'!A9 -> Vote 08 - | C31: =A5A!C112 -> 0 | D31: =A5A!D112 -> 0 | E31: =A5A!E112 -> 0 | F31: =A5A!F112 -> 0 | G31: =A5A!G112 -> 0 | H31: =A5A!H112 -> 0 | I31: =A5A!I112 -> 0 | J31: =A5A!J112 -> 0 | K31: =A5A!K112 -> 0 | L31: =A5A!L112 -> 0
A32: ='Org structure'!A10 -> Vote 09 - | C32: =A5A!C113 -> 0 | D32: =A5A!D113 -> 0 | E32: =A5A!E113 -> 0 | F32: =A5A!F113 -> 0 | G32: =A5A!G113 -> 0 | H32: =A5A!H113 -> 0 | I32: =A5A!I113 -> 0 | J32: =A5A!J113 -> 0 | K32: =A5A!K113 -> 0 | L32: =A5A!L113 -> 0
A33: ='Org structure'!A11 -> Vote 10 - | C33: =A5A!C114 -> 0 | D33: =A5A!D114 -> 0 | E33: =A5A!E114 -> 0 | F33: =A5A!F114 -> 0 | G33: =A5A!G114 -> 0 | H33: =A5A!H114 -> 0 | I33: =A5A!I114 -> 0 | J33: =A5A!J114 -> 0 | K33: =A5A!K114 -> 0 | L33: =A5A!L114 -> 0
A34: ='Org structure'!A12 -> Vote 11 - | C34: =A5A!C115 -> 0 | D34: =A5A!D115 -> 0 | E34: =A5A!E115 -> 0 | F34: =A5A!F115 -> 0 | G34: =A5A!G115 -> 0 | H34: =A5A!H115 -> 0 | I34: =A5A!I115 -> 0 | J34: =A5A!J115 -> 0 | K34: =A5A!K115 -> 0 | L34: =A5A!L115 -> 0
A35: ='Org structure'!A13 -> Vote 12 - | C35: =A5A!C116 -> 0 | D35: =A5A!D116 -> 0 | E35: =A5A!E116 -> 0 | F35: =A5A!F116 -> 0 | G35: =A5A!G116 -> 0 | H35: =A5A!H116 -> 0 | I35: =A5A!I116 -> 0 | J35: =A5A!J116 -> 0 | K35: =A5A!K116 -> 0 | L35: =A5A!L116 -> 0
A36: ='Org structure'!A14 -> Vote 13 - | C36: =A5A!C117 -> 0 | D36: =A5A!D117 -> 0 | E36: =A5A!E117 -> 0 | F36: =A5A!F117 -> 0 | G36: =A5A!G117 -> 0 | H36: =A5A!H117 -> 0 | I36: =A5A!I117 -> 0 | J36: =A5A!J117 -> 0 | K36: =A5A!K117 -> 0 | L36: =A5A!L117 -> 0
A37: ='Org structure'!A15 -> Vote 14 - | C37: =A5A!C118 -> 0 | D37: =A5A!D118 -> 0 | E37: =A5A!E118 -> 0 | F37: =A5A!F118 -> 0 | G37: =A5A!G118 -> 0 | H37: =A5A!H118 -> 0 | I37: =A5A!I118 -> 0 | J37: =A5A!J118 -> 0 | K37: =A5A!K118 -> 0 | L37: =A5A!L118 -> 0
A38: ='Org structure'!A16 -> Vote 15 - Other | C38: =A5A!C119 -> 0 | D38: =A5A!D119 -> 0 | E38: =A5A!E119 -> 0 | F38: =A5A!F119 -> 0 | G38: =A5A!G119 -> 0 | H38: =A5A!H119 -> 0 | I38: =A5A!I119 -> 0 | J38: =A5A!J119 -> 0 | K38: =A5A!K119 -> 0 | L38: =A5A!L119 -> 0
A39: Capital single-year expenditure sub-total | C39: =SUM(C24:C38) -> 0 | D39: =SUM(D24:D38) -> 0 | E39: 1500948.77 | F39: 0 | G39: 0 | H39: 0 | I39: 0 | J39: 0 | K39: 4611000 | L39: 0
A40: Total Capital Expenditure - Vote | C40: =C39+C21 -> 38284503.29 | D40: =D39+D21 -> 50056507.07 | E40: 48687235.94 | F40: 58022400 | G40: 58830625 | H40: 58830625 | I40: 42581396.51 | J40: 72380350 | K40: 65569950 | L40: 53279850
A42: Capital Expenditure - Functional
A43: Governance and administration | C43: =SUM(C44:C46) -> 1514693.21 | D43: =SUM(D44:D46) -> 4797933.28 | E43: 2453141.27 | F43: 5270000 | G43: 1976300 | H43: 1976300 | I43: 1975205.13 | J43: 6232000 | K43: 4450000 | L43: 140598
A44: Executive and council | C44: 0 | D44: 0 | E44: 0 | F44: 0 | G44: 0 | H44: 0 | I44: 0 | J44: 0 | K44: 0 | L44: 0
A45: Finance and administration | C45: 1514693.21 | D45: 4797933.28 | E45: 2453141.27 | F45: 5270000 | G45: 1976300 | H45: 1976300 | I45: 1975205.13 | J45: 6232000 | K45: 4450000 | L45: 140598
A46: Internal audit | C46: 0 | D46: 0 | E46: 0 | F46: 0 | G46: 0 | H46: 0 | I46: 0 | J46: 0 | K46: 0 | L46: 0
A47: Community and public safety | C47: =SUM(C48:C52) -> 714276 | D47: =SUM(D48:D52) -> 1156205.28 | E47: 763043.48 | F47: 2300000 | G47: 2470000 | H47: 2470000 | I47: 2170000 | J47: 400000 | K47: 14835790 | L47: 21404925
A48: Community and social services | C48: 0 | D48: 1156205.28 | E48: 0 | F48: 100000 | G48: 300000 | H48: 300000 | I48: 0 | J48: 400000 | K48: 0 | L48: 0
A49: Sport and recreation | C49: 714276 | D49: 0 | E49: 600000 | F49: 2200000 | G49: 2170000 | H49: 2170000 | I49: 2170000 | J49: 0 | K49: 14835790 | L49: 21404925
A50: Public safety | C50: 0 | D50: 0 | E50: 163043.48 | F50: 0 | G50: 0 | H50: 0 | I50: 0 | J50: 0 | K50: 0 | L50: 0
A51: Housing
A52: Health
A53: Economic and environmental services | C53: =SUM(C54:C56) -> 0 | D53: =SUM(D54:D56) -> 0 | E53: 192500 | F53: 45702400 | G53: 45954174 | H53: 45954174 | I53: 33334268.53 | J53: 44080350 | K53: 16388370 | L53: 0
A54: Planning and development | C54: 0 | D54: 0 | E54: 192500 | F54: 0 | G54: 0 | H54: 0 | I54: 0 | J54: 0 | K54: 0 | L54: 0
A55: Road transport | C55: 0 | D55: 0 | E55: 0 | F55: 45702400 | G55: 45954174 | H55: 45954174 | I55: 33334268.53 | J55: 44080350 | K55: 16388370 | L55: 0
A56: Environmental protection
A57: Trading services | C57: =SUM(C58:C61) -> 36055534.08 | D57: =SUM(D58:D61) -> 44102368.51 | E57: 45278551.19 | F57: 4750000 | G57: 8430151 | H57: 8430151 | I57: 5101922.85 | J57: 21668000 | K57: 29895790 | L57: 31734327
A58: Energy sources | C58: 3329856 | D58: 11793428.42 | E58: 9892368.65 | F58: 4750000 | G58: 8430151 | H58: 8430151 | I58: 5101922.85 | J58: 19368000 | K58: 15060000 | L58: 10329402
A59: Water management
A60: Waste water management | C60: 32725678.08 | D60: 32308940.09 | E60: 35386182.54 | F60: 0 | G60: 0 | H60: 0 | I60: 0 | J60: 2300000 | K60: 14835790 | L60: 21404925
A61: Waste management
A62: Other
A63: Total Capital Expenditure - Functional | B63: 3 | C63: =C43+C47+C53+C57+C62 -> 38284503.29 | D63: =D43+D47+D53+D57+D62 -> 50056507.07 | E63: 48687235.94 | F63: 58022400 | G63: 58830625 | H63: 58830625 | I63: 42581396.51 | J63: 72380350 | K63: 65569950 | L63: =L43+L47+L53+L57+L62 -> 53279850
A65: Funded by:
A66: National Government | C66: 29015957.46 | D66: 39133689.96 | E66: 38039956.39 | F66: 38502400 | G66: 40863692 | H66: 40863692 | I66: 30321196.86 | J66: 58548350 | K66: 51508950 | L66: 53139252
A67: Provincial Government
A68: District Municipality | C68: 0 | D68: 1156205.28 | E68: 0 | F68: 0 | G68: 0 | H68: 0 | I68: 0 | J68: 0 | K68: 0 | L68: 0
A69: Transfers and subsidies - capital (monetary allocations) (Nat / Prov Departm Agencies, Households, Non-profit Institutions, Private Enterprises, Public Corporatons, Higher Educ Institutions) | C69: 0 | D69: 0 | E69: 0 | F69: 0 | G69: 0 | H69: 0 | I69: 0 | J69: 0 | K69: 0 | L69: 0
A70: Transfers recognised - capital | B70: 4 | C70: =SUM(C66:C69) -> 29015957.46 | D70: 40289895.24 | E70: 38039956.39 | F70: 38502400 | G70: 40863692 | H70: 40863692 | I70: 30321196.86 | J70: 58548350 | K70: 51508950 | L70: 53139252
A72: Borrowing | B72: 6
A73: Internally generated funds | C73: 9268545.83 | D73: 9766611.83 | E73: 10647279.55 | F73: 19520000 | G73: 17966933 | H73: 17966933 | I73: 12260199.65 | J73: 13832000 | K73: 14061000 | L73: 140598
A74: Total Capital Funding | B74: 7 | C74: =+C70+C72+C73 -> 38284503.29 | D74: =+D70+D72+D73 -> 50056507.07 | E74: 48687235.94 | F74: 58022400 | G74: 58830625 | H74: 58830625 | I74: 42581396.51 | J74: 72380350 | K74: 65569950 | L74: 53279850
A75: =head27a -> References
A76: 1. Municipalities may choose to appropriate for capital expenditure for three years or for one year (if one year appropriation projected expenditure required for yr2 and yr3).
A77: 2. Include capital component of PPP unitary payment. Note that capital transfers are only appropriated to municipalities for the budget year
A78: 3. Capital expenditure by functional classification must reconcile to the appropriations by vote
A79: 4. Must reconcile to supporting table SA20 and to Budgeted Financial Performance (revenue and expenditure)
A81: 6. Include finance leases and PPP capital funding component of unitary payment - total borrowing/repayments to reconcile to changes in Table SA17
A82: 7. Total Capital Funding must balance with Total Capital Expenditure
A83: 8. Include any capitalised interest (MFMA section 46) as part of relevant capital budget
A85: check balance | C85: =IF((C63-C74)=0,0,"Unbalanced") -> 0 | D85: =IF((D63-D74)=0,0,"Unbalanced") -> 0 | E85: 0 | F85: 0 | G85: 0 | H85: 0 | I85: Unbalanced | J85: 0 | K85: 0 | L85: 0

Sheet A5A
A1: =muni&" - "&Approve5 -> LIM353 Molemole - Table A5 Budgeted Capital Expenditure by vote, functional classification and funding
A2: =Vdesc -> Vote Description | B2: =head27 -> Ref | C2: =head1b -> 2019/20 | D2: =head1A -> 2020/21 | E2: =Head1 -> 2021/22 | F2: =Head2 -> Current Year 2022/23 | J2: =Head3 -> 2023/24 Medium Term Revenue & Expenditure Framework | N2: ="Multi-year appropriation for "&Head9& " in the "&Head2A&" Annual Budget" -> Multi-year appropriation for Budget Year 2023/24 in the 2022/23 Annual Budget | R2: ="Multi-year appropriation for "&RIGHT(Head10,7)& " in the "&Head2A&" Annual Budget" -> Multi-year appropriation for 2024/25 in the 2022/23 Annual Budget | V2: New multi-year appropriations (funds for new and existing projects)
A3: R thousand | B3: 1 | C3: =Head5 -> Audited Outcome | D3: =Head5 -> Audited Outcome | E3: =Head5 -> Audited Outcome | F3: =Head6 -> Original Budget | G3: =Head7 -> Adjusted Budget | H3: =Head8 -> Full Year Forecast | I3: =Head5b -> Pre-audit outcome | J3: =Head9 -> Budget Year 2023/24 | K3: =Head10 -> Budget Year +1 2024/25 | L3: =Head11 -> Budget Year +2 2025/26 | N3: ="Appropriation for "&RIGHT(Head9,7) -> Appropriation for 2023/24 | O3: ="Adjustments in "&Head2A -> Adjustments in 2022/23 | P3: ="Downward adjustments for "&RIGHT(Head9,7) -> Downward adjustments for 2023/24 | Q3: Appropriation carried forward | R3: ="Appropriation for "&RIGHT(Head9,7) -> Appropriation for 2023/24 | S3: ="Adjustments in "&Head2A -> Adjustments in 2022/23 | T3: ="Downward adjustments for "&RIGHT(Head9,7) -> Downward adjustments for 2023/24 | U3: Appropriation carried forward | V3: =Head9 -> Budget Year 2023/24 | W3: =Head10 -> Budget Year +1 2024/25 | X3: =Head11 -> Budget Year +2 2025/26
A4: Capital expenditure - Municipal Vote
A5: Multi-year expenditure appropriation | B5: 2
A6: ='Org structure'!A2 -> Vote 01 - Corporate Services | C6: =SUM(C7:C14) -> 1344645.21 | D6: 4660939.51 | E6: 2377501.27 | F6: 4770000 | G6: 1976300 | H6: 1976300 | I6: 1975205.13 | J6: 4032000 | K6: 4450000 | L6: 140598 | N6: =SUM(N7:N14) -> 4032000 | O6: 0 | P6: 0 | Q6: 4032000 | R6: 4450000 | S6: 0 | T6: 0 | U6: 4450000 | V6: 0 | W6: 0 | X6: 140598
A7: ='Org structure'!E3 -> 01.1 - Corporate Services Admin | C7: 320578.69 | D7: 299643.69 | E7: 1785432.13 | F7: 2400000 | G7: 187300 | H7: 187300 | I7: 187200 | J7: =Q7+V7 -> 1400000 | K7: =U7+W7 -> 4450000 | L7: =X7 -> 140598 | N7: 1400000 | O7: 0 | P7: 0 | Q7: =SUM(N7:P7) -> 1400000 | R7: 4450000 | S7: 0 | T7: 0 | U7: =SUM(R7:T7) -> 4450000 | V7: 0 | W7: 0 | X7: 140598
A8: ='Org structure'!E4 -> 01.2 - Human Resources | C8: 28720 | D8: 0 | E8: 0 | F8: 0 | G8: 0 | H8: 0 | I8: 0 | J8: 100000 | K8: 0 | L8: 0 | N8: 100000 | O8: 0 | P8: 0 | Q8: 100000 | R8: 0 | S8: 0 | T8: 0 | U8: 0 | V8: 0 | W8: 0 | X8: 0
A9: ='Org structure'!E5 -> 01.3 - Information Technology Services | C9: 995346.52 | D9: 4361295.82 | E9: 592069.14 | F9: 2370000 | G9: 1789000 | H9: 1789000 | I9: 1788005.13 | J9: 2532000 | K9: 0 | L9: 0 | N9: 2532000 | O9: 0 | P9: 0 | Q9: 2532000 | R9: 0 | S9: 0 | T9: 0 | U9: 0 | V9: 0 | W9: 0 | X9: 0
A10: ='Org structure'!E6 -> 01.4 - Council Support | C10: 0 | D10: 0 | E10: 0 | F10: 0 | G10: 0 | H10: 0 | I10: 0 | J10: 0 | K10: 0 | L10: 0 | N10: 0 | O10: 0 | P10: 0 | Q10: 0 | R10: 0 | S10: 0 | T10: 0 | U10: 0 | V10: 0 | W10: 0 | X10: 0
A11: ='Org structure'!E7 -> 01.5 - Local Economic Development | C11: 0 | D11: 0 | E11: 0 | F11: 0 | G11: 0 | H11: 0 | I11: 0 | J11: 0 | K11: 0 | L11: 0 | N11: 0 | O11: 0 | P11: 0 | Q11: 0 | R11: 0 | S11: 0 | T11: 0 | U11: 0 | V11: 0 | W11: 0 | X11: 0
A12: ='Org structure'!E8 -> 01.6 - Municipal Planning Idp | C12: 0 | D12: 0 | E12: 0 | F12: 0 | G12: 0 | H12: 0 | I12: 0 | J12: 0 | K12: 0 | L12: 0 | N12: 0 | O12: 0 | P12: 0 | Q12: 0 | R12: 0 | S12: 0 | T12: 0 | U12: 0 | V12: 0 | W12: 0 | X12: 0
A13: ='Org structure'!E9 -> 01.7 - Town & Regional Planning | C13: 0 | D13: 0 | E13: 0 | F13: 0 | G13: 0 | H13: 0 | I13: 0 | J13: 0 | K13: 0 | L13: 0 | N13: 0 | O13: 0 | P13: 0 | Q13: 0 | R13: 0 | S13: 0 | T13: 0 | U13: 0 | V13: 0 | W13: 0 | X13: 0
A14: ='Org structure'!E10 -> 01.8 - Led Administration | C14: 0 | D14: 0 | E14: 0 | F14: 0 | G14: 0 | H14: 0 | I14: 0 | J14: 0 | K14: 0 | L14: 0 | N14: 0 | O14: 0 | P14: 0 | Q14: 0 | R14: 0 | S14: 0 | T14: 0 | U14: 0 | V14: 0 | W14: 0 | X14: 0
A15: ='Org structure'!A3 -> Vote 02 - Municipal Manager | C15: =SUM(C16:C20) -> 111398 | D15: 136993.77 | E15: 75640 | F15: 0 | G15: 0 | H15: 0 | I15: 0 | J15: 100000 | K15: 0 | L15: 0 | N15: =SUM(N16:N20) -> 100000 | O15: 0 | P15: 0 | Q15: 100000 | R15: 0 | S15: 0 | T15: 0 | U15: 0 | V15: 0 | W15: 0 | X15: 0
A16: ='Org structure'!E12 -> 02.1 - Municipal Manager Admin | C16: 0 | D16: 0 | E16: 0 | F16: 0 | G16: 0 | H16: 0 | I16: 0 | J16: =Q16+V16 -> 0 | K16: =U16+W16 -> 0 | L16: =X16 -> 0 | N16: 0 | O16: 0 | P16: 0 | Q16: =SUM(N16:P16) -> 0 | R16: 0 | S16: 0 | T16: 0 | U16: =SUM(R16:T16) -> 0 | V16: 0 | W16: 0 | X16: 0
A17: ='Org structure'!E13 -> 02.2 - Legal Services | C17: 0 | D17: 0 | E17: 0 | F17: 0 | G17: 0 | H17: 0 | I17: 0 | J17: =Q17+V17 -> 0 | K17: =U17+W17 -> 0 | L17: =X17 -> 0 | N17: 0 | O17: 0 | P17: 0 | Q17: =SUM(N17:P17) -> 0 | R17: 0 | S17: 0 | T17: 0 | U17: =SUM(R17:T17) -> 0 | V17: 0 | W17: 0 | X17: 0
A18: ='Org structure'!E14 -> 02.3 - Political Office Beares | C18: 111398 | D18: 136993.77 | E18: 75640 | F18: 0 | G18: 0 | H18: 0 | I18: 0 | J18: =Q18+V18 -> 100000 | K18: =U18+W18 -> 0 | L18: =X18 -> 0 | N18: 100000 | O18: 0 | P18: 0 | Q18: =SUM(N18:P18) -> 100000 | R18: 0 | S18: 0 | T18: 0 | U18: =SUM(R18:T18) -> 0 | V18: 0 | W18: 0 | X18: 0
A19: ='Org structure'!E15 -> 02.4 - Pms | C19: 0 | D19: 0 | E19: 0 | F19: 0 | G19: 0 | H19: 0 | I19: 0 | J19: =Q19+V19 -> 0 | K19: =U19+W19 -> 0 | L19: =X19 -> 0 | N19: 0 | O19: 0 | P19: 0 | Q19: =SUM(N19:P19) -> 0 | R19: 0 | S19: 0 | T19: 0 | U19: =SUM(R19:T19) -> 0 | V19: 0 | W19: 0 | X19: 0
A20: ='Org structure'!E16 -> 02.5 - Internal Audit | C20: 0 | D20: 0 | E20: 0 | F20: 0 | G20: 0 | H20: 0 | I20: 0 | J20: =Q20+V20 -> 0 | K20: =U20+W20 -> 0 | L20: =X20 -> 0 | N20: 0 | O20: 0 | P20: 0 | Q20: =SUM(N20:P20) -> 0 | R20: 0 | S20: 0 | T20: 0 | U20: =SUM(R20:T20) -> 0 | V20: 0 | W20: 0 | X20: 0
A21: ='Org structure'!A4 -> Vote 03 - Mayors Office | C21: =SUM(C22:C26) -> 0 | D21: 0 | E21: 0 | F21: 0 | G21: 0 | H21: 0 | I21: 0 | J21: 0 | K21: 0 | L21: 0 | N21: =SUM(N22:N26) -> 0 | O21: 0 | P21: 0 | Q21: 0 | R21: 0 | S21: 0 | T21: 0 | U21: 0 | V21: 0 | W21: 0 | X21: 0
A22: ='Org structure'!E18 -> 03.1 - Mayors Office Admin | C22: 0 | D22: 0 | E22: 0 | F22: 0 | G22: 0 | H22: 0 | I22: 0 | J22: =Q22+V22 -> 0 | K22: =U22+W22 -> 0 | L22: =X22 -> 0 | N22: 0 | O22: 0 | P22: 0 | Q22: =SUM(N22:P22) -> 0 | R22: 0 | S22: 0 | T22: 0 | U22: =SUM(R22:T22) -> 0 | V22: 0 | W22: 0 | X22: 0
A23: ='Org structure'!E19 -> 03.2 - Office Of The Speaker | C23: 0 | D23: 0 | E23: 0 | F23: 0 | G23: 0 | H23: 0 | I23: 0 | J23: =Q23+V23 -> 0 | K23: =U23+W23 -> 0 | L23: =X23 -> 0 | N23: 0 | O23: 0 | P23: 0 | Q23: =SUM(N23:P23) -> 0 | R23: 0 | S23: 0 | T23: 0 | U23: =SUM(R23:T23) -> 0 | V23: 0 | W23: 0 | X23: 0
A24: ='Org structure'!E20 -> 03.3 - Office Of The Chief Whip | C24: 0 | D24: 0 | E24: 0 | F24: 0 | G24: 0 | H24: 0 | I24: 0 | J24: =Q24+V24 -> 0 | K24: =U24+W24 -> 0 | L24: =X24 -> 0 | N24: 0 | O24: 0 | P24: 0 | Q24: =SUM(N24:P24) -> 0 | R24: 0 | S24: 0 | T24: 0 | U24: =SUM(R24:T24) -> 0 | V24: 0 | W24: 0 | X24: 0
A25: ='Org structure'!E21 -> 03.4 - Exco Members | C25: 0 | D25: 0 | E25: 0 | F25: 0 | G25: 0 | H25: 0 | I25: 0 | J25: =Q25+V25 -> 0 | K25: =U25+W25 -> 0 | L25: =X25 -> 0 | N25: 0 | O25: 0 | P25: 0 | Q25: =SUM(N25:P25) -> 0 | R25: 0 | S25: 0 | T25: 0 | U25: =SUM(R25:T25) -> 0 | V25: 0 | W25: 0 | X25: 0
A26: ='Org structure'!E22 -> 03.5 - Council General Administration | C26: 0 | D26: 0 | E26: 0 | F26: 0 | G26: 0 | H26: 0 | I26: 0 | J26: =Q26+V26 -> 0 | K26: =U26+W26 -> 0 | L26: =X26 -> 0 | N26: 0 | O26: 0 | P26: 0 | Q26: =SUM(N26:P26) -> 0 | R26: 0 | S26: 0 | T26: 0 | U26: =SUM(R26:T26) -> 0 | V26: 0 | W26: 0 | X26: 0
A27: ='Org structure'!A5 -> Vote 04 - Budget And Treasury | C27: =SUM(C28:C34) -> 58650 | D27: 0 | E27: 0 | F27: 500000 | G27: 0 | H27: 0 | I27: 0 | J27: 2100000 | K27: 0 | L27: 0 | N27: =SUM(N28:N34) -> 2100000 | O27: 0 | P27: 0 | Q27: 2100000 | R27: 0 | S27: 0 | T27: 0 | U27: 0 | V27: 0 | W27: 0 | X27: 0
A28: ='Org structure'!E24 -> 04.1 - Budget And Treasury Admin | C28: 0 | D28: 0 | E28: 0 | F28: 0 | G28: 0 | H28: 0 | I28: 0 | J28: =Q28+V28 -> 1500000 | K28: =U28+W28 -> 0 | L28: =X28 -> 0 | N28: 1500000 | O28: 0 | P28: 0 | Q28: =SUM(N28:P28) -> 1500000 | R28: 0 | S28: 0 | T28: 0 | U28: =SUM(R28:T28) -> 0 | V28: 0 | W28: 0 | X28: 0
A29: ='Org structure'!E25 -> 04.2 - Chief Financial Officer Admin | C29: 0 | D29: 0 | E29: 0 | F29: 0 | G29: 0 | H29: 0 | I29: 0 | J29: 0 | K29: 0 | L29: 0 | N29: 0 | O29: 0 | P29: 0 | Q29: 0 | R29: 0 | S29: 0 | T29: 0 | U29: 0 | V29: 0 | W29: 0 | X29: 0
A30: ='Org structure'!E26 -> 04.3 - Budget & Reporting | C30: 0 | D30: 0 | E30: 0 | F30: 0 | G30: 0 | H30: 0 | I30: 0 | J30: 0 | K30: 0 | L30: 0 | N30: 0 | O30: 0 | P30: 0 | Q30: 0 | R30: 0 | S30: 0 | T30: 0 | U30: 0 | V30: 0 | W30: 0 | X30: 0
A31: ='Org structure'!E27 -> 04.4 - Budget & Reporting | C31: 0 | D31: 0 | E31: 0 | F31: 0 | G31: 0 | H31: 0 | I31: 0 | J31: 0 | K31: 0 | L31: 0 | N31: 0 | O31: 0 | P31: 0 | Q31: 0 | R31: 0 | S31: 0 | T31: 0 | U31: 0 | V31: 0 | W31: 0 | X31: 0
A32: ='Org structure'!E28 -> 04.5 - Revenue Management | C32: 58650 | D32: 0 | E32: 0 | F32: 0 | G32: 0 | H32: 0 | I32: 0 | J32: 600000 | K32: 0 | L32: 0 | N32: 600000 | O32: 0 | P32: 0 | Q32: 600000 | R32: 0 | S32: 0 | T32: 0 | U32: 0 | V32: 0 | W32: 0 | X32: 0
A33: ='Org structure'!E29 -> 04.6 - Supply Chain Management | C33: 0 | D33: 0 | E33: 0 | F33: 500000 | G33: 0 | H33: 0 | I33: 0 | J33: 0 | K33: 0 | L33: 0 | N33: 0 | O33: 0 | P33: 0 | Q33: 0 | R33: 0 | S33: 0 | T33: 0 | U33: 0 | V33: 0 | W33: 0 | X33: 0
A34: ='Org structure'!E30 -> 04.7 - Expenditure | C34: 0 | D34: 0 | E34: 0 | F34: 0 | G34: 0 | H34: 0 | I34: 0 | J34: 0 | K34: 0 | L34: 0 | N34: 0 | O34: 0 | P34: 0 | Q34: 0 | R34: 0 | S34: 0 | T34: 0 | U34: 0 | V34: 0 | W34: 0 | X34: 0
A35: ='Org structure'!A6 -> Vote 05 - Community Services | C35: =SUM(C36:C42) -> 714276 | D35: 1156205.28 | E35: 763043.48 | F35: 2300000 | G35: 2470000 | H35: 2470000 | I35: 2170000 | J35: 400000 | K35: 14835790 | L35: 21404925 | N35: =SUM(N36:N42) -> 400000 | O35: 0 | P35: 0 | Q35: 400000 | R35: 14835790 | S35: 0 | T35: 0 | U35: 14835790 | V35: 0 | W35: 0 | X35: 21404925
A36: ='Org structure'!E32 -> 05.1 - Community Services Admin | C36: 0 | D36: 1156205.28 | E36: 0 | F36: 100000 | G36: 300000 | H36: 300000 | I36: 0 | J36: =Q36+V36 -> 400000 | K36: =U36+W36 -> 0 | L36: =X36 -> 0 | N36: 400000 | O36: 0 | P36: 0 | Q36: =SUM(N36:P36) -> 400000 | R36: 0 | S36: 0 | T36: 0 | U36: =SUM(R36:T36) -> 0 | V36: 0 | W36: 0 | X36: 0
A37: ='Org structure'!E33 -> 05.2 - Libraries | C37: 0 | D37: 0 | E37: 0 | F37: 0 | G37: 0 | H37: 0 | I37: 0 | J37: 0 | K37: 0 | L37: 0 | N37: 0 | O37: 0 | P37: 0 | Q37: 0 | R37: 0 | S37: 0 | T37: 0 | U37: 0 | V37: 0 | W37: 0 | X37: 0
A38: ='Org structure'!E34 -> 05.3 - Sports Recreation & Social Amenitie | C38: 714276 | D38: 0 | E38: 600000 | F38: 2200000 | G38: 2170000 | H38: 2170000 | I38: 2170000 | J38: 0 | K38: 14835790 | L38: 21404925 | N38: 0 | O38: 0 | P38: 0 | Q38: 0 | R38: 14835790 | S38: 0 | T38: 0 | U38: 14835790 | V38: 0 | W38: 0 | X38: 21404925
A39: ='Org structure'!E35 -> 05.4 - Traffic Service | C39: 0 | D39: 0 | E39: 0 | F39: 0 | G39: 0 | H39: 0 | I39: 0 | J39: 0 | K39: 0 | L39: 0 | N39: 0 | O39: 0 | P39: 0 | Q39: 0 | R39: 0 | S39: 0 | T39: 0 | U39: 0 | V39: 0 | W39: 0 | X39: 0
A40: ='Org structure'!E36 -> 05.5 - Traffic Service | C40: 0 | D40: 0 | E40: 163043.48 | F40: 0 | G40: 0 | H40: 0 | I40: 0 | J40: 0 | K40: 0 | L40: 0 | N40: 0 | O40: 0 | P40: 0 | Q40: 0 | R40: 0 | S40: 0 | T40: 0 | U40: 0 | V40: 0 | W40: 0 | X40: 0
A41: ='Org structure'!E37 -> 05.6 - Parks; Cemeteries | C41: 0 | D41: 0 | E41: 0 | F41: 0 | G41: 0 | H41: 0 | I41: 0 | J41: 0 | K41: 0 | L41: 0 | N41: 0 | O41: 0 | P41: 0 | Q41: 0 | R41: 0 | S41: 0 | T41: 0 | U41: 0 | V41: 0 | W41: 0 | X41: 0
A42: ='Org structure'!E38 -> 05.7 - Refuse | C42: 0 | D42: 0 | E42: 0 | F42: 0 | G42: 0 | H42: 0 | I42: 0 | J42: 0 | K42: 0 | L42: 0 | N42: 0 | O42: 0 | P42: 0 | Q42: 0 | R42: 0 | S42: 0 | T42: 0 | U42: 0 | V42: 0 | W42: 0 | X42: 0
A43: ='Org structure'!A7 -> Vote 06 - Technical Services | C43: =SUM(C44:C51) -> 36055534.08 | D43: 44102368.51 | E43: 43970102.42 | F43: 50452400 | G43: 54384325 | H43: 54384325 | I43: 38436191.38 | J43: 65748350 | K43: 41673160 | L43: 31734327 | N43: =SUM(N44:N51) -> 65748350 | O43: 0 | P43: 0 | Q43: 65748350 | R43: 41673160 | S43: 0 | T43: 0 | U43: 41673160 | V43: 0 | W43: 0 | X43: 31734327
A44: ='Org structure'!E40 -> 06.1 - Mpac | C44: 0 | D44: 0 | E44: 0 | F44: 0 | G44: 0 | H44: 0 | I44: 0 | J44: =Q44+V44 -> 0 | K44: =U44+W44 -> 0 | L44: =X44 -> 0 | N44: 0 | O44: 0 | P44: 0 | Q44: =SUM(N44:P44) -> 0 | R44: 0 | S44: 0 | T44: 0 | U44: =SUM(R44:T44) -> 0 | V44: 0 | W44: 0 | X44: 0
A45: ='Org structure'!E41 -> 06.2 - Technical Services Admin | C45: 0 | D45: 0 | E45: 0 | F45: 0 | G45: 0 | H45: 0 | I45: 0 | J45: 0 | K45: 0 | L45: 0 | N45: 0 | O45: 0 | P45: 0 | Q45: 0 | R45: 0 | S45: 0 | T45: 0 | U45: 0 | V45: 0 | W45: 0 | X45: 0
A46: ='Org structure'!E42 -> 06.3 - Techn Serv-Roads: Admin | C46: 0 | D46: 0 | E46: 0 | F46: 45702400 | G46: 45954174 | H46: 45954174 | I46: 33334268.53 | J46: 44080350 | K46: 16388370 | L46: 0 | N46: 44080350 | O46: 0 | P46: 0 | Q46: 44080350 | R46: 16388370 | S46: 0 | T46: 0 | U46: 16388370 | V46: 0 | W46: 0 | X46: 0
A47: ='Org structure'!E43 -> 06.4 - Techn Serv-Stormwater: Admin | C47: 32725678.08 | D47: 32308940.09 | E47: 35386182.54 | F47: 0 | G47: 0 | H47: 0 | I47: 0 | J47: 2300000 | K47: 14835790 | L47: 21404925 | N47: 2300000 | O47: 0 | P47: 0 | Q47: 2300000 | R47: 14835790 | S47: 0 | T47: 0 | U47: 14835790 | V47: 0 | W47: 0 | X47: 21404925
A48: ='Org structure'!E44 -> 06.5 - Project Management Unit | C48: 0 | D48: 0 | E48: 192500 | F48: 0 | G48: 0 | H48: 0 | I48: 0 | J48: 0 | K48: 0 | L48: 0 | N48: 0 | O48: 0 | P48: 0 | Q48: 0 | R48: 0 | S48: 0 | T48: 0 | U48: 0 | V48: 0 | W48: 0 | X48: 0
A49: ='Org structure'!E45 -> 06.6 - Electrical & Machinery | C49: 3329856 | D49: 11793428.42 | E49: 8391419.88 | F49: 4750000 | G49: 8430151 | H49: 8430151 | I49: 5101922.85 | J49: 19368000 | K49: 10449000 | L49: 10329402 | N49: 19368000 | O49: 0 | P49: 0 | Q49: 19368000 | R49: 10449000 | S49: 0 | T49: 0 | U49: 10449000 | V49: 0 | W49: 0 | X49: 10329402
A50: ='Org structure'!E46 -> 06.7 - Water | C50: 0 | D50: 0 | E50: 0 | F50: 0 | G50: 0 | H50: 0 | I50: 0 | J50: 0 | K50: 0 | L50: 0 | N50: 0 | O50: 0 | P50: 0 | Q50: 0 | R50: 0 | S50: 0 | T50: 0 | U50: 0 | V50: 0 | W50: 0 | X50: 0
A51: ='Org structure'!E47 -> 06.8 - Sanitation | C51: 0 | D51: 0 | E51: 0 | F51: 0 | G51: 0 | H51: 0 | I51: 0 | J51: 0 | K51: 0 | L51: 0 | N51: 0 | O51: 0 | P51: 0 | Q51: 0 | R51: 0 | S51: 0 | T51: 0 | U51: 0 | V51: 0 | W51: 0 | X51: 0
A52: ='Org structure'!A8 -> Vote 07 - | C52: 0 | D52: 0 | E52: 0 | F52: 0 | G52: 0 | H52: 0 | I52: 0 | J52: 0 | K52: 0 | L52: 0 | N52: 0 | O52: 0 | P52: 0 | Q52: 0 | R52: 0 | S52: 0 | T52: 0 | U52: 0 | V52: 0 | W52: 0
A53: ='Org structure'!A9 -> Vote 08 - | C53: 0 | D53: 0 | E53: 0 | F53: 0 | G53: 0 | H53: 0 | I53: 0 | J53: 0 | K53: 0 | L53: 0 | N53: 0 | O53: 0 | P53: 0 | Q53: 0 | R53: 0 | S53: 0 | T53: 0 | U53: 0 | V53: 0 | W53: 0
A54: ='Org structure'!A10 -> Vote 09 - | C54: 0 | D54: 0 | E54: 0 | F54: 0 | G54: 0 | H54: 0 | I54: 0 | J54: 0 | K54: 0 | L54: 0 | N54: 0 | O54: 0 | P54: 0 | Q54: 0 | R54: 0 | S54: 0 | T54: 0 | U54: 0 | V54: 0 | W54: 0
A55: ='Org structure'!A11 -> Vote 10 - | C55: 0 | D55: 0 | E55: 0 | F55: 0 | G55: 0 | H55: 0 | I55: 0 | J55: 0 | K55: 0 | L55: 0 | N55: 0 | O55: 0 | P55: 0 | Q55: 0 | R55: 0 | S55: 0 | T55: 0 | U55: 0 | V55: 0 | W55: 0
A56: ='Org structure'!A12 -> Vote 11 - | C56: 0 | D56: 0 | E56: 0 | F56: 0 | G56: 0 | H56: 0 | I56: 0 | J56: 0 | K56: 0 | L56: 0 | N56: 0 | O56: 0 | P56: 0 | Q56: 0 | R56: 0 | S56: 0 | T56: 0 | U56: 0 | V56: 0 | W56: 0
A57: ='Org structure'!A13 -> Vote 12 - | C57: 0 | D57: 0 | E57: 0 | F57: 0 | G57: 0 | H57: 0 | I57: 0 | J57: 0 | K57: 0 | L57: 0 | N57: 0 | O57: 0 | P57: 0 | Q57: 0 | R57: 0 | S57: 0 | T57: 0 | U57: 0 | V57: 0 | W57: 0
A58: ='Org structure'!A14 -> Vote 13 - | C58: 0 | D58: 0 | E58: 0 | F58: 0 | G58: 0 | H58: 0 | I58: 0 | J58: 0 | K58: 0 | L58: 0 | N58: 0 | O58: 0 | P58: 0 | Q58: 0 | R58: 0 | S58: 0 | T58: 0 | U58: 0 | V58: 0 | W58: 0
A59: ='Org structure'!A15 -> Vote 14 - | C59: 0 | D59: 0 | E59: 0 | F59: 0 | G59: 0 | H59: 0 | I59: 0 | J59: 0 | K59: 0 | L59: 0 | N59: 0 | O59: 0 | P59: 0 | Q59: 0 | R59: 0 | S59: 0 | T59: 0 | U59: 0 | V59: 0 | W59: 0
A60: ='Org structure'!A16 -> Vote 15 - Other | C60: 0 | D60: 0 | E60: 0 | F60: 0 | G60: 0 | H60: 0 | I60: 0 | J60: 0 | K60: 0 | L60: 0 | N60: 0 | O60: 0 | P60: 0 | Q60: 0 | R60: 0 | S60: 0 | T60: 0 | U60: 0 | V60: 0 | W60: 0
A61: Capital multi-year expenditure sub-total | C61: =C6+C15+C21+C27+C35+C43+C52+C53+C54+C55+C56+C57+C58+C59+C60 -> 38284503.29 | D61: 50056507.07 | E61: 47186287.17 | F61: 58022400 | G61: 58830625 | H61: 58830625 | I61: 42581396.51 | J61: 72380350 | K61: 60958950 | L61: 53279850 | N61: =N6+N15+N21+N27+N35+N43+N52+N53+N54+N55+N56+N57+N58+N59+N60 -> 72380350 | O61: 0 | P61: 0 | Q61: 72380350 | R61: 60958950 | S61: 0 | T61: 0 | U61: 60958950 | V61: 0 | W61: 0
A63: Capital expenditure - Municipal Vote
A64: Single-year expenditure appropriation | B64: 2
A65: ='Org structure'!A2 -> Vote 01 - Corporate Services | C65: =SUM(C66:C73) -> 0 | D65: 0 | E65: 0 | F65: 0 | G65: 0 | H65: 0 | I65: 0 | J65: 0 | K65: 0 | L65: 0
A66: ='Org structure'!E3 -> 01.1 - Corporate Services Admin | C66: 0 | D66: 0 | E66: 0 | F66: 0 | G66: 0 | H66: 0 | I66: 0 | J66: 0 | K66: 0 | L66: 0
A67: ='Org structure'!E4 -> 01.2 - Human Resources | C67: 0 | D67: 0 | E67: 0 | F67: 0 | G67: 0 | H67: 0 | I67: 0 | J67: 0 | K67: 0 | L67: 0
A68: ='Org structure'!E5 -> 01.3 - Information Technology Services | C68: 0 | D68: 0 | E68: 0 | F68: 0 | G68: 0 | H68: 0 | I68: 0 | J68: 0 | K68: 0 | L68: 0
A69: ='Org structure'!E6 -> 01.4 - Council Support | C69: 0 | D69: 0 | E69: 0 | F69: 0 | G69: 0 | H69: 0 | I69: 0 | J69: 0 | K69: 0 | L69: 0
A70: ='Org structure'!E7 -> 01.5 - Local Economic Development | C70: 0 | D70: 0 | E70: 0 | F70: 0 | G70: 0 | H70: 0 | I70: 0 | J70: 0 | K70: 0 | L70: 0
A71: ='Org structure'!E8 -> 01.6 - Municipal Planning Idp | C71: 0 | D71: 0 | E71: 0 | F71: 0 | G71: 0 | H71: 0 | I71: 0 | J71: 0 | K71: 0 | L71: 0
A72: ='Org structure'!E9 -> 01.7 - Town & Regional Planning | C72: 0 | D72: 0 | E72: 0 | F72: 0 | G72: 0 | H72: 0 | I72: 0 | J72: 0 | K72: 0 | L72: 0
A73: ='Org structure'!E10 -> 01.8 - Led Administration | C73: 0 | D73: 0 | E73: 0 | F73: 0 | G73: 0 | H73: 0 | I73: 0 | J73: 0 | K73: 0 | L73: 0
A74: ='Org structure'!A3 -> Vote 02 - Municipal Manager | C74: =SUM(C75:C79) -> 0 | D74: 0 | E74: 0 | F74: 0 | G74: 0 | H74: 0 | I74: 0 | J74: 0 | K74: 0 | L74: 0
A75: ='Org structure'!E12 -> 02.1 - Municipal Manager Admin | C75: 0 | D75: 0 | E75: 0 | F75: 0 | G75: 0 | H75: 0 | I75: 0 | J75: 0 | K75: 0 | L75: 0
A76: ='Org structure'!E13 -> 02.2 - Legal Services | C76: 0 | D76: 0 | E76: 0 | F76: 0 | G76: 0 | H76: 0 | I76: 0 | J76: 0 | K76: 0 | L76: 0
A77: ='Org structure'!E14 -> 02.3 - Political Office Beares | C77: 0 | D77: 0 | E77: 0 | F77: 0 | G77: 0 | H77: 0 | I77: 0 | J77: 0 | K77: 0 | L77: 0
A78: ='Org structure'!E15 -> 02.4 - Pms | C78: 0 | D78: 0 | E78: 0 | F78: 0 | G78: 0 | H78: 0 | I78: 0 | J78: 0 | K78: 0 | L78: 0
A79: ='Org structure'!E16 -> 02.5 - Internal Audit | C79: 0 | D79: 0 | E79: 0 | F79: 0 | G79: 0 | H79: 0 | I79: 0 | J79: 0 | K79: 0 | L79: 0
A80: ='Org structure'!A4 -> Vote 03 - Mayors Office | C80: =SUM(C81:C85) -> 0 | D80: 0 | E80: 0 | F80: 0 | G80: 0 | H80: 0 | I80: 0 | J80: 0 | K80: 0 | L80: 0
A81: ='Org structure'!E18 -> 03.1 - Mayors Office Admin | C81: 0 | D81: 0 | E81: 0 | F81: 0 | G81: 0 | H81: 0 | I81: 0 | J81: 0 | K81: 0 | L81: 0
A82: ='Org structure'!E19 -> 03.2 - Office Of The Speaker | C82: 0 | D82: 0 | E82: 0 | F82: 0 | G82: 0 | H82: 0 | I82: 0 | J82: 0 | K82: 0 | L82: 0
A83: ='Org structure'!E20 -> 03.3 - Office Of The Chief Whip | C83: 0 | D83: 0 | E83: 0 | F83: 0 | G83: 0 | H83: 0 | I83: 0 | J83: 0 | K83: 0 | L83: 0
A84: ='Org structure'!E21 -> 03.4 - Exco Members | C84: 0 | D84: 0 | E84: 0 | F84: 0 | G84: 0 | H84: 0 | I84: 0 | J84: 0 | K84: 0 | L84: 0
A85: ='Org structure'!E22 -> 03.5 - Council General Administration | C85: 0 | D85: 0 | E85: 0 | F85: 0 | G85: 0 | H85: 0 | I85: 0 | J85: 0 | K85: 0 | L85: 0
A86: ='Org structure'!A5 -> Vote 04 - Budget And Treasury | C86: =SUM(C87:C93) -> 0 | D86: 0 | E86: 0 | F86: 0 | G86: 0 | H86: 0 | I86: 0 | J86: 0 | K86: 0 | L86: 0
A87: ='Org structure'!E24 -> 04.1 - Budget And Treasury Admin | C87: 0 | D87: 0 | E87: 0 | F87: 0 | G87: 0 | H87: 0 | I87: 0 | J87: 0 | K87: 0 | L87: 0
A88: ='Org structure'!E25 -> 04.2 - Chief Financial Officer Admin | C88: 0 | D88: 0 | E88: 0 | F88: 0 | G88: 0 | H88: 0 | I88: 0 | J88: 0 | K88: 0 | L88: 0
A89: ='Org structure'!E26 -> 04.3 - Budget & Reporting | C89: 0 | D89: 0 | E89: 0 | F89: 0 | G89: 0 | H89: 0 | I89: 0 | J89: 0 | K89: 0 | L89: 0
A90: ='Org structure'!E27 -> 04.4 - Budget & Reporting | C90: 0 | D90: 0 | E90: 0 | F90: 0 | G90: 0 | H90: 0 | I90: 0 | J90: 0 | K90: 0 | L90: 0
A91: ='Org structure'!E28 -> 04.5 - Revenue Management | C91: 0 | D91: 0 | E91: 0 | F91: 0 | G91: 0 | H91: 0 | I91: 0 | J91: 0 | K91: 0 | L91: 0
A92: ='Org structure'!E29 -> 04.6 - Supply Chain Management | C92: 0 | D92: 0 | E92: 0 | F92: 0 | G92: 0 | H92: 0 | I92: 0 | J92: 0 | K92: 0 | L92: 0
A93: ='Org structure'!E30 -> 04.7 - Expenditure | C93: 0 | D93: 0 | E93: 0 | F93: 0 | G93: 0 | H93: 0 | I93: 0 | J93: 0 | K93: 0 | L93: 0
A94: ='Org structure'!A6 -> Vote 05 - Community Services | C94: =SUM(C95:C101) -> 0 | D94: 0 | E94: 0 | F94: 0 | G94: 0 | H94: 0 | I94: 0 | J94: 0 | K94: 0 | L94: 0
A95: ='Org structure'!E32 -> 05.1 - Community Services Admin | C95: 0 | D95: 0 | E95: 0 | F95: 0 | G95: 0 | H95: 0 | I95: 0 | J95: 0 | K95: 0 | L95: 0
A96: ='Org structure'!E33 -> 05.2 - Libraries | C96: 0 | D96: 0 | E96: 0 | F96: 0 | G96: 0 | H96: 0 | I96: 0 | J96: 0 | K96: 0 | L96: 0
A97: ='Org structure'!E34 -> 05.3 - Sports Recreation & Social Amenitie | C97: 0 | D97: 0 | E97: 0 | F97: 0 | G97: 0 | H97: 0 | I97: 0 | J97: 0 | K97: 0 | L97: 0
A98: ='Org structure'!E35 -> 05.4 - Traffic Service | C98: 0 | D98: 0 | E98: 0 | F98: 0 | G98: 0 | H98: 0 | I98: 0 | J98: 0 | K98: 0 | L98: 0
A99: ='Org structure'!E36 -> 05.5 - Traffic Service | C99: 0 | D99: 0 | E99: 0 | F99: 0 | G99: 0 | H99: 0 | I99: 0 | J99: 0 | K99: 0 | L99: 0
A100: ='Org structure'!E37 -> 05.6 - Parks; Cemeteries | C100: 0 | D100: 0 | E100: 0 | F100: 0 | G100: 0 | H100: 0 | I100: 0 | J100: 0 | K100: 0 | L100: 0
A101: ='Org structure'!E38 -> 05.7 - Refuse | C101: 0 | D101: 0 | E101: 0 | F101: 0 | G101: 0 | H101: 0 | I101: 0 | J101: 0 | K101: 0 | L101: 0
A102: ='Org structure'!A7 -> Vote 06 - Technical Services | C102: =SUM(C103:C110) -> 0 | D102: 0 | E102: 1500948.77 | F102: 0 | G102: 0 | H102: 0 | I102: 0 | J102: 0 | K102: 4611000 | L102: 0
A103: ='Org structure'!E40 -> 06.1 - Mpac | C103: 0 | D103: 0 | E103: 0 | F103: 0 | G103: 0 | H103: 0 | I103: 0 | J103: 0 | K103: 0 | L103: 0
A104: ='Org structure'!E41 -> 06.2 - Technical Services Admin | C104: 0 | D104: 0 | E104: 0 | F104: 0 | G104: 0 | H104: 0 | I104: 0 | J104: 0 | K104: 0 | L104: 0
A105: ='Org structure'!E42 -> 06.3 - Techn Serv-Roads: Admin | C105: 0 | D105: 0 | E105: 0 | F105: 0 | G105: 0 | H105: 0 | I105: 0 | J105: 0 | K105: 0 | L105: 0
A106: ='Org structure'!E43 -> 06.4 - Techn Serv-Stormwater: Admin | C106: 0 | D106: 0 | E106: 0 | F106: 0 | G106: 0 | H106: 0 | I106: 0 | J106: 0 | K106: 0 | L106: 0
A107: ='Org structure'!E44 -> 06.5 - Project Management Unit | C107: 0 | D107: 0 | E107: 0 | F107: 0 | G107: 0 | H107: 0 | I107: 0 | J107: 0 | K107: 0 | L107: 0
A108: ='Org structure'!E45 -> 06.6 - Electrical & Machinery | C108: 0 | D108: 0 | E108: 1500948.77 | F108: 0 | G108: 0 | H108: 0 | I108: 0 | J108: 0 | K108: 4611000 | L108: 0
A109: ='Org structure'!E46 -> 06.7 - Water | C109: 0 | D109: 0 | E109: 0 | F109: 0 | G109: 0 | H109: 0 | I109: 0 | J109: 0 | K109: 0 | L109: 0
A110: ='Org structure'!E47 -> 06.8 - Sanitation | C110: 0 | D110: 0 | E110: 0 | F110: 0 | G110: 0 | H110: 0 | I110: 0 | J110: 0 | K110: 0 | L110: 0
A111: ='Org structure'!A8 -> Vote 07 - | C111: 0 | D111: 0 | E111: 0 | F111: 0 | G111: 0 | H111: 0 | I111: 0 | J111: 0 | K111: 0 | L111: 0
A112: ='Org structure'!A9 -> Vote 08 - | C112: 0 | D112: 0 | E112: 0 | F112: 0 | G112: 0 | H112: 0 | I112: 0 | J112: 0 | K112: 0 | L112: 0
A113: ='Org structure'!A10 -> Vote 09 - | C113: 0 | D113: 0 | E113: 0 | F113: 0 | G113: 0 | H113: 0 | I113: 0 | J113: 0 | K113: 0 | L113: 0
A114: ='Org structure'!A11 -> Vote 10 - | C114: 0 | D114: 0 | E114: 0 | F114: 0 | G114: 0 | H114: 0 | I114: 0 | J114: 0 | K114: 0 | L114: 0
A115: ='Org structure'!A12 -> Vote 11 - | C115: 0 | D115: 0 | E115: 0 | F115: 0 | G115: 0 | H115: 0 | I115: 0 | J115: 0 | K115: 0 | L115: 0
A116: ='Org structure'!A13 -> Vote 12 - | C116: 0 | D116: 0 | E116: 0 | F116: 0 | G116: 0 | H116: 0 | I116: 0 | J116: 0 | K116: 0 | L116: 0
A117: ='Org structure'!A14 -> Vote 13 - | C117: 0 | D117: 0 | E117: 0 | F117: 0 | G117: 0 | H117: 0 | I117: 0 | J117: 0 | K117: 0 | L117: 0
A118: ='Org structure'!A15 -> Vote 14 - | C118: 0 | D118: 0 | E118: 0 | F118: 0 | G118: 0 | H118: 0 | I118: 0 | J118: 0 | K118: 0 | L118: 0
A119: ='Org structure'!A16 -> Vote 15 - Other | C119: 0 | D119: 0 | E119: 0 | F119: 0 | G119: 0 | H119: 0 | I119: 0 | J119: 0 | K119: 0 | L119: 0
A120: Capital single-year expenditure sub-total | C120: =C65+C74+C80+C86+C94+C102+C111+C112+C113+C114+C115+C116+C117+C118+C119 -> 0 | D120: 0 | E120: 1500948.77 | F120: 0 | G120: 0 | H120: 0 | I120: 0 | J120: 0 | K120: 4611000 | L120: 0
A121: Total Capital Expenditure | C121: =C61+C120 -> 38284503.29 | D121: 50056507.07 | E121: 48687235.94 | F121: 58022400 | G121: 58830625 | H121: 58830625 | I121: 42581396.51 | J121: 72380350 | K121: 65569950 | L121: 53279850

Sheet A6-FinPos
A1: =muni&" - "&Approve6 -> LIM353 Molemole - Table A6 Budgeted Financial Position
A2: =desc -> Description | B2: =head27 -> Ref | C2: =head1b -> 2019/20 | D2: =head1A -> 2020/21 | E2: =Head1 -> 2021/22 | F2: =Head2 -> Current Year 2022/23 | J2: =Head3 -> 2023/24 Medium Term Revenue & Expenditure Framework
A3: R thousand | C3: =Head5 -> Audited Outcome | D3: =Head5 -> Audited Outcome | E3: =Head5 -> Audited Outcome | F3: =Head6 -> Original Budget | G3: =Head7 -> Adjusted Budget | H3: =Head8 -> Full Year Forecast | I3: =Head5b -> Pre-audit outcome | J3: =Head9 -> Budget Year 2023/24 | K3: =Head10 -> Budget Year +1 2024/25 | L3: =Head11 -> Budget Year +2 2025/26
A4: ASSETS
A5: Current assets
A6: Cash and cash equivalents | C6: 23010965.15 | D6: 90535179.78 | E6: 105267742.5 | F6: 106551365 | G6: 118877103 | H6: 118877103 | I6: 135756554.6 | J6: 135175666 | K6: 133200946 | L6: 149211758
A7: Trade and other receivables from exchange transactions | B7: 1 | C7: ='SA3'!C19 -> 2539186.87 | D7: ='SA3'!D19 -> 2383517.9 | E7: ='SA3'!E19 -> 3829088.4 | F7: ='SA3'!F19 -> 3080887 | G7: ='SA3'!G19 -> 3080887 | H7: ='SA3'!H19 -> 3080887 | I7: ='SA3'!I19 -> 7435056.36 | J7: ='SA3'!J19 -> 12889568 | K7: ='SA3'!K19 -> 13533515 | L7: ='SA3'!L19 -> 14210746
A8: Receivables from non-exchange transactions | B8: 1 | C8: ='SA3'!C28 -> 73012571.72 | D8: ='SA3'!D28 -> 56083054.49 | E8: ='SA3'!E28 -> 58016734.64 | F8: ='SA3'!F28 -> 104580995 | G8: ='SA3'!G28 -> 80309649 | H8: ='SA3'!H28 -> 80309649 | I8: ='SA3'!I28 -> 69549955.8 | J8: ='SA3'!J28 -> 87148749 | K8: ='SA3'!K28 -> 91506187 | L8: ='SA3'!L28 -> 96081501
A9: Current portion of non-current receivables | C9: 0 | D9: 0 | E9: 0 | F9: 0 | G9: 0 | H9: 0 | I9: 0 | J9: 0 | K9: 0 | L9: 0
A10: Inventory | B10: 2 | C10: ='SA3'!C123 -> 261304.43 | D10: ='SA3'!D123 -> 1052291.03 | E10: ='SA3'!E123 -> 546908.25 | F10: ='SA3'!F123 -> 546908.25 | G10: ='SA3'!G123 -> 546908.25 | H10: ='SA3'!H123 -> 546908.25 | I10: ='SA3'!I123 -> 1284831.2 | J10: ='SA3'!J123 -> 546908.25 | K10: ='SA3'!K123 -> 546908.25 | L10: ='SA3'!L123 -> 546908.25
A11: VAT | C11: 15760081.17 | D11: 10735998.81 | E11: 3772145.77 | F11: 18115435 | G11: 13772782 | H11: 13772782 | I11: -4434202.46 | J11: 9461421 | K11: 10184492 | L11: 10943717
A12: Other current assets | C12: 251797.54 | D12: 2741289.65 | E12: 792859.72 | F12: 2174351 | G12: 2177351 | H12: 2177351 | I12: 3163216.58 | J12: 2292392 | K12: 2400532 | L12: 2520559
A13: Total current assets | C13: =SUM(C6:C12) -> 114835906.9 | D13: 163531331.7 | E13: 172225479.3 | F13: 235049941.2 | G13: 218764680.2 | H13: 218764680.2 | I13: 212755412.1 | J13: 247514704.2 | K13: 251372580.2 | L13: 273515189.2
A14: Non current assets
A15: Investments | C15: 0 | D15: 0 | E15: 0 | F15: 0 | G15: 0 | H15: 0 | I15: 0 | J15: 0 | K15: 0 | L15: 0
A16: Investment property | C16: 1657667.59 | D16: 1614334.23 | E16: 1546000.9 | F16: 1755951 | G16: 1755951 | H16: 1755951 | I16: 1470310.67 | J16: 1843748 | K16: 1935935 | L16: 2032732
A17: Property, plant and equipment | B17: 3 | C17: ='SA3'!C129 -> 270824813.6 | D17: ='SA3'!D129 -> 303421567.5 | E17: ='SA3'!E129 -> 334024913.5 | F17: ='SA3'!F129 -> 342420105 | G17: ='SA3'!G129 -> 342128330 | H17: ='SA3'!H129 -> 342128330 | I17: ='SA3'!I129 -> 345155440.4 | J17: ='SA3'!J129 -> 399631421 | K17: ='SA3'!K129 -> 409258573 | L17: ='SA3'!L129 -> 413152907
A18: Biological assets
A19: Living and non-living resources
A20: Heritage assets | C20: 368150 | D20: 380300 | E20: 392850 | F20: 368150 | G20: 408150 | H20: 408150 | I20: 392850 | J20: 428558 | K20: 449986 | L20: 472485
A21: Intangible assets | C21: -69659.86 | D21: -3.9 | E21: 1150571.42 | F21: 1037819 | G21: 1037819 | H21: 1037819 | I21: 1544587.09 | J21: 2765623 | K21: 1392189 | L21: 1531409
A22: Trade and other receivables from exchange transactions
A23: Non-current receivables from non-exchange transactions
A24: Other non-current assets
A25: Total non current assets | C25: =SUM(C15:C24) -> 272780971.3 | D25: =SUM(D15:D24) -> 305416197.8 | E25: 337114335.8 | F25: 345582025 | G25: 345330250 | H25: 345330250 | I25: 348563188.2 | J25: 404669350 | K25: 413036683 | L25: 417189533
A26: TOTAL ASSETS | C26: =C13+C25 -> 387616878.2 | D26: =D13+D25 -> 468947529.5 | E26: =E13+E25 -> 509339815.2 | F26: =F13+F25 -> 580631966.2 | G26: 564094930.2 | H26: 564094930.2 | I26: 561318600.3 | J26: 652184054.2 | K26: 664409263.2 | L26: 690704722.2
A27: LIABILITIES
A28: Current liabilities
A29: Bank overdraft
A30: Financial liabilities | C30: ='SA3'!C135 -> 251667.55 | D30: ='SA3'!D135 -> 0 | E30: ='SA3'!E135 -> 0 | F30: ='SA3'!F135 -> 0 | G30: ='SA3'!G135 -> 0 | H30: ='SA3'!H135 -> 0 | I30: ='SA3'!I135 -> 0 | J30: ='SA3'!J135 -> 0 | K30: ='SA3'!K135 -> 0 | L30: ='SA3'!L135 -> 0
A31: Consumer deposits | C31: 504476.48 | D31: 505376.48 | E31: 509126.48 | F31: 530646 | G31: 530646 | H31: 530646 | I31: 509126.48 | J31: 557179 | K31: 585038 | L31: 614290
A32: Trade and other payables from exchange transactions | B32: 4 | C32: 38606608.93 | D32: 34090612.88 | E32: 33618941.76 | F32: 40338096 | G32: 47338096 | H32: 47338096 | I32: 35389364.15 | J32: 46186364 | K32: 48745676 | L32: 51432958
A33: Trade and other payables from non-exchange transactions | B33: 5 | C33: 1128322.73 | D33: 628749.91 | E33: 2806431.66 | F33: 628750 | G33: 628750 | H33: 628750 | I33: 17493855.06 | J33: 774232 | K33: 812944 | L33: 853592
A34: Provision | C34: 151000 | D34: 273000 | E34: 813975.43 | F34: 485398 | G34: 485398 | H34: 485398 | I34: 813975.43 | J34: 509668 | K34: 535152 | L34: 561909
A35: VAT | C35: 1151180.07 | D35: 439813.08 | E35: -10963900.42 | F35: 439815 | G35: -1990977 | H35: -1990977 | I35: -17023760.91 | J35: 2709927 | K35: 2925425 | L35: 3159696
A36: Other current liabilities | C36: 54999.9 | D36: 29959.98 | E36: 54999.18 | F36: 368981 | G36: 868981 | H36: 868981 | I36: 21143.58 | J36: 912431 | K36: 958052 | L36: 1005955
A37: Total current liabilities | C37: =SUM(C29:C36) -> 41848255.66 | D37: 35967512.33 | E37: 26839574.09 | F37: 42791686 | G37: 47860894 | H37: 47860894 | I37: 37203703.79 | J37: 51649801 | K37: 54562287 | L37: 57628400
A38: Non current liabilities
A39: Financial liabilities | B39: 6 | C39: ='SA3'!C147 -> 0 | D39: ='SA3'!D147 -> 0 | E39: ='SA3'!E147 -> 0 | F39: ='SA3'!F147 -> 0 | G39: ='SA3'!G147 -> 0 | H39: ='SA3'!H147 -> 0 | I39: ='SA3'!I147 -> 0 | J39: ='SA3'!J147 -> 0 | K39: ='SA3'!K147 -> 0 | L39: ='SA3'!L147 -> 0
A40: Provision | B40: 7 | C40: ='SA3'!C154 -> 22965829.8 | D40: ='SA3'!D154 -> 26098177.59 | E40: ='SA3'!E154 -> 27271261.98 | F40: ='SA3'!F154 -> 30007362 | G40: ='SA3'!G154 -> 30007362 | H40: ='SA3'!H154 -> 30007362 | I40: ='SA3'!I154 -> 27271261.98 | J40: ='SA3'!J154 -> 29998391 | K40: ='SA3'!K154 -> 32998229 | L40: ='SA3'!L154 -> 36298051
A41: Long term portion of trade payables
A42: Other non-current liabilities
A43: Total non current liabilities | C43: =SUM(C39:C42) -> 22965829.8 | D43: 26098177.59 | E43: 27271261.98 | F43: 30007362 | G43: 30007362 | H43: 30007362 | I43: 27271261.98 | J43: 29998391 | K43: 32998229 | L43: 36298051
A44: TOTAL LIABILITIES | C44: =C37+C43 -> 64814085.46 | D44: =D37+D43 -> 62065689.92 | E44: =E37+E43 -> 54110836.07 | F44: =F37+F43 -> 72799048 | G44: 77868256 | H44: 77868256 | I44: 64474965.77 | J44: 81648192 | K44: =K37+K43 -> 87560516 | L44: 93926451
A45: NET ASSETS | C45: =C26-C44 -> 322802792.8 | D45: 406881839.5 | E45: 455228979.1 | F45: 507832918.2 | G45: 486226674.2 | H45: 486226674.2 | I45: 496843634.5 | J45: 570535862.2 | K45: 576848747.2 | L45: 596778271.2
A46: COMMUNITY WEALTH/EQUITY
A47: Accumulated surplus/(deficit) | B47: 8 | C47: ='SA3'!C166 -> 280994141 | D47: ='SA3'!D166 -> 368235505.7 | E47: ='SA3'!E166 -> 413700564.2 | F47: ='SA3'!F166 -> 457534666 | G47: ='SA3'!G166 -> 437060104 | H47: ='SA3'!H166 -> 437060104 | I47: ='SA3'!I166 -> 456207897.6 | J47: ='SA3'!J166 -> 521027366 | K47: ='SA3'!K166 -> 524864827 | L47: ='SA3'!L166 -> 542195153
A48: Reserves and funds | B48: 9 | C48: ='SA3'!C173 -> 47695019.87 | D48: ='SA3'!D173 -> 47695019.87 | E48: ='SA3'!E173 -> 46194071.1 | F48: ='SA3'!F173 -> 50695020 | G48: ='SA3'!G173 -> 49195020 | H48: ='SA3'!H173 -> 49195020 | I48: ='SA3'!I173 -> 46194071.1 | J48: ='SA3'!J173 -> 49508496 | K48: ='SA3'!K173 -> 51983920 | L48: ='SA3'!L173 -> 54583117
A49: Other
A50: TOTAL COMMUNITY WEALTH/EQUITY | B50: 10 | C50: =SUM(C47:C49) -> 328689160.9 | D50: =SUM(D47:D49) -> 415930525.6 | E50: 459894635.3 | F50: 508229686 | G50: 486255124 | H50: 486255124 | I50: 502401968.7 | J50: 570535862 | K50: 576848747 | L50: 596778270
A51: =head27a -> References
A52: 1. Detail breakdown in Table SA3 for Trade receivables from Exchange and Non-exchange transactions
A53: 2. Include completed low cost housing to be transferred to beneficiaries within 12 months detail provided in Table SA3
A54: 3. Include 'Construction-work-in-progress' (disclosed separately in annual financial statements) detail in SA3
A55: 4. Detail breakdown in Table SA3.
A56: 5. Detail breakdown in Table SA3.
A57: 6. Detail breakdown in Table SA3.
A58: 7 Detail breakdown in Table SA3.
A59: 8. Detail breakdown in Table SA3.
A60: 9. Detail breakdown in Table SA3. Includes reserves to be funded by statute.
A61: 10. Net assets must balance with Total Community Wealth/Equity
A62: check balance | C62: =IF((C45-C50)=0,0,"Unbalanced") -> Unbalanced | D62: Unbalanced | E62: Unbalanced | F62: Unbalanced | G62: Unbalanced | H62: Unbalanced | I62: Unbalanced | J62: Unbalanced | K62: Unbalanced | L62: Unbalanced

Sheet A7-CFlow
A1: =muni&" - "&Approve7 -> LIM353 Molemole - Table A7 Budgeted Cash Flows
A2: =desc -> Description | B2: =head27 -> Ref | C2: =head1b -> 2019/20 | D2: =head1A -> 2020/21 | E2: =Head1 -> 2021/22 | F2: =Head2 -> Current Year 2022/23 | J2: =Head3 -> 2023/24 Medium Term Revenue & Expenditure Framework
A3: R thousand | C3: =Head5 -> Audited Outcome | D3: =Head5 -> Audited Outcome | E3: =Head5 -> Audited Outcome | F3: =Head6 -> Original Budget | G3: =Head7 -> Adjusted Budget | H3: =Head8 -> Full Year Forecast | I3: =Head5b -> Pre-audit outcome | J3: =Head9 -> Budget Year 2023/24 | K3: =Head10 -> Budget Year +1 2024/25 | L3: =Head11 -> Budget Year +2 2025/26
A4: CASH FLOW FROM OPERATING ACTIVITIES
A5: Receipts
A6: Property rates | C6: 0 | D6: 24795465.79 | E6: 27308054.71 | F6: 46927001 | G6: 34922804 | H6: 34922804 | I6: 15228526.89 | J6: ='SA30'!N5 -> 39153931 | K6: ='SA30'!O5 -> 41111628 | L6: ='SA30'!P5 -> 43167210
A7: Service charges | C7: 0 | D7: 913810.93 | E7: 2789364.86 | F7: 21751649 | G7: 21751649 | H7: 21751649 | I7: 1648211.17 | J7: ='SA30'!N6+'SA30'!N7+'SA30'!N8+'SA30'!N9 -> 19547041 | K7: ='SA30'!O6+'SA30'!O7+'SA30'!O8+'SA30'!O9 -> 20521380 | L7: ='SA30'!P6+'SA30'!P7+'SA30'!P8+'SA30'!P9 -> 21550614
A8: Other revenue | C8: 0 | D8: 136771128.2 | E8: 496699700 | F8: 181242237 | G8: 181874267 | H8: 181874267 | I8: 348697666.4 | J8: ='SA30'!N11+'SA30'!N15+'SA30'!N16+'SA30'!N17+'SA30'!N19 -> 13008926 | K8: ='SA30'!O11+'SA30'!O15+'SA30'!O16+'SA30'!O17+'SA30'!O19 -> 13662384 | L8: ='SA30'!P11+'SA30'!P15+'SA30'!P16+'SA30'!P17+'SA30'!P19 -> 14342338
A9: Transfers and Subsidies - Operational | B9: 1 | C9: 0 | D9: 408229.59 | E9: 4729000 | F9: 5696600 | G9: 6336600 | H9: 6336600 | I9: 125024000 | J9: ='SA30'!N18 -> 183700650 | K9: ='SA30'!O18 -> 192509050 | L9: ='SA30'!P18 -> 185454150
A10: Transfers and Subsidies - Capital | B10: 1 | C10: 0 | D10: 11418300 | E10: 47000000 | F10: 37802400 | G10: 40418842 | H10: 40418842 | I10: 39792000 | J10: ='SA30'!N23+'SA30'!N24 -> 58548350 | K10: ='SA30'!O23+'SA30'!O24 -> 51508950 | L10: ='SA30'!P23+'SA30'!P24 -> 53726850
A11: Interest | C11: 0 | D11: 765244.94 | E11: 0 | F11: 3000000 | G11: 7750000 | H11: 7750000 | I11: 0 | J11: ='SA30'!N12+'SA30'!N13 -> 9600000 | K11: ='SA30'!O12+'SA30'!O13 -> 7571218 | L11: ='SA30'!P12+'SA30'!P13 -> 7927065
A12: Dividends | J12: ='SA30'!N14 -> 0 | K12: ='SA30'!O14 -> 0 | L12: ='SA30'!P14 -> 0
A13: Payments
A14: Suppliers and employees | C14: 0 | D14: -113741062.6 | E14: -140890590.9 | F14: -221394977 | G14: -213454783 | H14: -213454783 | I14: -297908586.6 | J14: =-('SA30'!N35+'SA30'!N36+'SA30'!N38+'SA30'!N39+'SA30'!N40+'SA30'!N41+'SA30'!N44+'SA30'!N50) -> -234742120 | K14: =-('SA30'!O35+'SA30'!O36+'SA30'!O38+'SA30'!O39+'SA30'!O40+'SA30'!O41+'SA30'!O44+'SA30'!O50) -> -244055272 | L14: =-('SA30'!P35+'SA30'!P36+'SA30'!P38+'SA30'!P39+'SA30'!P40+'SA30'!P41+'SA30'!P44+'SA30'!P50) -> -254762433
A15: Interest | J15: =-('SA30'!N37) -> 0 | K15: =-('SA30'!O37) -> 0 | L15: =-('SA30'!P37) -> 0
A16: Transfers and Subsidies | B16: 1 | J16: =-('SA30'!N42+'SA30'!N43) -> 0 | K16: =-('SA30'!O42+'SA30'!O43) -> 0 | L16: =-('SA30'!P42+'SA30'!P43) -> 0
A17: NET CASH FROM/(USED) OPERATING ACTIVITIES | C17: =SUM(C6:C12)+SUM(C14:C16) -> 0 | D17: 61331116.85 | E17: 437635528.6 | F17: 75024910 | G17: 79599379 | H17: 79599379 | I17: 232481817.8 | J17: 88816778 | K17: 82829338 | L17: 71405794
A18: CASH FLOWS FROM INVESTING ACTIVITIES
A19: Receipts
A20: Proceeds on disposal of PPE | J20: ='SA30'!N25 -> 0 | K20: ='SA30'!O25 -> 0 | L20: ='SA30'!P25 -> 0
A22: Decrease (increase) in non-current receivables | J22: ='SA30'!N30 -> 0 | K22: ='SA30'!O30 -> 0 | L22: ='SA30'!P30 -> 0
A23: Decrease (increase) in non-current investments | C23: 0 | D23: 0 | E23: 0 | F23: 0 | G23: 0 | H23: 0 | I23: 0 | J23: ='SA30'!N31 -> 0 | K23: ='SA30'!O31 -> 0 | L23: ='SA30'!P31 -> 0
A24: Payments
A25: Capital assets | C25: 0 | D25: -28732617.37 | E25: -48687235.94 | F25: -58022400 | G25: -58830625 | H25: -58830625 | I25: -35337285.17 | J25: =-('SA30'!N48) -> -72380350 | K25: =-('SA30'!O48) -> -65569950 | L25: =-('SA30'!P48) -> -53279850
A26: NET CASH FROM/(USED) INVESTING ACTIVITIES | C26: =+C20+C22+C23+C25 -> 0 | D26: =+D20+D22+D23+D25 -> -28732617.37 | E26: -48687235.94 | F26: -58022400 | G26: -58830625 | H26: -58830625 | I26: -35337285.17 | J26: -72380350 | K26: -65569950 | L26: -53279850
A28: CASH FLOWS FROM FINANCING ACTIVITIES
A29: Receipts
A30: Short term loans | J30: ='SA30'!N26 -> 0 | K30: ='SA30'!O26 -> 0 | L30: ='SA30'!P26 -> 0
A31: Borrowing long term/refinancing | J31: ='SA30'!N27 -> 0 | K31: ='SA30'!O27 -> 0 | L31: ='SA30'!P27 -> 0
A32: Increase (decrease) in consumer deposits | J32: ='SA30'!N28 -> 0 | K32: ='SA30'!O28 -> 0 | L32: ='SA30'!P28 -> 0
A33: Payments
A34: Repayment of borrowing | C34: 0 | D34: 0 | E34: 0 | F34: 0 | G34: 0 | H34: 0 | I34: 0 | J34: =-('SA30'!N49) -> 0 | K34: =-('SA30'!O49) -> 0 | L34: =-('SA30'!P49) -> 0
A35: NET CASH FROM/(USED) FINANCING ACTIVITIES | C35: =SUM(C30:C32)+C34 -> 0 | D35: =SUM(D30:D32)+D34 -> 0 | E35: 0 | F35: 0 | G35: 0 | H35: 0 | I35: 0 | J35: 0 | K35: 0 | L35: 0
A37: NET INCREASE/ (DECREASE) IN CASH HELD | C37: =C17+C26+C35 -> 0 | D37: 32598499.48 | E37: 388948292.7 | F37: 17002510 | G37: 20768754 | H37: 20768754 | I37: 197144532.7 | J37: 16436428 | K37: 17259388 | L37: 18125944
A38: Cash/cash equivalents at the year begin: | B38: 2 | C38: 19363525.35 | D38: 23010965.15 | E38: 89545719.12 | F38: 89549142 | G38: 105267744 | H38: 105267744 | I38: 0 | J38: ='SA30'!N54 -> 118872002 | K38: =J39 -> 135308430 | L38: =K39 -> 152567818
A39: Cash/cash equivalents at the year end: | B39: 2 | C39: =C37+C38 -> 19363525.35 | D39: =D37+D38 -> 55609464.63 | E39: =E37+E38 -> 478494011.8 | F39: =F37+F38 -> 106551652 | G39: 126036498 | H39: 126036498 | I39: 197144532.7 | J39: 135308430 | K39: 152567818 | L39: 170693762
A40: =head27a -> References
A41: 1. Local/District municipalities to include transfers from/to District/Local Municipalities
A42: 2. Cash equivalents includes investments with maturities of 3 months or less
A43: 3. The MTREF is populated directly from SA30.
A44: Total receipts | C44: =SUM(C6:C12)+SUM(C20:C22) -> 0 | D44: 175072179.5 | E44: 578526119.6 | F44: 296419887 | G44: 293054162 | H44: 293054162 | I44: 530390404.5 | J44: 323558898 | K44: 326884610 | L44: 326168227
A45: Total payments | C45: =SUM(C14:C16)+C25 -> 0 | D45: -142473680 | E45: -189577826.9 | F45: -279417377 | G45: -272285408 | H45: -272285408 | I45: -333245871.8 | J45: -307122470 | K45: -309625222 | L45: -308042283
C46: =C44+C45 -> 0 | D46: =D44+D45 -> 32598499.48 | E46: 388948292.7 | F46: 17002510 | G46: 20768754 | H46: 20768754 | I46: 197144532.7 | J46: 16436428 | K46: 17259388 | L46: 18125944
A47: Borrowings & investments & c.deposits | C47: =C23+C31+C32 -> 0 | D47: =D23+D31+D32 -> 0 | E47: 0 | F47: 0 | G47: 0 | H47: 0 | I47: 0 | J47: 0 | K47: 0 | L47: 0
A48: =A34 -> Repayment of borrowing | C48: =C34 -> 0 | D48: =D34 -> 0 | E48: 0 | F48: 0 | G48: 0 | H48: 0 | I48: =I34 -> 0 | J48: 0 | K48: 0 | L48: 0
C49: =C46+C47+C48 -> 0 | D49: =D46+D47+D48 -> 32598499.48 | E49: 388948292.7 | F49: 17002510 | G49: 20768754 | H49: 20768754 | I49: 197144532.7 | J49: 16436428 | K49: 17259388 | L49: 18125944
C50: =C37-C49 -> 0 | D50: 0 | E50: 0 | F50: 0 | G50: 0 | H50: 0 | I50: 0 | J50: 0 | K50: 0 | L50: 0

Sheet A8-ResRecon
A1: =muni&" - "&Approve8 -> LIM353 Molemole - Table A8 Cash backed reserves/accumulated surplus reconciliation
A2: =desc -> Description | B2: =head27 -> Ref | C2: =head1b -> 2019/20 | D2: =head1A -> 2020/21 | E2: =Head1 -> 2021/22 | F2: =Head2 -> Current Year 2022/23 | J2: =Head3 -> 2023/24 Medium Term Revenue & Expenditure Framework
A3: R thousand | C3: =Head5 -> Audited Outcome | D3: =Head5 -> Audited Outcome | E3: =Head5 -> Audited Outcome | F3: =Head6 -> Original Budget | G3: =Head7 -> Adjusted Budget | H3: =Head8 -> Full Year Forecast | I3: =Head5b -> Pre-audit outcome | J3: =Head9 -> Budget Year 2023/24 | K3: =Head10 -> Budget Year +1 2024/25 | L3: =Head11 -> Budget Year +2 2025/26
A4: Cash and investments available
A5: =LEFT('A7-CFlow'!A39,37) -> Cash/cash equivalents at the year end | B5: 1 | C5: ='A7-CFlow'!C39 -> 19363525.35 | D5: ='A7-CFlow'!D39 -> 55609464.63 | E5: ='A7-CFlow'!E39 -> 478494011.8 | F5: ='A7-CFlow'!F39 -> 106551652 | G5: ='A7-CFlow'!G39 -> 126036498 | H5: ='A7-CFlow'!H39 -> 126036498 | I5: ='A7-CFlow'!I39 -> 197144532.7 | J5: ='A7-CFlow'!J39 -> 135308430 | K5: ='A7-CFlow'!K39 -> 152567818 | L5: ='A7-CFlow'!L39 -> 170693762
A6: Other current investments > 90 days | C6: ='A6-FinPos'!C6-'A6-FinPos'!C29-'A8-ResRecon'!C5 -> 3647439.8 | D6: ='A6-FinPos'!D6-'A6-FinPos'!D29-'A8-ResRecon'!D5 -> 34925715.15 | E6: ='A6-FinPos'!E6-'A6-FinPos'!E29-'A8-ResRecon'!E5 -> -373226269.3 | F6: ='A6-FinPos'!F6-'A6-FinPos'!F29-'A8-ResRecon'!F5 -> -287 | G6: ='A6-FinPos'!G6-'A6-FinPos'!G29-'A8-ResRecon'!G5 -> -7159395 | H6: ='A6-FinPos'!H6-'A6-FinPos'!H29-'A8-ResRecon'!H5 -> -7159395 | I6: ='A6-FinPos'!I6-'A6-FinPos'!I29-'A8-ResRecon'!I5 -> -61387978.09 | J6: ='A6-FinPos'!J6-'A6-FinPos'!J29-'A8-ResRecon'!J5 -> -132764 | K6: ='A6-FinPos'!K6-'A6-FinPos'!K29-'A8-ResRecon'!K5 -> -19366872 | L6: ='A6-FinPos'!L6-'A6-FinPos'!L29-'A8-ResRecon'!L5 -> -21482004
A7: Non current Investments | B7: 1 | C7: ='A6-FinPos'!C15 -> 0 | D7: ='A6-FinPos'!D15 -> 0 | E7: ='A6-FinPos'!E15 -> 0 | F7: ='A6-FinPos'!F15 -> 0 | G7: ='A6-FinPos'!G15 -> 0 | H7: ='A6-FinPos'!H15 -> 0 | I7: ='A6-FinPos'!I15 -> 0 | J7: ='A6-FinPos'!J15 -> 0 | K7: ='A6-FinPos'!K15 -> 0 | L7: ='A6-FinPos'!L15 -> 0
A8: Cash and investments available: | C8: =SUM(C5:C7) -> 23010965.15 | D8: =SUM(D5:D7) -> 90535179.78 | E8: 105267742.6 | F8: 106551365 | G8: 118877103 | H8: 118877103 | I8: 135756554.6 | J8: 135175666 | K8: 133200946 | L8: 149211758
A10: Application of cash and investments
A11: Unspent conditional transfers | C11: ='SA3'!C140 -> 1128322.73 | D11: ='SA3'!D140 -> 628749.91 | E11: ='SA3'!E140 -> 2806431.66 | F11: ='SA3'!F140 -> 628750 | G11: ='SA3'!G140 -> 628750 | H11: ='SA3'!H140 -> 628750 | I11: ='SA3'!I140 -> 17493855.06 | J11: ='SA3'!J140 -> 774232 | K11: ='SA3'!K140 -> 812944 | L11: ='SA3'!L140 -> 853592
A12: Unspent borrowing
A13: Statutory requirements | B13: 2
A14: Other working capital requirements | B14: 3 | C14: =-C32 -> 38606608.93 | D14: =-D32 -> 6260612.88 | E14: -106822058.2 | F14: =-F32 -> -30107904 | G14: -12072904 | H14: -12072904 | I14: -74647635.85 | J14: 27599364 | K14: 29229676 | L14: 30940958
A15: Other provisions
A16: Long term investments committed | B16: 4 | C16: =C42 -> 0 | D16: =D42 -> 0 | E16: 0 | F16: 0 | G16: 0 | H16: 0 | I16: 0 | J16: 0 | K16: 0 | L16: 0
A17: Reserves to be backed by cash/investments | B17: 5
A18: Total Application of cash and investments: | C18: =SUM(C11:C17) -> 39734931.66 | D18: =SUM(D11:D17) -> 6889362.79 | E18: -104015626.6 | F18: -29479154 | G18: -11444154 | H18: -11444154 | I18: -57153780.79 | J18: 28373596 | K18: 30042620 | L18: 31794550
A19: Surplus(shortfall) | C19: =C8-C18 -> -16723966.51 | D19: =D8-D18 -> 83645816.99 | E19: 209283369.1 | F19: 136030519 | G19: 130321257 | H19: 130321257 | I19: 192910335.4 | J19: 106802070 | K19: 103158326 | L19: 117417208
A20: =head27a -> References
A21: 1. Must reconcile with Budgeted Cash Flows
A22: 2. For example: VAT, taxation
A23: 3. Council approval for policy required - include sufficient working capital (e.g. allowing for a % of current debtors > 90 days as uncollectable)
A24: 4. For example: sinking fund requirements for borrowing
A25: 5. Council approval required for each reserve created and basis of cash backing of reserves - Total Reserves to be backed by cash/investments excl Valuation reserve
A28: Other working capital requirements
A29: Debtors | C29: =IF(ISERROR(ROUND(C35*C36,-3)),0,(ROUND(C35*C36,-3))) -> 0 | D29: =IF(ISERROR(ROUND(D35*D36,-3)),0,(ROUND(D35*D36,-3))) -> 27830000 | E29: 140441000 | F29: 70446000 | G29: 59411000 | H29: 59411000 | I29: 110037000 | J29: 18587000 | K29: 19516000 | L29: 20492000
A31: Creditors due | C31: ='SA3'!C138+'SA3'!C139 -> 38606608.93 | D31: ='SA3'!D138+'SA3'!D139 -> 34090612.88 | E31: ='SA3'!E138+'SA3'!E139 -> 33618941.76 | F31: ='SA3'!F138+'SA3'!F139 -> 40338096 | G31: ='SA3'!G138+'SA3'!G139 -> 47338096 | H31: ='SA3'!H138+'SA3'!H139 -> 47338096 | I31: ='SA3'!I138+'SA3'!I139 -> 35389364.15 | J31: ='SA3'!J138+'SA3'!J139 -> 46186364 | K31: ='SA3'!K138+'SA3'!K139 -> 48745676 | L31: ='SA3'!L138+'SA3'!L139 -> 51432958
A32: Total | C32: =C29-C31 -> -38606608.93 | D32: =D29-D31 -> -6260612.88 | E32: 106822058.2 | F32: 30107904 | G32: 12072904 | H32: 12072904 | I32: 74647635.85 | J32: -27599364 | K32: -29229676 | L32: -30940958
A34: Debtors collection assumptions
A35: Balance outstanding - debtors | C35: ='A6-FinPos'!C7+'A6-FinPos'!C8+'A6-FinPos'!C9+'A6-FinPos'!C22+'A6-FinPos'!C23+'A6-FinPos'!C24 -> 75551758.59 | D35: ='A6-FinPos'!D7+'A6-FinPos'!D8+'A6-FinPos'!D9+'A6-FinPos'!D22+'A6-FinPos'!D23+'A6-FinPos'!D24 -> 58466572.39 | E35: ='A6-FinPos'!E7+'A6-FinPos'!E8+'A6-FinPos'!E9+'A6-FinPos'!E22+'A6-FinPos'!E23+'A6-FinPos'!E24 -> 61845823.04 | F35: ='A6-FinPos'!F7+'A6-FinPos'!F8+'A6-FinPos'!F9+'A6-FinPos'!F22+'A6-FinPos'!F23+'A6-FinPos'!F24 -> 107661882 | G35: ='A6-FinPos'!G7+'A6-FinPos'!G8+'A6-FinPos'!G9+'A6-FinPos'!G22+'A6-FinPos'!G23+'A6-FinPos'!G24 -> 83390536 | H35: ='A6-FinPos'!H7+'A6-FinPos'!H8+'A6-FinPos'!H9+'A6-FinPos'!H22+'A6-FinPos'!H23+'A6-FinPos'!H24 -> 83390536 | I35: ='A6-FinPos'!I7+'A6-FinPos'!I8+'A6-FinPos'!I9+'A6-FinPos'!I22+'A6-FinPos'!I23+'A6-FinPos'!I24 -> 76985012.16 | J35: ='A6-FinPos'!J7+'A6-FinPos'!J8+'A6-FinPos'!J9+'A6-FinPos'!J22+'A6-FinPos'!J23+'A6-FinPos'!J24 -> 100038317 | K35: ='A6-FinPos'!K7+'A6-FinPos'!K8+'A6-FinPos'!K9+'A6-FinPos'!K22+'A6-FinPos'!K23+'A6-FinPos'!K24 -> 105039702 | L35: ='A6-FinPos'!L7+'A6-FinPos'!L8+'A6-FinPos'!L9+'A6-FinPos'!L22+'A6-FinPos'!L23+'A6-FinPos'!L24 -> 110292247
A36: Estimate of debtors collection rate | C36: =IF(ISERROR('SA10'!D10),0,('SA10'!D10)) -> 0 | D36: =IF(ISERROR('SA10'!E10),0,('SA10'!E10)) -> 0.4759901601 | E36: =IF(ISERROR('SA10'!F10),0,('SA10'!F10)) -> 2.270823816 | F36: =IF(ISERROR('SA10'!G10),0,('SA10'!G10)) -> 0.6543261238 | G36: =IF(ISERROR('SA10'!H10),0,('SA10'!H10)) -> 0.7124422013 | H36: =IF(ISERROR('SA10'!I10),0,('SA10'!I10)) -> 0.7124422013 | I36: =IF(ISERROR('SA10'!J10),0,('SA10'!J10)) -> 1.429333999 | J36: =IF(ISERROR('SA10'!K10),0,('SA10'!K10)) -> 0.1858000001 | K36: =IF(ISERROR('SA10'!L10),0,('SA10'!L10)) -> 0.1857999784 | L36: =IF(ISERROR('SA10'!M10),0,('SA10'!M10)) -> 0.1857999757
K39: `
A40: =A16 -> Long term investments committed
A41: Balance (Insert description; eg sinking fund)
C42: =SUM(C41:C41) -> 0 | D42: 0 | E42: 0 | F42: 0 | G42: 0 | H42: 0 | I42: 0 | J42: 0 | K42: 0 | L42: 0
A43: =A17 -> Reserves to be backed by cash/investments
A44: Housing Development Fund | C44: ='SA3'!C168 -> 0 | D44: ='SA3'!D168 -> 0 | E44: ='SA3'!E168 -> 0 | F44: ='SA3'!F168 -> 0 | G44: ='SA3'!G168 -> 0 | H44: ='SA3'!H168 -> 0 | I44: ='SA3'!I168 -> 0 | J44: ='SA3'!J168 -> 0 | K44: ='SA3'!K168 -> 0 | L44: ='SA3'!L168 -> 0
A45: Capital replacement | C45: ='SA3'!C169 -> 0 | D45: ='SA3'!D169 -> 0 | E45: ='SA3'!E169 -> -1500948.77 | F45: ='SA3'!F169 -> 0 | G45: ='SA3'!G169 -> 0 | H45: ='SA3'!H169 -> 0 | I45: ='SA3'!I169 -> -1500948.77 | J45: ='SA3'!J169 -> 0 | K45: ='SA3'!K169 -> 0 | L45: ='SA3'!L169 -> 0
A46: Self-insurance | C46: ='SA3'!C170 -> 0 | D46: ='SA3'!D170 -> 0 | E46: ='SA3'!E170 -> 0 | F46: ='SA3'!F170 -> 0 | G46: ='SA3'!G170 -> 0 | H46: ='SA3'!H170 -> 0 | I46: ='SA3'!I170 -> 0 | J46: ='SA3'!J170 -> 0 | K46: ='SA3'!K170 -> 0 | L46: ='SA3'!L170 -> 0
A47: Compensation for Occupational Injuries and Diseases
A48: Employee Benefit reserve
A49: Non-current Provisions reserve
A50: Valuation roll reserve
A51: Investment in associate account
A52: Capitalisation
B53: 6 | C53: =SUM(C44:C52) -> 0 | D53: 0 | E53: -1500948.77 | F53: 0 | G53: 0 | H53: 0 | I53: -1500948.77 | J53: 0 | K53: 0 | L53: 0
A54: Note:
A55: 6. Above reserves do not include Revaluation reserve. Revaluation reserve not required to be cash backed

Sheet A9-Asset
A1: =muni&" - "&Approve9 -> LIM353 Molemole - Table A9 Asset Management
A2: =desc -> Description | B2: =head27 -> Ref | C2: =head1b -> 2019/20 | D2: =head1A -> 2020/21 | E2: =Head1 -> 2021/22 | F2: =Head2 -> Current Year 2022/23 | I2: =Head3 -> 2023/24 Medium Term Revenue & Expenditure Framework
A3: R thousand | C3: =Head5 -> Audited Outcome | D3: =Head5 -> Audited Outcome | E3: =Head5 -> Audited Outcome | F3: =Head6 -> Original Budget | G3: =Head7 -> Adjusted Budget | H3: =Head8 -> Full Year Forecast | I3: =Head9 -> Budget Year 2023/24 | J3: =Head10 -> Budget Year +1 2024/25 | K3: =Head11 -> Budget Year +2 2025/26
A4: CAPITAL EXPENDITURE
A5: Total New Assets | B5: 1 | C5: =C15+C18+C19+C22+C25+C26+SUM(C29:C35)+C38 -> 34761372.64 | D5: =D15+D18+D19+D22+D25+D26+SUM(D29:D35)+D38 -> 43187914.29 | E5: 47322796.33 | F5: 46008019 | G5: 46816244 | H5: 46816244 | I5: 56694731 | J5: 50734160 | K5: 31874925
A6: Roads Infrastructure | C6: =SA34a!C7 -> 29015957.46 | D6: =SA34a!D7 -> 28471825.76 | E6: =SA34a!E7 -> 34516617.32 | F6: =SA34a!F7 -> 32788019 | G6: =SA34a!G7 -> 33494944 | H6: =SA34a!H7 -> 33494944 | I6: =SA34a!I7 -> 31094731 | J6: =SA34a!J7 -> 16388370 | K6: =SA34a!K7 -> 0
A7: Storm water Infrastructure | C7: =SA34a!C12 -> 0 | D7: =SA34a!D12 -> 0 | E7: =SA34a!E12 -> 869565.22 | F7: =SA34a!F12 -> 0 | G7: =SA34a!G12 -> 0 | H7: =SA34a!H12 -> 0 | I7: =SA34a!I12 -> 0 | J7: =SA34a!J12 -> 0 | K7: =SA34a!K12 -> 0
A8: Electrical Infrastructure | C8: =SA34a!C16 -> 2554266 | D8: =SA34a!D16 -> 11604393.62 | E8: =SA34a!E16 -> 8690972.52 | F8: =SA34a!F16 -> 4550000 | G8: =SA34a!G16 -> 8230151 | H8: =SA34a!H16 -> 8230151 | I8: =SA34a!I16 -> 19168000 | J8: =SA34a!J16 -> 15060000 | K8: =SA34a!K16 -> 10329402
A9: Water Supply Infrastructure | C9: =SA34a!C26 -> 0 | D9: =SA34a!D26 -> 0 | E9: =SA34a!E26 -> 0 | F9: =SA34a!F26 -> 0 | G9: =SA34a!G26 -> 0 | H9: =SA34a!H26 -> 0 | I9: =SA34a!I26 -> 0 | J9: =SA34a!J26 -> 0 | K9: =SA34a!K26 -> 0
A10: Sanitation Infrastructure | C10: =SA34a!C37 -> 0 | D10: =SA34a!D37 -> 0 | E10: =SA34a!E37 -> 0 | F10: =SA34a!F37 -> 0 | G10: =SA34a!G37 -> 0 | H10: =SA34a!H37 -> 0 | I10: =SA34a!I37 -> 0 | J10: =SA34a!J37 -> 0 | K10: =SA34a!K37 -> 0
A11: Solid Waste Infrastructure | C11: =SA34a!C44 -> 0 | D11: =SA34a!D44 -> 0 | E11: =SA34a!E44 -> 0 | F11: =SA34a!F44 -> 0 | G11: =SA34a!G44 -> 0 | H11: =SA34a!H44 -> 0 | I11: =SA34a!I44 -> 0 | J11: =SA34a!J44 -> 0 | K11: =SA34a!K44 -> 0
A12: Rail Infrastructure | C12: =SA34a!C52 -> 0 | D12: =SA34a!D52 -> 0 | E12: =SA34a!E52 -> 0 | F12: =SA34a!F52 -> 0 | G12: =SA34a!G52 -> 0 | H12: =SA34a!H52 -> 0 | I12: =SA34a!I52 -> 0 | J12: =SA34a!J52 -> 0 | K12: =SA34a!K52 -> 0
A13: Coastal Infrastructure | C13: =SA34a!C62 -> 0 | D13: =SA34a!D62 -> 0 | E13: =SA34a!E62 -> 0 | F13: =SA34a!F62 -> 0 | G13: =SA34a!G62 -> 0 | H13: =SA34a!H62 -> 0 | I13: =SA34a!I62 -> 0 | J13: =SA34a!J62 -> 0 | K13: =SA34a!K62 -> 0
A14: Information and Communication Infrastructure | C14: =SA34a!C68 -> 0 | D14: =SA34a!D68 -> 0 | E14: =SA34a!E68 -> 0 | F14: =SA34a!F68 -> 0 | G14: =SA34a!G68 -> 0 | H14: =SA34a!H68 -> 0 | I14: =SA34a!I68 -> 0 | J14: =SA34a!J68 -> 0 | K14: =SA34a!K68 -> 0
A15: Infrastructure | C15: =SUM(C6:C14) -> 31570223.46 | D15: =SUM(D6:D14) -> 40076219.38 | E15: 44077155.06 | F15: 37338019 | G15: 41725095 | H15: 41725095 | I15: 50262731 | J15: 31448370 | K15: 10329402
A16: Community Facilities | C16: =SA34a!C75 -> 0 | D16: =SA34a!D75 -> 0 | E16: =SA34a!E75 -> 0 | F16: =SA34a!F75 -> 0 | G16: =SA34a!G75 -> 0 | H16: =SA34a!H75 -> 0 | I16: =SA34a!I75 -> 0 | J16: =SA34a!J75 -> 14835790 | K16: =SA34a!K75 -> 21404925
A17: Sport and Recreation Facilities | C17: =SA34a!C98 -> 0 | D17: =SA34a!D98 -> 0 | E17: =SA34a!E98 -> 0 | F17: =SA34a!F98 -> 0 | G17: =SA34a!G98 -> 0 | H17: =SA34a!H98 -> 0 | I17: =SA34a!I98 -> 0 | J17: =SA34a!J98 -> 0 | K17: =SA34a!K98 -> 0
A18: Community Assets | C18: =SUM(C16:C17) -> 0 | D18: =SUM(D16:D17) -> 0 | E18: 0 | F18: 0 | G18: 0 | H18: 0 | I18: 0 | J18: 14835790 | K18: 21404925
A19: Heritage Assets | C19: =SA34a!C103 -> 0 | D19: =SA34a!D103 -> 0 | E19: =SA34a!E103 -> 0 | F19: =SA34a!F103 -> 0 | G19: =SA34a!G103 -> 0 | H19: =SA34a!H103 -> 0 | I19: =SA34a!I103 -> 0 | J19: =SA34a!J103 -> 0 | K19: =SA34a!K103 -> 0
A20: Revenue Generating | C20: =SA34a!C111 -> 0 | D20: =SA34a!D111 -> 0 | E20: =SA34a!E111 -> 0 | F20: =SA34a!F111 -> 0 | G20: =SA34a!G111 -> 0 | H20: =SA34a!H111 -> 0 | I20: =SA34a!I111 -> 0 | J20: =SA34a!J111 -> 0 | K20: =SA34a!K111 -> 0
A21: Non-revenue Generating | C21: =SA34a!C114 -> 0 | D21: =SA34a!D114 -> 0 | E21: =SA34a!E114 -> 0 | F21: =SA34a!F114 -> 0 | G21: =SA34a!G114 -> 0 | H21: =SA34a!H114 -> 0 | I21: =SA34a!I114 -> 0 | J21: =SA34a!J114 -> 0 | K21: =SA34a!K114 -> 0
A22: Investment properties | C22: =SUM(C20:C21) -> 0 | D22: =SUM(D20:D21) -> 0 | E22: 0 | F22: 0 | G22: 0 | H22: 0 | I22: 0 | J22: 0 | K22: 0
A23: Operational Buildings | C23: =SA34a!C119 -> 94250 | D23: =SA34a!D119 -> 0 | E23: =SA34a!E119 -> 0 | F23: =SA34a!F119 -> 2000000 | G23: =SA34a!G119 -> 0 | H23: =SA34a!H119 -> 0 | I23: =SA34a!I119 -> 200000 | J23: =SA34a!J119 -> 2750000 | K23: =SA34a!K119 -> 0
A24: Housing | C24: =SA34a!C131 -> 0 | D24: =SA34a!D131 -> 0 | E24: =SA34a!E131 -> 0 | F24: =SA34a!F131 -> 0 | G24: =SA34a!G131 -> 0 | H24: =SA34a!H131 -> 0 | I24: =SA34a!I131 -> 0 | J24: =SA34a!J131 -> 0 | K24: =SA34a!K131 -> 0
A25: Other Assets | C25: =SUM(C23:C24) -> 94250 | D25: =SUM(D23:D24) -> 0 | E25: 0 | F25: 2000000 | G25: 0 | H25: 0 | I25: 200000 | J25: 2750000 | K25: 0
A26: Biological or Cultivated Assets | C26: =SA34a!C136 -> 0 | D26: =SA34a!D136 -> 0 | E26: =SA34a!E136 -> 0 | F26: =SA34a!F136 -> 0 | G26: =SA34a!G136 -> 0 | H26: =SA34a!H136 -> 0 | I26: =SA34a!I136 -> 0 | J26: =SA34a!J136 -> 0 | K26: =SA34a!K136 -> 0
A27: Servitudes | C27: =SA34a!C140 -> 0 | D27: =SA34a!D140 -> 0 | E27: =SA34a!E140 -> 0 | F27: =SA34a!F140 -> 0 | G27: =SA34a!G140 -> 0 | H27: =SA34a!H140 -> 0 | I27: =SA34a!I140 -> 0 | J27: =SA34a!J140 -> 0 | K27: =SA34a!K140 -> 0
A28: Licences and Rights | C28: =SA34a!C141 -> 58650 | D28: =SA34a!D141 -> 0 | E28: =SA34a!E141 -> 0 | F28: =SA34a!F141 -> 0 | G28: =SA34a!G141 -> 0 | H28: =SA34a!H141 -> 0 | I28: =SA34a!I141 -> 1500000 | J28: =SA34a!J141 -> 0 | K28: =SA34a!K141 -> 0
A29: Intangible Assets | C29: =SUM(C27:C28) -> 58650 | D29: =SUM(D27:D28) -> 0 | E29: 0 | F29: 0 | G29: 0 | H29: 0 | I29: 1500000 | J29: 0 | K29: 0
A30: Computer Equipment | C30: =SA34a!C149 -> 995346.52 | D30: =SA34a!D149 -> 1518852.17 | E30: =SA34a!E149 -> 784569.14 | F30: =SA34a!F149 -> 2900000 | G30: =SA34a!G149 -> 2233849 | H30: =SA34a!H149 -> 2233849 | I30: =SA34a!I149 -> 2000000 | J30: =SA34a!J149 -> 0 | K30: =SA34a!K149 -> 0
A31: Furniture and Office Equipment | C31: =SA34a!C152 -> 255048.69 | D31: =SA34a!D152 -> 299643.69 | E31: =SA34a!E152 -> 299839.13 | F31: =SA34a!F152 -> 700000 | G31: =SA34a!G152 -> 157300 | H31: =SA34a!H152 -> 157300 | I31: =SA34a!I152 -> 300000 | J31: =SA34a!J152 -> 200000 | K31: =SA34a!K152 -> 140598
A32: Machinery and Equipment | C32: =SA34a!C155 -> 111398 | D32: =SA34a!D155 -> 437646.27 | E32: =SA34a!E155 -> 675640 | F32: =SA34a!F155 -> 870000 | G32: =SA34a!G155 -> 530000 | H32: =SA34a!H155 -> 530000 | I32: =SA34a!I155 -> 1432000 | J32: =SA34a!J155 -> 0 | K32: =SA34a!K155 -> 0
A33: Transport Assets | C33: =SA34a!C158 -> 1676455.97 | D33: =SA34a!D158 -> 855552.78 | E33: =SA34a!E158 -> 1485593 | F33: =SA34a!F158 -> 2200000 | G33: =SA34a!G158 -> 2170000 | H33: =SA34a!H158 -> 2170000 | I33: =SA34a!I158 -> 1000000 | J33: =SA34a!J158 -> 1500000 | K33: =SA34a!K158 -> 0
A34: Land | C34: =SA34a!C161 -> 0 | D34: =SA34a!D161 -> 0 | E34: =SA34a!E161 -> 0 | F34: =SA34a!F161 -> 0 | G34: =SA34a!G161 -> 0 | H34: =SA34a!H161 -> 0 | I34: =SA34a!I161 -> 0 | J34: =SA34a!J161 -> 0 | K34: =SA34a!K161 -> 0
A35: Zoo's, Marine and Non-biological Animals | C35: =SA34a!C164 -> 0 | D35: =SA34a!D164 -> 0 | E35: =SA34a!E164 -> 0 | F35: =SA34a!F164 -> 0 | G35: =SA34a!G164 -> 0 | H35: =SA34a!H164 -> 0 | I35: =SA34a!I164 -> 0 | J35: =SA34a!J164 -> 0 | K35: =SA34a!K164 -> 0
A36: Mature | C36: =SA34a!C168 -> 0 | D36: =SA34a!D168 -> 0 | E36: =SA34a!E168 -> 0 | F36: =SA34a!F168 -> 0 | G36: =SA34a!G168 -> 0 | H36: =SA34a!H168 -> 0 | I36: =SA34a!I168 -> 0 | J36: =SA34a!J168 -> 0 | K36: =SA34a!K168 -> 0
A37: Immature | C37: =SA34a!C171 -> 0 | D37: =SA34a!D171 -> 0 | E37: =SA34a!E171 -> 0 | F37: =SA34a!F171 -> 0 | G37: =SA34a!G171 -> 0 | H37: =SA34a!H171 -> 0 | I37: =SA34a!I171 -> 0 | J37: =SA34a!J171 -> 0 | K37: =SA34a!K171 -> 0
A38: Living Resources | C38: =SUM(C36:C37) -> 0 | D38: 0 | E38: 0 | F38: 0 | G38: 0 | H38: 0 | I38: 0 | J38: 0 | K38: 0
A40: Total Renewal of Existing Assets | B40: 2 | C40: =C50+C53+C54+C57+C60+C61+SUM(C64:C70)+C73 -> 3523130.65 | D40: =D50+D53+D54+D57+D60+D61+SUM(D64:D70)+D73 -> 6868592.78 | E40: 1201396.13 | F40: 12014381 | G40: 12014381 | H40: 12014381 | I40: 15685619 | J40: 14835790 | K40: 21404925
A41: Roads Infrastructure | C41: =SA34b!C7 -> 0 | D41: =SA34b!D7 -> 159302.6 | E41: =SA34b!E7 -> 0 | F41: =SA34b!F7 -> 12014381 | G41: =SA34b!G7 -> 12014381 | H41: =SA34b!H7 -> 12014381 | I41: =SA34b!I7 -> 12785619 | J41: =SA34b!J7 -> 0 | K41: =SA34b!K7 -> 0
A42: Storm water Infrastructure | C42: =SA34b!C12 -> 0 | D42: =SA34b!D12 -> 0 | E42: =SA34b!E12 -> 0 | F42: =SA34b!F12 -> 0 | G42: =SA34b!G12 -> 0 | H42: =SA34b!H12 -> 0 | I42: =SA34b!I12 -> 0 | J42: =SA34b!J12 -> 0 | K42: =SA34b!K12 -> 0
A43: Electrical Infrastructure | C43: =SA34b!C16 -> 775590 | D43: =SA34b!D16 -> 189034.8 | E43: =SA34b!E16 -> 1201396.13 | F43: =SA34b!F16 -> 0 | G43: =SA34b!G16 -> 0 | H43: =SA34b!H16 -> 0 | I43: =SA34b!I16 -> 0 | J43: =SA34b!J16 -> 0 | K43: =SA34b!K16 -> 0
A44: Water Supply Infrastructure | C44: =SA34b!C26 -> 0 | D44: =SA34b!D26 -> 0 | E44: =SA34b!E26 -> 0 | F44: =SA34b!F26 -> 0 | G44: =SA34b!G26 -> 0 | H44: =SA34b!H26 -> 0 | I44: =SA34b!I26 -> 0 | J44: =SA34b!J26 -> 0 | K44: =SA34b!K26 -> 0
A45: Sanitation Infrastructure | C45: =SA34b!C37 -> 0 | D45: =SA34b!D37 -> 0 | E45: =SA34b!E37 -> 0 | F45: =SA34b!F37 -> 0 | G45: =SA34b!G37 -> 0 | H45: =SA34b!H37 -> 0 | I45: =SA34b!I37 -> 0 | J45: =SA34b!J37 -> 0 | K45: =SA34b!K37 -> 0
A46: Solid Waste Infrastructure | C46: =SA34b!C44 -> 0 | D46: =SA34b!D44 -> 0 | E46: =SA34b!E44 -> 0 | F46: =SA34b!F44 -> 0 | G46: =SA34b!G44 -> 0 | H46: =SA34b!H44 -> 0 | I46: =SA34b!I44 -> 0 | J46: =SA34b!J44 -> 0 | K46: =SA34b!K44 -> 0
A47: Rail Infrastructure | C47: =SA34b!C52 -> 0 | D47: =SA34b!D52 -> 0 | E47: =SA34b!E52 -> 0 | F47: =SA34b!F52 -> 0 | G47: =SA34b!G52 -> 0 | H47: =SA34b!H52 -> 0 | I47: =SA34b!I52 -> 0 | J47: =SA34b!J52 -> 0 | K47: =SA34b!K52 -> 0
A48: Coastal Infrastructure | C48: =SA34b!C62 -> 0 | D48: =SA34b!D62 -> 0 | E48: =SA34b!E62 -> 0 | F48: =SA34b!F62 -> 0 | G48: =SA34b!G62 -> 0 | H48: =SA34b!H62 -> 0 | I48: =SA34b!I62 -> 0 | J48: =SA34b!J62 -> 0 | K48: =SA34b!K62 -> 0
A49: Information and Communication Infrastructure | C49: =SA34b!C68 -> 0 | D49: =SA34b!D68 -> 0 | E49: =SA34b!E68 -> 0 | F49: =SA34b!F68 -> 0 | G49: =SA34b!G68 -> 0 | H49: =SA34b!H68 -> 0 | I49: =SA34b!I68 -> 0 | J49: =SA34b!J68 -> 0 | K49: =SA34b!K68 -> 0
A50: Infrastructure | C50: =SUM(C41:C49) -> 775590 | D50: =SUM(D41:D49) -> 348337.4 | E50: 1201396.13 | F50: 12014381 | G50: 12014381 | H50: 12014381 | I50: 12785619 | J50: 0 | K50: 0
A51: Community Facilities | C51: =SA34b!C75 -> 0 | D51: =SA34b!D75 -> 0 | E51: =SA34b!E75 -> 0 | F51: =SA34b!F75 -> 0 | G51: =SA34b!G75 -> 0 | H51: =SA34b!H75 -> 0 | I51: =SA34b!I75 -> 0 | J51: =SA34b!J75 -> 0 | K51: =SA34b!K75 -> 0
A52: Sport and Recreation Facilities | C52: =SA34b!C98 -> 898256.36 | D52: =SA34b!D98 -> 3677811.73 | E52: =SA34b!E98 -> 0 | F52: =SA34b!F98 -> 0 | G52: =SA34b!G98 -> 0 | H52: =SA34b!H98 -> 0 | I52: =SA34b!I98 -> 2300000 | J52: =SA34b!J98 -> 14835790 | K52: =SA34b!K98 -> 21404925
A53: Community Assets | C53: =SUM(C51:C52) -> 898256.36 | D53: =SUM(D51:D52) -> 3677811.73 | E53: 0 | F53: 0 | G53: 0 | H53: 0 | I53: 2300000 | J53: 14835790 | K53: 21404925
A54: Heritage Assets | C54: =SA34b!C103 -> 0 | D54: =SA34b!D103 -> 0 | E54: =SA34b!E103 -> 0 | F54: =SA34b!F103 -> 0 | G54: =SA34b!G103 -> 0 | H54: =SA34b!H103 -> 0 | I54: =SA34b!I103 -> 0 | J54: =SA34b!J103 -> 0 | K54: =SA34b!K103 -> 0
A55: Revenue Generating | C55: =SA34b!C111 -> 0 | D55: =SA34b!D111 -> 0 | E55: =SA34b!E111 -> 0 | F55: =SA34b!F111 -> 0 | G55: =SA34b!G111 -> 0 | H55: =SA34b!H111 -> 0 | I55: =SA34b!I111 -> 0 | J55: =SA34b!J111 -> 0 | K55: =SA34b!K111 -> 0
A56: Non-revenue Generating | C56: =SA34b!C114 -> 0 | D56: =SA34b!D114 -> 0 | E56: =SA34b!E114 -> 0 | F56: =SA34b!F114 -> 0 | G56: =SA34b!G114 -> 0 | H56: =SA34b!H114 -> 0 | I56: =SA34b!I114 -> 0 | J56: =SA34b!J114 -> 0 | K56: =SA34b!K114 -> 0
A57: Investment properties | C57: =SUM(C55:C56) -> 0 | D57: =SUM(D55:D56) -> 0 | E57: 0 | F57: 0 | G57: 0 | H57: 0 | I57: 0 | J57: 0 | K57: 0
A58: Operational Buildings | C58: =SA34b!C119 -> 1849284.29 | D58: =SA34b!D119 -> 0 | E58: =SA34b!E119 -> 0 | F58: =SA34b!F119 -> 0 | G58: =SA34b!G119 -> 0 | H58: =SA34b!H119 -> 0 | I58: =SA34b!I119 -> 0 | J58: =SA34b!J119 -> 0 | K58: =SA34b!K119 -> 0
A59: Housing | C59: =SA34b!C131 -> 0 | D59: =SA34b!D131 -> 0 | E59: =SA34b!E131 -> 0 | F59: =SA34b!F131 -> 0 | G59: =SA34b!G131 -> 0 | H59: =SA34b!H131 -> 0 | I59: =SA34b!I131 -> 0 | J59: =SA34b!J131 -> 0 | K59: =SA34b!K131 -> 0
A60: Other Assets | C60: =SUM(C58:C59) -> 1849284.29 | D60: =SUM(D58:D59) -> 0 | E60: 0 | F60: 0 | G60: 0 | H60: 0 | I60: 0 | J60: 0 | K60: 0
A61: Biological or Cultivated Assets | C61: =SA34b!C136 -> 0 | D61: =SA34b!D136 -> 0 | E61: =SA34b!E136 -> 0 | F61: =SA34b!F136 -> 0 | G61: =SA34b!G136 -> 0 | H61: =SA34b!H136 -> 0 | I61: =SA34b!I136 -> 0 | J61: =SA34b!J136 -> 0 | K61: =SA34b!K136 -> 0
A62: Servitudes | C62: =SA34b!C140 -> 0 | D62: =SA34b!D140 -> 0 | E62: =SA34b!E140 -> 0 | F62: =SA34b!F140 -> 0 | G62: =SA34b!G140 -> 0 | H62: =SA34b!H140 -> 0 | I62: =SA34b!I140 -> 0 | J62: =SA34b!J140 -> 0 | K62: =SA34b!K140 -> 0
A63: Licences and Rights | C63: =SA34b!C141 -> 0 | D63: =SA34b!D141 -> 0 | E63: =SA34b!E141 -> 0 | F63: =SA34b!F141 -> 0 | G63: =SA34b!G141 -> 0 | H63: =SA34b!H141 -> 0 | I63: =SA34b!I141 -> 0 | J63: =SA34b!J141 -> 0 | K63: =SA34b!K141 -> 0
A64: Intangible Assets | C64: =SUM(C62:C63) -> 0 | D64: =SUM(D62:D63) -> 0 | E64: 0 | F64: 0 | G64: 0 | H64: 0 | I64: 0 | J64: 0 | K64: 0
A65: Computer Equipment | C65: =SA34b!C149 -> 0 | D65: =SA34b!D149 -> 2842443.65 | E65: =SA34b!E149 -> 0 | F65: =SA34b!F149 -> 0 | G65: =SA34b!G149 -> 0 | H65: =SA34b!H149 -> 0 | I65: =SA34b!I149 -> 0 | J65: =SA34b!J149 -> 0 | K65: =SA34b!K149 -> 0
A66: Furniture and Office Equipment | C66: =SA34b!C152 -> 0 | D66: =SA34b!D152 -> 0 | E66: =SA34b!E152 -> 0 | F66: =SA34b!F152 -> 0 | G66: =SA34b!G152 -> 0 | H66: =SA34b!H152 -> 0 | I66: =SA34b!I152 -> 600000 | J66: =SA34b!J152 -> 0 | K66: =SA34b!K152 -> 0
A67: Machinery and Equipment | C67: =SA34b!C155 -> 0 | D67: =SA34b!D155 -> 0 | E67: =SA34b!E155 -> 0 | F67: =SA34b!F155 -> 0 | G67: =SA34b!G155 -> 0 | H67: =SA34b!H155 -> 0 | I67: =SA34b!I155 -> 0 | J67: =SA34b!J155 -> 0 | K67: =SA34b!K155 -> 0
A68: Transport Assets | C68: =SA34b!C158 -> 0 | D68: =SA34b!D158 -> 0 | E68: =SA34b!E158 -> 0 | F68: =SA34b!F158 -> 0 | G68: =SA34b!G158 -> 0 | H68: =SA34b!H158 -> 0 | I68: =SA34b!I158 -> 0 | J68: =SA34b!J158 -> 0 | K68: =SA34b!K158 -> 0
A69: Land | C69: =SA34b!C161 -> 0 | D69: =SA34b!D161 -> 0 | E69: =SA34b!E161 -> 0 | F69: =SA34b!F161 -> 0 | G69: =SA34b!G161 -> 0 | H69: =SA34b!H161 -> 0 | I69: =SA34b!I161 -> 0 | J69: =SA34b!J161 -> 0 | K69: =SA34b!K161 -> 0
A70: Zoo's, Marine and Non-biological Animals | C70: =SA34b!C164 -> 0 | D70: =SA34b!D164 -> 0 | E70: =SA34b!E164 -> 0 | F70: =SA34b!F164 -> 0 | G70: =SA34b!G164 -> 0 | H70: =SA34b!H164 -> 0 | I70: =SA34b!I164 -> 0 | J70: =SA34b!J164 -> 0 | K70: =SA34b!K164 -> 0
A71: Mature | C71: =SA34b!C168 -> 0 | D71: =SA34b!D168 -> 0 | E71: =SA34b!E168 -> 0 | F71: =SA34b!F168 -> 0 | G71: =SA34b!G168 -> 0 | H71: =SA34b!H168 -> 0 | I71: =SA34b!I168 -> 0 | J71: =SA34b!J168 -> 0 | K71: =SA34b!K168 -> 0
A72: Immature | C72: =SA34b!C171 -> 0 | D72: =SA34b!D171 -> 0 | E72: =SA34b!E171 -> 0 | F72: =SA34b!F171 -> 0 | G72: =SA34b!G171 -> 0 | H72: =SA34b!H171 -> 0 | I72: =SA34b!I171 -> 0 | J72: =SA34b!J171 -> 0 | K72: =SA34b!K171 -> 0
A73: Living Resources | C73: =SUM(C71:C72) -> 0 | D73: 0 | E73: 0 | F73: 0 | G73: 0 | H73: 0 | I73: 0 | J73: 0 | K73: 0
A75: Total Upgrading of Existing Assets | B75: 6 | C75: =C85+C88+C89+C92+C95+C96+SUM(C99:C105)+C108 -> 0 | D75: =D85+D88+D89+D92+D95+D96+SUM(D99:D105)+D108 -> 0 | E75: 163043.48 | F75: 0 | G75: 0 | H75: 0 | I75: 0 | J75: 0 | K75: 0
A76: Roads Infrastructure | C76: =SA34e!C7 -> 0 | D76: =SA34e!D7 -> 0 | E76: =SA34e!E7 -> 0 | F76: =SA34e!F7 -> 0 | G76: =SA34e!G7 -> 0 | H76: =SA34e!H7 -> 0 | I76: =SA34e!I7 -> 0 | J76: =SA34e!J7 -> 0 | K76: =SA34e!K7 -> 0
A77: Storm water Infrastructure | C77: =SA34e!C12 -> 0 | D77: =SA34e!D12 -> 0 | E77: =SA34e!E12 -> 0 | F77: =SA34e!F12 -> 0 | G77: =SA34e!G12 -> 0 | H77: =SA34e!H12 -> 0 | I77: =SA34e!I12 -> 0 | J77: =SA34e!J12 -> 0 | K77: =SA34e!K12 -> 0
A78: Electrical Infrastructure | C78: =SA34e!C16 -> 0 | D78: =SA34e!D16 -> 0 | E78: =SA34e!E16 -> 0 | F78: =SA34e!F16 -> 0 | G78: =SA34e!G16 -> 0 | H78: =SA34e!H16 -> 0 | I78: =SA34e!I16 -> 0 | J78: =SA34e!J16 -> 0 | K78: =SA34e!K16 -> 0
A79: Water Supply Infrastructure | C79: =SA34e!C26 -> 0 | D79: =SA34e!D26 -> 0 | E79: =SA34e!E26 -> 0 | F79: =SA34e!F26 -> 0 | G79: =SA34e!G26 -> 0 | H79: =SA34e!H26 -> 0 | I79: =SA34e!I26 -> 0 | J79: =SA34e!J26 -> 0 | K79: =SA34e!K26 -> 0
A80: Sanitation Infrastructure | C80: =SA34e!C37 -> 0 | D80: =SA34e!D37 -> 0 | E80: =SA34e!E37 -> 0 | F80: =SA34e!F37 -> 0 | G80: =SA34e!G37 -> 0 | H80: =SA34e!H37 -> 0 | I80: =SA34e!I37 -> 0 | J80: =SA34e!J37 -> 0 | K80: =SA34e!K37 -> 0
A81: Solid Waste Infrastructure | C81: =SA34e!C44 -> 0 | D81: =SA34e!D44 -> 0 | E81: =SA34e!E44 -> 0 | F81: =SA34e!F44 -> 0 | G81: =SA34e!G44 -> 0 | H81: =SA34e!H44 -> 0 | I81: =SA34e!I44 -> 0 | J81: =SA34e!J44 -> 0 | K81: =SA34e!K44 -> 0
A82: Rail Infrastructure | C82: =SA34e!C52 -> 0 | D82: =SA34e!D52 -> 0 | E82: =SA34e!E52 -> 0 | F82: =SA34e!F52 -> 0 | G82: =SA34e!G52 -> 0 | H82: =SA34e!H52 -> 0 | I82: =SA34e!I52 -> 0 | J82: =SA34e!J52 -> 0 | K82: =SA34e!K52 -> 0
A83: Coastal Infrastructure | C83: =SA34e!C62 -> 0 | D83: =SA34e!D62 -> 0 | E83: =SA34e!E62 -> 0 | F83: =SA34e!F62 -> 0 | G83: =SA34e!G62 -> 0 | H83: =SA34e!H62 -> 0 | I83: =SA34e!I62 -> 0 | J83: =SA34e!J62 -> 0 | K83: =SA34e!K62 -> 0
A84: Information and Communication Infrastructure | C84: =SA34e!C68 -> 0 | D84: =SA34e!D68 -> 0 | E84: =SA34e!E68 -> 0 | F84: =SA34e!F68 -> 0 | G84: =SA34e!G68 -> 0 | H84: =SA34e!H68 -> 0 | I84: =SA34e!I68 -> 0 | J84: =SA34e!J68 -> 0 | K84: =SA34e!K68 -> 0
A85: Infrastructure | C85: =SUM(C76:C84) -> 0 | D85: 0 | E85: 0 | F85: 0 | G85: 0 | H85: 0 | I85: 0 | J85: 0 | K85: 0
A86: Community Facilities | C86: =SA34e!C75 -> 0 | D86: =SA34e!D75 -> 0 | E86: =SA34e!E75 -> 0 | F86: =SA34e!F75 -> 0 | G86: =SA34e!G75 -> 0 | H86: =SA34e!H75 -> 0 | I86: =SA34e!I75 -> 0 | J86: =SA34e!J75 -> 0 | K86: =SA34e!K75 -> 0
A87: Sport and Recreation Facilities | C87: =SA34e!C98 -> 0 | D87: =SA34e!D98 -> 0 | E87: =SA34e!E98 -> 0 | F87: =SA34e!F98 -> 0 | G87: =SA34e!G98 -> 0 | H87: =SA34e!H98 -> 0 | I87: =SA34e!I98 -> 0 | J87: =SA34e!J98 -> 0 | K87: =SA34e!K98 -> 0
A88: Community Assets | C88: =SUM(C86:C87) -> 0 | D88: 0 | E88: 0 | F88: 0 | G88: 0 | H88: 0 | I88: 0 | J88: 0 | K88: 0
A89: Heritage Assets | C89: =SA34e!C103 -> 0 | D89: =SA34e!D103 -> 0 | E89: =SA34e!E103 -> 0 | F89: =SA34e!F103 -> 0 | G89: =SA34e!G103 -> 0 | H89: =SA34e!H103 -> 0 | I89: =SA34e!I103 -> 0 | J89: =SA34e!J103 -> 0 | K89: =SA34e!K103 -> 0
A90: Revenue Generating | C90: =SA34e!C111 -> 0 | D90: =SA34e!D111 -> 0 | E90: =SA34e!E111 -> 0 | F90: =SA34e!F111 -> 0 | G90: =SA34e!G111 -> 0 | H90: =SA34e!H111 -> 0 | I90: =SA34e!I111 -> 0 | J90: =SA34e!J111 -> 0 | K90: =SA34e!K111 -> 0
A91: Non-revenue Generating | C91: =SA34e!C114 -> 0 | D91: =SA34e!D114 -> 0 | E91: =SA34e!E114 -> 0 | F91: =SA34e!F114 -> 0 | G91: =SA34e!G114 -> 0 | H91: =SA34e!H114 -> 0 | I91: =SA34e!I114 -> 0 | J91: =SA34e!J114 -> 0 | K91: =SA34e!K114 -> 0
A92: Investment properties | C92: =SUM(C90:C91) -> 0 | D92: 0 | E92: 0 | F92: 0 | G92: 0 | H92: 0 | I92: 0 | J92: 0 | K92: 0
A93: Operational Buildings | C93: =SA34e!C119 -> 0 | D93: =SA34e!D119 -> 0 | E93: =SA34e!E119 -> 0 | F93: =SA34e!F119 -> 0 | G93: =SA34e!G119 -> 0 | H93: =SA34e!H119 -> 0 | I93: =SA34e!I119 -> 0 | J93: =SA34e!J119 -> 0 | K93: =SA34e!K119 -> 0
A94: Housing | C94: =SA34e!C131 -> 0 | D94: =SA34e!D131 -> 0 | E94: =SA34e!E131 -> 0 | F94: =SA34e!F131 -> 0 | G94: =SA34e!G131 -> 0 | H94: =SA34e!H131 -> 0 | I94: =SA34e!I131 -> 0 | J94: =SA34e!J131 -> 0 | K94: =SA34e!K131 -> 0
A95: Other Assets | C95: =SUM(C93:C94) -> 0 | D95: 0 | E95: 0 | F95: 0 | G95: 0 | H95: 0 | I95: 0 | J95: 0 | K95: 0
A96: Biological or Cultivated Assets | C96: =SA34e!C136 -> 0 | D96: =SA34e!D136 -> 0 | E96: =SA34e!E136 -> 0 | F96: =SA34e!F136 -> 0 | G96: =SA34e!G136 -> 0 | H96: =SA34e!H136 -> 0 | I96: =SA34e!I136 -> 0 | J96: =SA34e!J136 -> 0 | K96: =SA34e!K136 -> 0
A97: Servitudes | C97: =SA34e!C140 -> 0 | D97: =SA34e!D140 -> 0 | E97: =SA34e!E140 -> 0 | F97: =SA34e!F140 -> 0 | G97: =SA34e!G140 -> 0 | H97: =SA34e!H140 -> 0 | I97: =SA34e!I140 -> 0 | J97: =SA34e!J140 -> 0 | K97: =SA34e!K140 -> 0
A98: Licences and Rights | C98: =SA34e!C141 -> 0 | D98: =SA34e!D141 -> 0 | E98: =SA34e!E141 -> 0 | F98: =SA34e!F141 -> 0 | G98: =SA34e!G141 -> 0 | H98: =SA34e!H141 -> 0 | I98: =SA34e!I141 -> 0 | J98: =SA34e!J141 -> 0 | K98: =SA34e!K141 -> 0
A99: Intangible Assets | C99: =SUM(C97:C98) -> 0 | D99: 0 | E99: 0 | F99: 0 | G99: 0 | H99: 0 | I99: 0 | J99: 0 | K99: 0
A100: Computer Equipment | C100: =SA34e!C149 -> 0 | D100: =SA34e!D149 -> 0 | E100: =SA34e!E149 -> 0 | F100: =SA34e!F149 -> 0 | G100: =SA34e!G149 -> 0 | H100: =SA34e!H149 -> 0 | I100: =SA34e!I149 -> 0 | J100: =SA34e!J149 -> 0 | K100: =SA34e!K149 -> 0
A101: Furniture and Office Equipment | C101: =SA34e!C152 -> 0 | D101: =SA34e!D152 -> 0 | E101: =SA34e!E152 -> 0 | F101: =SA34e!F152 -> 0 | G101: =SA34e!G152 -> 0 | H101: =SA34e!H152 -> 0 | I101: =SA34e!I152 -> 0 | J101: =SA34e!J152 -> 0 | K101: =SA34e!K152 -> 0
A102: Machinery and Equipment | C102: =SA34e!C155 -> 0 | D102: =SA34e!D155 -> 0 | E102: =SA34e!E155 -> 163043.48 | F102: =SA34e!F155 -> 0 | G102: =SA34e!G155 -> 0 | H102: =SA34e!H155 -> 0 | I102: =SA34e!I155 -> 0 | J102: =SA34e!J155 -> 0 | K102: =SA34e!K155 -> 0
A103: Transport Assets | C103: =SA34e!C158 -> 0 | D103: =SA34e!D158 -> 0 | E103: =SA34e!E158 -> 0 | F103: =SA34e!F158 -> 0 | G103: =SA34e!G158 -> 0 | H103: =SA34e!H158 -> 0 | I103: =SA34e!I158 -> 0 | J103: =SA34e!J158 -> 0 | K103: =SA34e!K158 -> 0
A104: Land | C104: =SA34e!C161 -> 0 | D104: =SA34e!D161 -> 0 | E104: =SA34e!E161 -> 0 | F104: =SA34e!F161 -> 0 | G104: =SA34e!G161 -> 0 | H104: =SA34e!H161 -> 0 | I104: =SA34e!I161 -> 0 | J104: =SA34e!J161 -> 0 | K104: =SA34e!K161 -> 0
A105: Zoo's, Marine and Non-biological Animals | C105: =SA34e!C164 -> 0 | D105: =SA34e!D164 -> 0 | E105: =SA34e!E164 -> 0 | F105: =SA34e!F164 -> 0 | G105: =SA34e!G164 -> 0 | H105: =SA34e!H164 -> 0 | I105: =SA34e!I164 -> 0 | J105: =SA34e!J164 -> 0 | K105: =SA34e!K164 -> 0
A106: Mature | C106: =SA34e!C168 -> 0 | D106: =SA34e!D168 -> 0 | E106: =SA34e!E168 -> 0 | F106: =SA34e!F168 -> 0 | G106: =SA34e!G168 -> 0 | H106: =SA34e!H168 -> 0 | I106: =SA34e!I168 -> 0 | J106: =SA34e!J168 -> 0 | K106: =SA34e!K168 -> 0
A107: Immature | C107: =SA34b!C171 -> 0 | D107: =SA34b!D171 -> 0 | E107: =SA34b!E171 -> 0 | F107: =SA34b!F171 -> 0 | G107: =SA34b!G171 -> 0 | H107: =SA34b!H171 -> 0 | I107: =SA34b!I171 -> 0 | J107: =SA34b!J171 -> 0 | K107: =SA34b!K171 -> 0
A108: Living Resources | C108: =SUM(C106:C107) -> 0 | D108: 0 | E108: 0 | F108: 0 | G108: 0 | H108: 0 | I108: 0 | J108: 0 | K108: 0
A110: Total Capital Expenditure | B110: 4 | C110: =+C5+C40+C75 -> 38284503.29 | D110: 50056507.07 | E110: 48687235.94 | F110: 58022400 | G110: 58830625 | H110: 58830625 | I110: 72380350 | J110: 65569950 | K110: 53279850
A111: Roads Infrastructure | C111: =+C6+C41+C76 -> 29015957.46 | D111: 28631128.36 | E111: 34516617.32 | F111: 44802400 | G111: 45509325 | H111: 45509325 | I111: 43880350 | J111: 16388370 | K111: 0
A112: Storm water Infrastructure | C112: =+C7+C42+C77 -> 0 | D112: 0 | E112: 869565.22 | F112: 0 | G112: 0 | H112: 0 | I112: 0 | J112: 0 | K112: 0
A113: Electrical Infrastructure | C113: =+C8+C43+C78 -> 3329856 | D113: 11793428.42 | E113: 9892368.65 | F113: 4550000 | G113: 8230151 | H113: 8230151 | I113: 19168000 | J113: 15060000 | K113: 10329402
A114: Water Supply Infrastructure | C114: =+C9+C44+C79 -> 0 | D114: 0 | E114: 0 | F114: 0 | G114: 0 | H114: 0 | I114: 0 | J114: 0 | K114: 0
A115: Sanitation Infrastructure | C115: =+C10+C45+C80 -> 0 | D115: 0 | E115: 0 | F115: 0 | G115: 0 | H115: 0 | I115: 0 | J115: 0 | K115: 0
A116: Solid Waste Infrastructure | C116: =+C11+C46+C81 -> 0 | D116: 0 | E116: 0 | F116: 0 | G116: 0 | H116: 0 | I116: 0 | J116: 0 | K116: 0
A117: Rail Infrastructure | C117: =+C12+C47+C82 -> 0 | D117: 0 | E117: 0 | F117: 0 | G117: 0 | H117: 0 | I117: 0 | J117: 0 | K117: 0
A118: Coastal Infrastructure | C118: =+C13+C48+C83 -> 0 | D118: 0 | E118: 0 | F118: 0 | G118: 0 | H118: 0 | I118: 0 | J118: 0 | K118: 0
A119: Information and Communication Infrastructure | C119: =+C14+C49+C84 -> 0 | D119: 0 | E119: 0 | F119: 0 | G119: 0 | H119: 0 | I119: 0 | J119: 0 | K119: 0
A120: Infrastructure | C120: =SUM(C111:C119) -> 32345813.46 | D120: =SUM(D111:D119) -> 40424556.78 | E120: 45278551.19 | F120: 49352400 | G120: 53739476 | H120: 53739476 | I120: 63048350 | J120: 31448370 | K120: 10329402
A121: Community Facilities | C121: =+C16+C51+C86 -> 0 | D121: 0 | E121: 0 | F121: 0 | G121: 0 | H121: 0 | I121: 0 | J121: 14835790 | K121: 21404925
A122: Sport and Recreation Facilities | C122: =+C17+C52+C87 -> 898256.36 | D122: 3677811.73 | E122: 0 | F122: 0 | G122: 0 | H122: 0 | I122: 2300000 | J122: 14835790 | K122: 21404925
A123: Community Assets | C123: =SUM(C121:C122) -> 898256.36 | D123: =SUM(D121:D122) -> 3677811.73 | E123: 0 | F123: 0 | G123: 0 | H123: 0 | I123: 2300000 | J123: 29671580 | K123: 42809850
A124: Heritage Assets | C124: =+C19+C54+C89 -> 0 | D124: 0 | E124: 0 | F124: 0 | G124: 0 | H124: 0 | I124: 0 | J124: 0 | K124: 0
A125: Revenue Generating | C125: =+C20+C55+C90 -> 0 | D125: 0 | E125: 0 | F125: 0 | G125: 0 | H125: 0 | I125: 0 | J125: 0 | K125: 0
A126: Non-revenue Generating | C126: =+C21+C56+C91 -> 0 | D126: 0 | E126: 0 | F126: 0 | G126: 0 | H126: 0 | I126: 0 | J126: 0 | K126: 0
A127: Investment properties | C127: =SUM(C125:C126) -> 0 | D127: =SUM(D125:D126) -> 0 | E127: 0 | F127: 0 | G127: 0 | H127: 0 | I127: 0 | J127: 0 | K127: 0
A128: Operational Buildings | C128: =+C23+C58+C93 -> 1943534.29 | D128: 0 | E128: 0 | F128: 2000000 | G128: 0 | H128: 0 | I128: 200000 | J128: 2750000 | K128: 0
A129: Housing | C129: =+C24+C59+C94 -> 0 | D129: 0 | E129: 0 | F129: 0 | G129: 0 | H129: 0 | I129: 0 | J129: 0 | K129: 0
A130: Other Assets | C130: =SUM(C128:C129) -> 1943534.29 | D130: 0 | E130: 0 | F130: 2000000 | G130: 0 | H130: 0 | I130: 200000 | J130: 2750000 | K130: 0
A131: Biological or Cultivated Assets | C131: =+C26+C61+C96 -> 0 | D131: 0 | E131: 0 | F131: 0 | G131: 0 | H131: 0 | I131: 0 | J131: 0 | K131: 0
A132: Servitudes | C132: =+C27+C62+C97 -> 0 | D132: 0 | E132: 0 | F132: 0 | G132: 0 | H132: 0 | I132: 0 | J132: 0 | K132: 0
A133: Licences and Rights | C133: =+C28+C63+C98 -> 58650 | D133: 0 | E133: 0 | F133: 0 | G133: 0 | H133: 0 | I133: 1500000 | J133: 0 | K133: 0
A134: Intangible Assets | C134: =SUM(C132:C133) -> 58650 | D134: =SUM(D132:D133) -> 0 | E134: 0 | F134: 0 | G134: 0 | H134: 0 | I134: 1500000 | J134: 0 | K134: 0
A135: Computer Equipment | C135: =+C30+C65+C100 -> 995346.52 | D135: 4361295.82 | E135: 784569.14 | F135: 2900000 | G135: 2233849 | H135: 2233849 | I135: 2000000 | J135: 0 | K135: 0
A136: Furniture and Office Equipment | C136: =+C31+C66+C101 -> 255048.69 | D136: 299643.69 | E136: 299839.13 | F136: 700000 | G136: 157300 | H136: 157300 | I136: 900000 | J136: 200000 | K136: 140598
A137: Machinery and Equipment | C137: =+C32+C67+C102 -> 111398 | D137: 437646.27 | E137: 838683.48 | F137: 870000 | G137: 530000 | H137: 530000 | I137: 1432000 | J137: 0 | K137: 0
A138: Transport Assets | C138: =+C33+C68+C103 -> 1676455.97 | D138: 855552.78 | E138: 1485593 | F138: 2200000 | G138: 2170000 | H138: 2170000 | I138: 1000000 | J138: 1500000 | K138: 0
A139: Land | C139: =+C34+C69+C104 -> 0 | D139: 0 | E139: 0 | F139: 0 | G139: 0 | H139: 0 | I139: 0 | J139: 0 | K139: 0
A140: Zoo's, Marine and Non-biological Animals | C140: =+C35+C70+C105 -> 0 | D140: 0 | E140: 0 | F140: 0 | G140: 0 | H140: 0 | I140: 0 | J140: 0 | K140: 0
A141: Mature | C141: =+C36+C71+C106 -> 0 | D141: =+D36+D71+D106 -> 0 | E141: 0 | F141: 0 | G141: 0 | H141: 0 | I141: 0 | J141: 0 | K141: 0
A142: Immature | C142: =+C37+C72+C107 -> 0 | D142: =+D37+D72+D107 -> 0 | E142: 0 | F142: 0 | G142: 0 | H142: 0 | I142: 0 | J142: 0 | K142: 0
A143: Living Resources | C143: =SUM(C141:C142) -> 0 | D143: 0 | E143: 0 | F143: 0 | G143: 0 | H143: 0 | I143: 0 | J143: 0 | K143: 0
A144: TOTAL CAPITAL EXPENDITURE - Asset class | C144: =+C5+C40+C75 -> 38284503.29 | D144: 50056507.07 | E144: 48687235.94 | F144: 58022400 | G144: 58830625 | H144: 58830625 | I144: 72380350 | J144: 65569950 | K144: 53279850
A146: ASSET REGISTER SUMMARY - PPE (WDV) | B146: 5 | C146: =C156+C159+C160+C163+C166+C167+C170+C171+C172+C173+C174+C175+C176 -> 237053425.8 | D146: =D156+D159+D160+D163+D166+D167+D170+D171+D172+D173+D174+D175+D176 -> 299792338.4 | E146: 320142149.6 | F146: 339958165 | G146: 339706390 | H146: 339706390 | I146: 386848553 | J146: 394324847 | K146: 397542105
A147: Roads Infrastructure | C147: 112705309.9 | D147: 135506823.5 | E147: 159785764.3 | F147: 171158681 | G147: 171865606 | H147: 171865606 | I147: 200047330 | J147: 178863698 | K147: 169599098
A148: Storm water Infrastructure | C148: 0 | D148: 0 | E148: 869565.22 | F148: 0 | G148: 0 | H148: 0 | I148: 913044 | J148: 958696 | K148: 1006631
A149: Electrical Infrastructure | C149: 14741544.4 | D149: 25810095.82 | E149: 18243630.8 | F149: 29490389 | G149: 33170540 | H149: 33170540 | I149: 37410618 | J149: 34214749 | K149: 30441887
A150: Water Supply Infrastructure
A151: Sanitation Infrastructure
A152: Solid Waste Infrastructure | C152: 0 | D152: 0 | E152: 0 | F152: 0 | G152: 0 | H152: 0 | I152: 0 | J152: 0 | K152: 0
A153: Rail Infrastructure
A154: Coastal Infrastructure
A155: Information and Communication Infrastructure
A156: Infrastructure | C156: =SUM(C147:C155) -> 127446854.3 | D156: =SUM(D147:D155) -> 161316919.3 | E156: 178898960.4 | F156: 200649070 | G156: 205036146 | H156: 205036146 | I156: 238370992 | J156: 214037143 | K156: 201047616
A159: Community Assets | C159: 25909165.43 | D159: 58970728.15 | E159: 56285410.61 | F159: 58085613 | G159: 58085613 | H159: 58085613 | I159: 60470306 | J159: 90750404 | K159: 106942614
A160: Heritage Assets | C160: 368150 | D160: 380300 | E160: 392850 | F160: 368150 | G160: 408150 | H160: 408150 | I160: 428558 | J160: 449986 | K160: 472485
A163: Investment properties | C163: 1657667.59 | D163: 1614334.23 | E163: 1546000.9 | F163: 1755951 | G163: 1755951 | H163: 1755951 | I163: 1843748 | J163: 1935935 | K163: 2032732
A166: Other Assets | C166: 29866316.33 | D166: 28654234.5 | E166: 27440921.43 | F166: 28727974 | G166: 26727974 | H166: 26727974 | I166: 26990393 | J166: 30879909 | K166: 29536406
A167: Biological or Cultivated Assets
A170: Intangible Assets | C170: -69659.86 | D170: -3.9 | E170: 1150571.42 | F170: 1037819 | G170: 1037819 | H170: 1037819 | I170: 2765623 | J170: 1392189 | K170: 1531409
A171: Computer Equipment | C171: 592792.93 | D171: 5740653.84 | E171: 5201856.69 | F171: 7795313 | G171: 7129162 | H171: 7129162 | I171: 6574333 | J171: 4803052 | K171: 5043203
A172: Furniture and Office Equipment | C172: 3273097.42 | D172: 2787012.7 | E172: 1694100 | F172: 1556461 | G172: 1013761 | H172: 1013761 | I172: 651714 | J172: -60700 | K172: -133138
A173: Machinery and Equipment | C173: 10037363.47 | D173: 9822808.39 | E173: 10006348.9 | F173: 9178145 | G173: 8838145 | H173: 8838145 | I173: 10348268 | J173: 9362081 | K173: 9830187
A174: Transport Assets | C174: 12313850.34 | D174: 11716632.43 | E174: 11798301.43 | F174: 12014950 | G174: 10884950 | H174: 10884950 | I174: 11391447 | J174: 12411019 | K174: 11456569
A175: Land | C175: 25657827.81 | D175: 18788718.76 | E175: 25726827.81 | F175: 18788719 | G175: 18788719 | H175: 18788719 | I175: 27013171 | J175: 28363829 | K175: 29782022
A176: Zoo's, Marine and Non-biological Animals
A179: Living Resources
A180: TOTAL ASSET REGISTER SUMMARY - PPE (WDV) | B180: 5 | C180: =C156+C159+C160+C163+C166+C167+C170+C171+C172+C173+C174+C175+C176+C179 -> 237053425.8 | D180: 299792338.4 | E180: 320142149.6 | F180: =F156+F159+F160+F163+F166+F167+F170+F171+F172+F173+F174+F175+F176+F179 -> 339958165 | G180: =G156+G159+G160+G163+G166+G167+G170+G171+G172+G173+G174+G175+G176+G179 -> 339706390 | H180: 339706390 | I180: 386848553 | J180: 394324847 | K180: 397542105
A182: EXPENDITURE OTHER ITEMS | C182: =SUM(C183:C184) -> 22160286.57 | D182: =SUM(D183:D184) -> 30313859.18 | E182: 34855072.24 | F182: 34957130 | G182: 34385853 | H182: 34385853 | I182: 37712155 | J182: 39547808 | K182: 41475198
A183: Depreciation | B183: 7 | C183: =SA34d!C175 -> 15880078.4 | D183: =SA34d!D175 -> 12114558.47 | E183: =SA34d!E175 -> 19095027.42 | F183: =SA34d!F175 -> 19813041 | G183: =SA34d!G175 -> 19813041 | H183: =SA34d!H175 -> 19813041 | I183: =SA34d!I175 -> 22082155 | J183: =SA34d!J175 -> 23186308 | K183: =SA34d!K175 -> 24345623
A184: Repairs and Maintenance by Asset Class | B184: 3 | C184: =C194+C197+C198+C201+C204+C205+SUM(C208:C214)+C217 -> 6280208.17 | D184: =D194+D197+D198+D201+D204+D205+SUM(D208:D214)+D217 -> 18199300.71 | E184: 15760044.82 | F184: 15144089 | G184: 14572812 | H184: 14572812 | I184: 15630000 | J184: 16361500 | K184: 17129575
A185: Roads Infrastructure | C185: =SA34c!C7 -> 1289849.36 | D185: =SA34c!D7 -> 7759768.58 | E185: =SA34c!E7 -> 5460501.64 | F185: =SA34c!F7 -> 5416794 | G185: =SA34c!G7 -> 5956794 | H185: =SA34c!H7 -> 5956794 | I185: =SA34c!I7 -> 6380000 | J185: =SA34c!J7 -> 6699000 | K185: =SA34c!K7 -> 7033950
A186: Storm water Infrastructure | C186: =SA34c!C12 -> 0 | D186: =SA34c!D12 -> 0 | E186: =SA34c!E12 -> 0 | F186: =SA34c!F12 -> 0 | G186: =SA34c!G12 -> 0 | H186: =SA34c!H12 -> 0 | I186: =SA34c!I12 -> 0 | J186: =SA34c!J12 -> 0 | K186: =SA34c!K12 -> 0
A187: Electrical Infrastructure | C187: =SA34c!C16 -> 0 | D187: =SA34c!D16 -> 0 | E187: =SA34c!E16 -> 0 | F187: =SA34c!F16 -> 0 | G187: =SA34c!G16 -> 0 | H187: =SA34c!H16 -> 0 | I187: =SA34c!I16 -> 0 | J187: =SA34c!J16 -> 0 | K187: =SA34c!K16 -> 0
A188: Water Supply Infrastructure | C188: =SA34c!C26 -> 0 | D188: =SA34c!D26 -> 0 | E188: =SA34c!E26 -> 0 | F188: =SA34c!F26 -> 0 | G188: =SA34c!G26 -> 0 | H188: =SA34c!H26 -> 0 | I188: =SA34c!I26 -> 0 | J188: =SA34c!J26 -> 0 | K188: =SA34c!K26 -> 0
A189: Sanitation Infrastructure | C189: =SA34c!C37 -> 0 | D189: =SA34c!D37 -> 0 | E189: =SA34c!E37 -> 0 | F189: =SA34c!F37 -> 0 | G189: =SA34c!G37 -> 0 | H189: =SA34c!H37 -> 0 | I189: =SA34c!I37 -> 0 | J189: =SA34c!J37 -> 0 | K189: =SA34c!K37 -> 0
A190: Solid Waste Infrastructure | C190: =SA34c!C44 -> 0 | D190: =SA34c!D44 -> 0 | E190: =SA34c!E44 -> 0 | F190: =SA34c!F44 -> 0 | G190: =SA34c!G44 -> 0 | H190: =SA34c!H44 -> 0 | I190: =SA34c!I44 -> 0 | J190: =SA34c!J44 -> 0 | K190: =SA34c!K44 -> 0
A191: Rail Infrastructure | C191: =SA34c!C52 -> 0 | D191: =SA34c!D52 -> 0 | E191: =SA34c!E52 -> 0 | F191: =SA34c!F52 -> 0 | G191: =SA34c!G52 -> 0 | H191: =SA34c!H52 -> 0 | I191: =SA34c!I52 -> 0 | J191: =SA34c!J52 -> 0 | K191: =SA34c!K52 -> 0
A192: Coastal Infrastructure | C192: =SA34c!C62 -> 0 | D192: =SA34c!D62 -> 0 | E192: =SA34c!E62 -> 0 | F192: =SA34c!F62 -> 0 | G192: =SA34c!G62 -> 0 | H192: =SA34c!H62 -> 0 | I192: =SA34c!I62 -> 0 | J192: =SA34c!J62 -> 0 | K192: =SA34c!K62 -> 0
A193: Information and Communication Infrastructure | C193: =SA34c!C68 -> 0 | D193: =SA34c!D68 -> 0 | E193: =SA34c!E68 -> 0 | F193: =SA34c!F68 -> 0 | G193: =SA34c!G68 -> 0 | H193: =SA34c!H68 -> 0 | I193: =SA34c!I68 -> 0 | J193: =SA34c!J68 -> 0 | K193: =SA34c!K68 -> 0
A194: Infrastructure | C194: =SUM(C185:C193) -> 1289849.36 | D194: =SUM(D185:D193) -> 7759768.58 | E194: 5460501.64 | F194: 5416794 | G194: 5956794 | H194: 5956794 | I194: 6380000 | J194: 6699000 | K194: 7033950
A195: Community Facilities | C195: =SA34c!C75 -> 55600 | D195: =SA34c!D75 -> 88490 | E195: =SA34c!E75 -> 88530.82 | F195: =SA34c!F75 -> 800000 | G195: =SA34c!G75 -> 200000 | H195: =SA34c!H75 -> 200000 | I195: =SA34c!I75 -> 700000 | J195: =SA34c!J75 -> 735000 | K195: =SA34c!K75 -> 771750
A196: Sport and Recreation Facilities | C196: =SA34c!C98 -> 0 | D196: =SA34c!D98 -> 0 | E196: =SA34c!E98 -> 0 | F196: =SA34c!F98 -> 0 | G196: =SA34c!G98 -> 0 | H196: =SA34c!H98 -> 0 | I196: =SA34c!I98 -> 200000 | J196: =SA34c!J98 -> 210000 | K196: =SA34c!K98 -> 220500
A197: Community Assets | C197: =SUM(C195:C196) -> 55600 | D197: 88490 | E197: 88530.82 | F197: 800000 | G197: 200000 | H197: 200000 | I197: 900000 | J197: 945000 | K197: 992250
A198: Heritage Assets | C198: =SA34c!C103 -> 0 | D198: =SA34c!D103 -> 0 | E198: =SA34c!E103 -> 0 | F198: =SA34c!F103 -> 0 | G198: =SA34c!G103 -> 0 | H198: =SA34c!H103 -> 0 | I198: =SA34c!I103 -> 0 | J198: =SA34c!J103 -> 0 | K198: =SA34c!K103 -> 0
A199: Revenue Generating | C199: =SA34c!C111 -> 0 | D199: =SA34c!D111 -> 0 | E199: =SA34c!E111 -> 0 | F199: =SA34c!F111 -> 0 | G199: =SA34c!G111 -> 0 | H199: =SA34c!H111 -> 0 | I199: =SA34c!I111 -> 0 | J199: =SA34c!J111 -> 0 | K199: =SA34c!K111 -> 0
A200: Non-revenue Generating | C200: =SA34c!C114 -> 0 | D200: =SA34c!D114 -> 0 | E200: =SA34c!E114 -> 0 | F200: =SA34c!F114 -> 0 | G200: =SA34c!G114 -> 0 | H200: =SA34c!H114 -> 0 | I200: =SA34c!I114 -> 0 | J200: =SA34c!J114 -> 0 | K200: =SA34c!K114 -> 0
A201: Investment properties | C201: =SUM(C199:C200) -> 0 | D201: 0 | E201: 0 | F201: 0 | G201: 0 | H201: 0 | I201: 0 | J201: 0 | K201: 0
A202: Operational Buildings | C202: =SA34c!C119 -> 555083.98 | D202: =SA34c!D119 -> 2242907.03 | E202: =SA34c!E119 -> 1532530.82 | F202: =SA34c!F119 -> 1300000 | G202: =SA34c!G119 -> 1300000 | H202: =SA34c!H119 -> 1300000 | I202: =SA34c!I119 -> 1100000 | J202: =SA34c!J119 -> 1155000 | K202: =SA34c!K119 -> 1212750
A203: Housing | C203: =SA34c!C131 -> 0 | D203: =SA34c!D131 -> 0 | E203: =SA34c!E131 -> 0 | F203: =SA34c!F131 -> 0 | G203: =SA34c!G131 -> 0 | H203: =SA34c!H131 -> 0 | I203: =SA34c!I131 -> 0 | J203: =SA34c!J131 -> 0 | K203: =SA34c!K131 -> 0
A204: Other Assets | C204: =SUM(C202:C203) -> 555083.98 | D204: 2242907.03 | E204: 1532530.82 | F204: 1300000 | G204: 1300000 | H204: 1300000 | I204: 1100000 | J204: 1155000 | K204: 1212750
A205: Biological or Cultivated Assets | C205: =SA34c!C136 -> 0 | D205: =SA34c!D136 -> 0 | E205: =SA34c!E136 -> 0 | F205: =SA34c!F136 -> 0 | G205: =SA34c!G136 -> 0 | H205: =SA34c!H136 -> 0 | I205: =SA34c!I136 -> 0 | J205: =SA34c!J136 -> 0 | K205: =SA34c!K136 -> 0
A206: Servitudes | C206: =SA34c!C140 -> 0 | D206: =SA34c!D140 -> 0 | E206: =SA34c!E140 -> 0 | F206: =SA34c!F140 -> 0 | G206: =SA34c!G140 -> 0 | H206: =SA34c!H140 -> 0 | I206: =SA34c!I140 -> 0 | J206: =SA34c!J140 -> 0 | K206: =SA34c!K140 -> 0
A207: Licences and Rights | C207: =SA34c!C141 -> 0 | D207: =SA34c!D141 -> 0 | E207: =SA34c!E141 -> 0 | F207: =SA34c!F141 -> 0 | G207: =SA34c!G141 -> 0 | H207: =SA34c!H141 -> 0 | I207: =SA34c!I141 -> 0 | J207: =SA34c!J141 -> 0 | K207: =SA34c!K141 -> 0
A208: Intangible Assets | C208: =SUM(C206:C207) -> 0 | D208: 0 | E208: 0 | F208: 0 | G208: 0 | H208: 0 | I208: 0 | J208: 0 | K208: 0
A209: Computer Equipment | C209: =SA34c!C149 -> 1005744.77 | D209: =SA34c!D149 -> 2361672.96 | E209: =SA34c!E149 -> 1508740.7 | F209: =SA34c!F149 -> 2359325 | G209: =SA34c!G149 -> 2148048 | H209: =SA34c!H149 -> 2148048 | I209: =SA34c!I149 -> 1850000 | J209: =SA34c!J149 -> 1892500 | K209: =SA34c!K149 -> 1937125
A210: Furniture and Office Equipment | C210: =SA34c!C152 -> 70483.69 | D210: =SA34c!D152 -> 302729 | E210: =SA34c!E152 -> 160628.16 | F210: =SA34c!F152 -> 209600 | G210: =SA34c!G152 -> 209600 | H210: =SA34c!H152 -> 209600 | I210: =SA34c!I152 -> 300000 | J210: =SA34c!J152 -> 315000 | K210: =SA34c!K152 -> 330750
A211: Machinery and Equipment | C211: =SA34c!C155 -> 2533127.48 | D211: =SA34c!D155 -> 3938580.38 | E211: =SA34c!E155 -> 5299588.6 | F211: =SA34c!F155 -> 3277243 | G211: =SA34c!G155 -> 3277243 | H211: =SA34c!H155 -> 3277243 | I211: =SA34c!I155 -> 4100000 | J211: =SA34c!J155 -> 4305000 | K211: =SA34c!K155 -> 4520250
A212: Transport Assets | C212: =SA34c!C158 -> 770318.89 | D212: =SA34c!D158 -> 1505152.76 | E212: =SA34c!E158 -> 1709524.08 | F212: =SA34c!F158 -> 1781127 | G212: =SA34c!G158 -> 1481127 | H212: =SA34c!H158 -> 1481127 | I212: =SA34c!I158 -> 1000000 | J212: =SA34c!J158 -> 1050000 | K212: =SA34c!K158 -> 1102500
A213: Land | C213: =SA34c!C161 -> 0 | D213: =SA34c!D161 -> 0 | E213: =SA34c!E161 -> 0 | F213: =SA34c!F161 -> 0 | G213: =SA34c!G161 -> 0 | H213: =SA34c!H161 -> 0 | I213: =SA34c!I161 -> 0 | J213: =SA34c!J161 -> 0 | K213: =SA34c!K161 -> 0
A214: Zoo's, Marine and Non-biological Animals | C214: =SA34c!C164 -> 0 | D214: =SA34c!D164 -> 0 | E214: =SA34c!E164 -> 0 | F214: =SA34c!F164 -> 0 | G214: =SA34c!G164 -> 0 | H214: =SA34c!H164 -> 0 | I214: =SA34c!I164 -> 0 | J214: =SA34c!J164 -> 0 | K214: =SA34c!K164 -> 0
A215: Mature | C215: =SA34c!C168 -> 0 | D215: =SA34c!D168 -> 0 | E215: =SA34c!E168 -> 0 | F215: =SA34c!F168 -> 0 | G215: =SA34c!G168 -> 0 | H215: =SA34c!H168 -> 0 | I215: =SA34c!I168 -> 0 | J215: =SA34c!J168 -> 0 | K215: =SA34c!K168 -> 0
... 16 more rows

Sheet A10-SerDel
A1: =muni&" - "&Approve10 -> LIM353 Molemole - Table A10 Basic service delivery measurement
A2: =desc -> Description | B2: =head27 -> Ref | C2: =head1b -> 2019/20 | D2: =head1A -> 2020/21 | E2: =Head1 -> 2021/22 | F2: =Head2 -> Current Year 2022/23 | I2: =Head3 -> 2023/24 Medium Term Revenue & Expenditure Framework
C3: =Head5A -> Outcome | D3: =Head5A -> Outcome | E3: =Head5A -> Outcome | F3: =Head6 -> Original Budget | G3: =Head7 -> Adjusted Budget | H3: =Head8 -> Full Year Forecast | I3: =Head9 -> Budget Year 2023/24 | J3: =Head10 -> Budget Year +1 2024/25 | K3: =Head11 -> Budget Year +2 2025/26
A4: Household service targets | B4: 1
A5: Water:
A6: Piped water inside dwelling | C6: ='SA9'!E67 -> 0 | D6: ='SA9'!F67 -> 0 | E6: ='SA9'!G67 -> 0 | F6: ='SA9'!H67 -> 0 | G6: ='SA9'!I67 -> 0 | H6: ='SA9'!J67 -> 0 | I6: ='SA9'!K67 -> 0 | J6: ='SA9'!L67 -> 0 | K6: ='SA9'!M67 -> 0
A7: Piped water inside yard (but not in dwelling) | C7: ='SA9'!E68 -> 0 | D7: ='SA9'!F68 -> 0 | E7: ='SA9'!G68 -> 0 | F7: ='SA9'!H68 -> 0 | G7: ='SA9'!I68 -> 0 | H7: ='SA9'!J68 -> 0 | I7: ='SA9'!K68 -> 0 | J7: ='SA9'!L68 -> 0 | K7: ='SA9'!M68 -> 0
A8: Using public tap (at least min.service level) | B8: 2 | C8: ='SA9'!E69 -> 0 | D8: ='SA9'!F69 -> 0 | E8: ='SA9'!G69 -> 0 | F8: ='SA9'!H69 -> 0 | G8: ='SA9'!I69 -> 0 | H8: ='SA9'!J69 -> 0 | I8: ='SA9'!K69 -> 0 | J8: ='SA9'!L69 -> 0 | K8: ='SA9'!M69 -> 0
A9: Other water supply (at least min.service level) | B9: 4 | C9: ='SA9'!E70 -> 0 | D9: ='SA9'!F70 -> 0 | E9: ='SA9'!G70 -> 0 | F9: ='SA9'!H70 -> 0 | G9: ='SA9'!I70 -> 0 | H9: ='SA9'!J70 -> 0 | I9: ='SA9'!K70 -> 0 | J9: ='SA9'!L70 -> 0 | K9: ='SA9'!M70 -> 0
A10: Minimum Service Level and Above sub-total | C10: =SUM(C6:C9) -> 0 | D10: =SUM(D6:D9) -> 0 | E10: 0 | F10: 0 | G10: 0 | H10: 0 | I10: 0 | J10: 0 | K10: 0
A11: Using public tap (< min.service level) | B11: 3 | C11: ='SA9'!E72 -> 0 | D11: ='SA9'!F72 -> 0 | E11: ='SA9'!G72 -> 0 | F11: ='SA9'!H72 -> 0 | G11: ='SA9'!I72 -> 0 | H11: ='SA9'!J72 -> 0 | I11: ='SA9'!K72 -> 0 | J11: ='SA9'!L72 -> 0 | K11: ='SA9'!M72 -> 0
A12: Other water supply (< min.service level) | B12: =B9 -> 4 | C12: ='SA9'!E73 -> 0 | D12: ='SA9'!F73 -> 0 | E12: ='SA9'!G73 -> 0 | F12: ='SA9'!H73 -> 0 | G12: ='SA9'!I73 -> 0 | H12: ='SA9'!J73 -> 0 | I12: ='SA9'!K73 -> 0 | J12: ='SA9'!L73 -> 0 | K12: ='SA9'!M73 -> 0
A13: No water supply | C13: ='SA9'!E74 -> 0 | D13: ='SA9'!F74 -> 0 | E13: ='SA9'!G74 -> 0 | F13: ='SA9'!H74 -> 0 | G13: ='SA9'!I74 -> 0 | H13: ='SA9'!J74 -> 0 | I13: ='SA9'!K74 -> 0 | J13: ='SA9'!L74 -> 0 | K13: ='SA9'!M74 -> 0
A14: Below Minimum Service Level sub-total | C14: =SUM(C11:C13) -> 0 | D14: =SUM(D11:D13) -> 0 | E14: 0 | F14: 0 | G14: 0 | H14: 0 | I14: 0 | J14: 0 | K14: 0
A15: Total number of households | B15: 5 | C15: =C10+C14 -> 0 | D15: =D10+D14 -> 0 | E15: 0 | F15: 0 | G15: 0 | H15: 0 | I15: 0 | J15: 0 | K15: 0
A16: Sanitation/sewerage:
A17: Flush toilet (connected to sewerage) | C17: ='SA9'!E78 -> 0 | D17: ='SA9'!F78 -> 0 | E17: ='SA9'!G78 -> 0 | F17: ='SA9'!H78 -> 0 | G17: ='SA9'!I78 -> 0 | H17: ='SA9'!J78 -> 0 | I17: ='SA9'!K78 -> 0 | J17: ='SA9'!L78 -> 0 | K17: ='SA9'!M78 -> 0
A18: Flush toilet (with septic tank) | C18: ='SA9'!E79 -> 0 | D18: ='SA9'!F79 -> 0 | E18: ='SA9'!G79 -> 0 | F18: ='SA9'!H79 -> 0 | G18: ='SA9'!I79 -> 0 | H18: ='SA9'!J79 -> 0 | I18: ='SA9'!K79 -> 0 | J18: ='SA9'!L79 -> 0 | K18: ='SA9'!M79 -> 0
A19: Chemical toilet | C19: ='SA9'!E80 -> 0 | D19: ='SA9'!F80 -> 0 | E19: ='SA9'!G80 -> 0 | F19: ='SA9'!H80 -> 0 | G19: ='SA9'!I80 -> 0 | H19: ='SA9'!J80 -> 0 | I19: ='SA9'!K80 -> 0 | J19: ='SA9'!L80 -> 0 | K19: ='SA9'!M80 -> 0
A20: Pit toilet (ventilated) | C20: ='SA9'!E81 -> 0 | D20: ='SA9'!F81 -> 0 | E20: ='SA9'!G81 -> 0 | F20: ='SA9'!H81 -> 0 | G20: ='SA9'!I81 -> 0 | H20: ='SA9'!J81 -> 0 | I20: ='SA9'!K81 -> 0 | J20: ='SA9'!L81 -> 0 | K20: ='SA9'!M81 -> 0
A21: Other toilet provisions (> min.service level) | C21: ='SA9'!E82 -> 0 | D21: ='SA9'!F82 -> 0 | E21: ='SA9'!G82 -> 0 | F21: ='SA9'!H82 -> 0 | G21: ='SA9'!I82 -> 0 | H21: ='SA9'!J82 -> 0 | I21: ='SA9'!K82 -> 0 | J21: ='SA9'!L82 -> 0 | K21: ='SA9'!M82 -> 0
A22: =$A$10 -> Minimum Service Level and Above sub-total | C22: =SUM(C17:C21) -> 0 | D22: =SUM(D17:D21) -> 0 | E22: 0 | F22: 0 | G22: 0 | H22: 0 | I22: 0 | J22: 0 | K22: 0
A23: Bucket toilet | C23: ='SA9'!E84 -> 0 | D23: ='SA9'!F84 -> 0 | E23: ='SA9'!G84 -> 0 | F23: ='SA9'!H84 -> 0 | G23: ='SA9'!I84 -> 0 | H23: ='SA9'!J84 -> 0 | I23: ='SA9'!K84 -> 0 | J23: ='SA9'!L84 -> 0 | K23: ='SA9'!M84 -> 0
A24: Other toilet provisions (< min.service level) | C24: ='SA9'!E85 -> 0 | D24: ='SA9'!F85 -> 0 | E24: ='SA9'!G85 -> 0 | F24: ='SA9'!H85 -> 0 | G24: ='SA9'!I85 -> 0 | H24: ='SA9'!J85 -> 0 | I24: ='SA9'!K85 -> 0 | J24: ='SA9'!L85 -> 0 | K24: ='SA9'!M85 -> 0
A25: No toilet provisions | C25: ='SA9'!E86 -> 0 | D25: ='SA9'!F86 -> 0 | E25: ='SA9'!G86 -> 0 | F25: ='SA9'!H86 -> 0 | G25: ='SA9'!I86 -> 0 | H25: ='SA9'!J86 -> 0 | I25: ='SA9'!K86 -> 0 | J25: ='SA9'!L86 -> 0 | K25: ='SA9'!M86 -> 0
A26: =$A$14 -> Below Minimum Service Level sub-total | C26: =SUM(C23:C25) -> 0 | D26: =SUM(D23:D25) -> 0 | E26: 0 | F26: 0 | G26: 0 | H26: 0 | I26: 0 | J26: 0 | K26: 0
A27: =$A$15 -> Total number of households | B27: =$B$15 -> 5 | C27: =C22+C26 -> 0 | D27: =D22+D26 -> 0 | E27: 0 | F27: 0 | G27: 0 | H27: 0 | I27: 0 | J27: 0 | K27: 0
A28: Energy:
A29: Electricity (at least min.service level) | C29: ='SA9'!E90 -> 0 | D29: ='SA9'!F90 -> 0 | E29: ='SA9'!G90 -> 0 | F29: ='SA9'!H90 -> 0 | G29: ='SA9'!I90 -> 0 | H29: ='SA9'!J90 -> 0 | I29: ='SA9'!K90 -> 0 | J29: ='SA9'!L90 -> 0 | K29: ='SA9'!M90 -> 0
A30: Electricity - prepaid (min.service level) | C30: ='SA9'!E91 -> 0 | D30: ='SA9'!F91 -> 0 | E30: ='SA9'!G91 -> 0 | F30: ='SA9'!H91 -> 0 | G30: ='SA9'!I91 -> 0 | H30: ='SA9'!J91 -> 0 | I30: ='SA9'!K91 -> 0 | J30: ='SA9'!L91 -> 0 | K30: ='SA9'!M91 -> 0
A31: =$A$10 -> Minimum Service Level and Above sub-total | C31: =SUM(C29:C30) -> 0 | D31: =SUM(D29:D30) -> 0 | E31: 0 | F31: 0 | G31: 0 | H31: 0 | I31: 0 | J31: 0 | K31: 0
A32: Electricity (< min.service level) | C32: ='SA9'!E93 -> 0 | D32: ='SA9'!F93 -> 0 | E32: ='SA9'!G93 -> 0 | F32: ='SA9'!H93 -> 0 | G32: ='SA9'!I93 -> 0 | H32: ='SA9'!J93 -> 0 | I32: ='SA9'!K93 -> 0 | J32: ='SA9'!L93 -> 0 | K32: ='SA9'!M93 -> 0
A33: Electricity - prepaid (< min. service level) | C33: ='SA9'!E94 -> 0 | D33: ='SA9'!F94 -> 0 | E33: ='SA9'!G94 -> 0 | F33: ='SA9'!H94 -> 0 | G33: ='SA9'!I94 -> 0 | H33: ='SA9'!J94 -> 0 | I33: ='SA9'!K94 -> 0 | J33: ='SA9'!L94 -> 0 | K33: ='SA9'!M94 -> 0
A34: Other energy sources | C34: ='SA9'!E95 -> 0 | D34: ='SA9'!F95 -> 0 | E34: ='SA9'!G95 -> 0 | F34: ='SA9'!H95 -> 0 | G34: ='SA9'!I95 -> 0 | H34: ='SA9'!J95 -> 0 | I34: ='SA9'!K95 -> 0 | J34: ='SA9'!L95 -> 0 | K34: ='SA9'!M95 -> 0
A35: =$A$14 -> Below Minimum Service Level sub-total | C35: =SUM(C32:C34) -> 0 | D35: =SUM(D32:D34) -> 0 | E35: 0 | F35: 0 | G35: 0 | H35: 0 | I35: 0 | J35: 0 | K35: 0
A36: =$A$15 -> Total number of households | B36: =$B$15 -> 5 | C36: =C31+C35 -> 0 | D36: =D31+D35 -> 0 | E36: 0 | F36: 0 | G36: 0 | H36: 0 | I36: 0 | J36: 0 | K36: 0
A37: Refuse:
A38: Removed at least once a week | C38: ='SA9'!E99 -> 0 | D38: ='SA9'!F99 -> 0 | E38: ='SA9'!G99 -> 0 | F38: ='SA9'!H99 -> 0 | G38: ='SA9'!I99 -> 0 | H38: ='SA9'!J99 -> 0 | I38: ='SA9'!K99 -> 0 | J38: ='SA9'!L99 -> 0 | K38: ='SA9'!M99 -> 0
A39: =$A$10 -> Minimum Service Level and Above sub-total | C39: =SUM(C38) -> 0 | D39: =SUM(D38) -> 0 | E39: 0 | F39: 0 | G39: 0 | H39: 0 | I39: 0 | J39: 0 | K39: 0
A40: Removed less frequently than once a week | C40: ='SA9'!E101 -> 0 | D40: ='SA9'!F101 -> 0 | E40: ='SA9'!G101 -> 0 | F40: ='SA9'!H101 -> 0 | G40: ='SA9'!I101 -> 0 | H40: ='SA9'!J101 -> 0 | I40: ='SA9'!K101 -> 0 | J40: ='SA9'!L101 -> 0 | K40: ='SA9'!M101 -> 0
A41: Using communal refuse dump | C41: ='SA9'!E102 -> 0 | D41: ='SA9'!F102 -> 0 | E41: ='SA9'!G102 -> 0 | F41: ='SA9'!H102 -> 0 | G41: ='SA9'!I102 -> 0 | H41: ='SA9'!J102 -> 0 | I41: ='SA9'!K102 -> 0 | J41: ='SA9'!L102 -> 0 | K41: ='SA9'!M102 -> 0
A42: Using own refuse dump | C42: ='SA9'!E103 -> 0 | D42: ='SA9'!F103 -> 0 | E42: ='SA9'!G103 -> 0 | F42: ='SA9'!H103 -> 0 | G42: ='SA9'!I103 -> 0 | H42: ='SA9'!J103 -> 0 | I42: ='SA9'!K103 -> 0 | J42: ='SA9'!L103 -> 0 | K42: ='SA9'!M103 -> 0
A43: Other rubbish disposal | C43: ='SA9'!E104 -> 0 | D43: ='SA9'!F104 -> 0 | E43: ='SA9'!G104 -> 0 | F43: ='SA9'!H104 -> 0 | G43: ='SA9'!I104 -> 0 | H43: ='SA9'!J104 -> 0 | I43: ='SA9'!K104 -> 0 | J43: ='SA9'!L104 -> 0 | K43: ='SA9'!M104 -> 0
A44: No rubbish disposal | C44: ='SA9'!E105 -> 0 | D44: ='SA9'!F105 -> 0 | E44: ='SA9'!G105 -> 0 | F44: ='SA9'!H105 -> 0 | G44: ='SA9'!I105 -> 0 | H44: ='SA9'!J105 -> 0 | I44: ='SA9'!K105 -> 0 | J44: ='SA9'!L105 -> 0 | K44: ='SA9'!M105 -> 0
A45: =$A$14 -> Below Minimum Service Level sub-total | C45: =SUM(C40:C44) -> 0 | D45: 0 | E45: 0 | F45: 0 | G45: 0 | H45: 0 | I45: 0 | J45: 0 | K45: 0
A46: =$A$15 -> Total number of households | B46: =$B$15 -> 5 | C46: =C39+C45 -> 0 | D46: =D39+D45 -> 0 | E46: 0 | F46: 0 | G46: 0 | H46: 0 | I46: 0 | J46: 0 | K46: 0
A48: Households receiving Free Basic Service | B48: 7
A49: Water (6 kilolitres per household per month) | C49: ='SA9'!E263 -> 0 | D49: ='SA9'!F263 -> 0 | E49: ='SA9'!G263 -> 0 | F49: ='SA9'!H263 -> 0 | G49: ='SA9'!I263 -> 0 | H49: ='SA9'!J263 -> 0 | I49: ='SA9'!K263 -> 0 | J49: ='SA9'!L263 -> 0 | K49: ='SA9'!M263 -> 0
A50: Sanitation (free minimum level service) | C50: ='SA9'!E275 -> 0 | D50: ='SA9'!F275 -> 0 | E50: ='SA9'!G275 -> 0 | F50: ='SA9'!H275 -> 0 | G50: ='SA9'!I275 -> 0 | H50: ='SA9'!J275 -> 0 | I50: ='SA9'!K275 -> 0 | J50: ='SA9'!L275 -> 0 | K50: ='SA9'!M275 -> 0
A51: Electricity/other energy (50kwh per household per month) | C51: ='SA9'!E251 -> 0 | D51: ='SA9'!F251 -> 0 | E51: ='SA9'!G251 -> 0 | F51: ='SA9'!H251 -> 0 | G51: ='SA9'!I251 -> 0 | H51: ='SA9'!J251 -> 0 | I51: ='SA9'!K251 -> 0 | J51: ='SA9'!L251 -> 0 | K51: ='SA9'!M251 -> 0
A52: Refuse (removed at least once a week) | C52: ='SA9'!E287 -> 0 | D52: ='SA9'!F287 -> 0 | E52: ='SA9'!G287 -> 0 | F52: ='SA9'!H287 -> 0 | G52: ='SA9'!I287 -> 0 | H52: ='SA9'!J287 -> 0 | I52: ='SA9'!K287 -> 0 | J52: ='SA9'!L287 -> 0 | K52: ='SA9'!M287 -> 0
A53: Informal Settlements | C53: ='SA9'!E253+'SA9'!E255+'SA9'!E257+'SA9'!E259+'SA9'!E265+'SA9'!E2267+'SA9'!E269+'SA9'!E271+'SA9'!E277+'SA9'!E279+'SA9'!E281+'SA9'!E283+'SA9'!E289+'SA9'!E291+'SA9'!E293+'SA9'!E295 -> 0 | D53: ='SA9'!F253+'SA9'!F255+'SA9'!F257+'SA9'!F259+'SA9'!F265+'SA9'!F2267+'SA9'!F269+'SA9'!F271+'SA9'!F277+'SA9'!F279+'SA9'!F281+'SA9'!F283+'SA9'!F289+'SA9'!F291+'SA9'!F293+'SA9'!F295 -> 0 | E53: ='SA9'!G253+'SA9'!G255+'SA9'!G257+'SA9'!G259+'SA9'!G265+'SA9'!G2267+'SA9'!G269+'SA9'!G271+'SA9'!G277+'SA9'!G279+'SA9'!G281+'SA9'!G283+'SA9'!G289+'SA9'!G291+'SA9'!G293+'SA9'!G295 -> 0 | F53: ='SA9'!H253+'SA9'!H255+'SA9'!H257+'SA9'!H259+'SA9'!H265+'SA9'!H2267+'SA9'!H269+'SA9'!H271+'SA9'!H277+'SA9'!H279+'SA9'!H281+'SA9'!H283+'SA9'!H289+'SA9'!H291+'SA9'!H293+'SA9'!H295 -> 0 | G53: ='SA9'!I253+'SA9'!I255+'SA9'!I257+'SA9'!I259+'SA9'!I265+'SA9'!I2267+'SA9'!I269+'SA9'!I271+'SA9'!I277+'SA9'!I279+'SA9'!I281+'SA9'!I283+'SA9'!I289+'SA9'!I291+'SA9'!I293+'SA9'!I295 -> 0 | H53: ='SA9'!J253+'SA9'!J255+'SA9'!J257+'SA9'!J259+'SA9'!J265+'SA9'!J2267+'SA9'!J269+'SA9'!J271+'SA9'!J277+'SA9'!J279+'SA9'!J281+'SA9'!J283+'SA9'!J289+'SA9'!J291+'SA9'!J293+'SA9'!J295 -> 0 | I53: ='SA9'!K253+'SA9'!K255+'SA9'!K257+'SA9'!K259+'SA9'!K265+'SA9'!K2267+'SA9'!K269+'SA9'!K271+'SA9'!K277+'SA9'!K279+'SA9'!K281+'SA9'!K283+'SA9'!K289+'SA9'!K291+'SA9'!K293+'SA9'!K295 -> 0 | J53: ='SA9'!L253+'SA9'!L255+'SA9'!L257+'SA9'!L259+'SA9'!L265+'SA9'!L2267+'SA9'!L269+'SA9'!L271+'SA9'!L277+'SA9'!L279+'SA9'!L281+'SA9'!L283+'SA9'!L289+'SA9'!L291+'SA9'!L293+'SA9'!L295 -> 0 | K53: ='SA9'!M253+'SA9'!M255+'SA9'!M257+'SA9'!M259+'SA9'!M265+'SA9'!M2267+'SA9'!M269+'SA9'!M271+'SA9'!M277+'SA9'!M279+'SA9'!M281+'SA9'!M283+'SA9'!M289+'SA9'!M291+'SA9'!M293+'SA9'!M295 -> 0
A54: Cost of Free Basic Services provided - Formal Settlements (R'000)
A55: Water (6 kilolitres per indigent household per month) | C55: ='SA1'!C22 -> 0 | D55: ='SA1'!D22 -> 0 | E55: ='SA1'!E22 -> 0 | F55: ='SA1'!F22 -> 0 | G55: ='SA1'!G22 -> 0 | H55: ='SA1'!H22 -> 0 | I55: ='SA1'!J22 -> 0 | J55: ='SA1'!K22 -> 0 | K55: ='SA1'!L22 -> 0
A56: Sanitation (free sanitation service to indigent households) | C56: ='SA1'!C28 -> 0 | D56: ='SA1'!D28 -> 0 | E56: ='SA1'!E28 -> 0 | F56: ='SA1'!F28 -> 0 | G56: ='SA1'!G28 -> 0 | H56: ='SA1'!H28 -> 0 | I56: ='SA1'!J28 -> 0 | J56: ='SA1'!K28 -> 0 | K56: ='SA1'!L28 -> 0
A57: Electricity/other energy (50kwh per indigent household per month) | C57: ='SA1'!C16 -> -5930933.57 | D57: ='SA1'!D16 -> -6496579.78 | E57: ='SA1'!E16 -> -7890792.94 | F57: ='SA1'!F16 -> -4400576 | G57: ='SA1'!G16 -> -9900576 | H57: ='SA1'!H16 -> -9900576 | I57: ='SA1'!J16 -> 4320000 | J57: ='SA1'!K16 -> 4536000 | K57: ='SA1'!L16 -> 4762800
A58: Refuse (removed once a week for indigent households) | C58: ='SA1'!C35 -> 0 | D58: ='SA1'!D35 -> 0 | E58: ='SA1'!E35 -> 0 | F58: ='SA1'!F35 -> 0 | G58: ='SA1'!G35 -> 0 | H58: ='SA1'!H35 -> 0 | I58: ='SA1'!J35 -> 51840 | J58: ='SA1'!K35 -> 54432 | K58: ='SA1'!L35 -> 57154
A59: Cost of Free Basic Services provided - Informal Formal Settlements (R'000) | C59: ='SA9'!E260+'SA9'!E272+'SA9'!E284+'SA9'!E296 -> 0 | D59: ='SA9'!F260+'SA9'!F272+'SA9'!F284+'SA9'!F296 -> 0 | E59: ='SA9'!G260+'SA9'!G272+'SA9'!G284+'SA9'!G296 -> 0 | F59: ='SA9'!H260+'SA9'!H272+'SA9'!H284+'SA9'!H296 -> 0 | G59: ='SA9'!I260+'SA9'!I272+'SA9'!I284+'SA9'!I296 -> 0 | H59: ='SA9'!J260+'SA9'!J272+'SA9'!J284+'SA9'!J296 -> 0 | I59: ='SA9'!K260+'SA9'!K272+'SA9'!K284+'SA9'!K296 -> 0 | J59: ='SA9'!L260+'SA9'!L272+'SA9'!L284+'SA9'!L296 -> 0 | K59: ='SA9'!M260+'SA9'!M272+'SA9'!M284+'SA9'!M296 -> 0
A60: Total cost of FBS provided | B60: 8 | C60: =SUM(C55:C59) -> -5930933.57 | D60: -6496579.78 | E60: -7890792.94 | F60: -4400576 | G60: -9900576 | H60: -9900576 | I60: 4371840 | J60: 4590432 | K60: 4819954
A62: Highest level of free service provided per household
A63: Property rates (R value threshold)
A64: Water (kilolitres per household per month)
A65: Sanitation (kilolitres per household per month)
A66: Sanitation (Rand per household per month)
A67: Electricity (kwh per household per month)
A68: Refuse (average litres per week)
A69: Revenue cost of subsidised services provided (R'000) | B69: 9
A70: Property rates (tariff adjustment) ( impermissable values per section 17 of MPRA)
A71: Property rates exemptions, reductions and rebates and impermissable values in excess of section 17 of MPRA) | C71: ='SA1'!C9 -> 5894776.07 | D71: ='SA1'!D9 -> 6093885.48 | E71: ='SA1'!E9 -> 1054621.35 | F71: ='SA1'!F9 -> -1942860 | G71: ='SA1'!G9 -> 0 | H71: ='SA1'!H9 -> 0 | I71: ='SA1'!J9 -> 8145033 | J71: ='SA1'!K9 -> 8552286 | K71: ='SA1'!L9 -> 8979901
A72: Water (in excess of 6 kilolitres per indigent household per month) | C72: ='SA1'!C21 -> 0 | D72: ='SA1'!D21 -> 0 | E72: ='SA1'!E21 -> 0 | F72: ='SA1'!F21 -> 0 | G72: ='SA1'!G21 -> 0 | H72: ='SA1'!H21 -> 0 | I72: ='SA1'!J21 -> 0 | J72: ='SA1'!K21 -> 0 | K72: ='SA1'!L21 -> 0
A73: Sanitation (in excess of free sanitation service to indigent households) | C73: ='SA1'!C27 -> 0 | D73: ='SA1'!D27 -> 0 | E73: ='SA1'!E27 -> 0 | F73: ='SA1'!F27 -> 0 | G73: ='SA1'!G27 -> 0 | H73: ='SA1'!H27 -> 0 | I73: ='SA1'!J27 -> 0 | J73: ='SA1'!K27 -> 0 | K73: ='SA1'!L27 -> 0
A74: Electricity/other energy (in excess of 50 kwh per indigent household per month) | C74: ='SA1'!C15 -> 0 | D74: ='SA1'!D15 -> 0 | E74: ='SA1'!E15 -> 0 | F74: ='SA1'!F15 -> 0 | G74: ='SA1'!G15 -> 0 | H74: ='SA1'!H15 -> 0 | I74: ='SA1'!J15 -> 0 | J74: ='SA1'!K15 -> 0 | K74: ='SA1'!L15 -> 0
A75: Refuse (in excess of one removal a week for indigent households) | C75: ='SA1'!C34 -> 0 | D75: ='SA1'!D34 -> 0 | E75: ='SA1'!E34 -> 0 | F75: ='SA1'!F34 -> 0 | G75: ='SA1'!G34 -> 0 | H75: ='SA1'!H34 -> 0 | I75: ='SA1'!J34 -> 0 | J75: ='SA1'!K34 -> 0 | K75: ='SA1'!L34 -> 0
A76: Municipal Housing - rental rebates
A77: Housing - top structure subsidies | B77: 6
A78: Other
A79: Total revenue cost of subsidised services provided | C79: =SUM(C70:C78) -> 5894776.07 | D79: =SUM(D70:D78) -> 6093885.48 | E79: 1054621.35 | F79: -1942860 | G79: 0 | H79: 0 | I79: 8145033 | J79: =SUM(J70:J78) -> 8552286 | K79: =SUM(K70:K78) -> 8979901
A80: =head27a -> References
A81: 1. Include services provided by another entity; e.g. Eskom
A82: 2. Stand distance <= 200m from dwelling
A83: 3. Stand distance > 200m from dwelling
A84: 4. Borehole, spring, rain-water tank etc.
A85: 5. Must agree to total number of households in municipal area (informal settlements receiving services must be included)
A86: 6. Include value of subsidy provided by municipality above provincial subsidy level
A87: 7. Show number of households receiving at least these levels of services completely free (informal settlements must be included)
A88: 8. Must reflect the cost to the municipality of providing the Free Basic Service
A89: 9. Reflect the cost of free or subsidised services in excess to the National policy that are not funded from the Free Basic Services component of the Equitable Share

Sheet SA1
A1: =muni&" - "&TableA1 -> LIM353 Molemole - Supporting Table SA1 Supportinging detail to 'Budgeted Financial Performance'
A2: =desc -> Description | B2: =head27 -> Ref | C2: =head1b -> 2019/20 | D2: =head1A -> 2020/21 | E2: =Head1 -> 2021/22 | F2: =Head2 -> Current Year 2022/23 | J2: =Head3 -> 2023/24 Medium Term Revenue & Expenditure Framework
C3: =Head5 -> Audited Outcome | D3: =Head5 -> Audited Outcome | E3: =Head5 -> Audited Outcome | F3: =Head6 -> Original Budget | G3: =Head7 -> Adjusted Budget | H3: =Head8 -> Full Year Forecast | I3: =Head5b -> Pre-audit outcome | J3: =Head9 -> Budget Year 2023/24 | K3: =Head10 -> Budget Year +1 2024/25 | L3: =Head11 -> Budget Year +2 2025/26
A4: R thousand
A5: REVENUE ITEMS:
A6: Non-exchange revenue by source
A7: ='A4-FinPerf RE'!A5 -> Exchange Revenue | B7: 6
A8: Total Property Rates | C8: 25905661.7 | D8: 55651888.19 | E8: 31653855.18 | F8: 47453987 | G8: 41085652 | H8: 41085652 | I8: 30012189.3 | J8: 54208477 | K8: 56918903 | L8: 59764849
A9: Less Revenue Foregone (exemptions, reductions and rebates and impermissable values in excess of section 17 of MPRA) | C9: 5894776.07 | D9: 6093885.48 | E9: 1054621.35 | F9: -1942860 | G9: 0 | H9: 0 | I9: 0 | J9: 8145033 | K9: 8552286 | L9: 8979901
A10: Net Property Rates | C10: =C8-C9 -> 20010885.63 | D10: =D8-D9 -> 49558002.71 | E10: 30599233.83 | F10: 49396847 | G10: 41085652 | H10: 41085652 | I10: 30012189.3 | J10: 46063444 | K10: 48366617 | L10: 50784948
A12: Exchange revenue service charges
A13: ='A4-FinPerf RE'!A6 -> Service charges - Electricity | B13: 6
A14: ="Total "&A13 -> Total Service charges - Electricity | C14: 2353662.34 | D14: 1936455.45 | E14: 315228.07 | F14: 18585765 | G14: 13085765 | H14: 13085765 | I14: 357622.86 | J14: 16655647 | K14: 17488430 | L14: 18362852
A15: Less Revenue Foregone (in excess of 50 kwh per indigent household per month)
A16: Less Cost of Free Basis Services (50 kwh per indigent household per month) | C16: ='SA9'!E250 -> -5930933.57 | D16: ='SA9'!F250 -> -6496579.78 | E16: ='SA9'!G250 -> -7890792.94 | F16: ='SA9'!H250 -> -4400576 | G16: ='SA9'!I250 -> -9900576 | H16: ='SA9'!J250 -> -9900576 | I16: -7536587.05 | J16: ='SA9'!K250 -> 4320000 | K16: ='SA9'!L250 -> 4536000 | L16: ='SA9'!M250 -> 4762800
A17: ="Net "& A13 -> Net Service charges - Electricity | C17: =C14-C15-C16 -> 8284595.91 | D17: =D14-D15-D16 -> 8433035.23 | E17: 8206021.01 | F17: 22986341 | G17: 22986341 | H17: 22986341 | I17: 7894209.91 | J17: 12335647 | K17: 12952430 | L17: 13600052
A19: ='A4-FinPerf RE'!A7 -> Service charges - Water | B19: 6
A20: ="Total "&A19 -> Total Service charges - Water | C20: 0 | D20: 0 | E20: 0 | F20: 0 | G20: 0 | H20: 0 | I20: -17333.9 | J20: 0 | K20: 0 | L20: 0
A21: Less Revenue Foregone (in excess of 6 kilolitres per indigent household per month)
A22: Less Cost of Free Basis Services (6 kilolitres per indigent household per month) | C22: ='SA9'!E262 -> 0 | D22: ='SA9'!F262 -> 0 | E22: ='SA9'!G262 -> 0 | F22: ='SA9'!H262 -> 0 | G22: ='SA9'!I262 -> 0 | H22: ='SA9'!J262 -> 0 | I22: 0 | J22: ='SA9'!K262 -> 0 | K22: ='SA9'!L262 -> 0 | L22: ='SA9'!M262 -> 0
A23: ="Net "& A19 -> Net Service charges - Water | C23: =C20-C21-C22 -> 0 | D23: =D20-D21-D22 -> 0 | E23: 0 | F23: 0 | G23: 0 | H23: 0 | I23: -17333.9 | J23: 0 | K23: 0 | L23: 0
A25: ='A4-FinPerf RE'!A8 -> Service charges - Waste Water Management
A26: ="Total "&A25 -> Total Service charges - Waste Water Management | C26: 0 | D26: 0 | E26: 0 | F26: 0 | G26: 0 | H26: 0 | I26: -1745 | J26: 0 | K26: 0 | L26: 0
A27: Less Revenue Foregone (in excess of free sanitation service to indigent households)
A28: Less Cost of Free Basis Services (free sanitation service to indigent households) | C28: ='SA9'!E274 -> 0 | D28: ='SA9'!F274 -> 0 | E28: ='SA9'!G274 -> 0 | F28: ='SA9'!H274 -> 0 | G28: ='SA9'!I274 -> 0 | H28: ='SA9'!J274 -> 0 | I28: 0 | J28: ='SA9'!K274 -> 0 | K28: ='SA9'!L274 -> 0 | L28: ='SA9'!M274 -> 0
A29: ="Net "& A25 -> Net Service charges - Waste Water Management | C29: =C26-C27-C28 -> 0 | D29: =D26-D27-D28 -> 0 | E29: 0 | F29: 0 | G29: 0 | H29: 0 | I29: -1745 | J29: 0 | K29: 0 | L29: 0
A31: ='A4-FinPerf RE'!A9 -> Service charges - Waste Management | B31: 6
A32: Total refuse removal revenue | C32: 2218412.62 | D32: 2628852.44 | E32: 2742344.54 | F32: 2603836 | G32: 2603836 | H32: 2603836 | I32: 2313560.4 | J32: 3596549 | K32: 3776377 | L32: 3965196
A33: Total landfill revenue
A34: Less Revenue Foregone (in excess of one removal a week to indigent households)
A35: Less Cost of Free Basis Services (removed once a week to indigent households) | C35: ='SA9'!E286 -> 0 | D35: ='SA9'!F286 -> 0 | E35: ='SA9'!G286 -> 0 | F35: ='SA9'!H286 -> 0 | G35: ='SA9'!I286 -> 0 | H35: ='SA9'!J286 -> 0 | I35: 0 | J35: ='SA9'!K286 -> 51840 | K35: ='SA9'!L286 -> 54432 | L35: ='SA9'!M286 -> 57154
A36: ="Net "& A31 -> Net Service charges - Waste Management | C36: =SUM(C32:C33)-C34-C35 -> 2218412.62 | D36: =SUM(D32:D33)-D34-D35 -> 2628852.44 | E36: 2742344.54 | F36: 2603836 | G36: 2603836 | H36: 2603836 | I36: 2313560.4 | J36: 3544709 | K36: 3721945 | L36: 3908042
A51: EXPENDITURE ITEMS:
A52: ='A4-FinPerf RE'!A34 -> Employee related costs
A53: Basic Salaries and Wages | B53: 2 | C53: 55485784.98 | D53: 58190710.75 | E53: 61133295.46 | F53: 66551180 | G53: 63950345 | H53: 63950345 | I53: 59115158.11 | J53: 64232396 | K53: 73018630 | L53: 76644562
A54: Pension and UIF Contributions | C54: 9874746.42 | D54: 10517235.36 | E54: 11174051.67 | F54: 7041206 | G54: 12325185 | H54: 12325185 | I54: 11302110.12 | J54: 11777285 | K54: 11707412 | L54: 12292781
A55: Medical Aid Contributions | C55: 4127157.03 | D55: 4453753.66 | E55: 4825600.24 | F55: 5622367 | G55: 5287164 | H55: 5287164 | I55: 4854187.83 | J55: 5681807 | K55: 5965908 | L55: 6264205
A56: Overtime | C56: 582200.7 | D56: 576704.29 | E56: 668793.86 | F56: 166000 | G56: 603471 | H56: 603471 | I56: 540105.61 | J56: 825000 | K56: 866250 | L56: 909563
A57: Performance Bonus | C57: 5333457.17 | D57: 4455561.78 | E57: 5602652.1 | F57: 6268366 | G57: 5699013 | H57: 5699013 | I57: 4625838.03 | J57: 7994797 | K57: 8394567 | L57: 8814294
A58: Motor Vehicle Allowance | C58: 5168040.83 | D58: 6020520.97 | E58: 6932035.88 | F58: 8017853 | G58: 7730961 | H58: 7730961 | I58: 7262258.38 | J58: 8908614 | K58: 9354056 | L58: 9823760
A59: Cellphone Allowance | C59: 1107676.23 | D59: 1153316.28 | E59: 1217478.28 | F59: 1398393 | G59: 1312308 | H59: 1312308 | I59: 1163223.35 | J59: 1625901 | K59: 1707197 | L59: 1792567
A60: Housing Allowances | C60: 182795.61 | D60: 177469.79 | E60: 185185.92 | F60: 175024 | G60: 223222 | H60: 223222 | I60: 199318.69 | J60: 322205 | K60: 338321 | L60: 355236
A61: Other benefits and allowances | C61: 826323.14 | D61: 1007515.48 | E61: 1064563.95 | F61: 3752707 | G61: 1989783 | H61: 1989783 | I61: 1015402.79 | J61: 1644176 | K61: 1726404 | L61: 1812729
A62: Payments in lieu of leave | C62: 2399742.03 | D62: 1835352.93 | E62: 518221.96 | F62: 1864646 | G62: 610060 | H62: 610060 | I62: 425489.95 | J62: 275000 | K62: 288750 | L62: 303188
A63: Long service awards | C63: 532895.01 | D63: 721000 | E63: 879000 | F63: 1358801 | G63: 1469970 | H63: 1469970 | I63: 655145.42 | J63: 1552336 | K63: 1629964 | L63: 1711465
A64: Post-retirement benefit obligations | B64: 4 | C64: -1341122 | D64: 2546350.96 | E64: 1954783 | F64: 2331077 | G64: 2330566 | H64: 2330566 | I64: 0 | J64: 2447120 | K64: 2569507 | L64: 2697976
A65: Entertainment
A66: Scarcity
A67: Acting and post related allowance
A68: In kind benefits
A69: sub-total | B69: 5 | C69: =SUM(C53:C68) -> 84279697.15 | D69: =SUM(D53:D68) -> 91655492.25 | E69: 96155662.32 | F69: 104547620 | G69: 103532048 | H69: 103532048 | I69: 91158238.28 | J69: 107286637 | K69: 117566966 | L69: 123422326
A70: Less: Employees costs capitalised to PPE | C70: 0 | D70: 0 | E70: 0 | F70: 0 | G70: 0 | H70: 0 | I70: 0 | J70: 0 | K70: 0 | L70: 0
A71: ="Total "&A52 -> Total Employee related costs | B71: 1 | C71: =C69-C70 -> 84279697.15 | D71: =D69-D70 -> 91655492.25 | E71: 96155662.32 | F71: 104547620 | G71: 103532048 | H71: 103532048 | I71: 91158238.28 | J71: 107286637 | K71: 117566966 | L71: 123422326
A78: ='A4-FinPerf RE'!A39 -> Depreciation and amortisation
A79: Depreciation of Property, Plant & Equipment | C79: 14954739.37 | D79: 11896341.57 | E79: 18360578.97 | F79: 19076809 | G79: 19076809 | H79: 19076809 | I79: 31313194.79 | J79: 21319587 | K79: 22385608 | L79: 23504888
A80: Lease amortisation | C80: 908264.46 | D80: 218216.9 | E80: 417337.28 | F80: 736232 | G80: 736232 | H80: 736232 | I80: 756559.65 | J80: 762568 | K80: 800700 | L80: 840735
A81: Capital asset impairment | C81: 17074.57 | D81: 0 | E81: 317111.17 | F81: 0 | G81: 0 | H81: 0 | I81: 0 | J81: 0 | K81: 0 | L81: 0
A83: ="Total "&LEFT(A78,35) -> Total Depreciation and amortisation | B83: 1 | C83: =SUM(C79:C81) -> 15880078.4 | D83: =SUM(D79:D81) -> 12114558.47 | E83: 19095027.42 | F83: 19813041 | G83: 19813041 | H83: 19813041 | I83: 32069754.44 | J83: 22082155 | K83: 23186308 | L83: 24345623
A85: Bulk purchases - electricity
A86: Electricity bulk purchases | C86: 10107195.66 | D86: 11026472.76 | E86: 12585145.7 | F86: 11926907 | G86: 13126907 | H86: 13126907 | I86: 9079972.21 | J86: 13783253 | K86: 14472416 | L86: 15196037
A88: Total bulk purchases | B88: 1 | C88: =SUM(C86:C87) -> 10107195.66 | D88: =SUM(D86:D87) -> 11026472.76 | E88: 12585145.7 | F88: 11926907 | G88: 13126907 | H88: 13126907 | I88: 9079972.21 | J88: 13783253 | K88: 14472416 | L88: 15196037
A90: Transfers and grants
A91: Cash transfers and grants | C91: ='SA21'!C32 -> 0 | D91: ='SA21'!D32 -> 0 | E91: ='SA21'!E32 -> 0 | F91: ='SA21'!F32 -> 0 | G91: ='SA21'!G32 -> 0 | H91: ='SA21'!H32 -> 0 | I91: ='SA21'!I32 -> 0 | J91: ='SA21'!J32 -> 0 | K91: ='SA21'!K32 -> 0 | L91: ='SA21'!L32 -> 0
A92: Non-cash transfers and grants | C92: ='SA21'!C63 -> 0 | D92: ='SA21'!D63 -> 0 | E92: ='SA21'!E63 -> 0 | F92: ='SA21'!F63 -> 0 | G92: ='SA21'!G63 -> 0 | H92: ='SA21'!H63 -> 0 | I92: ='SA21'!I63 -> 0 | J92: ='SA21'!J63 -> 0 | K92: ='SA21'!K63 -> 0 | L92: ='SA21'!L63 -> 0
A93: Total transfers and grants | B93: 1 | C93: =SUM(C91:C92) -> 0 | D93: =SUM(D91:D92) -> 0 | E93: 0 | F93: 0 | G93: 0 | H93: 0 | I93: 0 | J93: 0 | K93: 0 | L93: 0
A95: Contracted Services
A96: Outsourced Services | C96: 12268703.28 | D96: 12062862.34 | E96: 13065000.32 | F96: 15032527 | G96: 12978787 | H96: 12978787 | I96: 10720280.08 | J96: 17077462 | K96: 15977867 | L96: 16776763
A97: Consultants and Professional Services | C97: 7280570.44 | D97: 7226954.11 | E97: 6094211.13 | F97: 9825955 | G97: 11087666 | H97: 11087666 | I97: 9376641.68 | J97: 11116873 | K97: 9350389 | L97: 9801957
A98: Contractors | C98: 7327192.44 | D98: 19829619.99 | E98: 17550156.98 | F98: 17244317 | G98: 15934890 | H98: 15934890 | I98: 14307469.22 | J98: 17574193 | K98: 17631446 | L98: 18493973
A127: Total contracted services | C127: =SUM(C96:C98) -> 26876466.16 | D127: =SUM(D96:D98) -> 39119436.44 | E127: 36709368.43 | F127: 42102799 | G127: 40001343 | H127: 40001343 | I127: 34404390.98 | J127: 45768528 | K127: 42959702 | L127: 45072693
A129: Operational Costs
A130: Collection costs | C130: 1952533.37 | D130: 6091648.58 | E130: 2820280.39 | F130: 3375504 | G130: 4785504 | H130: 4785504 | I130: 2114281.48 | J130: 2000000 | K130: 2100000 | L130: 2205000
A131: Contributions to 'other' provisions
A133: Audit fees | C133: 3313349.7 | D133: 3925775.89 | E133: 3446880.2 | F133: 4627722 | G133: 4557722 | H133: 4557722 | I133: 3714583.5 | J133: 5392537 | K133: 5662164 | L133: 5945273
A136: Other Operational Costs | C136: 23604531.6 | D136: 24148680.94 | E136: 25467821.46 | F136: 32920054 | G136: 32858790 | H136: 32858790 | I136: 27491298.61 | J136: 32624939 | K136: 32410308 | L136: 32595221
A157: Total Operational Costs | B157: 1 | C157: =+C130+C131+C133+C136 -> 28870414.67 | D157: =+D130+D131+D133+D136 -> 34166105.41 | E157: 31734982.05 | F157: 40923280 | G157: 42202016 | H157: 42202016 | I157: 33320163.59 | J157: 40017476 | K157: 40172472 | L157: 40745494
A159: Repairs and Maintenance by Expenditure Item | B159: 8
A160: Employee related costs
A161: Inventory Consumed (Project Maintenance) | C161: 0 | D161: 5353.45 | E161: 0 | F161: 0 | G161: 0 | H161: 0 | I161: 0 | J161: 0 | K161: 0 | L161: 0
A162: Contracted Services | C162: 6280208.17 | D162: 18193947.26 | E162: 15760044.82 | F162: 15144089 | G162: 14572812 | H162: 14572812 | I162: 13281754.68 | J162: 15630000 | K162: 16361500 | L162: 17129575
A163: Other Expenditure
A164: Total Repairs and Maintenance Expenditure | B164: 9 | C164: =SUM(C160:C163) -> 6280208.17 | D164: =SUM(D160:D163) -> 18199300.71 | E164: 15760044.82 | F164: 15144089 | G164: 14572812 | H164: 14572812 | I164: 13281754.68 | J164: 15630000 | K164: 16361500 | L164: 17129575
A166: Inventory Consumed
A167: Inventory Consumed - Water | C167: =-'SA3'!C37 -> 0 | D167: =-'SA3'!D37 -> 0 | E167: =-'SA3'!E37 -> 0 | F167: =-'SA3'!F37 -> 0 | G167: =-'SA3'!G37 -> 0 | H167: =-'SA3'!H37 -> 0 | I167: =-'SA3'!I37 -> 0 | J167: =-'SA3'!J37 -> 0 | K167: =-'SA3'!K37 -> 0 | L167: =-'SA3'!L37 -> 0
A168: Inventory Consumed - Other | C168: =-'SA3'!C66-'SA3'!C75-'SA3'!C82-'SA3'!C90-'SA3'!C98 -> 1056734.27 | D168: =-'SA3'!D66-'SA3'!D75-'SA3'!D82-'SA3'!D90-'SA3'!D98 -> 810564.36 | E168: =-'SA3'!E66-'SA3'!E75-'SA3'!E82-'SA3'!E90-'SA3'!E98 -> 1851393.14 | F168: =-'SA3'!F66-'SA3'!F75-'SA3'!F82-'SA3'!F90-'SA3'!F98 -> 7803884 | G168: =-'SA3'!G66-'SA3'!G75-'SA3'!G82-'SA3'!G90-'SA3'!G98 -> 7159395 | H168: =-'SA3'!H66-'SA3'!H75-'SA3'!H82-'SA3'!H90-'SA3'!H98 -> 7159395 | I168: =-'SA3'!I66-'SA3'!I75-'SA3'!I82-'SA3'!I90-'SA3'!I98 -> 0 | J168: =-'SA3'!J66-'SA3'!J75-'SA3'!J82-'SA3'!J90-'SA3'!J98 -> 8245842 | K168: =-'SA3'!K66-'SA3'!K75-'SA3'!K82-'SA3'!K90-'SA3'!K98 -> 8263500 | L168: =-'SA3'!L66-'SA3'!L75-'SA3'!L82-'SA3'!L90-'SA3'!L98 -> 8676675
A169: Total Inventory Consumed & Other Material | C169: =SUM(C167:C168) -> 1056734.27 | D169: 810564.36 | E169: 1851393.14 | F169: 7803884 | G169: 7159395 | H169: 7159395 | I169: 0 | J169: 8245842 | K169: 8263500 | L169: 8676675
A171: check | C171: =C164-SA34c!C175 -> 0 | D171: =D164-SA34c!D175 -> 0 | E171: =E164-SA34c!E175 -> 0 | F171: =F164-SA34c!F175 -> 0 | G171: =G164-SA34c!G175 -> 0 | H171: =H164-SA34c!H175 -> 0 | J171: =J164-SA34c!I175 -> 0 | K171: =K164-SA34c!J175 -> 0 | L171: =L164-SA34c!K175 -> 0
A172: =head27a -> References
A173: 1. Must reconcile with 'Budgeted Financial Performance (Revenue and Expenditure)
A174: 2. Must reconcile to supporting documentation on staff salaries
A176: 4. Expenditure to meet any 'unfunded obligations'
A177: 5 This sub-total must agree with the total on SA22, but excluding councillor and board member items
A178: 6. Include a note for each revenue item that is affected by 'revenue foregone'
A180: 8. Repairs and Maintenance is not a GRAP item. However to facilitate transparency, municipalities must provide a breakdown of the amounts included in the relevant GRAP items that will be spent on Repairs and Maintenance.
A181: 9. Must reconcile with Repairs and Maintenance by Asset Class (Total Repairs and Maintenance) on Table SA34c.

Sheet SA2
A1: =muni&" - "&TableA2 -> LIM353 Molemole - Supporting Table SA2 Matrix Financial Performance Budget (revenue source/expenditure type and dept.)
